{"text_format":"1","workbook":"xlsx","n_sheets":3,"sheets":["Hoja1","Hoja2","Formato"],"not_rendered":{"charts":0,"images":2,"macros":1,"external_links":1,"defined_names":8,"comments":1,"pivot_tables":0},"unopened":[],"bounds":{"document_bytes":16777216,"sheet_cells":100000,"rows_first":2000,"rows_last":500,"rows_between":2000,"halvings":0,"cell_chars":16384,"cell_head_chars":4096},"cells_cut":0,"cells_raw":0,"read":"whole","date_system":"1900"}

{"sheet":"Hoja1","index":0,"n_rows":150,"n_cols":16378,"rows_kept":7,"cut":true,"hidden":true,"merged":[],"bounds":{"rows_first":3,"rows_last":1,"rows_between":3,"halvings":9}}
[null,"Procesos","No. Productos",null,null,"Proceso","Producto","Tipo de PreProducto","Tipo de Producto","Descripción del Producto/Servicio","Responsable del Producto /servicio",null,null,null,null,null,null,null,null,null,null,null,null,null,null,null,null,null,null,null,null,null,null,null,null,null,null,null,null,null,null,null,null,null,null,null,null,null,null,null,null,null,null,null,null,null,null,null,null,null,null,null,null,null,null,null,null,null,null,null,null,null,null,null,null,null,null,null,null,null,null,null,null,null,null,null,null,null,null,null,null,null,null,null,null,null,null,null,null,null,null,null,null,null,null,null,null,null,null,null,null,null,null,null,null,null,null,null,null,null,null,null,null,null,null,null,null,null,null,null,null,null,null,null,null,null,null,null,null,null,null,null,null,null,null,null,null,null,null,null,null,null,null,null,null,null,null,null,null,null,null,null,null,null,null,null,null,null,null,null,null,null,null,null,null,null,null,null,null,null,null,null,null,null,null,null,null,null,null,null,null,null,null,null,null,null,null,null,null,null,null,null,null,null,null,null,null,null,null,null,null,null,null,null,null,null,null,null,null,null,null,null,null,null,null,null,null,null,null,null,null,null,null,null,null,null,null,null,null,null,null,null,null,null,null,null,null,null,null,null,null,null,null,null,null,null,null,null,null,null,null,null,null,null,null,null,null,null,null,null,null,null,null,null,null,null,null,null,null,null,null,null,null,null,null,null,null,null,null,null,null,null,null,null,null,null,null,null,null,null,null,null,null,null,null,null,null,null,null,null,null,null,null,null,null,null,null,null,null,null,null,null,null,null,null,null,null,null,null,null,null,null,null,null,null,null,null,null,null,null,null,null,null,null,null,null,null,null,null,null,null,null,null,null,null,null,null,null,null,null,null,null,null,null,null,null,null,null,null,null,null,null,null,null,null,null,null,null,null,null,null,null,null,null,null,null,null,null,null,null,null,null,null,null,null,null,null,null,null,null,null,null,null,null,null,null,null,null,null,null,null,null,null,null,null,null,null,null,null,null,null,null,null,null,null,null,null,null,null,null,null,null,null,null,null,null,null,null,null,null,null,null,null,null,null,null,null,null,null,null,null,null,null,null,null,null,null,null,null,null,null,null,null,null,null,null,null,null,null,null,null,null,null,null,null,null,null,null,null,null,null,null,null,null,null,null,null,null,null,null,null,null,null,null,null,null,null,null,null,null,null,null,null,null,null,null,null,null,null,null,null,null,null,null,null,null,null,null,null,null,null,null,null,null,null,null,null,null,null,null,null,null,null,null,null,null,null,null,null,null,null,null,null,null,null,null,null,null,null,null,null,null,null,null,null,null,null,null,null,null,null,null,null,null,null,null,null,null,null,null,null,null,null,null,null,null,null,null,null,null,null,null,null,null,null,null,null,null,null,null,null,null,null,null,null,null,null,null,null,null,null,null,null,null,null,null,null,null,null,null,null,null,null,null,null,null,null,null,null,null,null,null,null,null,null,null,null,null,null,null,null,null,null,null,null,null,null,null,null,null,null,null,null,null,null,null,null,null,null,null,null,null,null,null,null,null,null,null,null,null,null,null,null,null,null,null,null,null,null,null,null,null,null,null,null,null,null,null,null,null,null,null,null,null,null,null,null,null,null,null,null,null,null,null,null,null,null,null,null,null,null,null,null,null,null,null,null,null,null,null,null,null,null,null,null,null,null,null,null,null,null,null,null,null,null,null,null,null,null,null,null,null,null,null,null,null,null,null,null,null,null,null,null,null,null,null,null,null,null,null,null,null,null,null,null,null,null,null,null,null,null,null,null,null,null,null,null,null,null,null,null,null,null,null,null,null,null,null,null,null,null,null,null,null,null,null,null,null,null,null,null,null,null,null,null,null,null,null,null,null,null,null,null,null,null,null,null,null,null,null,null,null,null,null,null,null,null,null,null,null,null,null,null,null,null,null,null,null,null,null,null,null,null,null,null,null,null,null,null,null,null,null,null,null,null,null,null,null,null,null,null,null,null,null,null,null,null,null,null,null,null,null,null,null,null,null,null,null,null,null,null,null,null,null,null,null,null,null,null,null,null,null,null,null,null,null,null,null,null,null,null,null,null,null,null,null,null,null,null,null,null,null,null,null,null,null,null,null,null,null,null,null,null,null,null,null,null,null,null,null,null,null,null,null,null,null,null,null,null,null,null,null,null,null,null,null,null,null,null,null,null,null,null,null,null,null,null,null,null,null,null,null,null,null,null,null,null,null,null,null,null,null,null,null,null,null,null,null,null,null,null,null,null,null,null,null,null,null,null,null,null,null,null,null,null,null,null,null,null,null,null,null,null,null,null,null,null,null,null,null,null,null,null,null,null,null,null,null,null,null,null,null,null,null,null,null,null,null,null,null,null,null,null,null,null,null,null,null,null,null,null,null,null,null,null,null,null,null,null,null,null,null,null,null,null,null,null,null,null,null,null,null,null,null,null,null,null,null,null,null,null,null,null,null,null,null,null,null,null,null,null,null,null,null,null,null,null,null,null,null,null,null,null,null,null,null,null,null,null,null,null,null,null,null,null,null,null,null,null,null,null,null,null,null,null,null,null,null,null,null,null,null,null,null,null,null,null,null,null,null,null,null,null,null,null,null,null,null,null,null,null,null,null,null,null,null,null,null,null,null,null,null,null,null,null,null,null,null,null,null,null,null,null,null,null,null,null,null,null,null,null,null,null,null,null,null,null,null,null,null,null,null,null,null,null,null,null,null,null,null,null,null,null,null,null,null,null,null,null,null,null,null,null,null,null,null,null,null,null,null,null,null,null,null,null,null,null,null,null,null,null,null,null,null,null,null,null,null,null,null,null,null,null,null,null,null,null,null,null,null,null,null,null,null,null,null,null,null,null,null,null,null,null,null,null,null,null,null,null,null,null,null,null,null,null,null,null,null,null,null,null,null,null,null,null,null,null,null,null,null,null,null,null,null,null,null,null,null,null,null,null,null,null,null,null,null,null,null,null,null,null,null,null,null,null,null,null,null,null,null,null,null,null,null,null,null,null,null,null,null,null,null,null,null,null,null,null,null,null,null,null,null,null,null,null,null,null,null,null,null,null,null,null,null,null,null,null,null,null,null,null,null,null,null,null,null,null,null,null,null,null,null,null,null,null,null,null,null,null,null,null,null,null,null,null,null,null,null,null,null,null,null,null,null,null,null,null,null,null,null,null,null,null,null,null,null,null,null,null,null,null,null,null,null,null,null,null,null,null,null,null,null,null,null,null,null,null,null,null,null,null,null,null,null,null,null,null,null,null,null,null,null,null,null,null,null,null,null,null,null,null,null,null,null,null,null,null,null,null,null,null,null,null,null,null,null,null,null,null,null,null,null,null,null,null,null,null,null,null,null,null,null,null,null,null,null,null,null,null,null,null,null,null,null,null,null,null,null,null,null,null,null,null,null,null,null,null,null,null,null,null,null,null,null,null,null,null,null,null,null,null,null,null,null,null,null,null,null,null,null,null,null,null,null,null,null,null,null,null,null,null,null,null,null,null,null,null,null,null,null,null,null,null,null,null,null,null,null,null,null,null,null,null,null,null,null,null,null,null,null,null,null,null,null,null,null,null,null,null,null,null,null,null,null,null,null,null,null,null,null,null,null,null,null,null,null,null,null,null,null,null,null,null,null,null,null,null,null,null,null,null,null,null,null,null,null,null,null,null,null,null,null,null,null,null,null,null,null,null,null,null,null,null,null,null,null,null,null,null,null,null,null,null,null,null,null,null,null,null,null,null,null,null,null,null,null,null,null,null,null,null,null,null,null,null,null,null,null,null,null,null,null,null,null,null,null,null,null,null,null,null,null,null,null,null,null,null,null,null,null,null,null,null,null,null,null,null,null,null,null,null,null,null,null,null,null,null,null,null,null,null,null,null,null,null,null,null,null,null,null,null,null,null,null,null,null,null,null,null,null,null,null,null,null,null,null,null,null,null,null,null,null,null,null,null,null,null,null,null,null,null,null,null,null,null,null,null,null,null,null,null,null,null,null,null,null,null,null,null,null,null,null,null,null,null,null,null,null,null,null,null,null,null,null,null,null,null,null,null,null,null,null,null,null,null,null,null,null,null,null,null,null,null,null,null,null,null,null,null,null,null,null,null,null,null,null,null,null,null,null,null,null,null,null,null,null,null,null,null,null,null,null,null,null,null,null,null,null,null,null,null,null,null,null,null,null,null,null,null,null,null,null,null,null,null,null,null,null,null,null,null,null,null,null,null,null,null,null,null,null,null,null,null,null,null,null,null,null,null,null,null,null,null,null,null,null,null,null,null,null,null,null,null,null,null,null,null,null,null,null,null,null,null,null,null,null,null,null,null,null,null,null,null,null,null,null,null,null,null,null,null,null,null,null,null,null,null,null,null,null,null,null,null,null,null,null,null,null,null,null,null,null,null,null,null,null,null,null,null,null,null,null,null,null,null,null,null,null,null,null,null,null,null,null,null,null,null,null,null,null,null,null,null,null,null,null,null,null,null,null,null,null,null,null,null,null,null,null,null,null,null,null,null,null,null,null,null,null,null,null,null,null,null,null,null,null,null,null,null,null,null,null,null,null,null,null,null,null,null,null,null,null,null,null,null,null,null,null,null,null,null,null,null,null,null,null,null,null,null,null,null,null,null,null,null,null,null,null,null,null,null,null,null,null,null,null,null,null,null,null,null,null,null,null,null,null,null,null,null,null,null,null,null,null,null,null,null,null,null,null,null,null,null,null,null,null,null,null,null,null,null,null,null,null,null,null,null,null,null,null,null,null,null,null,null,null,null,null,null,null,null,null,null,null,null,null,null,null,null,null,null,null,null,null,null,null,null,null,null,null,null,null,null,null,null,null,null,null,null,null,null,null,null,null,null,null,null,null,null,null,null,null,null,null,null,null,null,null,null,null,null,null,null,null,null,null,null,null,null,null,null,null,null,null,null,null,null,null,null,null,null,null,null,null,null,null,null,null,null,null,null,null,null,null,null,null,null,null,null,null,null,null,null,null,null,null,null,null,null,null,null,null,null,null,null,null,null,null,null,null,null,null,null,null,null,null,null,null,null,null,null,null,null,null,null,null,null,null,null,null,null,null,null,null,null,null,null,null,null,null,null,null,null,null,null,null,null,null,null,null,null,null,null,null,null,null,null,null,null,null,null,null,null,null,null,null,null,null,null,null,null,null,null,null,null,null,null,null,null,null,null,null,null,null,null,null,null,null,null,null,null,null,null,null,null,null,null,null,null,null,null,null,null,null,null,null,null,null,null,null,null,null,null,null,null,null,null,null,null,null,null,null,null,null,null,null,null,null,null,null,null,null,null,null,null,null,null,null,null,null,null,null,null,null,null,null,null,null,null,null,null,null,null,null,null,null,null,null,null,null,null,null,null,null,null,null,null,null,null,null,null,null,null,null,null,null,null,null,null,null,null,null,null,null,null,null,null,null,null,null,null,null,null,null,null,null,null,null,null,null,null,null,null,null,null,null,null,null,null,null,null,null,null,null,null,null,null,null,null,null,null,null,null,null,null,null,null,null,null,null,null,null,null,null,null,null,null,null,null,null,null,null,null,null,null,null,null,null,null,null,null,null,null,null,null,null,null,null,null,null,null,null,null,null,null,null,null,null,null,null,null,null,null,null,null,null,null,null,null,null,null,null,null,null,null,null,null,null,null,null,null,null,null,null,null,null,null,null,null,null,null,null,null,null,null,null,null,null,null,null,null,null,null,null,null,null,null,null,null,null,null,null,null,null,null,null,null,null,null,null,null,null,null,null,null,null,null,null,null,null,null,null,null,null,null,null,null,null,null,null,null,null,null,null,null,null,null,null,null,null,null,null,null,null,null,null,null,null,null,null,null,null,null,null,null,null,null,null,null,null,null,null,null,null,null,null,null,null,null,null,null,null,null,null,null,null,null,null,null,null,null,null,null,null,null,null,null,null,null,null,null,null,null,null,null,null,null,null,null,null,null,null,null,null,null,null,null,null,null,null,null,null,null,null,null,null,null,null,null,null,null,null,null,null,null,null,null,null,null,null,null,null,null,null,null,null,null,null,null,null,null,null,null,null,null,null,null,null,null,null,null,null,null,null,null,null,null,null,null,null,null,null,null,null,null,null,null,null,null,null,null,null,null,null,null,null,null,null,null,null,null,null,null,null,null,null,null,null,null,null,null,null,null,null,null,null,null,null,null,null,null,null,null,null,null,null,null,null,null,null,null,null,null,null,null,null,null,null,null,null,null,null,null,null,null,null,null,null,null,null,null,null,null,null,null,null,null,null,null,null,null,null,null,null,null,null,null,null,null,null,null,null,null,null,null,null,null,null,null,null,null,null,null,null,null,null,null,null,null,null,null,null,null,null,null,null,null,null,null,null,null,null,null,null,null,null,null,null,null,null,null,null,null,null,null,null,null,null,null,null,null,null,null,null,null,null,null,null,null,null,null,null,null,null,null,null,null,null,null,null,null,null,null,null,null,null,null,null,null,null,null,null,null,null,null,null,null,null,null,null,null,null,null,null,null,null,null,null,null,null,null,null,null,null,null,null,null,null,null,null,null,null,null,null,null,null,null,null,null,null,null,null,null,null,null,null,null,null,null,null,null,null,null,null,null,null,null,null,null,null,null,null,null,null,null,null,null,null,null,null,null,null,null,null,null,null,null,null,null,null,null,null,null,null,null,null,null,null,null,null,null,null,null,null,null,null,null,null,null,null,null,null,null,null,null,null,null,null,null,null,null,null,null,null,null,null,null,null,null,null,null,null,null,null,null,null,null,null,null,null,null,null,null,null,null,null,null,null,null,null,null,null,null,null,null,null,null,null,null,null,null,null,null,null,null,null,null,null,null,null,null,null,null,null,null,null,null,null,null,null,null,null,null,null,null,null,null,null,null,null,null,null,null,null,null,null,null,null,null,null,null,null,null,null,null,null,null,null,null,null,null,null,null,null,null,null,null,null,null,null,null,null,null,null,null,null,null,null,null,null,null,null,null,null,null,null,null,null,null,null,null,null,null,null,null,null,null,null,null,null,null,null,null,null,null,null,null,null,null,null,null,null,null,null,null,null,null,null,null,null,null,null,null,null,null,null,null,null,null,null,null,null,null,null,null,null,null,null,null,null,null,null,null,null,null,null,null,null,null,null,null,null,null,null,null,null,null,null,null,null,null,null,null,null,null,null,null,null,null,null,null,null,null,null,null,null,null,null,null,null,null,null,null,null,null,null,null,null,null,null,null,null,null,null,null,null,null,null,null,null,null,null,null,null,null,null,null,null,null,null,null,null,null,null,null,null,null,null,null,null,null,null,null,null,null,null,null,null,null,null,null,null,null,null,null,null,null,null,null,null,null,null,null,null,null,null,null,null,null,null,null,null,null,null,null,null,null,null,null,null,null,null,null,null,null,null,null,null,null,null,null,null,null,null,null,null,null,null,null,null,null,null,null,null,null,null,null,null,null,null,null,null,null,null,null,null,null,null,null,null,null,null,null,null,null,null,null,null,null,null,null,null,null,null,null,null,null,null,null,null,null,null,null,null,null,null,null,null,null,null,null,null,null,null,null,null,null,null,null,null,null,null,null,null,null,null,null,null,null,null,null,null,null,null,null,null,null,null,null,null,null,null,null,null,null,null,null,null,null,null,null,null,null,null,null,null,null,null,null,null,null,null,null,null,null,null,null,null,null,null,null,null,null,null,null,null,null,null,null,null,null,null,null,null,null,null,null,null,null,null,null,null,null,null,null,null,null,null,null,null,null,null,null,null,null,null,null,null,null,null,null,null,null,null,null,null,null,null,null,null,null,null,null,null,null,null,null,null,null,null,null,null,null,null,null,null,null,null,null,null,null,null,null,null,null,null,null,null,null,null,null,null,null,null,null,null,null,null,null,null,null,null,null,null,null,null,null,null,null,null,null,null,null,null,null,null,null,null,null,null,null,null,null,null,null,null,null,null,null,null,null,null,null,null,null,null,null,null,null,null,null,null,null,null,null,null,null,null,null,null,null,null,null,null,null,null,null,null,null,null,null,null,null,null,null,null,null,null,null,null,null,null,null,null,null,null,null,null,null,null,null,null,null,null,null,null,null,null,null,null,null,null,null,null,null,null,null,null,null,null,null,null,null,null,null,null,null,null,null,null,null,null,null,null,null,null,null,null,null,null,null,null,null,null,null,null,null,null,null,null,null,null,null,null,null,null,null,null,null,null,null,null,null,null,null,null,null,null,null,null,null,null,null,null,null,null,null,null,null,null,null,null,null,null,null,null,null,null,null,null,null,null,null,null,null,null,null,null,null,null,null,null,null,null,null,null,null,null,null,null,null,null,null,null,null,null,null,null,null,null,null,null,null,null,null,null,null,null,null,null,null,null,null,null,null,null,null,null,null,null,null,null,null,null,null,null,null,null,null,null,null,null,null,null,null,null,null,null,null,null,null,null,null,null,null,null,null,null,null,null,null,null,null,null,null,null,null,null,null,null,null,null,null,null,null,null,null,null,null,null,null,null,null,null,null,null,null,null,null,null,null,null,null,null,null,null,null,null,null,null,null,null,null,null,null,null,null,null,null,null,null,null,null,null,null,null,null,null,null,null,null,null,null,null,null,null,null,null,null,null,null,null,null,null,null,null,null,null,null,null,null,null,null,null,null,null,null,null,null,null,null,null,null,null,null,null,null,null,null,null,null,null,null,null,null,null,null,null,null,null,null,null,null,null,null,null,null,null,null,null,null,null,null,null,null,null,null,null,null,null,null,null,null,null,null,null,null,null,null,null,null,null,null,null,null,null,null,null,null,null,null,null,null,null,null,null,null,null,null,null,null,null,null,null,null,null,null,null,null,null,null,null,null,null,null,null,null,null,null,null,null,null,null,null,null,null,null,null,null,null,null,null,null,null,null,null,null,null,null,null,null,null,null,null,null,null,null,null,null,null,null,null,null,null,null,null,null,null,null,null,null,null,null,null,null,null,null,null,null,null,null,null,null,null,null,null,null,null,null,null,null,null,null,null,null,null,null,null,null,null,null,null,null,null,null,null,null,null,null,null,null,null,null,null,null,null,null,null,null,null,null,null,null,null,null,null,null,null,null,null,null,null,null,null,null,null,null,null,null,null,null,null,null,null,null,null,null,null,null,null,null,null,null,null,null,null,null,null,null,null,null,null,null,null,null,null,null,null,null,null,null,null,null,null,null,null,null,null,null,null,null,null,null,null,null,null,null,null,null,null,null,null,null,null,null,null,null,null,null,null,null,null,null,null,null,null,null,null,null,null,null,null,null,null,null,null,null,null,null,null,null,null,null,null,null,null,null,null,null,null,null,null,null,null,null,null,null,null,null,null,null,null,null,null,null,null,null,null,null,null,null,null,null,null,null,null,null,null,null,null,null,null,null,null,null,null,null,null,null,null,null,null,null,null,null,null,null,null,null,null,null,null,null,null,null,null,null,null,null,null,null,null,null,null,null,null,null,null,null,null,null,null,null,null,null,null,null,null,null,null,null,null,null,null,null,null,null,null,null,null,null,null,null,null,null,null,null,null,null,null,null,null,null,null,null,null,null,null,null,null,null,null,null,null,null,null,null,null,null,null,null,null,null,null,null,null,null,null,null,null,null,null,null,null,null,null,null,null,null,null,null,null,null,null,null,null,null,null,null,null,null,null,null,null,null,null,null,null,null,null,null,null,null,null,null,null,null,null,null,null,null,null,null,null,null,null,null,null,null,null,null,null,null,null,null,null,null,null,null,null,null,null,null,null,null,null,null,null,null,null,null,null,null,null,null,null,null,null,null,null,null,null,null,null,null,null,null,null,null,null,null,null,null,null,null,null,null,null,null,null,null,null,null,null,null,null,null,null,null,null,null,null,null,null,null,null,null,null,null,null,null,null,null,null,null,null,null,null,null,null,null,null,null,null,null,null,null,null,null,null,null,null,null,null,null,null,null,null,null,null,null,null,null,null,null,null,null,null,null,null,null,null,null,null,null,null,null,null,null,null,null,null,null,null,null,null,null,null,null,null,null,null,null,null,null,null,null,null,null,null,null,null,null,null,null,null,null,null,null,null,null,null,null,null,null,null,null,null,null,null,null,null,null,null,null,null,null,null,null,null,null,null,null,null,null,null,null,null,null,null,null,null,null,null,null,null,null,null,null,null,null,null,null,null,null,null,null,null,null,null,null,null,null,null,null,null,null,null,null,null,null,null,null,null,null,null,null,null,null,null,null,null,null,null,null,null,null,null,null,null,null,null,null,null,null,null,null,null,null,null,null,null,null,null,null,null,null,null,null,null,null,null,null,null,null,null,null,null,null,null,null,null,null,null,null,null,null,null,null,null,null,null,null,null,null,null,null,null,null,null,null,null,null,null,null,null,null,null,null,null,null,null,null,null,null,null,null,null,null,null,null,null,null,null,null,null,null,null,null,null,null,null,null,null,null,null,null,null,null,null,null,null,null,null,null,null,null,null,null,null,null,null,null,null,null,null,null,null,null,null,null,null,null,null,null,null,null,null,null,null,null,null,null,null,null,null,null,null,null,null,null,null,null,null,null,null,null,null,null,null,null,null,null,null,null,null,null,null,null,null,null,null,null,null,null,null,null,null,null,null,null,null,null,null,null,null,null,null,null,null,null,null,null,null,null,null,null,null,null,null,null,null,null,null,null,null,null,null,null,null,null,null,null,null,null,null,null,null,null,null,null,null,null,null,null,null,null,null,null,null,null,null,null,null,null,null,null,null,null,null,null,null,null,null,null,null,null,null,null,null,null,null,null,null,null,null,null,null,null,null,null,null,null,null,null,null,null,null,null,null,null,null,null,null,null,null,null,null,null,null,null,null,null,null,null,null,null,null,null,null,null,null,null,null,null,null,null,null,null,null,null,null,null,null,null,null,null,null,null,null,null,null,null,null,null,null,null,null,null,null,null,null,null,null,null,null,null,null,null,null,null,null,null,null,null,null,null,null,null,null,null,null,null,null,null,null,null,null,null,null,null,null,null,null,null,null,null,null,null,null,null,null,null,null,null,null,null,null,null,null,null,null,null,null,null,null,null,null,null,null,null,null,null,null,null,null,null,null,null,null,null,null,null,null,null,null,null,null,null,null,null,null,null,null,null,null,null,null,null,null,null,null,null,null,null,null,null,null,null,null,null,null,null,null,null,null,null,null,null,null,null,null,null,null,null,null,null,null,null,null,null,null,null,null,null,null,null,null,null,null,null,null,null,null,null,null,null,null,null,null,null,null,null,null,null,null,null,null,null,null,null,null,null,null,null,null,null,null,null,null,null,null,null,null,null,null,null,null,null,null,null,null,null,null,null,null,null,null,null,null,null,null,null,null,null,null,null,null,null,null,null,null,null,null,null,null,null,null,null,null,null,null,null,null,null,null,null,null,null,null,null,null,null,null,null,null,null,null,null,null,null,null,null,null,null,null,null,null,null,null,null,null,null,null,null,null,null,null,null,null,null,null,null,null,null,null,null,null,null,null,null,null,null,null,null,null,null,null,null,null,null,null,null,null,null,null,null,null,null,null,null,null,null,null,null,null,null,null,null,null,null,null,null,null,null,null,null,null,null,null,null,null,null,null,null,null,null,null,null,null,null,null,null,null,null,null,null,null,null,null,null,null,null,null,null,null,null,null,null,null,null,null,null,null,null,null,null,null,null,null,null,null,null,null,null,null,null,null,null,null,null,null,null,null,null,null,null,null,null,null,null,null,null,null,null,null,null,null,null,null,null,null,null,null,null,null,null,null,null,null,null,null,null,null,null,null,null,null,null,null,null,null,null,null,null,null,null,null,null,null,null,null,null,null,null,null,null,null,null,null,null,null,null,null,null,null,null,null,null,null,null,null,null,null,null,null,null,null,null,null,null,null,null,null,null,null,null,null,null,null,null,null,null,null,null,null,null,null,null,null,null,null,null,null,null,null,null,null,null,null,null,null,null,null,null,null,null,null,null,null,null,null,null,null,null,null,null,null,null,null,null,null,null,null,null,null,null,null,null,null,null,null,null,null,null,null,null,null,null,null,null,null,null,null,null,null,null,null,null,null,null,null,null,null,null,null,null,null,null,null,null,null,null,null,null,null,null,null,null,null,null,null,null,null,null,null,null,null,null,null,null,null,null,null,null,null,null,null,null,null,null,null,null,null,null,null,null,null,null,null,null,null,null,null,null,null,null,null,null,null,null,null,null,null,null,null,null,null,null,null,null,null,null,null,null,null,null,null,null,null,null,null,null,null,null,null,null,null,null,null,null,null,null,null,null,null,null,null,null,null,null,null,null,null,null,null,null,null,null,null,null,null,null,null,null,null,null,null,null,null,null,null,null,null,null,null,null,null,null,null,null,null,null,null,null,null,null,null,null,null,null,null,null,null,null,null,null,null,null,null,null,null,null,null,null,null,null,null,null,null,null,null,null,null,null,null,null,null,null,null,null,null,null,null,null,null,null,null,null,null,null,null,null,null,null,null,null,null,null,null,null,null,null,null,null,null,null,null,null,null,null,null,null,null,null,null,null,null,null,null,null,null,null,null,null,null,null,null,null,null,null,null,null,null,null,null,null,null,null,null,null,null,null,null,null,null,null,null,null,null,null,null,null,null,null,null,null,null,null,null,null,null,null,null,null,null,null,null,null,null,null,null,null,null,null,null,null,null,null,null,null,null,null,null,null,null,null,null,null,null,null,null,null,null,null,null,null,null,null,null,null,null,null,null,null,null,null,null,null,null,null,null,null,null,null,null,null,null,null,null,null,null,null,null,null,null,null,null,null,null,null,null,null,null,null,null,null,null,null,null,null,null,null,null,null,null,null,null,null,null,null,null,null,null,null,null,null,null,null,null,null,null,null,null,null,null,null,null,null,null,null,null,null,null,null,null,null,null,null,null,null,null,null,null,null,null,null,null,null,null,null,null,null,null,null,null,null,null,null,null,null,null,null,null,null,null,null,null,null,null,null,null,null,null,null,null,null,null,null,null,null,null,null,null,null,null,null,null,null,null,null,null,null,null,null,null,null,null,null,null,null,null,null,null,null,null,null,null,null,null,null,null,null,null,null,null,null,null,null,null,null,null,null,null,null,null,null,null,null,null,null,null,null,null,null,null,null,null,null,null,null,null,null,null,null,null,null,null,null,null,null,null,null,null,null,null,null,null,null,null,null,null,null,null,null,null,null,null,null,null,null,null,null,null,null,null,null,null,null,null,null,null,null,null,null,null,null,null,null,null,null,null,null,null,null,null,null,null,null,null,null,null,null,null,null,null,null,null,null,null,null,null,null,null,null,null,null,null,null,null,null,null,null,null,null,null,null,null,null,null,null,null,null,null,null,null,null,null,null,null,null,null,null,null,null,null,null,null,null,null,null,null,null,null,null,null,null,null,null,null,null,null,null,null,null,null,null,null,null,null,null,null,null,null,null,null,null,null,null,null,null,null,null,null,null,null,null,null,null,null,null,null,null,null,null,null,null,null,null,null,null,null,null,null,null,null,null,null,null,null,null,null,null,null,null,null,null,null,null,null,null,null,null,null,null,null,null,null,null,null,null,null,null,null,null,null,null,null,null,null,null,null,null,null,null,null,null,null,null,null,null,null,null,null,null,null,null,null,null,null,null,null,null,null,null,null,null,null,null,null,null,null,null,null,null,null,null,null,null,null,null,null,null,null,null,null,null,null,null,null,null,null,null,null,null,null,null,null,null,null,null,null,null,null,null,null,null,null,null,null,null,null,null,null,null,null,null,null,null,null,null,null,null,null,null,null,null,null,null,null,null,null,null,null,null,null,null,null,null,null,null,null,null,null,null,null,null,null,null,null,null,null,null,null,null,null,null,null,null,null,null,null,null,null,null,null,null,null,null,null,null,null,null,null,null,null,null,null,null,null,null,null,null,null,null,null,null,null,null,null,null,null,null,null,null,null,null,null,null,null,null,null,null,null,null,null,null,null,null,null,null,null,null,null,null,null,null,null,null,null,null,null,null,null,null,null,null,null,null,null,null,null,null,null,null,null,null,null,null,null,null,null,null,null,null,null,null,null,null,null,null,null,null,null,null,null,null,null,null,null,null,null,null,null,null,null,null,null,null,null,null,null,null,null,null,null,null,null,null,null,null,null,null,null,null,null,null,null,null,null,null,null,null,null,null,null,null,null,null,null,null,null,null,null,null,null,null,null,null,null,null,null,null,null,null,null,null,null,null,null,null,null,null,null,null,null,null,null,null,null,null,null,null,null,null,null,null,null,null,null,null,null,null,null,null,null,null,null,null,null,null,null,null,null,null,null,null,null,null,null,null,null,null,null,null,null,null,null,null,null,null,null,null,null,null,null,null,null,null,null,null,null,null,null,null,null,null,null,null,null,null,null,null,null,null,null,null,null,null,null,null,null,null,null,null,null,null,null,null,null,null,null,null,null,null,null,null,null,null,null,null,null,null,null,null,null,null,null,null,null,null,null,null,null,null,null,null,null,null,null,null,null,null,null,null,null,null,null,null,null,null,null,null,null,null,null,null,null,null,null,null,null,null,null,null,null,null,null,null,null,null,null,null,null,null,null,null,null,null,null,null,null,null,null,null,null,null,null,null,null,null,null,null,null,null,null,null,null,null,null,null,null,null,null,null,null,null,null,null,null,null,null,null,null,null,null,null,null,null,null,null,null,null,null,null,null,null,null,null,null,null,null,null,null,null,null,null,null,null,null,null,null,null,null,null,null,null,null,null,null,null,null,null,null,null,null,null,null,null,null,null,null,null,null,null,null,null,null,null,null,null,null,null,null,null,null,null,null,null,null,null,null,null,null,null,null,null,null,null,null,null,null,null,null,null,null,null,null,null,null,null,null,null,null,null,null,null,null,null,null,null,null,null,null,null,null,null,null,null,null,null,null,null,null,null,null,null,null,null,null,null,null,null,null,null,null,null,null,null,null,null,null,null,null,null,null,null,null,null,null,null,null,null,null,null,null,null,null,null,null,null,null,null,null,null,null,null,null,null,null,null,null,null,null,null,null,null,null,null,null,null,null,null,null,null,null,null,null,null,null,null,null,null,null,null,null,null,null,null,null,null,null,null,null,null,null,null,null,null,null,null,null,null,null,null,null,null,null,null,null,null,null,null,null,null,null,null,null,null,null,null,null,null,null,null,null,null,null,null,null,null,null,null,null,null,null,null,null,null,null,null,null,null,null,null,null,null,null,null,null,null,null,null,null,null,null,null,null,null,null,null,null,null,null,null,null,null,null,null,null,null,null,null,null,null,null,null,null,null,null,null,null,null,null,null,null,null,null,null,null,null,null,null,null,null,null,null,null,null,null,null,null,null,null,null,null,null,null,null,null,null,null,null,null,null,null,null,null,null,null,null,null,null,null,null,null,null,null,null,null,null,null,null,null,null,null,null,null,null,null,null,null,null,null,null,null,null,null,null,null,null,null,null,null,null,null,null,null,null,null,null,null,null,null,null,null,null,null,null,null,null,null,null,null,null,null,null,null,null,null,null,null,null,null,null,null,null,null,null,null,null,null,null,null,null,null,null,null,null,null,null,null,null,null,null,null,null,null,null,null,null,null,null,null,null,null,null,null,null,null,null,null,null,null,null,null,null,null,null,null,null,null,null,null,null,null,null,null,null,null,null,null,null,null,null,null,null,null,null,null,null,null,null,null,null,null,null,null,null,null,null,null,null,null,null,null,null,null,null,null,null,null,null,null,null,null,null,null,null,null,null,null,null,null,null,null,null,null,null,null,null,null,null,null,null,null,null,null,null,null,null,null,null,null,null,null,null,null,null,null,null,null,null,null,null,null,null,null,null,null,null,null,null,null,null,null,null,null,null,null,null,null,null,null,null,null,null,null,null,null,null,null,null,null,null,null,null,null,null,null,null,null,null,null,null,null,null,null,null,null,null,null,null,null,null,null,null,null,null,null,null,null,null,null,null,null,null,null,null,null,null,null,null,null,null,null,null,null,null,null,null,null,null,null,null,null,null,null,null,null,null,null,null,null,null,null,null,null,null,null,null,null,null,null,null,null,null,null,null,null,null,null,null,null,null,null,null,null,null,null,null,null,null,null,null,null,null,null,null,null,null,null,null,null,null,null,null,null,null,null,null,null,null,null,null,null,null,null,null,null,null,null,null,null,null,null,null,null,null,null,null,null,null,null,null,null,null,null,null,null,null,null,null,null,null,null,null,null,null,null,null,null,null,null,null,null,null,null,null,null,null,null,null,null,null,null,null,null,null,null,null,null,null,null,null,null,null,null,null,null,null,null,null,null,null,null,null,null,null,null,null,null,null,null,null,null,null,null,null,null,null,null,null,null,null,null,null,null,null,null,null,null,null,null,null,null,null,null,null,null,null,null,null,null,null,null,null,null,null,null,null,null,null,null,null,null,null,null,null,null,null,null,null,null,null,null,null,null,null,null,null,null,null,null,null,null,null,null,null,null,null,null,null,null,null,null,null,null,null,null,null,null,null,null,null,null,null,null,null,null,null,null,null,null,null,null,null,null,null,null,null,null,null,null,null,null,null,null,null,null,null,null,null,null,null,null,null,null,null,null,null,null,null,null,null,null,null,null,null,null,null,null,null,null,null,null,null,null,null,null,null,null,null,null,null,null,null,null,null,null,null,null,null,null,null,null,null,null,null,null,null,null,null,null,null,null,null,null,null,null,null,null,null,null,null,null,null,null,null,null,null,null,null,null,null,null,null,null,null,null,null,null,null,null,null,null,null,null,null,null,null,null,null,null,null,null,null,null,null,null,null,null,null,null,null,null,null,null,null,null,null,null,null,null,null,null,null,null,null,null,null,null,null,null,null,null,null,null,null,null,null,null,null,null,null,null,null,null,null,null,null,null,null,null,null,null,null,null,null,null,null,null,null,null,null,null,null,null,null,null,null,null,null,null,null,null,null,null,null,null,null,null,null,null,null,null,null,null,null,null,null,null,null,null,null,null,null,null,null,null,null,null,null,null,null,null,null,null,null,null,null,null,null,null,null,null,null,null,null,null,null,null,null,null,null,null,null,null,null,null,null,null,null,null,null,null,null,null,null,null,null,null,null,null,null,null,null,null,null,null,null,null,null,null,null,null,null,null,null,null,null,null,null,null,null,null,null,null,null,null,null,null,null,null,null,null,null,null,null,null,null,null,null,null,null,null,null,null,null,null,null,null,null,null,null,null,null,null,null,null,null,null,null,null,null,null,null,null,null,null,null,null,null,null,null,null,null,null,null,null,null,null,null,null,null,null,null,null,null,null,null,null,null,null,null,null,null,null,null,null,null,null,null,null,null,null,null,null,null,null,null,null,null,null,null,null,null,null,null,null,null,null,null,null,null,null,null,null,null,null,null,null,null,null,null,null,null,null,null,null,null,null,null,null,null,null,null,null,null,null,null,null,null,null,null,null,null,null,null,null,null,null,null,null,null,null,null,null,null,null,null,null,null,null,null,null,null,null,null,null,null,null,null,null,null,null,null,null,null,null,null,null,null,null,null,null,null,null,null,null,null,null,null,null,null,null,null,null,null,null,null,null,null,null,null,null,null,null,null,null,null,null,null,null,null,null,null,null,null,null,null,null,null,null,null,null,null,null,null,null,null,null,null,null,null,null,null,null,null,null,null,null,null,null,null,null,null,null,null,null,null,null,null,null,null,null,null,null,null,null,null,null,null,null,null,null,null,null,null,null,null,null,null,null,null,null,null,null,null,null,null,null,null,null,null,null,null,null,null,null,null,null,null,null,null,null,null,null,null,null,null,null,null,null,null,null,null,null,null,null,null,null,null,null,null,null,null,null,null,null,null,null,null,null,null,null,null,null,null,null,null,null,null,null,null,null,null,null,null,null,null,null,null,null,null,null,null,null,null,null,null,null,null,null,null,null,null,null,null,null,null,null,null,null,null,null,null,null,null,null,null,null,null,null,null,null,null,null,null,null,null,null,null,null,null,null,null,null,null,null,null,null,null,null,null,null,null,null,null,null,null,null,null,null,null,null,null,null,null,null,null,null,null,null,null,null,null,null,null,null,null,null,null,null,null,null,null,null,null,null,null,null,null,null,null,null,null,null,null,null,null,null,null,null,null,null,null,null,null,null,null,null,null,null,null,null,null,null,null,null,null,null,null,null,null,null,null,null,null,null,null,null,null,null,null,null,null,null,null,null,null,null,null,null,null,null,null,null,null,null,null,null,null,null,null,null,null,null,null,null,null,null,null,null,null,null,null,null,null,null,null,null,null,null,null,null,null,null,null,null,null,null,null,null,null,null,null,null,null,null,null,null,null,null,null,null,null,null,null,null,null,null,null,null,null,null,null,null,null,null,null,null,null,null,null,null,null,null,null,null,null,null,null,null,null,null,null,null,null,null,null,null,null,null,null,null,null,null,null,null,null,null,null,null,null,null,null,null,null,null,null,null,null,null,null,null,null,null,null,null,null,null,null,null,null,null,null,null,null,null,null,null,null,null,null,null,null,null,null,null,null,null,null,null,null,null,null,null,null,null,null,null,null,null,null,null,null,null,null,null,null,null,null,null,null,null,null,null,null,null,null,null,null,null,null,null,null,null,null,null,null,null,null,null,null,null,null,null,null,null,null,null,null,null,null,null,null,null,null,null,null,null,null,null,null,null,null,null,null,null,null,null,null,null,null,null,null,null,null,null,null,null,null,null,null,null,null,null,null,null,null,null,null,null,null,null,null,null,null,null,null,null,null,null,null,null,null,null,null,null,null,null,null,null,null,null,null,null,null,null,null,null,null,null,null,null,null,null,null,null,null,null,null,null,null,null,null,null,null,null,null,null,null,null,null,null,null,null,null,null,null,null,null,null,null,null,null,null,null,null,null,null,null,null,null,null,null,null,null,null,null,null,null,null,null,null,null,null,null,null,null,null,null,null,null,null,null,null,null,null,null,null,null,null,null,null,null,null,null,null,null,null,null,null,null,null,null,null,null,null,null,null,null,null,null,null,null,null,null,null,null,null,null,null,null,null,null,null,null,null,null,null,null,null,null,null,null,null,null,null,null,null,null,null,null,null,null,null,null,null,null,null,null,null,null,null,null,null,null,null,null,null,null,null,null,null,null,null,null,null,null,null,null,null,null,null,null,null,null,null,null,null,null,null,null,null,null,null,null,null,null,null,null,null,null,null,null,null,null,null,null,null,null,null,null,null,null,null,null,null,null,null,null,null,null,null,null,null,null,null,null,null,null,null,null,null,null,null,null,null,null,null,null,null,null,null,null,null,null,null,null,null,null,null,null,null,null,null,null,null,null,null,null,null,null,null,null,null,null,null,null,null,null,null,null,null,null,null,null,null,null,null,null,null,null,null,null,null,null,null,null,null,null,null,null,null,null,null,null,null,null,null,null,null,null,null,null,null,null,null,null,null,null,null,null,null,null,null,null,null,null,null,null,null,null,null,null,null,null,null,null,null,null,null,null,null,null,null,null,null,null,null,null,null,null,null,null,null,null,null,null,null,null,null,null,null,null,null,null,null,null,null,null,null,null,null,null,null,null,null,null,null,null,null,null,null,null,null,null,null,null,null,null,null,null,null,null,null,null,null,null,null,null,null,null,null,null,null,null,null,null,null,null,null,null,null,null,null,null,null,null,null,null,null,null,null,null,null,null,null,null,null,null,null,null,null,null,null,null,null,null,null,null,null,null,null,null,null,null,null,null,null,null,null,null,null,null,null,null,null,null,null,null,null,null,null,null,null,null,null,null,null,null,null,null,null,null,null,null,null,null,null,null,null,null,null,null,null,null,null,null,null,null,null,null,null,null,null,null,null,null,null,null,null,null,null,null,null,null,null,null,null,null,null,null,null,null,null,null,null,null,null,null,null,null,null,null,null,null,null,null,null,null,null,null,null,null,null,null,null,null,null,null,null,null,null,null,null,null,null,null,null,null,null,null,null,null,null,null,null,null,null,null,null,null,null,null,null,null,null,null,null,null,null,null,null,null,null,null,null,null,null,null,null,null,null,null,null,null,null,null,null,null,null,null,null,null,null,null,null,null,null,null,null,null,null,null,null,null,null,null,null,null,null,null,null,null,null,null,null,null,null,null,null,null,null,null,null,null,null,null,null,null,null,null,null,null,null,null,null,null,null,null,null,null,null,null,null,null,null,null,null,null,null,null,null,null,null,null,null,null,null,null,null,null,null,null,null,null,null,null,null,null,null,null,null,null,null,null,null,null,null,null,null,null,null,null,null,null,null,null,null,null,null,null,null,null,null,null,null,null,null,null,null,null,null,null,null,null,null,null,null,null,null,null,null,null,null,null,null,null,null,null,null,null,null,null,null,null,null,null,null,null,null,null,null,null,null,null,null,null,null,null,null,null,null,null,null,null,null,null,null,null,null,null,null,null,null,null,null,null,null,null,null,null,null,null,null,null,null,null,null,null,null,null,null,null,null,null,null,null,null,null,null,null,null,null,null,null,null,null,null,null,null,null,null,null,null,null,null,null,null,null,null,null,null,null,null,null,null,null,null,null,null,null,null,null,null,null,null,null,null,null,null,null,null,null,null,null,null,null,null,null,null,null,null,null,null,null,null,null,null,null,null,null,null,null,null,null,null,null,null,null,null,null,null,null,null,null,null,null,null,null,null,null,null,null,null,null,null,null,null,null,null,null,null,null,null,null,null,null,null,null,null,null,null,null,null,null,null,null,null,null,null,null,null,null,null,null,null,null,null,null,null,null,null,null,null,null,null,null,null,null,null,null,null,null,null,null,null,null,null,null,null,null,null,null,null,null,null,null,null,null,null,null,null,null,null,null,null,null,null,null,null,null,null,null,null,null,null,null,null,null,null,null,null,null,null,null,null,null,null,null,null,null,null,null,null,null,null,null,null,null,null,null,null,null,null,null,null,null,null,null,null,null,null,null,null,null,null,null,null,null,null,null,null,null,null,null,null,null,null,null,null,null,null,null,null,null,null,null,null,null,null,null,null,null,null,null,null,null,null,null,null,null,null,null,null,null,null,null,null,null,null,null,null,null,null,null,null,null,null,null,null,null,null,null,null,null,null,null,null,null,null,null,null,null,null,null,null,null,null,null,null,null,null,null,null,null,null,null,null,null,null,null,null,null,null,null,null,null,null,null,null,null,null,null,null,null,null,null,null,null,null,null,null,null,null,null,null,null,null,null,null,null,null,null,null,null,null,null,null,null,null,null,null,null,null,null,null,null,null,null,null,null,null,null,null,null,null,null,null,null,null,null,null,null,null,null,null,null,null,null,null,null,null,null,null,null,null,null,null,null,null,null,null,null,null,null,null,null,null,null,null,null,null,null,null,null,null,null,null,null,null,null,null,null,null,null,null,null,null,null,null,null,null,null,null,null,null,null,null,null,null,null,null,null,null,null,null,null,null,null,null,null,null,null,null,null,null,null,null,null,null,null,null,null,null,null,null,null,null,null,null,null,null,null,null,null,null,null,null,null,null,null,null,null,null,null,null,null,null,null,null,null,null,null,null,null,null,null,null,null,null,null,null,null,null,null,null,null,null,null,null,null,null,null,null,null,null,null,null,null,null,null,null,null,null,null,null,null,null,null,null,null,null,null,null,null,null,null,null,null,null,null,null,null,null,null,null,null,null,null,null,null,null,null,null,null,null,null,null,null,null,null,null,null,null,null,null,null,null,null,null,null,null,null,null,null,null,null,null,null,null,null,null,null,null,null,null,null,null,null,null,null,null,null,null,null,null,null,null,null,null,null,null,null,null,null,null,null,null,null,null,null,null,null,null,null,null,null,null,null,null,null,null,null,null,null,null,null,null,null,null,null,null,null,null,null,null,null,null,null,null,null,null,null,null,null,null,null,null,null,null,null,null,null,null,null,null,null,null,null,null,null,null,null,null,null,null,null,null,null,null,null,null,null,null,null,null,null,null,null,null,null,null,null,null,null,null,null,null,null,null,null,null,null,null,null,null,null,null,null,null,null,null,null,null,null,null,null,null,null,null,null,null,null,null,null,null,null,null,null,null,null,null,null,null,null,null,null,null,null,null,null,null,null,null,null,null,null,null,null,null,null,null,null,null,null,null,null,null,null,null,null,null,null,null,null,null,null,null,null,null,null,null,null,null,null,null,null,null,null,null,null,null,null,null,null,null,null,null,null,null,null,null,null,null,null,null,null,null,null,null,null,null,null,null,null,null,null,null,null,null,null,null,null,null,null,null,null,null,null,null,null,null,null,null,null,null,null,null,null,null,null,null,null,null,null,null,null,null,null,null,null,null,null,null,null,null,null,null,null,null,null,null,null,null,null,null,null,null,null,null,null,null,null,null,null,null,null,null,null,null,null,null,null,null,null,null,null,null,null,null,null,null,null,null,null,null,null,null,null,null,null,null,null,null,null,null,null,null,null,null,null,null,null,null,null,null,null,null,null,null,null,null,null,null,null,null,null,null,null,null,null,null,null,null,null,null,null,null,null,null,null,null,null,null,null,null,null,null,null,null,null,null,null,null,null,null,null,null,null,null,null,null,null,null,null,null,null,null,null,null,null,null,null,null,null,null,null,null,null,null,null,null,null,null,null,null,null,null,null,null,null,null,null,null,null,null,null,null,null,null,null,null,null,null,null,null,null,null,null,null,null,null,null,null,null,null,null,null,null,null,null,null,null,null,null,null,null,null,null,null,null,null,null,null,null,null,null,null,null,null,null,null,null,null,null,null,null,null,null,null,null,null,null,null,null,null,null,null,null,null,null,null,null,null,null,null,null,null,null,null,null,null,null,null,null,null,null,null,null,null,null,null,null,null,null,null,null,null,null,null,null,null,null,null,null,null,null,null,null,null,null,null,null,null,null,null,null,null,null,null,null,null,null,null,null,null,null,null,null,null,null,null,null,null,null,null,null,null,null,null,null,null,null,null,null,null,null,null,null,null,null,null,null,null,null,null,null,null,null,null,null,null,null,null,null,null,null,null,null,null,null,null,null,null,null,null,null,null,null,null,null,null,null,null,null,null,null,null,null,null,null,null,null,null,null,null,null,null,null,null,null,null,null,null,null,null,null,null,null,null,null,null,null,null,null,null,null,null,null,null,null,null,null,null,null,null,null,null,null,null,null,null,null,null,null,null,null,null,null,null,null,null,null,null,null,null,null,null,null,null,null,null,null,null,null,null,null,null,null,null,null,null,null,null,null,null,null,null,null,null,null,null,null,null,null,null,null,null,null,null,null,null,null,null,null,null,null,null,null,null,null,null,null,null,null,null,null,null,null,null,null,null,null,null,null,null,null,null,null,null,null,null,null,null,null,null,null,null,null,null,null,null,null,null,null,null,null,null,null,null,null,null,null,null,null,null,null,null,null,null,null,null,null,null,null,null,null,null,null,null,null,null,null,null,null,null,null,null,null,null,null,null,null,null,null,null,null,null,null,null,null,null,null,null,null,null,null,null,null,null,null,null,null,null,null,null,null,null,null,null,null,null,null,null,null,null,null,null,null,null,null,null,null,null,null,null,null,null,null,null,null,null,null,null,null,null,null,null,null,null,null,null,null,null,null,null,null,null,null,null,null,null,null,null,null,null,null,null,null,null,null,null,null,null,null,null,null,null,null,null,null,null,null,null,null,null,null,null,null,null,null,null,null,null,null,null,null,null,null,null,null,null,null,null,null,null,null,null,null,null,null,null,null,null,null,null,null,null,null,null,null,null,null,null,null,null,null,null,null,null,null,null,null,null,null,null,null,null,null,null,null,null,null,null,null,null,null,null,null,null,null,null,null,null,null,null,null,null,null,null,null,null,null,null,null,null,null,null,null,null,null,null,null,null,null,null,null,null,null,null,null,null,null,null,null,null,null,null,null,null,null,null,null,null,null,null,null,null,null,null,null,null,null,null,null,null,null,null,null,null,null,null,null,null,null,null,null,null,null,null,null,null,null,null,null,null,null,null,null,null,null,null,null,null,null,null,null,null,null,null,null,null,null,null,null,null,null,null,null,null,null,null,null,null,null,null,null,null,null,null,null,null,null,null,null,null,null,null,null,null,null,null,null,null,null,null,null,null,null,null,null,null,null,null,null,null,null,null,null,null,null,null,null,null,null,null,null,null,null,null,null,null,null,null,null,null,null,null,null,null,null,null,null,null,null,null,null,null,null,null,null,null,null,null,null,null,null,null,null,null,null,null,null,null,null,null,null,null,null,null,null,null,null,null,null,null,null,null,null,null,null,null,null,null,null,null,null,null,null,null,null,null,null,null,null,null,null,null,null,null,null,null,null,null,null,null,null,null,null,null,null,null,null,null,null,null,null,null,null,null,null,null,null,null,null,null,null,null,null,null,null,null,null,null,null,null,null,null,null,null,null,null,null,null,null,null,null,null,null,null,null,null,null,null,null,null,null,null,null,null,null,null,null,null,null,null,null,null,null,null,null,null,null,null,null,null,null,null,null,null,null,null,null,null,null,null,null,null,null,null,null,null,null,null,null,null,null,null,null,null,null,null,null,null,null,null,null,null,null,null,null,null,null,null,null,null,null,null,null,null,null,null,null,null,null,null,null,null,null,null,null,null,null,null,null,null,null,null,null,null,null,null,null,null,null,null,null,null,null,null,null,null,null,null,null,null,null,null,null,null,null,null,null,null,null,null,null,null,null,null,null,null,null,null,null,null,null,null,null,null,null,null,null,null,null,null,null,null,null,null,null,null,null,null,null,null,null,null,null,null,null,null,null,null,null,null,null,null,null,null,null,null,null,null,null,null,null,null,null,null,null,null,null,null,null,null,null,null,null,null,null,null,null,null,null,null,null,null,null,null,null,null,null,null,null,null,null,null,null,null,null,null,null,null,null,null,null,null,null,null,null,null,null,null,null,null,null,null,null,null,null,null,null,null,null,null,null,null,null,null,null,null,null,null,null,null,null,null,null,null,null,null,null,null,null,null,null,null,null,null,null,null,null,null,null,null,null,null,null,null,null,null,null,null,null,null,null,null,null,null,null,null,null,null,null,null,null,null,null,null,null,null,null,null,null,null,null,null,null,null,null,null,null,null,null,null,null,null,null,null,null,null,null,null,null,null,null,null,null,null,null,null,null,null,null,null,null,null,null,null,null,null,null,null,null,null,null,null,null,null,null,null,null,null,null,null,null,null,null,null,null,null,null,null,null,null,null,null,null,null,null,null,null,null,null,null,null,null,null,null,null,null,null,null,null,null,null,null,null,null,null,null,null,null,null,null,null,null,null,null,null,null,null,null,null,null,null,null,null,null,null,null,null,null,null,null,null,null,null,null,null,null,null,null,null,null,null,null,null,null,null,null,null,null,null,null,null,null,null,null,null,null,null,null,null,null,null,null,null,null,null,null,null,null,null,null,null,null,null,null,null,null,null,null,null,null,null,null,null,null,null,null,null,null,null,null,null,null,null,null,null,null,null,null,null,null,null,null,null,null,null,null,null,null,null,null,null,null,null,null,null,null,null,null,null,null,null,null,null,null,null,null,null,null,null,null,null,null,null,null,null,null,null,null,null,null,null,null,null,null,null,null,null,null,null,null,null,null,null,null,null,null,null,null,null,null,null,null,null,null,null,null,null,null,null,null,null,null,null,null,null,null,null,null,null,null,null,null,null,null,null,null,null,null,null,null,null,null,null,null,null,null,null,null,null,null,null,null,null,null,null,null,null,null,null,null,null,null,null,null,null,null,null,null,null,null,null,null,null,null,null,null,null,null,null,null,null,null,null,null,null,null,null,null,null,null,null,null,null,null,null,null,null,null,null,null,null,null,null,null,null,null,null,null,null,null,null,null,null,null,null,null,null,null,null,null,null,null,null,null,null,null,null,null,null,null,null,null,null,null,null,null,null,null,null,null,null,null,null,null,null,null,null,null,null,null,null,null,null,null,null,null,null,null,null,null,null,null,null,null,null,null,null,null,null,null,null,null,null,null,null,null,null,null,null,null,null,null,null,null,null,null,null,null,null,null,null,null,null,null,null,null,null,null,null,null,null,null,null,null,null,null,null,null,null,null,null,null,null,null,null,null,null,null,null,null,null,null,null,null,null,null,null,null,null,null,null,null,null,null,null,null,null,null,null,null,null,null,null,null,null,null,null,null,null,null,null,null,null,null,null,null,null,null,null,null,null,null,null,null,null,null,null,null,null,null,null,null,null,null,null,null,null,null,null,null,null,null,null,null,null,null,null,null,null,null,null,null,null,null,null,null,null,null,null,null,null,null,null,null,null,null,null,null,null,null,null,null,null,null,null,null,null,null,null,null,null,null,null,null,null,null,null,null,null,null,null,null,null,null,null,null,null,null,null,null,null,null,null,null,null,null,null,null,null,null,null,null,null,null,null,null,null,null,null,null,null,null,null,null,null,null,null,null,null,null,null,null,null,null,null,null,null,null,null,null,null,null,null,null,null,null,null,null,null,null,null,null,null,null,null,null,null,null,null,null,null,null,null,null,null,null,null,null,null,null,null,null,null,null,null,null,null,null,null,null,null,null,null,null,null,null,null,null,null,null,null,null,null,null,null,null,null,null,null,null,null,null,null,null,null,null,null,null,null,null,null,null,null,null,null,null,null,null,null,null,null,null,null,null,null,null,null,null,null,null,null,null,null,null,null,null,null,null,null,null,null,null,null,null,null,null,null,null,null,null,null,null,null,null,null,null,null,null,null,null,null,null,null,null,null,null,null,null,null,null,null,null,null,null,null,null,null,null,null,null,null,null,null,null,null,null,null,null,null,null,null,null,null,null,null,null,null,null,null,null,null,null,null,null,null,null,null,null,null,null,null,null,null,null,null,null,null,null,null,null,null,null,null,null,null,null,null,null,null,null,null,null,null,null,null,null,null,null,null,null,null,null,null,null,null,null,null,null,null,null,null,null,null,null,null,null,null,null,null,null,null,null,null,null,null,null,null,null,null,null,null,null,null,null,null,null,null,null,null,null,null,null,null,null,null,null,null,null,null,null,null,null,null,null,null,null,null,null,null,null,null,null,null,null,null,null,null,null,null,null,null,null,null,null,null,null,null,null,null,null,null,null,null,null,null,null,null,null,null,null,null,null,null,null,null,null,null,null,null,null,null,null,null,null,null,null,null,null,null,null,null,null,null,null,null,null,null,null,null,null,null,null,null,null,null,null,null,null,null,null,null,null,null,null,null,null,null,null,null,null,null,null,null,null,null,null,null,null,null,null,null,null,null,null,null,null,null,null,null,null,null,null,null,null,null,null,null,null,null,null,null,null,null,null,null,null,null,null,null,null,null,null,null,null,null,null,null,null,null,null,null,null,null,null,null,null,null,null,null,null,null,null,null,null,null,null,null,null,null,null,null,null,null,null,null,null,null,null,null,null,null,null,null,null,null,null,null,null,null,null,null,null,null,null,null,null,null,null,null,null,null,null,null,null,null,null,null,null,null,null,null,null,null,null,null,null,null,null,null,null,null,null,null,null,null,null,null,null,null,null,null,null,null,null,null,null,null,null,null,null,null,null,null,null,null,null,null,null,null,null,null,null,null,null,null,null,null,null,null,null,null,null,null,null,null,null,null,null,null,null,null,null,null,null,null,null,null,null,null,null,null,null,null,null,null,null,null,null,null,null,null,null,null,null,null,null,null,null,null,null,null,null,null,null,null,null,null,null,null,null,null,null,null,null,null,null,null,null,null,null,null,null,null,null,null,null,null,null,null,null,null,null,null,null,null,null,null,null,null,null,null,null,null,null,null,null,null,null,null,null,null,null,null,null,null,null,null,null,null,null,null,null,null,null,null,null,null,null,null,null,null,null,null,null,null,null,null,null,null,null,null,null,null,null,null,null,null,null,null,null,null,null,null,null,null,null,null,null,null,null,null,null,null,null,null,null,null,null,null,null,null,null,null,null,null,null,null,null,null,null,null,null,null,null,null,null,null,null,null,null,null,null,null,null,null,null,null,null,null,null,null,null,null,null,null,null,null,null,null,null,null,null,null,null,null,null,null,null,null,null,null,null,null,null,null,null,null,null,null,null,null,null,null,null,null,null,null,null,null,null,null,null,null,null,null,null,null,null,null,null,null,null,null,null,null,null,null,null,null,null,null,null,null,null,null,null,null,null,null,null,null,null,null,null,null,null,null,null,null,null,null,null,null,null,null,null,null,null,null,null,null,null,null,null,null,null,null,null,null,null,null,null,null,null,null,null,null,null,null,null,null,null,null,null,null,null,null,null,null,null,null,null,null,null,null,null,null,null,null,null,null,null,null,null,null,null,null,null,null,null,null,null,null,null,null,null,null,null,null,null,null,null,null,null,null,null,null,null,null,null,null,null,null,null,null,null,null,null,null,null,null,null,null,null,null,null,null,null,null,null,null,null,null,null,null,null,null,null,null,null,null,null,null,null,null,null,null,null,null,null,null,null,null,null,null,null,null,null,null,null,null,null,null,null,null,null,null,null,null,null,null,null,null,null,null,null,null,null,null,null,null,null,null,null,null,null,null,null,null,null,null,null,null,null,null,null,null,null,null,null,null,null,null,null,null,null,null,null,null,null,null,null,null,null,null,null,null,null,null,null,null,null,null,null,null,null,null,null,null,null,null,null,null,null,null,null,null,null,null,null,null,null,null,null,null,null,null,null,null,null,null,null,null,null,null,null,null,null,null,null,null,null,null,null,null,null,null,null,null,null,null,null,null,null,null,null,null,null,null,null,null,null,null,null,null,null,null,null,null,null,null,null,null,null,null,null,null,null,null,null,null,null,null,null,null,null,null,null,null,null,null,null,null,null,null,null,null,null,null,null,null,null,null,null,null,null,null,null,null,null,null,null,null,null,null,null,null,null,null,null,null,null,null,null,null,null,null,null,null,null,null,null,null,null,null,null,null,null,null,null,null,null,null,null,null,null,null,null,null,null,null,null,null,null,null,null,null,null,null,null,null,null,null,null,null,null,null,null,null,null,null,null,null,null,null,null,null,null,null,null,null,null,null,null,null,null,null,null,null,null,null,null,null,null,null,null,null,null,null,null,null,null,null,null,null,null,null,null,null,null,null,null,null,null,null,null,null,null,null,null,null,null,null,null,null,null,null,null,null,null,null,null,null,null,null,null,null,null,null,null,null,null,null,null,null,null,null,null,null,null,null,null,null,null,null,null,null,null,null,null,null,null,null,null,null,null,null,null,null,null,null,null,null,null,null,null,null,null,null,null,null,null,null,null,null,null,null,null,null,null,null,null,null,null,null,null,null,null,null,null,null,null,null,null,null,null,null,null,null,null,null,null,null,null,null,null,null,null,null,null,null,null,null,null,null,null,null,null,null,null,null,null,null,null,null,null,null,null,null,null,null,null,null,null,null,null,null,null,null,null,null,null,null,null,null,null,null,null,null,null,null,null,null,null,null,null,null,null,null,null,null,null,null,null,null,null,null,null,null,null,null,null,null,null,null,null,null,null,null,null,null,null,null,null,null,null,null,null,null,null,null,null,null,null,null,null,null,null,null,null,null,null,null,null,null,null,null,null,null,null,null,null,null,null,null,null,null,null,null,null,null,null,null,null,null,null,null,null,null,null,null,null,null,null,null,null,null,null,null,null,null,null,null,null,null,null,null,null,null,null,null,null,null,null,null,null,null,null,null,null,null,null,null,null,null,null,null,null,null,null,null,null,null,null,null,null,null,null,null,null,null,null,null,null,null,null,null,null,null,null,null,null,null,null,null,null,null,null,null,null,null,null,null,null,null,null,null,null,null,null,null,null,null,null,null,null,null,null,null,null,null,null,null,null,null,null,null,null,null,null,null,null,null,null,null,null,null,null,null,null,null,null,null,null,null,null,null,null,null,null,null,null,null,null,null,null,null,null,null,null,null,null,null,null,null,null,null,null,null,null,null,null,null,null,null,null,null,null,null,null,null,null,null,null,null,null,null,null,null,null,null,null,null,null,null,null,null,null,null,null,null,null,null,null,null,null,null,null,null,null,null,null,null,null,null,null,null,null,null,null,null,null,null,null,null,null,null,null,null,null,null,null,null,null,null,null,null,null,null,null,null,null,null,null,null,null,null,null,null,null,null,null,null,null,null,null,null,null,null,null,null,null,null,null,null,null,null,null,null,null,null,null,null,null,null,null,null,null,null,null,null,null,null,null,null,null,null,null,null,null,null,null,null,null,null,null,null,null,null,null,null,null,null,null,null,null,null,null,null,null,null,null,null,null,null,null,null,null,null,null,null,null,null,null,null,null,null,null,null,null,null,null,null,null,null,null,null,null,null,null,null,null,null,null,null,null,null,null,null,null,null,null,null,null,null,null,null,null,null,null,null,null,null,null,null,null,null,null,null,null,null,null,null,null,null,null,null,null,null,null,null,null,null,null,null,null,null,null,null,null,null,null,null,null,null,null,null,null,null,null,null,null,null,null,null,null,null,null,null,null,null,null,null,null,null,null,null,null,null,null,null,null,null,null,null,null,null,null,null,null,null,null,null,null,null,null,null,null,null,null,null,null,null,null,null,null,null,null,null,null,null,null,null,null,null,null,null,null,null,null,null,null,null,null,null,null,null,null,null,null,null,null,null,null,null,null,null,null,null,null,null,null,null,null,null,null,null,null,null,null,null,null,null,null,null,null,null,null,null,null,null,null,null,null,null,null,null,null,null,null,null,null,null,null,null,null,null,null,null,null,null,null,null,null,null,null,null,null,null,null,null,null,null,null,null,null,null,null,null,null,null,null,null,null,null,null,null,null,null,null,null,null,null,null,null,null,null,null,null,null,null,null,null,null,null,null,null,null,null,null,null,null,null,null,null,null,null,null,null,null,null,null,null,null,null,null,null,null,null,null,null,null,null,null,null,null,null,null,null,null,null,null,null,null,null,null,null,null,null,null,null,null,null,null,null,null,null,null,null,null,null,null,null,null,null,null,null,null,null,null,null,null,null,null,null,null,null,null,null,null,null,null,null,null,null,null,null,null,null,null,null,null,null,null,null,null,null,null,null,null,null,null,null,null,null,null,null,null,null,null,null,null,null,null,null,null,null,null,null,null,null,null,null,null,null,null,null,null,null,null,null,null,null,null,null,null,null,null,null,null,null,null,null,null,null,null,null,null,null,null,null,null,null,null,null,null,null,null,null,null,null,null,null,null,null,null,null,null,null,null,null,null,null,null,null,null,null,null,null,null,null,null,null,null,null,null,null,null,null,null,null,null,null,null,null,null,null,null,null,null,null,null,null,null,null,null,null,null,null,null,null,null,null,null,null,null,null,null,null,null,null,null,null,null,null,null,null,null,null,null,null,null,null,null,null,null,null,null,null,null,null,null,null,null,null,null,null,null,null,null,null,null,null,null,null,null,null,null,null,null,null,null,null,null,null,null,null,null,null,null,null,null,null,null,null,null,null,null,null,null,null,null,null,null,null,null,null,null,null,null,null,null,null,null,null,null,null,null,null,null,null,null,null,null,null,null,null,null,null,null,null,null,null,null,null,null,null,null,null,null,null,null,null,null,null,null,null,null,null,null,null,null,null,null,null,null,null,null,null,null,null,null,null,null,null,null,null,null,null,null,null,null,null,null,null,null,null,null,null,null,null,null,null,null,null,null,null,null,null,null,null,null,null,null,null,null,null,null,null,null,null,null,null,null,null,null,null,null,null,null,null,null,null,null,null,null,null,null,null,null,null,null,null,null,null,null,null,null,null,null,null,null,null,null,null,null,null,null,null,null,null,null,null,null,null,null,null,null,null,null,null,null,null,null,null,null,null,null,null,null,null,null,null,null,null,null,null,null,null,null,null,null,null,null,null,null,null,null,null,null,null,null,null,null,null,null,null,null,null,null,null,null,null,null,null,null,null,null,null,null,null,null,null,null,null,null,null,null,null,null,null,null,null,null,null,null,null,null,null,null,null,null,null,null,null,null,null,null,null,null,null,null,null,null,null,null,null,null,null,null,null,null,null,null,null,null,null,null,null,null,null,null,null,null,null,null,null,null,null,null,null,null,null,null,null,null,null,null,null,null,null,null,null,null,null,null,null,null,null,null,null,null,null,null,null,null,null,null,null,null,null,null,null,null,null,null,null,null,null,null,null,null,null,null,null,null,null,null,null,null,null,null,null,null,null,null,null,null,null,null,null,null,null,null,null,null,null,null,null,null,null,null,null,null,null,null,null,null,null,null,null,null,null,null,null,null,null,null,null,null,null,null,null,null,null,null,null,null,null,null,null,null,null,null,null,null,null,null,null,null,null,null,null,null,null,null,null,null,null,null,null,null,null,null,null,null,null,null,null,null,null,null,null,null,null,null,null,null,null,null,null,null,null,null,null,null,null,null,null,null,null,null,null,null,null,null,null,null,null,null,null,null,null,null,null,null,null,null,null,null,null,null,null,null,null,null,null,null,null,null,null,null,null,null,null,null,null,null,null,null,null,null,null,null,null,null,null,null,null,null,null,null,null,null,null,null,null,null,null,null,null,null,null,null,null,null,null,null,null,null,null,null,null,null,null,null,null,null,null,null,null,null,null,null,null,null,null,null,null,null,null,null,null,null,null,null,null,null,null,null,null,null,null,null,null,null,null,null,null,null,null,null,null,null,null,null,null,null,null,null,null,null,null,null,null,null,null,null,null,null,null,null,null,null,null,null,null,null,null,null,null,null,null,null,null,null,null,null,null,null,null,null,null,null,null,null,null,null,null,null,null,null,null,null,null,null,null,null,null,null,null,null,null,null,null,null,null,null,null,null,null,null,null,null,null,null,null,null,null,null,null,null,null,null,null,null,null,null,null,null,null,null,null,null,null,null,null,null,null,null,null,null,null,null,null,null,null,null,null,null,null,null,null,null,null,null,null,null,null,null,null,null,null,null,null,null,null,null,null,null,null,null,null,null,null,null,null,null,null,null,null,null,null,null,null,null,null,null,null,null,null,null,null,null,null,null,null,null,null,null,null,null,null,null,null,null,null,null,null,null,null,null,null,null,null,null,null,null,null,null,null,null,null,null,null,null,null,null,null,null,null,null,null,null,null,null,null,null,null,null,null,null,null,null,null,null,null,null,null,null,null,null,null,null,null,null,null,null,null,null,null,null,null,null,null,null,null,null,null,null,null,null,null,null,null,null,null,null,null,null,null,null,null,null,null,null,null,null,null,null,null,null,null,null,null,null,null,null,null,null,null,null,null,null,null,null,null,null,null,null,null,null,null,null,null,null,null,null,null,null,null,null,null,null,null,null,null,null,null,null,null,null,null,null,null,null,null,null,null,null,null,null,null,null,null,null,null,null,null,null,null,null,null,null,null,null,null,null,null,null,null,null,null,null,null,null,null,null,null,null,null,null,null,null,null,null,null,null,null,null,null,null,null,null,null,null,null,null,null,null,null,null,null,null,null,null,null,null,null,null,null,null,null,null,null,null,null,null,null,null,null,null,null,null,null,null,null,null,null,null,null,null,null,null,null,null,null,null,null,null,null,null,null,null,null,null,null,null,null,null,null,null,null,null,null,null,null,null,null,null,null,null,null,null,null,null,null,null,null,null,null,null,null,null,null,null,null,null,null,null,null,null,null,null,null,null,null,null,null,null,null,null,null,null,null,null,null,null,null,null,null,null,null,null,null,null,null,null,null,null,null,null,null,null,null,null,null,null,null,null,null,null,null,null,null,null,null,null,null,null,null,null,null,null,null,null,null,null,null,null,null,null,null,null,null,null,null,null,null,null,null,null,null,null,null,null,null,null,null,null,null,null,null,null,null,null,null,null,null,null,null,null,null,null,null,null,null,null,null,null,null,null,null,null,null,null,null,null,null,null,null,null,null,null,null,null,null,null,null,null,null,null,null,null,null,null,null,null,null,null,null,null,null,null,null,null,null,null,null,null,null,null,null,null,null,null,null,null,null,null,null,null,null,null,null,null,null,null,null,null,null,null,null,null,null,null,null,null,null,null,null,null,null,null,null,null,null,null,null,null,null,null,null,null,null,null,null,null,null,null,null,null,null,null,null,null,null,null,null,null,null,null,null,null,null,null,null,null,null,null,null,null,null,null,null,null,null,null,null,null,null,null,null,null,null,null,null,null,null,null,null,null,null,null,null,null,null,null,null,null,null,null,null,null,null,null,null,null,null,null,null,null,null,null,null,null,null,null,null,null,null,null,null,null,null,null,null,null,null,null,null,null,null,null,null,null,null,null,null,null,null,null,null,null,null,null,null,null,null,null,null,null,null,null,null,null,null,null,null,null,null,null,null,null,null,null,null,null,null,null,null,null,null,null,null,null,null,null,null,null,null,null,null,null,null,null,null,null,null,null,null,null,null,null,null,null,null,null,null,null,null,null,null,null,null,null,null,null,null,null,null,null,null,null,null,null,null,null,null,null,null,null,null,null,null,null,null,null,null,null,null,null,null,null,null,null,null,null,null,null,null,null,null,null,null,null,null,null,null,null,null,null,null,null,null,null,null,null,null,null,null,null,null,null,null,null,null,null,null,null,null,null,null,null,null,null,null,null,null,null,null,null,null,null,null,null,null,null,null,null,null,null,null,null,null,null,null,null,null,null,null,null,null,null,null,null,null,null,null,null,null,null,null,null,null,null,null,null,null,null,null,null,null,null,null,null,null,null,null,null,null,null,null,null,null,null,null,null,null,null,null,null,null,null,null,null,null,null,null,null,null,null,null,null,null,null,null,null,null,null,null,null,null,null,null,null,null,null,null,null,null,null,null,null,null,null,null,null,null,null,null,null,null,null,null,null,null,null,null,null,null,null,null,null,null,null,null,null,null,null,null,null,null,null,null,null,null,null,null,null,null,null,null,null,null,null,null,null,null,null,null,null,null,null,null,null,null,null,null,null,null,null,null,null,null,null,null,null,null,null,null,null,null,null,null,null,null,null,null,null,null,null,null,null,null,null,null,null,null,null,null,null,null,null,null,null,null,null,null,null,null,null,null,null,null,null,null,null,null,null,null,null,null,null,null,null,null,null,null,null,null,null,null,null,null,null,null,null,null,null,null,null,null,null,null,null,null,null,null,null,null,null,null,null,null,null,null,null,null,null,null,null,null,null,null,null,null,null,null,null,null,null,null,null,null,null,null,null,null,null,null,null,null,null,null,null,null,null,null,null,null,null,null,null,null,null,null,null,null,null,null,null,null,null,null,null,null,null,null,null,null,null,null,null,null,null,null,null,null,null,null,null,null,null,null,null,null,null,null,null,null,null,null,null,null,null,null,null,null,null,null,null,null,null,null,null,null,null,null,null,null,null,null,null,null,null,null,null,null,null,null,null,null,null,null,null,null,null,null,null,null,null,null,null,null,null,null,null,null,null,null,null,null,null,null,null,null,null,null,null,null,null,null,null,null,null,null,null,null,null,null,null,null,null,null,null,null,null,null,null,null,null,null,null,null,null,null,null,null,null,null,null,null,null,null,null,null,null,null,null,null,null,null,null,null,null,null,null,null,null,null,null,null,null,null,null,null,null,null,null,null,null,null,null,null,null,null,null,null,null,null,null,null,null,null,null,null,null,null,null,null,null,null,null,null,null,null,null,null,null,null,null,null,null,null,null,null,null,null,null,null,null,null,null,null,null,null,null,null,null,null,null,null,null,null,null,null,null,null,null,null,null,null,null,null,null,null,null,null,null,null,null,null,null,null,null,null,null,null,null,null,null,null,null,null,null,null,null,null,null,null,null,null,null,null,null,null,null,null,null,null,null,null,null,null,null,null,null,null,null,null,null,null,null,null,null,null,null,null,null,null,null,null,null,null,null,null,null,null,null,null,null,null,null,null,null,null,null,null,null,null,null,null,null,null,null,null,null,null,null,null,null,null,null,null,null,null,null,null,null,null,null,null,null,null,null,null,null,null,null,null,null,null,null,null,null,null,null,null,null,null,null,null,null,null,null,null,null,null,null,null,null,null,null,null,null,null,null,null,null,null,null,null,null,null,null,null,null,null,null,null,null,null,null,null,null,null,null,null,null,null,null,null,null,null,null,null,null,null,null,null,null,null,null,null,null,null,null,null,null,null,null,null,null,null,null,null,null,null,null,null,null,null,null,null,null,null,null,null,null,null,null,null,null,null,null,null,null,null,null,null,null,null,null,null,null,null,null,null,null,null,null,null,null,null,null,null,null,null,null,null,null,null,null,null,null,null,null,null,null,null,null,null,null,null,null,null,null,null,null,null,null,null,null,null,null,null,null,null,null,null,null,null,null,null,null,null,null,null,null,null,null,null,null,null,null,null,null,null,null,null,null,null,null,null,null,null,null,null,null,null,null,null,null,null,null,null,null,null,null,null,null,null,null,null,null,null,null,null,null,null,null,null,null,null,null,null,null,null,null,null,null,null,null,null,null,null,null,null,null,null,null,null,null,null,null,null,null,null,null,null,null,null,null,null,null,null,null,null,null,null,null,null,null,null,null,null,null,null,null,null,null,null,null,null,null,null,null,null,null,null,null,null,null,null,null,null,null,null,null,null,null,null,null,null,null,null,null,null,null,null,null,null,null,null,null,null,null,null,null,null,null,null,null,null,null,null,null,null,null,null,null,null,null,null,null,null,null,null,null,null,null,null,null,null,null,null,null,null,null,null,null,null,null,null,null,null,null,null,null,null,null,null,null,null,null,null,null,null,null,null,null,null,null,null,null,null,null,null,null,null,null,null,null,null,null,null,null,null,null,null,null,null,null,null,null,null,null,null,null,null,null,null,null,null,null,null,null,null,null,null,null,null,null,null,null,null,null,null,null,null,null,null,null,null,null,null,null,null,null,null,null,null,null,null,null,null,null,null,null,null,null,null,null,null,null,null,null,null,null,null,null,null,null,null,null,null,null,null,null,null,null,null,null,null,null,null,null,null,null,null,null,null,null,null,null,null,null,null,null,null,null,null,null,null,null,null,null,null,null,null,null,null,null,null,null,null,null,null,null,null,null,null,null,null,null,null,null,null,null,null,null,null,null,null,null,null,null,null,null,null,null,null,null,null,null,null,null,null,null,null,null,null,null,null,null,null,null,null,null,null,null,null,null,null,null,null,null,null,null,null,null,null,null,null,null,null,null,null,null,null,null,null,null,null,null,null,null,null,null,null,null,null,null,null,null,null,null,null,null,null,null,null,null,null,null,null,null,null,null,null,null,null,null,null,null,null,null,null,null,null,null,null,null,null,null,null,"Tipo de Producto"]
[null,"Acción Integral en la Administración Pública Nacional y Territorial",{"$f":"COUNTIF($F$2:$F$150,B2)","v":13},null,null,"Acción Integral en la Administración Pública Nacional y Territorial","Plan de Acción Integral (PAI) implementado para el fortalecimiento institucional","Asesoría integral y focalizada",null,null,null,null,null,null,null,"Aplica",null,null,null,null,null,null,null,null,null,null,null,null,null,null,null,null,null,null,null,null,null,null,null,null,null,null,null,null,null,null,null,null,null,null,null,null,null,null,null,null,null,null,null,null,null,null,null,null,null,null,null,null,null,null,null,null,null,null,null,null,null,null,null,null,null,null,null,null,null,null,null,null,null,null,null,null,null,null,null,null,null,null,null,null,null,null,null,null,null,null,null,null,null,null,null,null,null,null,null,null,null,null,null,null,null,null,null,null,null,null,null,null,null,null,null,null,null,null,null,null,null,null,null,null,null,null,null,null,null,null,null,null,null,null,null,null,null,null,null,null,null,null,null,null,null,null,null,null,null,null,null,null,null,null,null,null,null,null,null,null,null,null,null,null,null,null,null,null,null,null,null,null,null,null,null,null,null,null,null,null,null,null,null,null,null,null,null,null,null,null,null,null,null,null,null,null,null,null,null,null,null,null,null,null,null,null,null,null,null,null,null,null,null,null,null,null,null,null,null,null,null,null,null,null,null,null,null,null,null,null,null,null,null,null,null,null,null,null,null,null,null,null,null,null,null,null,null,null,null,null,null,null,null,null,null,null,null,null,null,null,null,null,null,null,null,null,null,null,null,null,null,null,null,null,null,null,null,null,null,null,null,null,null,null,null,null,null,null,null,null,null,null,null,null,null,null,null,null,null,null,null,null,null,null,null,null,null,null,null,null,null,null,null,null,null,null,null,null,null,null,null,null,null,null,null,null,null,null,null,null,null,null,null,null,null,null,null,null,null,null,null,null,null,null,null,null,null,null,null,null,null,null,null,null,null,null,null,null,null,null,null,null,null,null,null,null,null,null,null,null,null,null,null,null,null,null,null,null,null,null,null,null,null,null,null,null,null,null,null,null,null,null,null,null,null,null,null,null,null,null,null,null,null,null,null,null,null,null,null,null,null,null,null,null,null,null,null,null,null,null,null,null,null,null,null,null,null,null,null,null,null,null,null,null,null,null,null,null,null,null,null,null,null,null,null,null,null,null,null,null,null,null,null,null,null,null,null,null,null,null,null,null,null,null,null,null,null,null,null,null,null,null,null,null,null,null,null,null,null,null,null,null,null,null,null,null,null,null,null,null,null,null,null,null,null,null,null,null,null,null,null,null,null,null,null,null,null,null,null,null,null,null,null,null,null,null,null,null,null,null,null,null,null,null,null,null,null,null,null,null,null,null,null,null,null,null,null,null,null,null,null,null,null,null,null,null,null,null,null,null,null,null,null,null,null,null,null,null,null,null,null,null,null,null,null,null,null,null,null,null,null,null,null,null,null,null,null,null,null,null,null,null,null,null,null,null,null,null,null,null,null,null,null,null,null,null,null,null,null,null,null,null,null,null,null,null,null,null,null,null,null,null,null,null,null,null,null,null,null,null,null,null,null,null,null,null,null,null,null,null,null,null,null,null,null,null,null,null,null,null,null,null,null,null,null,null,null,null,null,null,null,null,null,null,null,null,null,null,null,null,null,null,null,null,null,null,null,null,null,null,null,null,null,null,null,null,null,null,null,null,null,null,null,null,null,null,null,null,null,null,null,null,null,null,null,null,null,null,null,null,null,null,null,null,null,null,null,null,null,null,null,null,null,null,null,null,null,null,null,null,null,null,null,null,null,null,null,null,null,null,null,null,null,null,null,null,null,null,null,null,null,null,null,null,null,null,null,null,null,null,null,null,null,null,null,null,null,null,null,null,null,null,null,null,null,null,null,null,null,null,null,null,null,null,null,null,null,null,null,null,null,null,null,null,null,null,null,null,null,null,null,null,null,null,null,null,null,null,null,null,null,null,null,null,null,null,null,null,null,null,null,null,null,null,null,null,null,null,null,null,null,null,null,null,null,null,null,null,null,null,null,null,null,null,null,null,null,null,null,null,null,null,null,null,null,null,null,null,null,null,null,null,null,null,null,null,null,null,null,null,null,null,null,null,null,null,null,null,null,null,null,null,null,null,null,null,null,null,null,null,null,null,null,null,null,null,null,null,null,null,null,null,null,null,null,null,null,null,null,null,null,null,null,null,null,null,null,null,null,null,null,null,null,null,null,null,null,null,null,null,null,null,null,null,null,null,null,null,null,null,null,null,null,null,null,null,null,null,null,null,null,null,null,null,null,null,null,null,null,null,null,null,null,null,null,null,null,null,null,null,null,null,null,null,null,null,null,null,null,null,null,null,null,null,null,null,null,null,null,null,null,null,null,null,null,null,null,null,null,null,null,null,null,null,null,null,null,null,null,null,null,null,null,null,null,null,null,null,null,null,null,null,null,null,null,null,null,null,null,null,null,null,null,null,null,null,null,null,null,null,null,null,null,null,null,null,null,null,null,null,null,null,null,null,null,null,null,null,null,null,null,null,null,null,null,null,null,null,null,null,null,null,null,null,null,null,null,null,null,null,null,null,null,null,null,null,null,null,null,null,null,null,null,null,null,null,null,null,null,null,null,null,null,null,null,null,null,null,null,null,null,null,null,null,null,null,null,null,null,null,null,null,null,null,null,null,null,null,null,null,null,null,null,null,null,null,null,null,null,null,null,null,null,null,null,null,null,null,null,null,null,null,null,null,null,null,null,null,null,null,null,null,null,null,null,null,null,null,null,null,null,null,null,null,null,null,null,null,null,null,null,null,null,null,null,null,null,null,null,null,null,null,null,null,null,null,null,null,null,null,null,null,null,null,null,null,null,null,null,null,null,null,null,null,null,null,null,null,null,null,null,null,null,null,null,null,null,null,null,null,null,null,null,null,null,null,null,null,null,null,null,null,null,null,null,null,null,null,null,null,null,null,null,null,null,null,null,null,null,null,null,null,null,null,null,null,null,null,null,null,null,null,null,null,null,null,null,null,null,null,null,null,null,null,null,null,null,null,null,null,null,null,null,null,null,null,null,null,null,null,null,null,null,null,null,null,null,null,null,null,null,null,null,null,null,null,null,null,null,null,null,null,null,null,null,null,null,null,null,null,null,null,null,null,null,null,null,null,null,null,null,null,null,null,null,null,null,null,null,null,null,null,null,null,null,null,null,null,null,null,null,null,null,null,null,null,null,null,null,null,null,null,null,null,null,null,null,null,null,null,null,null,null,null,null,null,null,null,null,null,null,null,null,null,null,null,null,null,null,null,null,null,null,null,null,null,null,null,null,null,null,null,null,null,null,null,null,null,null,null,null,null,null,null,null,null,null,null,null,null,null,null,null,null,null,null,null,null,null,null,null,null,null,null,null,null,null,null,null,null,null,null,null,null,null,null,null,null,null,null,null,null,null,null,null,null,null,null,null,null,null,null,null,null,null,null,null,null,null,null,null,null,null,null,null,null,null,null,null,null,null,null,null,null,null,null,null,null,null,null,null,null,null,null,null,null,null,null,null,null,null,null,null,null,null,null,null,null,null,null,null,null,null,null,null,null,null,null,null,null,null,null,null,null,null,null,null,null,null,null,null,null,null,null,null,null,null,null,null,null,null,null,null,null,null,null,null,null,null,null,null,null,null,null,null,null,null,null,null,null,null,null,null,null,null,null,null,null,null,null,null,null,null,null,null,null,null,null,null,null,null,null,null,null,null,null,null,null,null,null,null,null,null,null,null,null,null,null,null,null,null,null,null,null,null,null,null,null,null,null,null,null,null,null,null,null,null,null,null,null,null,null,null,null,null,null,null,null,null,null,null,null,null,null,null,null,null,null,null,null,null,null,null,null,null,null,null,null,null,null,null,null,null,null,null,null,null,null,null,null,null,null,null,null,null,null,null,null,null,null,null,null,null,null,null,null,null,null,null,null,null,null,null,null,null,null,null,null,null,null,null,null,null,null,null,null,null,null,null,null,null,null,null,null,null,null,null,null,null,null,null,null,null,null,null,null,null,null,null,null,null,null,null,null,null,null,null,null,null,null,null,null,null,null,null,null,null,null,null,null,null,null,null,null,null,null,null,null,null,null,null,null,null,null,null,null,null,null,null,null,null,null,null,null,null,null,null,null,null,null,null,null,null,null,null,null,null,null,null,null,null,null,null,null,null,null,null,null,null,null,null,null,null,null,null,null,null,null,null,null,null,null,null,null,null,null,null,null,null,null,null,null,null,null,null,null,null,null,null,null,null,null,null,null,null,null,null,null,null,null,null,null,null,null,null,null,null,null,null,null,null,null,null,null,null,null,null,null,null,null,null,null,null,null,null,null,null,null,null,null,null,null,null,null,null,null,null,null,null,null,null,null,null,null,null,null,null,null,null,null,null,null,null,null,null,null,null,null,null,null,null,null,null,null,null,null,null,null,null,null,null,null,null,null,null,null,null,null,null,null,null,null,null,null,null,null,null,null,null,null,null,null,null,null,null,null,null,null,null,null,null,null,null,null,null,null,null,null,null,null,null,null,null,null,null,null,null,null,null,null,null,null,null,null,null,null,null,null,null,null,null,null,null,null,null,null,null,null,null,null,null,null,null,null,null,null,null,null,null,null,null,null,null,null,null,null,null,null,null,null,null,null,null,null,null,null,null,null,null,null,null,null,null,null,null,null,null,null,null,null,null,null,null,null,null,null,null,null,null,null,null,null,null,null,null,null,null,null,null,null,null,null,null,null,null,null,null,null,null,null,null,null,null,null,null,null,null,null,null,null,null,null,null,null,null,null,null,null,null,null,null,null,null,null,null,null,null,null,null,null,null,null,null,null,null,null,null,null,null,null,null,null,null,null,null,null,null,null,null,null,null,null,null,null,null,null,null,null,null,null,null,null,null,null,null,null,null,null,null,null,null,null,null,null,null,null,null,null,null,null,null,null,null,null,null,null,null,null,null,null,null,null,null,null,null,null,null,null,null,null,null,null,null,null,null,null,null,null,null,null,null,null,null,null,null,null,null,null,null,null,null,null,null,null,null,null,null,null,null,null,null,null,null,null,null,null,null,null,null,null,null,null,null,null,null,null,null,null,null,null,null,null,null,null,null,null,null,null,null,null,null,null,null,null,null,null,null,null,null,null,null,null,null,null,null,null,null,null,null,null,null,null,null,null,null,null,null,null,null,null,null,null,null,null,null,null,null,null,null,null,null,null,null,null,null,null,null,null,null,null,null,null,null,null,null,null,null,null,null,null,null,null,null,null,null,null,null,null,null,null,null,null,null,null,null,null,null,null,null,null,null,null,null,null,null,null,null,null,null,null,null,null,null,null,null,null,null,null,null,null,null,null,null,null,null,null,null,null,null,null,null,null,null,null,null,null,null,null,null,null,null,null,null,null,null,null,null,null,null,null,null,null,null,null,null,null,null,null,null,null,null,null,null,null,null,null,null,null,null,null,null,null,null,null,null,null,null,null,null,null,null,null,null,null,null,null,null,null,null,null,null,null,null,null,null,null,null,null,null,null,null,null,null,null,null,null,null,null,null,null,null,null,null,null,null,null,null,null,null,null,null,null,null,null,null,null,null,null,null,null,null,null,null,null,null,null,null,null,null,null,null,null,null,null,null,null,null,null,null,null,null,null,null,null,null,null,null,null,null,null,null,null,null,null,null,null,null,null,null,null,null,null,null,null,null,null,null,null,null,null,null,null,null,null,null,null,null,null,null,null,null,null,null,null,null,null,null,null,null,null,null,null,null,null,null,null,null,null,null,null,null,null,null,null,null,null,null,null,null,null,null,null,null,null,null,null,null,null,null,null,null,null,null,null,null,null,null,null,null,null,null,null,null,null,null,null,null,null,null,null,null,null,null,null,null,null,null,null,null,null,null,null,null,null,null,null,null,null,null,null,null,null,null,null,null,null,null,null,null,null,null,null,null,null,null,null,null,null,null,null,null,null,null,null,null,null,null,null,null,null,null,null,null,null,null,null,null,null,null,null,null,null,null,null,null,null,null,null,null,null,null,null,null,null,null,null,null,null,null,null,null,null,null,null,null,null,null,null,null,null,null,null,null,null,null,null,null,null,null,null,null,null,null,null,null,null,null,null,null,null,null,null,null,null,null,null,null,null,null,null,null,null,null,null,null,null,null,null,null,null,null,null,null,null,null,null,null,null,null,null,null,null,null,null,null,null,null,null,null,null,null,null,null,null,null,null,null,null,null,null,null,null,null,null,null,null,null,null,null,null,null,null,null,null,null,null,null,null,null,null,null,null,null,null,null,null,null,null,null,null,null,null,null,null,null,null,null,null,null,null,null,null,null,null,null,null,null,null,null,null,null,null,null,null,null,null,null,null,null,null,null,null,null,null,null,null,null,null,null,null,null,null,null,null,null,null,null,null,null,null,null,null,null,null,null,null,null,null,null,null,null,null,null,null,null,null,null,null,null,null,null,null,null,null,null,null,null,null,null,null,null,null,null,null,null,null,null,null,null,null,null,null,null,null,null,null,null,null,null,null,null,null,null,null,null,null,null,null,null,null,null,null,null,null,null,null,null,null,null,null,null,null,null,null,null,null,null,null,null,null,null,null,null,null,null,null,null,null,null,null,null,null,null,null,null,null,null,null,null,null,null,null,null,null,null,null,null,null,null,null,null,null,null,null,null,null,null,null,null,null,null,null,null,null,null,null,null,null,null,null,null,null,null,null,null,null,null,null,null,null,null,null,null,null,null,null,null,null,null,null,null,null,null,null,null,null,null,null,null,null,null,null,null,null,null,null,null,null,null,null,null,null,null,null,null,null,null,null,null,null,null,null,null,null,null,null,null,null,null,null,null,null,null,null,null,null,null,null,null,null,null,null,null,null,null,null,null,null,null,null,null,null,null,null,null,null,null,null,null,null,null,null,null,null,null,null,null,null,null,null,null,null,null,null,null,null,null,null,null,null,null,null,null,null,null,null,null,null,null,null,null,null,null,null,null,null,null,null,null,null,null,null,null,null,null,null,null,null,null,null,null,null,null,null,null,null,null,null,null,null,null,null,null,null,null,null,null,null,null,null,null,null,null,null,null,null,null,null,null,null,null,null,null,null,null,null,null,null,null,null,null,null,null,null,null,null,null,null,null,null,null,null,null,null,null,null,null,null,null,null,null,null,null,null,null,null,null,null,null,null,null,null,null,null,null,null,null,null,null,null,null,null,null,null,null,null,null,null,null,null,null,null,null,null,null,null,null,null,null,null,null,null,null,null,null,null,null,null,null,null,null,null,null,null,null,null,null,null,null,null,null,null,null,null,null,null,null,null,null,null,null,null,null,null,null,null,null,null,null,null,null,null,null,null,null,null,null,null,null,null,null,null,null,null,null,null,null,null,null,null,null,null,null,null,null,null,null,null,null,null,null,null,null,null,null,null,null,null,null,null,null,null,null,null,null,null,null,null,null,null,null,null,null,null,null,null,null,null,null,null,null,null,null,null,null,null,null,null,null,null,null,null,null,null,null,null,null,null,null,null,null,null,null,null,null,null,null,null,null,null,null,null,null,null,null,null,null,null,null,null,null,null,null,null,null,null,null,null,null,null,null,null,null,null,null,null,null,null,null,null,null,null,null,null,null,null,null,null,null,null,null,null,null,null,null,null,null,null,null,null,null,null,null,null,null,null,null,null,null,null,null,null,null,null,null,null,null,null,null,null,null,null,null,null,null,null,null,null,null,null,null,null,null,null,null,null,null,null,null,null,null,null,null,null,null,null,null,null,null,null,null,null,null,null,null,null,null,null,null,null,null,null,null,null,null,null,null,null,null,null,null,null,null,null,null,null,null,null,null,null,null,null,null,null,null,null,null,null,null,null,null,null,null,null,null,null,null,null,null,null,null,null,null,null,null,null,null,null,null,null,null,null,null,null,null,null,null,null,null,null,null,null,null,null,null,null,null,null,null,null,null,null,null,null,null,null,null,null,null,null,null,null,null,null,null,null,null,null,null,null,null,null,null,null,null,null,null,null,null,null,null,null,null,null,null,null,null,null,null,null,null,null,null,null,null,null,null,null,null,null,null,null,null,null,null,null,null,null,null,null,null,null,null,null,null,null,null,null,null,null,null,null,null,null,null,null,null,null,null,null,null,null,null,null,null,null,null,null,null,null,null,null,null,null,null,null,null,null,null,null,null,null,null,null,null,null,null,null,null,null,null,null,null,null,null,null,null,null,null,null,null,null,null,null,null,null,null,null,null,null,null,null,null,null,null,null,null,null,null,null,null,null,null,null,null,null,null,null,null,null,null,null,null,null,null,null,null,null,null,null,null,null,null,null,null,null,null,null,null,null,null,null,null,null,null,null,null,null,null,null,null,null,null,null,null,null,null,null,null,null,null,null,null,null,null,null,null,null,null,null,null,null,null,null,null,null,null,null,null,null,null,null,null,null,null,null,null,null,null,null,null,null,null,null,null,null,null,null,null,null,null,null,null,null,null,null,null,null,null,null,null,null,null,null,null,null,null,null,null,null,null,null,null,null,null,null,null,null,null,null,null,null,null,null,null,null,null,null,null,null,null,null,null,null,null,null,null,null,null,null,null,null,null,null,null,null,null,null,null,null,null,null,null,null,null,null,null,null,null,null,null,null,null,null,null,null,null,null,null,null,null,null,null,null,null,null,null,null,null,null,null,null,null,null,null,null,null,null,null,null,null,null,null,null,null,null,null,null,null,null,null,null,null,null,null,null,null,null,null,null,null,null,null,null,null,null,null,null,null,null,null,null,null,null,null,null,null,null,null,null,null,null,null,null,null,null,null,null,null,null,null,null,null,null,null,null,null,null,null,null,null,null,null,null,null,null,null,null,null,null,null,null,null,null,null,null,null,null,null,null,null,null,null,null,null,null,null,null,null,null,null,null,null,null,null,null,null,null,null,null,null,null,null,null,null,null,null,null,null,null,null,null,null,null,null,null,null,null,null,null,null,null,null,null,null,null,null,null,null,null,null,null,null,null,null,null,null,null,null,null,null,null,null,null,null,null,null,null,null,null,null,null,null,null,null,null,null,null,null,null,null,null,null,null,null,null,null,null,null,null,null,null,null,null,null,null,null,null,null,null,null,null,null,null,null,null,null,null,null,null,null,null,null,null,null,null,null,null,null,null,null,null,null,null,null,null,null,null,null,null,null,null,null,null,null,null,null,null,null,null,null,null,null,null,null,null,null,null,null,null,null,null,null,null,null,null,null,null,null,null,null,null,null,null,null,null,null,null,null,null,null,null,null,null,null,null,null,null,null,null,null,null,null,null,null,null,null,null,null,null,null,null,null,null,null,null,null,null,null,null,null,null,null,null,null,null,null,null,null,null,null,null,null,null,null,null,null,null,null,null,null,null,null,null,null,null,null,null,null,null,null,null,null,null,null,null,null,null,null,null,null,null,null,null,null,null,null,null,null,null,null,null,null,null,null,null,null,null,null,null,null,null,null,null,null,null,null,null,null,null,null,null,null,null,null,null,null,null,null,null,null,null,null,null,null,null,null,null,null,null,null,null,null,null,null,null,null,null,null,null,null,null,null,null,null,null,null,null,null,null,null,null,null,null,null,null,null,null,null,null,null,null,null,null,null,null,null,null,null,null,null,null,null,null,null,null,null,null,null,null,null,null,null,null,null,null,null,null,null,null,null,null,null,null,null,null,null,null,null,null,null,null,null,null,null,null,null,null,null,null,null,null,null,null,null,null,null,null,null,null,null,null,null,null,null,null,null,null,null,null,null,null,null,null,null,null,null,null,null,null,null,null,null,null,null,null,null,null,null,null,null,null,null,null,null,null,null,null,null,null,null,null,null,null,null,null,null,null,null,null,null,null,null,null,null,null,null,null,null,null,null,null,null,null,null,null,null,null,null,null,null,null,null,null,null,null,null,null,null,null,null,null,null,null,null,null,null,null,null,null,null,null,null,null,null,null,null,null,null,null,null,null,null,null,null,null,null,null,null,null,null,null,null,null,null,null,null,null,null,null,null,null,null,null,null,null,null,null,null,null,null,null,null,null,null,null,null,null,null,null,null,null,null,null,null,null,null,null,null,null,null,null,null,null,null,null,null,null,null,null,null,null,null,null,null,null,null,null,null,null,null,null,null,null,null,null,null,null,null,null,null,null,null,null,null,null,null,null,null,null,null,null,null,null,null,null,null,null,null,null,null,null,null,null,null,null,null,null,null,null,null,null,null,null,null,null,null,null,null,null,null,null,null,null,null,null,null,null,null,null,null,null,null,null,null,null,null,null,null,null,null,null,null,null,null,null,null,null,null,null,null,null,null,null,null,null,null,null,null,null,null,null,null,null,null,null,null,null,null,null,null,null,null,null,null,null,null,null,null,null,null,null,null,null,null,null,null,null,null,null,null,null,null,null,null,null,null,null,null,null,null,null,null,null,null,null,null,null,null,null,null,null,null,null,null,null,null,null,null,null,null,null,null,null,null,null,null,null,null,null,null,null,null,null,null,null,null,null,null,null,null,null,null,null,null,null,null,null,null,null,null,null,null,null,null,null,null,null,null,null,null,null,null,null,null,null,null,null,null,null,null,null,null,null,null,null,null,null,null,null,null,null,null,null,null,null,null,null,null,null,null,null,null,null,null,null,null,null,null,null,null,null,null,null,null,null,null,null,null,null,null,null,null,null,null,null,null,null,null,null,null,null,null,null,null,null,null,null,null,null,null,null,null,null,null,null,null,null,null,null,null,null,null,null,null,null,null,null,null,null,null,null,null,null,null,null,null,null,null,null,null,null,null,null,null,null,null,null,null,null,null,null,null,null,null,null,null,null,null,null,null,null,null,null,null,null,null,null,null,null,null,null,null,null,null,null,null,null,null,null,null,null,null,null,null,null,null,null,null,null,null,null,null,null,null,null,null,null,null,null,null,null,null,null,null,null,null,null,null,null,null,null,null,null,null,null,null,null,null,null,null,null,null,null,null,null,null,null,null,null,null,null,null,null,null,null,null,null,null,null,null,null,null,null,null,null,null,null,null,null,null,null,null,null,null,null,null,null,null,null,null,null,null,null,null,null,null,null,null,null,null,null,null,null,null,null,null,null,null,null,null,null,null,null,null,null,null,null,null,null,null,null,null,null,null,null,null,null,null,null,null,null,null,null,null,null,null,null,null,null,null,null,null,null,null,null,null,null,null,null,null,null,null,null,null,null,null,null,null,null,null,null,null,null,null,null,null,null,null,null,null,null,null,null,null,null,null,null,null,null,null,null,null,null,null,null,null,null,null,null,null,null,null,null,null,null,null,null,null,null,null,null,null,null,null,null,null,null,null,null,null,null,null,null,null,null,null,null,null,null,null,null,null,null,null,null,null,null,null,null,null,null,null,null,null,null,null,null,null,null,null,null,null,null,null,null,null,null,null,null,null,null,null,null,null,null,null,null,null,null,null,null,null,null,null,null,null,null,null,null,null,null,null,null,null,null,null,null,null,null,null,null,null,null,null,null,null,null,null,null,null,null,null,null,null,null,null,null,null,null,null,null,null,null,null,null,null,null,null,null,null,null,null,null,null,null,null,null,null,null,null,null,null,null,null,null,null,null,null,null,null,null,null,null,null,null,null,null,null,null,null,null,null,null,null,null,null,null,null,null,null,null,null,null,null,null,null,null,null,null,null,null,null,null,null,null,null,null,null,null,null,null,null,null,null,null,null,null,null,null,null,null,null,null,null,null,null,null,null,null,null,null,null,null,null,null,null,null,null,null,null,null,null,null,null,null,null,null,null,null,null,null,null,null,null,null,null,null,null,null,null,null,null,null,null,null,null,null,null,null,null,null,null,null,null,null,null,null,null,null,null,null,null,null,null,null,null,null,null,null,null,null,null,null,null,null,null,null,null,null,null,null,null,null,null,null,null,null,null,null,null,null,null,null,null,null,null,null,null,null,null,null,null,null,null,null,null,null,null,null,null,null,null,null,null,null,null,null,null,null,null,null,null,null,null,null,null,null,null,null,null,null,null,null,null,null,null,null,null,null,null,null,null,null,null,null,null,null,null,null,null,null,null,null,null,null,null,null,null,null,null,null,null,null,null,null,null,null,null,null,null,null,null,null,null,null,null,null,null,null,null,null,null,null,null,null,null,null,null,null,null,null,null,null,null,null,null,null,null,null,null,null,null,null,null,null,null,null,null,null,null,null,null,null,null,null,null,null,null,null,null,null,null,null,null,null,null,null,null,null,null,null,null,null,null,null,null,null,null,null,null,null,null,null,null,null,null,null,null,null,null,null,null,null,null,null,null,null,null,null,null,null,null,null,null,null,null,null,null,null,null,null,null,null,null,null,null,null,null,null,null,null,null,null,null,null,null,null,null,null,null,null,null,null,null,null,null,null,null,null,null,null,null,null,null,null,null,null,null,null,null,null,null,null,null,null,null,null,null,null,null,null,null,null,null,null,null,null,null,null,null,null,null,null,null,null,null,null,null,null,null,null,null,null,null,null,null,null,null,null,null,null,null,null,null,null,null,null,null,null,null,null,null,null,null,null,null,null,null,null,null,null,null,null,null,null,null,null,null,null,null,null,null,null,null,null,null,null,null,null,null,null,null,null,null,null,null,null,null,null,null,null,null,null,null,null,null,null,null,null,null,null,null,null,null,null,null,null,null,null,null,null,null,null,null,null,null,null,null,null,null,null,null,null,null,null,null,null,null,null,null,null,null,null,null,null,null,null,null,null,null,null,null,null,null,null,null,null,null,null,null,null,null,null,null,null,null,null,null,null,null,null,null,null,null,null,null,null,null,null,null,null,null,null,null,null,null,null,null,null,null,null,null,null,null,null,null,null,null,null,null,null,null,null,null,null,null,null,null,null,null,null,null,null,null,null,null,null,null,null,null,null,null,null,null,null,null,null,null,null,null,null,null,null,null,null,null,null,null,null,null,null,null,null,null,null,null,null,null,null,null,null,null,null,null,null,null,null,null,null,null,null,null,null,null,null,null,null,null,null,null,null,null,null,null,null,null,null,null,null,null,null,null,null,null,null,null,null,null,null,null,null,null,null,null,null,null,null,null,null,null,null,null,null,null,null,null,null,null,null,null,null,null,null,null,null,null,null,null,null,null,null,null,null,null,null,null,null,null,null,null,null,null,null,null,null,null,null,null,null,null,null,null,null,null,null,null,null,null,null,null,null,null,null,null,null,null,null,null,null,null,null,null,null,null,null,null,null,null,null,null,null,null,null,null,null,null,null,null,null,null,null,null,null,null,null,null,null,null,null,null,null,null,null,null,null,null,null,null,null,null,null,null,null,null,null,null,null,null,null,null,null,null,null,null,null,null,null,null,null,null,null,null,null,null,null,null,null,null,null,null,null,null,null,null,null,null,null,null,null,null,null,null,null,null,null,null,null,null,null,null,null,null,null,null,null,null,null,null,null,null,null,null,null,null,null,null,null,null,null,null,null,null,null,null,null,null,null,null,null,null,null,null,null,null,null,null,null,null,null,null,null,null,null,null,null,null,null,null,null,null,null,null,null,null,null,null,null,null,null,null,null,null,null,null,null,null,null,null,null,null,null,null,null,null,null,null,null,null,null,null,null,null,null,null,null,null,null,null,null,null,null,null,null,null,null,null,null,null,null,null,null,null,null,null,null,null,null,null,null,null,null,null,null,null,null,null,null,null,null,null,null,null,null,null,null,null,null,null,null,null,null,null,null,null,null,null,null,null,null,null,null,null,null,null,null,null,null,null,null,null,null,null,null,null,null,null,null,null,null,null,null,null,null,null,null,null,null,null,null,null,null,null,null,null,null,null,null,null,null,null,null,null,null,null,null,null,null,null,null,null,null,null,null,null,null,null,null,null,null,null,null,null,null,null,null,null,null,null,null,null,null,null,null,null,null,null,null,null,null,null,null,null,null,null,null,null,null,null,null,null,null,null,null,null,null,null,null,null,null,null,null,null,null,null,null,null,null,null,null,null,null,null,null,null,null,null,null,null,null,null,null,null,null,null,null,null,null,null,null,null,null,null,null,null,null,null,null,null,null,null,null,null,null,null,null,null,null,null,null,null,null,null,null,null,null,null,null,null,null,null,null,null,null,null,null,null,null,null,null,null,null,null,null,null,null,null,null,null,null,null,null,null,null,null,null,null,null,null,null,null,null,null,null,null,null,null,null,null,null,null,null,null,null,null,null,null,null,null,null,null,null,null,null,null,null,null,null,null,null,null,null,null,null,null,null,null,null,null,null,null,null,null,null,null,null,null,null,null,null,null,null,null,null,null,null,null,null,null,null,null,null,null,null,null,null,null,null,null,null,null,null,null,null,null,null,null,null,null,null,null,null,null,null,null,null,null,null,null,null,null,null,null,null,null,null,null,null,null,null,null,null,null,null,null,null,null,null,null,null,null,null,null,null,null,null,null,null,null,null,null,null,null,null,null,null,null,null,null,null,null,null,null,null,null,null,null,null,null,null,null,null,null,null,null,null,null,null,null,null,null,null,null,null,null,null,null,null,null,null,null,null,null,null,null,null,null,null,null,null,null,null,null,null,null,null,null,null,null,null,null,null,null,null,null,null,null,null,null,null,null,null,null,null,null,null,null,null,null,null,null,null,null,null,null,null,null,null,null,null,null,null,null,null,null,null,null,null,null,null,null,null,null,null,null,null,null,null,null,null,null,null,null,null,null,null,null,null,null,null,null,null,null,null,null,null,null,null,null,null,null,null,null,null,null,null,null,null,null,null,null,null,null,null,null,null,null,null,null,null,null,null,null,null,null,null,null,null,null,null,null,null,null,null,null,null,null,null,null,null,null,null,null,null,null,null,null,null,null,null,null,null,null,null,null,null,null,null,null,null,null,null,null,null,null,null,null,null,null,null,null,null,null,null,null,null,null,null,null,null,null,null,null,null,null,null,null,null,null,null,null,null,null,null,null,null,null,null,null,null,null,null,null,null,null,null,null,null,null,null,null,null,null,null,null,null,null,null,null,null,null,null,null,null,null,null,null,null,null,null,null,null,null,null,null,null,null,null,null,null,null,null,null,null,null,null,null,null,null,null,null,null,null,null,null,null,null,null,null,null,null,null,null,null,null,null,null,null,null,null,null,null,null,null,null,null,null,null,null,null,null,null,null,null,null,null,null,null,null,null,null,null,null,null,null,null,null,null,null,null,null,null,null,null,null,null,null,null,null,null,null,null,null,null,null,null,null,null,null,null,null,null,null,null,null,null,null,null,null,null,null,null,null,null,null,null,null,null,null,null,null,null,null,null,null,null,null,null,null,null,null,null,null,null,null,null,null,null,null,null,null,null,null,null,null,null,null,null,null,null,null,null,null,null,null,null,null,null,null,null,null,null,null,null,null,null,null,null,null,null,null,null,null,null,null,null,null,null,null,null,null,null,null,null,null,null,null,null,null,null,null,null,null,null,null,null,null,null,null,null,null,null,null,null,null,null,null,null,null,null,null,null,null,null,null,null,null,null,null,null,null,null,null,null,null,null,null,null,null,null,null,null,null,null,null,null,null,null,null,null,null,null,null,null,null,null,null,null,null,null,null,null,null,null,null,null,null,null,null,null,null,null,null,null,null,null,null,null,null,null,null,null,null,null,null,null,null,null,null,null,null,null,null,null,null,null,null,null,null,null,null,null,null,null,null,null,null,null,null,null,null,null,null,null,null,null,null,null,null,null,null,null,null,null,null,null,null,null,null,null,null,null,null,null,null,null,null,null,null,null,null,null,null,null,null,null,null,null,null,null,null,null,null,null,null,null,null,null,null,null,null,null,null,null,null,null,null,null,null,null,null,null,null,null,null,null,null,null,null,null,null,null,null,null,null,null,null,null,null,null,null,null,null,null,null,null,null,null,null,null,null,null,null,null,null,null,null,null,null,null,null,null,null,null,null,null,null,null,null,null,null,null,null,null,null,null,null,null,null,null,null,null,null,null,null,null,null,null,null,null,null,null,null,null,null,null,null,null,null,null,null,null,null,null,null,null,null,null,null,null,null,null,null,null,null,null,null,null,null,null,null,null,null,null,null,null,null,null,null,null,null,null,null,null,null,null,null,null,null,null,null,null,null,null,null,null,null,null,null,null,null,null,null,null,null,null,null,null,null,null,null,null,null,null,null,null,null,null,null,null,null,null,null,null,null,null,null,null,null,null,null,null,null,null,null,null,null,null,null,null,null,null,null,null,null,null,null,null,null,null,null,null,null,null,null,null,null,null,null,null,null,null,null,null,null,null,null,null,null,null,null,null,null,null,null,null,null,null,null,null,null,null,null,null,null,null,null,null,null,null,null,null,null,null,null,null,null,null,null,null,null,null,null,null,null,null,null,null,null,null,null,null,null,null,null,null,null,null,null,null,null,null,null,null,null,null,null,null,null,null,null,null,null,null,null,null,null,null,null,null,null,null,null,null,null,null,null,null,null,null,null,null,null,null,null,null,null,null,null,null,null,null,null,null,null,null,null,null,null,null,null,null,null,null,null,null,null,null,null,null,null,null,null,null,null,null,null,null,null,null,null,null,null,null,null,null,null,null,null,null,null,null,null,null,null,null,null,null,null,null,null,null,null,null,null,null,null,null,null,null,null,null,null,null,null,null,null,null,null,null,null,null,null,null,null,null,null,null,null,null,null,null,null,null,null,null,null,null,null,null,null,null,null,null,null,null,null,null,null,null,null,null,null,null,null,null,null,null,null,null,null,null,null,null,null,null,null,null,null,null,null,null,null,null,null,null,null,null,null,null,null,null,null,null,null,null,null,null,null,null,null,null,null,null,null,null,null,null,null,null,null,null,null,null,null,null,null,null,null,null,null,null,null,null,null,null,null,null,null,null,null,null,null,null,null,null,null,null,null,null,null,null,null,null,null,null,null,null,null,null,null,null,null,null,null,null,null,null,null,null,null,null,null,null,null,null,null,null,null,null,null,null,null,null,null,null,null,null,null,null,null,null,null,null,null,null,null,null,null,null,null,null,null,null,null,null,null,null,null,null,null,null,null,null,null,null,null,null,null,null,null,null,null,null,null,null,null,null,null,null,null,null,null,null,null,null,null,null,null,null,null,null,null,null,null,null,null,null,null,null,null,null,null,null,null,null,null,null,null,null,null,null,null,null,null,null,null,null,null,null,null,null,null,null,null,null,null,null,null,null,null,null,null,null,null,null,null,null,null,null,null,null,null,null,null,null,null,null,null,null,null,null,null,null,null,null,null,null,null,null,null,null,null,null,null,null,null,null,null,null,null,null,null,null,null,null,null,null,null,null,null,null,null,null,null,null,null,null,null,null,null,null,null,null,null,null,null,null,null,null,null,null,null,null,null,null,null,null,null,null,null,null,null,null,null,null,null,null,null,null,null,null,null,null,null,null,null,null,null,null,null,null,null,null,null,null,null,null,null,null,null,null,null,null,null,null,null,null,null,null,null,null,null,null,null,null,null,null,null,null,null,null,null,null,null,null,null,null,null,null,null,null,null,null,null,null,null,null,null,null,null,null,null,null,null,null,null,null,null,null,null,null,null,null,null,null,null,null,null,null,null,null,null,null,null,null,null,null,null,null,null,null,null,null,null,null,null,null,null,null,null,null,null,null,null,null,null,null,null,null,null,null,null,null,null,null,null,null,null,null,null,null,null,null,null,null,null,null,null,null,null,null,null,null,null,null,null,null,null,null,null,null,null,null,null,null,null,null,null,null,null,null,null,null,null,null,null,null,null,null,null,null,null,null,null,null,null,null,null,null,null,null,null,null,null,null,null,null,null,null,null,null,null,null,null,null,null,null,null,null,null,null,null,null,null,null,null,null,null,null,null,null,null,null,null,null,null,null,null,null,null,null,null,null,null,null,null,null,null,null,null,null,null,null,null,null,null,null,null,null,null,null,null,null,null,null,null,null,null,null,null,null,null,null,null,null,null,null,null,null,null,null,null,null,null,null,null,null,null,null,null,null,null,null,null,null,null,null,null,null,null,null,null,null,null,null,null,null,null,null,null,null,null,null,null,null,null,null,null,null,null,null,null,null,null,null,null,null,null,null,null,null,null,null,null,null,null,null,null,null,null,null,null,null,null,null,null,null,null,null,null,null,null,null,null,null,null,null,null,null,null,null,null,null,null,null,null,null,null,null,null,null,null,null,null,null,null,null,null,null,null,null,null,null,null,null,null,null,null,null,null,null,null,null,null,null,null,null,null,null,null,null,null,null,null,null,null,null,null,null,null,null,null,null,null,null,null,null,null,null,null,null,null,null,null,null,null,null,null,null,null,null,null,null,null,null,null,null,null,null,null,null,null,null,null,null,null,null,null,null,null,null,null,null,null,null,null,null,null,null,null,null,null,null,null,null,null,null,null,null,null,null,null,null,null,null,null,null,null,null,null,null,null,null,null,null,null,null,null,null,null,null,null,null,null,null,null,null,null,null,null,null,null,null,null,null,null,null,null,null,null,null,null,null,null,null,null,null,null,null,null,null,null,null,null,null,null,null,null,null,null,null,null,null,null,null,null,null,null,null,null,null,null,null,null,null,null,null,null,null,null,null,null,null,null,null,null,null,null,null,null,null,null,null,null,null,null,null,null,null,null,null,null,null,null,null,null,null,null,null,null,null,null,null,null,null,null,null,null,null,null,null,null,null,null,null,null,null,null,null,null,null,null,null,null,null,null,null,null,null,null,null,null,null,null,null,null,null,null,null,null,null,null,null,null,null,null,null,null,null,null,null,null,null,null,null,null,null,null,null,null,null,null,null,null,null,null,null,null,null,null,null,null,null,null,null,null,null,null,null,null,null,null,null,null,null,null,null,null,null,null,null,null,null,null,null,null,null,null,null,null,null,null,null,null,null,null,null,null,null,null,null,null,null,null,null,null,null,null,null,null,null,null,null,null,null,null,null,null,null,null,null,null,null,null,null,null,null,null,null,null,null,null,null,null,null,null,null,null,null,null,null,null,null,null,null,null,null,null,null,null,null,null,null,null,null,null,null,null,null,null,null,null,null,null,null,null,null,null,null,null,null,null,null,null,null,null,null,null,null,null,null,null,null,null,null,null,null,null,null,null,null,null,null,null,null,null,null,null,null,null,null,null,null,null,null,null,null,null,null,null,null,null,null,null,null,null,null,null,null,null,null,null,null,null,null,null,null,null,null,null,null,null,null,null,null,null,null,null,null,null,null,null,null,null,null,null,null,null,null,null,null,null,null,null,null,null,null,null,null,null,null,null,null,null,null,null,null,null,null,null,null,null,null,null,null,null,null,null,null,null,null,null,null,null,null,null,null,null,null,null,null,null,null,null,null,null,null,null,null,null,null,null,null,null,null,null,null,null,null,null,null,null,null,null,null,null,null,null,null,null,null,null,null,null,null,null,null,null,null,null,null,null,null,null,null,null,null,null,null,null,null,null,null,null,null,null,null,null,null,null,null,null,null,null,null,null,null,null,null,null,null,null,null,null,null,null,null,null,null,null,null,null,null,null,null,null,null,null,null,null,null,null,null,null,null,null,null,null,null,null,null,null,null,null,null,null,null,null,null,null,null,null,null,null,null,null,null,null,null,null,null,null,null,null,null,null,null,null,null,null,null,null,null,null,null,null,null,null,null,null,null,null,null,null,null,null,null,null,null,null,null,null,null,null,null,null,null,null,null,null,null,null,null,null,null,null,null,null,null,null,null,null,null,null,null,null,null,null,null,null,null,null,null,null,null,null,null,null,null,null,null,null,null,null,null,null,null,null,null,null,null,null,null,null,null,null,null,null,null,null,null,null,null,null,null,null,null,null,null,null,null,null,null,null,null,null,null,null,null,null,null,null,null,null,null,null,null,null,null,null,null,null,null,null,null,null,null,null,null,null,null,null,null,null,null,null,null,null,null,null,null,null,null,null,null,null,null,null,null,null,null,null,null,null,null,null,null,null,null,null,null,null,null,null,null,null,null,null,null,null,null,null,null,null,null,null,null,null,null,null,null,null,null,null,null,null,null,null,null,null,null,null,null,null,null,null,null,null,null,null,null,null,null,null,null,null,null,null,null,null,null,null,null,null,null,null,null,null,null,null,null,null,null,null,null,null,null,null,null,null,null,null,null,null,null,null,null,null,null,null,null,null,null,null,null,null,null,null,null,null,null,null,null,null,null,null,null,null,null,null,null,null,null,null,null,null,null,null,null,null,null,null,null,null,null,null,null,null,null,null,null,null,null,null,null,null,null,null,null,null,null,null,null,null,null,null,null,null,null,null,null,null,null,null,null,null,null,null,null,null,null,null,null,null,null,null,null,null,null,null,null,null,null,null,null,null,null,null,null,null,null,null,null,null,null,null,null,null,null,null,null,null,null,null,null,null,null,null,null,null,null,null,null,null,null,null,null,null,null,null,null,null,null,null,null,null,null,null,null,null,null,null,null,null,null,null,null,null,null,null,null,null,null,null,null,null,null,null,null,null,null,null,null,null,null,null,null,null,null,null,null,null,null,null,null,null,null,null,null,null,null,null,null,null,null,null,null,null,null,null,null,null,null,null,null,null,null,null,null,null,null,null,null,null,null,null,null,null,null,null,null,null,null,null,null,null,null,null,null,null,null,null,null,null,null,null,null,null,null,null,null,null,null,null,null,null,null,null,null,null,null,null,null,null,null,null,null,null,null,null,null,null,null,null,null,null,null,null,null,null,null,null,null,null,null,null,null,null,null,null,null,null,null,null,null,null,null,null,null,null,null,null,null,null,null,null,null,null,null,null,null,null,null,null,null,null,null,null,null,null,null,null,null,null,null,null,null,null,null,null,null,null,null,null,null,null,null,null,null,null,null,null,null,null,null,null,null,null,null,null,null,null,null,null,null,null,null,null,null,null,null,null,null,null,null,null,null,null,null,null,null,null,null,null,null,null,null,null,null,null,null,null,null,null,null,null,null,null,null,null,null,null,null,null,null,null,null,null,null,null,null,null,null,null,null,null,null,null,null,null,null,null,null,null,null,null,null,null,null,null,null,null,null,null,null,null,null,null,null,null,null,null,null,null,null,null,null,null,null,null,null,null,null,null,null,null,null,null,null,null,null,null,null,null,null,null,null,null,null,null,null,null,null,null,null,null,null,null,null,null,null,null,null,null,null,null,null,null,null,null,null,null,null,null,null,null,null,null,null,null,null,null,null,null,null,null,null,null,null,null,null,null,null,null,null,null,null,null,null,null,null,null,null,null,null,null,null,null,null,null,null,null,null,null,null,null,null,null,null,null,null,null,null,null,null,null,null,null,null,null,null,null,null,null,null,null,null,null,null,null,null,null,null,null,null,null,null,null,null,null,null,null,null,null,null,null,null,null,null,null,null,null,null,null,null,null,null,null,null,null,null,null,null,null,null,null,null,null,null,null,null,null,null,null,null,null,null,null,null,null,null,null,null,null,null,null,null,null,null,null,null,null,null,null,null,null,null,null,null,null,null,null,null,null,null,null,null,null,null,null,null,null,null,null,null,null,null,null,null,null,null,null,null,null,null,null,null,null,null,null,null,null,null,null,null,null,null,null,null,null,null,null,null,null,null,null,null,null,null,null,null,null,null,null,null,null,null,null,null,null,null,null,null,null,null,null,null,null,null,null,null,null,null,null,null,null,null,null,null,null,null,null,null,null,null,null,null,null,null,null,null,null,null,null,null,null,null,null,null,null,null,null,null,null,null,null,null,null,null,null,null,null,null,null,null,null,null,null,null,null,null,null,null,null,null,null,null,null,null,null,null,null,null,null,null,null,null,null,null,null,null,null,null,null,null,null,null,null,null,null,null,null,null,null,null,null,null,null,null,null,null,null,null,null,null,null,null,null,null,null,null,null,null,null,null,null,null,null,null,null,null,null,null,null,null,null,null,null,null,null,null,null,null,null,null,null,null,null,null,null,null,null,null,null,null,null,null,null,null,null,null,null,null,null,null,null,null,null,null,null,null,null,null,null,null,null,null,null,null,null,null,null,null,null,null,null,null,null,null,null,null,null,null,null,null,null,null,null,null,null,null,null,null,null,null,null,null,null,null,null,null,null,null,null,null,null,null,null,null,null,null,null,null,null,null,null,null,null,null,null,null,null,null,null,null,null,null,null,null,null,null,null,null,null,null,null,null,null,null,null,null,null,null,null,null,null,null,null,null,null,null,null,null,null,null,null,null,null,null,null,null,null,null,null,null,null,null,null,null,null,null,null,null,null,null,null,null,null,null,null,null,null,null,null,null,null,null,null,null,null,null,null,null,null,null,null,null,null,null,null,null,null,null,null,null,null,null,null,null,null,null,null,null,null,null,null,null,null,null,null,null,null,null,null,null,null,null,null,null,null,null,null,null,null,null,null,null,null,null,null,null,null,null,null,null,null,null,null,null,null,null,null,null,null,null,null,null,null,null,null,null,null,null,null,null,null,null,null,null,null,null,null,null,null,null,null,null,null,null,null,null,null,null,null,null,null,null,null,null,null,null,null,null,null,null,null,null,null,null,null,null,null,null,null,null,null,null,null,null,null,null,null,null,null,null,null,null,null,null,null,null,null,null,null,null,null,null,null,null,null,null,null,null,null,null,null,null,null,null,null,null,null,null,null,null,null,null,null,null,null,null,null,null,null,null,null,null,null,null,null,null,null,null,null,null,null,null,null,null,null,null,null,null,null,null,null,null,null,null,null,null,null,null,null,null,null,null,null,null,null,null,null,null,null,null,null,null,null,null,null,null,null,null,null,null,null,null,null,null,null,null,null,null,null,null,null,null,null,null,null,null,null,null,null,null,null,null,null,null,null,null,null,null,null,null,null,null,null,null,null,null,null,null,null,null,null,null,null,null,null,null,null,null,null,null,null,null,null,null,null,null,null,null,null,null,null,null,null,null,null,null,null,null,null,null,null,null,null,null,null,null,null,null,null,null,null,null,null,null,null,null,null,null,null,null,null,null,null,null,null,null,null,null,null,null,null,null,null,null,null,null,null,null,null,null,null,null,null,null,null,null,null,null,null,null,null,null,null,null,null,null,null,null,null,null,null,null,null,null,null,null,null,null,null,null,null,null,null,null,null,null,null,null,null,null,null,null,null,null,null,null,null,null,null,null,null,null,null,null,null,null,null,null,null,null,null,null,null,null,null,null,null,null,null,null,null,null,null,null,null,null,null,null,null,null,null,null,null,null,null,null,null,null,null,null,null,null,null,null,null,null,null,null,null,null,null,null,null,null,null,null,null,null,null,null,null,null,null,null,null,null,null,null,null,null,null,null,null,null,null,null,null,null,null,null,null,null,null,null,null,null,null,null,null,null,null,null,null,null,null,null,null,null,null,null,null,null,null,null,null,null,null,null,null,null,null,null,null,null,null,null,null,null,null,null,null,null,null,null,null,null,null,null,null,null,null,null,null,null,null,null,null,null,null,null,null,null,null,null,null,null,null,null,null,null,null,null,null,null,null,null,null,null,null,null,null,null,null,null,null,null,null,null,null,null,null,null,null,null,null,null,null,null,null,null,null,null,null,null,null,null,null,null,null,null,null,null,null,null,null,null,null,null,null,null,null,null,null,null,null,null,null,null,null,null,null,null,null,null,null,null,null,null,null,null,null,null,null,null,null,null,null,null,null,null,null,null,null,null,null,null,null,null,null,null,null,null,null,null,null,null,null,null,null,null,null,null,null,null,null,null,null,null,null,null,null,null,null,null,null,null,null,null,null,null,null,null,null,null,null,null,null,null,null,null,null,null,null,null,null,null,null,null,null,null,null,null,null,null,null,null,null,null,null,null,null,null,null,null,null,null,null,null,null,null,null,null,null,null,null,null,null,null,null,null,null,null,null,null,null,null,null,null,null,null,null,null,null,null,null,null,null,null,null,null,null,null,null,null,null,null,null,null,null,null,null,null,null,null,null,null,null,null,null,null,null,null,null,null,null,null,null,null,null,null,null,null,null,null,null,null,null,null,null,null,null,null,null,null,null,null,null,null,null,null,null,null,null,null,null,null,null,null,null,null,null,null,null,null,null,null,null,null,null,null,null,null,null,null,null,null,null,null,null,null,null,null,null,null,null,null,null,null,null,null,null,null,null,null,null,null,null,null,null,null,null,null,null,null,null,null,null,null,null,null,null,null,null,null,null,null,null,null,null,null,null,null,null,null,null,null,null,null,null,null,null,null,null,null,null,null,null,null,null,null,null,null,null,null,null,null,null,null,null,null,null,null,null,null,null,null,null,null,null,null,null,null,null,null,null,null,null,null,null,null,null,null,null,null,null,null,null,null,null,null,null,null,null,null,null,null,null,null,null,null,null,null,null,null,null,null,null,null,null,null,null,null,null,null,null,null,null,null,null,null,null,null,null,null,null,null,null,null,null,null,null,null,null,null,null,null,null,null,null,null,null,null,null,null,null,null,null,null,null,null,null,null,null,null,null,null,null,null,null,null,null,null,null,null,null,null,null,null,null,null,null,null,null,null,null,null,null,null,null,null,null,null,null,null,null,null,null,null,null,null,null,null,null,null,null,null,null,null,null,null,null,null,null,null,null,null,null,null,null,null,null,null,null,null,null,null,null,null,null,null,null,null,null,null,null,null,null,null,null,null,null,null,null,null,null,null,null,null,null,null,null,null,null,null,null,null,null,null,null,null,null,null,null,null,null,null,null,null,null,null,null,null,null,null,null,null,null,null,null,null,null,null,null,null,null,null,null,null,null,null,null,null,null,null,null,null,null,null,null,null,null,null,null,null,null,null,null,null,null,null,null,null,null,null,null,null,null,null,null,null,null,null,null,null,null,null,null,null,null,null,null,null,null,null,null,null,null,null,null,null,null,null,null,null,null,null,null,null,null,null,null,null,null,null,null,null,null,null,null,null,null,null,null,null,null,null,null,null,null,null,null,null,null,null,null,null,null,null,null,null,null,null,null,null,null,null,null,null,null,null,null,null,null,null,null,null,null,null,null,null,null,null,null,null,null,null,null,null,null,null,null,null,null,null,null,null,null,null,null,null,null,null,null,null,null,null,null,null,null,null,null,null,null,null,null,null,null,null,null,null,null,null,null,null,null,null,null,null,null,null,null,null,null,null,null,null,null,null,null,null,null,null,null,null,null,null,null,null,null,null,null,null,null,null,null,null,null,null,null,null,null,null,null,null,null,null,null,null,null,null,null,null,null,null,null,null,null,null,null,null,null,null,null,null,null,null,null,null,null,null,null,null,null,null,null,null,null,null,null,null,null,null,null,null,null,null,null,null,null,null,null,null,null,null,null,null,null,null,null,null,null,null,null,null,null,null,null,null,null,null,null,null,null,null,null,null,null,null,null,null,null,null,null,null,null,null,null,null,null,null,null,null,null,null,null,null,null,null,null,null,null,null,null,null,null,null,null,null,null,null,null,null,null,null,null,null,null,null,null,null,null,null,null,null,null,null,null,null,null,null,null,null,null,null,null,null,null,null,null,null,null,null,null,null,null,null,null,null,null,null,null,null,null,null,null,null,null,null,null,null,null,null,null,null,null,null,null,null,null,null,null,null,null,null,null,null,null,null,null,null,null,null,null,null,null,null,null,null,null,null,null,null,null,null,null,null,null,null,null,null,null,null,null,null,null,null,null,null,null,null,null,null,null,null,null,null,null,null,null,null,null,null,null,null,null,null,null,null,null,null,null,null,null,null,null,null,null,null,null,null,null,null,null,null,null,null,null,null,null,null,null,null,null,null,null,null,null,null,null,null,null,null,null,null,null,null,null,null,null,null,null,null,null,null,null,null,null,null,null,null,null,null,null,null,null,null,null,null,null,null,null,null,null,null,null,null,null,null,null,null,null,null,null,null,null,null,null,null,null,null,null,null,null,null,null,null,null,null,null,null,null,null,null,null,null,null,null,null,null,null,null,null,null,null,null,null,null,null,null,null,null,null,null,null,null,null,null,null,null,null,null,null,null,null,null,null,null,null,null,null,null,null,null,null,null,null,null,null,null,null,null,null,null,null,null,null,null,null,null,null,null,null,null,null,null,null,null,null,null,null,null,null,null,null,null,null,null,null,null,null,null,null,null,null,null,null,null,null,null,null,null,null,null,null,null,null,null,null,null,null,null,null,null,null,null,null,null,null,null,null,null,null,null,null,null,null,null,null,null,null,null,null,null,null,null,null,null,null,null,null,null,null,null,null,null,null,null,null,null,null,null,null,null,null,null,null,null,null,null,null,null,null,null,null,null,null,null,null,null,null,null,null,null,null,null,null,null,null,null,null,null,null,null,null,null,null,null,null,null,null,null,null,null,null,null,null,null,null,null,null,null,null,null,null,null,null,null,null,null,null,null,null,null,null,null,null,null,null,null,null,null,null,null,null,null,null,null,null,null,null,null,null,null,null,null,null,null,null,null,null,null,null,null,null,null,null,null,null,null,null,null,null,null,null,null,null,null,null,null,null,null,null,null,null,null,null,null,null,null,null,null,null,null,null,null,null,null,null,null,null,null,null,null,null,null,null,null,null,null,null,null,null,null,null,null,null,null,null,null,null,null,null,null,null,null,null,null,null,null,null,null,null,null,null,null,null,null,null,null,null,null,null,null,null,null,null,null,null,null,null,null,null,null,null,null,null,null,null,null,null,null,null,null,null,null,null,null,null,null,null,null,null,null,null,null,null,null,null,null,null,null,null,null,null,null,null,null,null,null,null,null,null,null,null,null,null,null,null,null,null,null,null,null,null,null,null,null,null,null,null,null,null,null,null,null,null,null,null,null,null,null,null,null,null,null,null,null,null,null,null,null,null,null,null,null,null,null,null,null,null,null,null,null,null,null,null,null,null,null,null,null,null,null,null,null,null,null,null,null,null,null,null,null,null,null,null,null,null,null,null,null,null,null,null,null,null,null,null,null,null,null,null,null,null,null,null,null,null,null,null,null,null,null,null,null,null,null,null,null,null,null,null,null,null,null,null,null,null,null,null,null,null,null,null,null,null,null,null,null,null,null,null,null,null,null,null,null,null,null,null,null,null,null,null,null,null,null,null,null,null,null,null,null,null,null,null,null,null,null,null,null,null,null,null,null,null,null,null,null,null,null,null,null,null,null,null,null,null,null,null,null,null,null,null,null,null,null,null,null,null,null,null,null,null,null,null,null,null,null,null,null,null,null,null,null,null,null,null,null,null,null,null,null,null,null,null,null,null,null,null,null,null,null,null,null,null,null,null,null,null,null,null,null,null,null,null,null,null,null,null,null,null,null,null,null,null,null,null,null,null,null,null,null,null,null,null,null,null,null,null,null,null,null,null,null,null,null,null,null,null,null,null,null,null,null,null,null,null,null,null,null,null,null,null,null,null,null,null,null,null,null,null,null,null,null,null,null,null,null,null,null,null,null,null,null,null,null,null,null,null,null,null,null,null,null,null,null,null,null,null,null,null,null,null,null,null,null,null,null,null,null,null,null,null,null,null,null,null,null,null,null,null,null,null,null,null,null,null,null,null,null,null,null,null,null,null,null,null,null,null,null,null,null,null,null,null,null,null,null,null,null,null,null,null,null,null,null,null,null,null,null,null,null,null,null,null,null,null,null,null,null,null,null,null,null,null,null,null,null,null,null,null,null,null,null,null,null,null,null,null,null,null,null,null,null,null,null,null,null,null,null,null,null,null,null,null,null,null,null,null,null,null,null,null,null,null,null,null,null,null,null,null,null,null,null,null,null,null,null,null,null,null,null,null,null,null,null,null,null,null,null,null,null,null,null,null,null,null,null,null,null,null,null,null,null,null,null,null,null,null,null,null,null,null,null,null,null,null,null,null,null,null,null,null,null,null,null,null,null,null,null,null,null,null,null,null,null,null,null,null,null,null,null,null,null,null,null,null,null,null,null,null,null,null,null,null,null,null,null,null,null,null,null,null,null,null,null,null,null,null,null,null,null,null,null,null,null,null,null,null,null,null,null,null,null,null,null,null,null,null,null,null,null,null,null,null,null,null,null,null,null,null,null,null,null,null,null,null,null,null,null,null,null,null,null,null,null,null,null,null,null,null,null,null,null,null,null,null,null,null,null,null,null,null,null,null,null,null,null,null,null,null,null,null,null,null,null,null,null,null,null,null,null,null,null,null,null,null,null,null,null,null,null,null,null,null,null,null,null,null,null,null,null,null,null,null,null,null,null,null,null,null,null,null,null,null,null,null,null,null,null,null,null,null,null,null,null,null,null,null,null,null,null,null,null,null,null,null,null,null,null,null,null,null,null,null,null,null,null,null,null,null,null,null,null,null,null,null,null,null,null,null,null,null,null,null,null,null,null,null,null,null,null,null,null,null,null,null,null,null,null,null,null,null,null,null,null,null,null,null,null,null,null,null,null,null,null,null,null,null,null,null,null,null,null,null,null,null,null,null,null,null,null,null,null,null,null,null,null,null,null,null,null,null,null,null,null,null,null,null,null,null,null,null,null,null,null,null,null,null,null,null,null,null,null,null,null,null,null,null,null,null,null,null,null,null,null,null,null,null,null,null,null,null,null,null,null,null,null,null,null,null,null,null,null,null,null,null,null,null,null,null,null,null,null,null,null,null,null,null,null,null,null,null,null,null,null,null,null,null,null,null,null,null,null,null,null,null,null,null,null,null,null,null,null,null,null,null,null,null,null,null,null,null,null,null,null,null,null,null,null,null,null,null,null,null,null,null,null,null,null,null,null,null,null,null,null,null,null,null,null,null,null,null,null,null,null,null,null,null,null,null,null,null,null,null,null,null,null,null,null,null,null,null,null,null,null,null,null,null,null,null,null,null,null,null,null,null,null,null,null,null,null,null,null,null,null,null,null,null,null,null,null,null,null,null,null,null,null,null,null,null,null,null,null,null,null,null,null,null,null,null,null,null,null,null,null,null,null,null,null,null,null,null,null,null,null,null,null,null,null,null,null,null,null,null,null,null,null,null,null,null,null,null,null,null,null,null,null,null,null,null,null,null,null,null,null,null,null,null,null,null,null,null,null,null,null,null,null,null,null,null,null,null,null,null,null,null,null,null,null,null,null,null,null,null,null,null,null,null,null,null,null,null,null,null,null,null,null,null,null,null,null,null,null,null,null,null,null,null,null,null,null,null,null,null,null,null,null,null,null,null,null,null,null,null,null,null,null,null,null,null,null,null,null,null,null,null,null,null,null,null,null,null,null,null,null,null,null,null,null,null,null,null,null,null,null,null,null,null,null,null,null,null,null,null,null,null,null,null,null,null,null,null,null,null,null,null,null,null,null,null,null,null,null,null,null,null,null,null,null,null,null,null,null,null,null,null,null,null,null,null,null,null,null,null,null,null,null,null,null,null,null,null,null,null,null,null,null,null,null,null,null,null,null,null,null,null,null,null,null,null,null,null,null,null,null,null,null,null,null,null,null,null,null,null,null,null,null,null,null,null,null,null,null,null,null,null,null,null,null,null,null,null,null,null,null,null,null,null,null,null,null,null,null,null,null,null,null,null,null,null,null,null,null,null,null,null,null,null,null,null,null,null,null,null,null,null,null,null,null,null,null,null,null,null,null,null,null,null,null,null,null,null,null,null,null,null,null,null,null,null,null,null,null,null,null,null,null,null,null,null,null,null,null,null,null,null,null,null,null,null,null,null,null,null,null,null,null,null,null,null,null,null,null,null,null,null,null,null,null,null,null,null,null,null,null,null,null,null,null,null,null,null,null,null,null,null,null,null,null,null,null,null,null,null,null,null,null,null,null,null,null,null,null,null,null,null,null,null,null,null,null,null,null,null,null,null,null,null,null,null,null,null,null,null,null,null,null,null,null,null,null,null,null,null,null,null,null,null,null,null,null,null,null,null,null,null,null,null,null,null,null,null,null,null,null,null,null,null,null,null,null,null,null,null,null,null,null,null,null,null,null,null,null,null,null,null,null,null,null,null,null,null,null,null,null,null,null,null,null,null,null,null,null,null,null,null,null,null,null,null,null,null,null,null,null,null,null,null,null,null,null,null,null,null,null,null,null,null,null,null,null,null,null,null,null,null,null,null,null,null,null,null,null,null,null,null,null,null,null,null,null,null,null,null,null,null,null,null,null,null,null,null,null,null,null,null,null,null,null,null,null,null,null,null,null,null,null,null,null,null,null,null,null,null,null,null,null,null,null,null,null,null,null,null,null,null,null,null,null,null,null,null,null,null,null,null,null,null,null,null,null,null,null,null,null,null,null,null,null,null,null,null,null,null,null,null,null,null,null,null,null,null,null,null,null,null,null,null,null,null,null,null,null,null,null,null,null,null,null,null,null,null,null,null,null,null,null,null,null,null,null,null,null,null,null,null,null,null,null,null,null,null,null,null,null,null,null,null,null,null,null,null,null,null,null,null,null,null,null,null,null,null,null,null,null,null,null,null,null,null,null,null,null,null,null,null,null,null,null,null,null,null,null,null,null,null,null,null,null,null,null,null,null,null,null,null,null,null,null,null,null,null,null,null,null,null,null,null,null,null,null,null,null,null,null,null,null,null,null,null,null,null,null,null,null,null,null,null,null,null,null,null,null,null,null,null,null,null,null,null,null,null,null,null,null,null,null,null,null,null,null,null,null,null,null,null,null,null,null,null,null,null,null,null,null,null,null,null,null,null,null,null,null,null,null,null,null,null,null,null,null,null,null,null,null,null,null,null,null,null,null,null,null,null,null,null,null,null,null,null,null,null,null,null,null,null,null,null,null,null,null,null,null,null,null,null,null,null,null,null,null,null,null,null,null,null,null,null,null,null,null,null,null,null,null,null,null,null,null,null,null,null,null,null,null,null,null,null,null,null,null,null,null,null,null,null,null,null,null,null,null,null,null,null,null,null,null,null,null,null,null,null,null,null,null,null,null,null,null,null,null,null,null,null,null,null,null,null,null,null,null,null,null,null,null,null,null,null,null,null,null,null,null,null,null,null,null,null,null,null,null,null,null,null,null,null,null,null,null,null,null,null,null,null,null,null,null,null,null,null,null,null,null,null,null,null,null,null,null,null,null,null,null,null,null,null,null,null,null,null,null,null,null,null,null,null,null,null,null,null,null,null,null,null,null,null,null,null,null,null,null,null,null,null,null,null,null,null,null,null,null,null,null,null,null,null,null,null,null,null,null,null,null,null,null,null,null,null,null,null,null,null,null,null,null,null,null,null,null,null,null,null,null,null,null,null,null,null,null,null,null,null,null,null,null,null,null,null,null,null,null,null,null,null,null,null,null,null,null,null,null,null,null,null,null,null,null,null,null,null,null,null,null,null,null,null,null,null,null,null,null,null,null,null,null,null,null,null,null,null,null,null,null,null,null,null,null,null,null,null,null,null,null,null,null,null,null,null,null,null,null,null,null,null,null,null,null,null,null,null,null,null,null,null,null,null,null,null,null,null,null,null,null,null,null,null,null,null,null,null,null,null,null,null,null,null,null,null,null,null,null,null,null,null,null,null,null,null,null,null,null,null,null,null,null,null,null,null,null,null,null,null,null,null,null,null,null,null,null,null,null,null,null,null,null,null,null,null,null,null,null,null,null,null,null,null,null,null,null,null,null,null,null,null,null,null,null,null,null,null,null,null,null,null,null,null,null,null,null,null,null,null,null,null,null,null,null,null,null,null,null,null,null,null,null,null,null,null,null,null,null,null,null,null,null,null,null,null,null,null,null,null,null,null,null,null,null,null,null,null,null,null,null,null,null,null,null,null,null,null,null,null,null,null,null,null,null,null,null,null,null,null,null,null,null,null,null,null,null,null,null,null,null,null,null,null,null,null,null,null,null,null,null,null,null,null,null,null,null,null,null,null,null,null,null,null,null,null,null,null,null,null,null,null,null,null,null,null,null,null,null,null,null,null,null,null,null,null,null,null,null,null,null,null,null,null,null,null,null,null,null,null,null,null,null,null,null,null,null,null,null,null,null,null,null,null,null,null,null,null,null,null,null,null,null,null,null,null,null,null,null,null,null,null,null,null,null,null,null,null,null,null,null,null,null,null,null,null,null,null,null,null,null,null,null,null,null,null,null,null,null,null,null,null,null,null,null,null,null,null,null,null,null,null,null,null,null,null,null,null,null,null,null,null,null,null,null,null,null,null,null,null,null,null,null,null,null,null,null,null,null,null,null,null,null,null,null,null,null,null,null,null,null,null,null,null,null,null,null,null,null,null,null,null,null,null,null,null,null,null,null,null,null,null,null,null,null,null,null,null,null,null,null,null,null,null,null,null,null,null,null,null,null,null,null,null,null,null,null,null,null,null,null,null,null,null,null,null,null,null,null,null,null,null,null,null,null,null,null,null,null,null,null,null,null,null,null,null,null,null,null,null,null,null,null,null,null,null,null,null,null,null,null,null,null,null,null,null,null,null,null,null,null,null,null,null,null,null,null,null,null,null,null,null,null,null,null,null,null,null,null,null,null,null,null,null,null,null,null,null,null,null,null,null,null,null,null,null,null,null,null,null,null,null,null,null,null,null,null,null,null,null,null,null,null,null,null,null,null,null,null,null,null,null,null,null,null,null,null,null,null,null,null,null,null,null,null,null,null,null,null,null,null,null,null,null,null,null,null,null,null,null,null,null,null,null,null,null,null,null,null,null,null,null,null,null,null,null,null,null,null,null,null,null,null,null,null,null,null,null,null,null,null,null,null,null,null,null,null,null,null,null,null,null,null,null,null,null,null,null,null,null,null,null,null,null,null,null,null,null,null,null,null,null,null,null,null,null,null,null,null,null,null,null,null,null,null,null,null,null,null,null,null,null,null,null,null,null,null,null,null,null,null,null,null,null,null,null,null,null,null,null,null,null,null,null,null,null,null,null,null,null,null,null,null,null,null,null,null,null,null,null,null,null,null,null,null,null,null,null,null,null,null,null,null,null,null,null,null,null,null,null,null,null,null,null,null,null,null,null,null,null,null,null,null,null,null,null,null,null,null,null,null,null,null,null,null,null,null,null,null,null,null,null,null,null,null,null,null,null,null,null,null,null,null,null,null,null,null,null,null,null,null,null,null,null,null,null,null,null,null,null,null,null,null,null,null,null,null,null,null,null,null,null,null,null,null,null,null,null,null,null,null,null,null,null,null,null,null,null,null,null,null,null,null,null,null,null,null,null,null,null,null,null,null,null,null,null,null,null,null,null,null,null,null,null,null,null,null,null,null,null,null,null,null,null,null,null,null,null,null,null,null,null,null,null,null,null,null,null,null,null,null,null,null,null,null,null,null,null,null,null,null,null,null,null,null,null,null,null,null,null,null,null,null,null,null,null,null,null,null,null,null,null,null,null,null,null,null,null,null,null,null,null,null,null,null,null,null,null,null,null,null,null,null,null,null,null,null,null,null,null,null,null,null,null,null,null,null,null,null,null,null,null,null,null,null,null,null,null,null,null,null,null,null,null,null,null,null,null,null,null,null,null,null,null,null,null,null,null,null,null,null,null,null,null,null,null,null,null,null,null,null,null,null,null,null,null,null,null,null,null,null,null,null,null,null,null,null,null,null,null,null,null,null,null,null,null,null,null,null,null,null,null,null,null,null,null,null,null,null,null,null,null,null,null,null,null,null,null,null,null,null,null,null,null,null,null,null,null,null,null,null,null,null,null,null,null,null,null,null,null,null,null,null,null,null,null,null,null,null,null,null,null,null,null,null,null,null,null,null,null,null,null,null,null,null,null,null,null,null,null,null,null,null,null,null,null,null,null,null,null,null,null,null,null,null,null,null,null,null,null,null,null,null,null,null,null,null,null,null,null,null,null,null,null,null,null,null,null,null,null,null,null,null,null,null,null,null,null,null,null,null,null,null,null,null,null,null,null,null,null,null,null,null,null,null,null,null,null,null,null,null,null,null,null,null,null,null,null,null,null,null,null,null,null,null,null,null,null,null,null,null,null,null,null,null,null,null,null,null,null,null,null,null,null,null,null,null,null,null,null,null,null,null,null,null,null,null,null,null,null,null,null,null,null,null,null,null,null,null,null,null,null,null,null,null,null,null,null,null,null,null,null,null,null,null,null,null,null,null,null,null,null,null,null,null,null,null,null,null,null,null,null,null,null,null,null,null,null,null,null,null,null,null,null,null,null,null,null,null,null,null,null,null,null,null,null,null,null,null,null,null,null,null,null,null,null,null,null,null,null,null,null,null,null,null,null,null,null,null,null,null,null,null,null,null,null,null,null,null,null,null,null,null,null,null,null,null,null,null,null,null,null,null,null,null,null,null,null,null,null,null,null,null,null,null,null,null,null,null,null,null,null,null,null,null,null,null,null,null,null,null,null,null,null,null,null,null,null,null,null,null,null,null,null,null,null,null,null,null,null,null,null,null,null,null,null,null,null,null,null,null,null,null,null,null,null,null,null,null,null,null,null,null,null,null,null,null,null,null,null,null,null,null,null,null,null,null,null,null,null,null,null,null,null,null,null,null,null,null,null,null,null,null,null,null,null,null,null,null,null,null,null,null,null,null,null,null,null,null,null,null,null,null,null,null,null,null,null,null,null,null,null,null,null,null,null,null,null,null,null,null,null,null,null,null,null,null,null,null,null,null,null,null,null,null,null,null,null,null,null,null,null,null,null,null,null,null,null,null,null,null,null,null,null,null,null,null,null,null,null,null,null,null,null,null,null,null,null,null,null,null,null,null,null,null,null,null,null,null,null,null,null,null,null,null,null,null,null,null,null,null,null,null,null,null,null,null,null,null,null,null,null,null,null,null,null,null,null,null,null,null,null,null,null,null,null,null,null,null,null,null,null,null,null,null,null,null,null,null,null,null,null,null,null,null,null,null,null,null,null,null,null,null,null,null,null,null,null,null,null,null,null,null,null,null,null,null,null,null,null,null,null,null,null,null,null,null,null,null,null,null,null,null,null,null,null,null,null,null,null,null,null,null,null,null,null,null,null,null,null,null,null,null,null,null,null,null,null,null,null,null,null,null,null,null,null,null,null,null,null,null,null,null,null,null,null,null,null,null,null,null,null,null,null,null,null,null,null,null,null,null,null,null,null,null,null,null,null,null,null,null,null,null,null,null,null,null,null,null,null,null,null,null,null,null,null,null,null,null,null,null,null,null,null,null,null,null,null,null,null,null,null,null,null,null,null,null,null,null,null,null,null,null,null,null,null,null,null,null,null,null,null,null,null,null,null,null,null,null,null,null,null,null,null,null,null,null,null,null,null,null,null,null,null,null,null,null,null,null,null,null,null,null,null,null,null,null,null,null,null,null,null,null,null,null,null,null,null,null,null,null,null,null,null,null,null,null,null,null,null,null,null,null,null,null,null,null,null,null,null,null,null,null,null,null,null,null,null,null,null,null,null,null,null,null,null,null,null,null,null,null,null,null,null,null,null,null,null,null,null,null,null,null,null,null,null,null,null,null,null,null,null,null,null,null,null,null,null,null,null,null,null,null,null,null,null,null,null,null,null,null,null,null,null,null,null,null,null,null,null,null,null,null,null,null,null,null,null,null,null,null,null,null,null,null,null,null,null,null,null,null,null,null,null,null,null,null,null,null,null,null,null,null,null,null,null,null,null,null,null,null,null,null,null,null,null,null,null,null,null,null,null,null,null,null,null,null,null,null,null,null,null,null,null,null,null,null,null,null,null,null,null,null,null,null,null,null,null,null,null,null,null,null,null,null,null,null,null,null,null,null,null,null,null,null,null,null,null,null,null,null,null,null,null,null,null,null,null,null,null,null,null,null,null,null,null,null,null,null,null,null,null,null,null,null,null,null,null,null,null,null,null,null,null,null,null,null,null,null,null,null,null,null,null,null,null,null,null,null,null,null,null,null,null,null,null,null,null,null,null,null,null,null,null,null,null,null,null,null,null,null,null,null,null,null,null,null,null,null,null,null,null,null,null,null,null,null,null,null,null,null,null,null,null,null,null,null,null,null,null,null,null,null,null,null,null,null,null,null,null,null,null,null,null,null,null,null,null,null,null,null,null,null,null,null,null,null,null,null,null,null,null,null,null,null,null,null,null,null,null,null,null,null,null,null,null,null,null,null,null,null,null,null,null,null,null,null,null,null,null,null,null,null,null,null,null,null,null,null,null,null,null,null,null,null,null,null,null,null,null,null,null,null,null,null,null,null,null,null,null,null,null,null,null,null,null,null,null,null,null,null,null,null,null,null,null,null,null,null,null,null,null,null,null,null,null,null,null,null,null,null,null,null,null,null,null,null,null,null,null,null,null,null,null,null,null,null,null,null,null,null,null,null,null,null,null,null,null,null,null,null,null,null,null,null,null,null,null,null,null,null,null,null,null,null,null,null,null,null,null,null,null,null,null,null,null,null,null,null,null,null,null,null,null,null,null,null,null,null,null,null,null,null,null,null,null,null,null,null,null,null,null,null,null,null,null,null,null,null,null,null,null,null,null,null,null,null,null,null,null,null,null,null,null,null,null,null,null,null,null,null,null,null,null,null,null,null,null,null,null,null,null,null,null,null,null,null,null,null,null,null,null,null,null,null,null,null,null,null,null,null,null,null,null,null,null,null,null,null,null,null,null,null,null,null,null,null,null,null,null,null,null,null,null,null,null,null,null,null,null,null,null,null,null,null,null,null,null,null,null,null,null,null,null,null,null,null,null,null,null,null,null,null,null,null,null,null,null,null,null,null,null,null,null,null,null,null,null,null,null,null,null,null,null,null,null,null,null,null,null,null,null,null,null,null,null,null,null,null,null,null,null,null,null,null,null,null,null,null,null,null,null,null,null,null,null,null,null,null,null,null,null,null,null,null,null,null,null,null,null,null,null,null,null,null,null,null,null,null,null,null,null,null,null,null,null,null,null,null,null,null,null,null,null,null,null,null,null,null,null,null,null,null,null,null,null,null,null,null,null,null,null,null,null,null,null,null,null,null,null,null,null,null,null,null,null,null,null,null,null,null,null,null,null,null,null,null,null,null,null,null,null,null,null,null,null,null,null,null,null,null,null,null,null,null,null,null,null,null,null,null,null,null,null,null,null,null,null,null,null,null,null,null,null,null,null,null,null,null,null,null,null,null,null,null,null,null,null,null,null,null,null,null,null,null,null,null,null,null,null,null,null,null,null,null,null,null,null,null,null,null,null,null,null,null,null,null,null,null,null,null,null,null,null,null,null,null,null,null,null,null,null,null,null,null,null,null,null,null,null,null,null,null,null,null,null,null,null,null,null,null,null,null,null,null,null,null,null,null,null,null,null,null,null,null,null,null,null,null,null,null,"Aprobación de procedimiento"]
[null,"Comunicación",{"$f":"COUNTIF($F$2:$F$150,B3)","v":9},null,null,"Acción Integral en la Administración Pública Nacional y Territorial","Plan de Acción técnico PAT implementado","Asesoría integral y focalizada",null,null,null,null,null,null,null,"No Aplica",null,null,null,null,null,null,null,null,null,null,null,null,null,null,null,null,null,null,null,null,null,null,null,null,null,null,null,null,null,null,null,null,null,null,null,null,null,null,null,null,null,null,null,null,null,null,null,null,null,null,null,null,null,null,null,null,null,null,null,null,null,null,null,null,null,null,null,null,null,null,null,null,null,null,null,null,null,null,null,null,null,null,null,null,null,null,null,null,null,null,null,null,null,null,null,null,null,null,null,null,null,null,null,null,null,null,null,null,null,null,null,null,null,null,null,null,null,null,null,null,null,null,null,null,null,null,null,null,null,null,null,null,null,null,null,null,null,null,null,null,null,null,null,null,null,null,null,null,null,null,null,null,null,null,null,null,null,null,null,null,null,null,null,null,null,null,null,null,null,null,null,null,null,null,null,null,null,null,null,null,null,null,null,null,null,null,null,null,null,null,null,null,null,null,null,null,null,null,null,null,null,null,null,null,null,null,null,null,null,null,null,null,null,null,null,null,null,null,null,null,null,null,null,null,null,null,null,null,null,null,null,null,null,null,null,null,null,null,null,null,null,null,null,null,null,null,null,null,null,null,null,null,null,null,null,null,null,null,null,null,null,null,null,null,null,null,null,null,null,null,null,null,null,null,null,null,null,null,null,null,null,null,null,null,null,null,null,null,null,null,null,null,null,null,null,null,null,null,null,null,null,null,null,null,null,null,null,null,null,null,null,null,null,null,null,null,null,null,null,null,null,null,null,null,null,null,null,null,null,null,null,null,null,null,null,null,null,null,null,null,null,null,null,null,null,null,null,null,null,null,null,null,null,null,null,null,null,null,null,null,null,null,null,null,null,null,null,null,null,null,null,null,null,null,null,null,null,null,null,null,null,null,null,null,null,null,null,null,null,null,null,null,null,null,null,null,null,null,null,null,null,null,null,null,null,null,null,null,null,null,null,null,null,null,null,null,null,null,null,null,null,null,null,null,null,null,null,null,null,null,null,null,null,null,null,null,null,null,null,null,null,null,null,null,null,null,null,null,null,null,null,null,null,null,null,null,null,null,null,null,null,null,null,null,null,null,null,null,null,null,null,null,null,null,null,null,null,null,null,null,null,null,null,null,null,null,null,null,null,null,null,null,null,null,null,null,null,null,null,null,null,null,null,null,null,null,null,null,null,null,null,null,null,null,null,null,null,null,null,null,null,null,null,null,null,null,null,null,null,null,null,null,null,null,null,null,null,null,null,null,null,null,null,null,null,null,null,null,null,null,null,null,null,null,null,null,null,null,null,null,null,null,null,null,null,null,null,null,null,null,null,null,null,null,null,null,null,null,null,null,null,null,null,null,null,null,null,null,null,null,null,null,null,null,null,null,null,null,null,null,null,null,null,null,null,null,null,null,null,null,null,null,null,null,null,null,null,null,null,null,null,null,null,null,null,null,null,null,null,null,null,null,null,null,null,null,null,null,null,null,null,null,null,null,null,null,null,null,null,null,null,null,null,null,null,null,null,null,null,null,null,null,null,null,null,null,null,null,null,null,null,null,null,null,null,null,null,null,null,null,null,null,null,null,null,null,null,null,null,null,null,null,null,null,null,null,null,null,null,null,null,null,null,null,null,null,null,null,null,null,null,null,null,null,null,null,null,null,null,null,null,null,null,null,null,null,null,null,null,null,null,null,null,null,null,null,null,null,null,null,null,null,null,null,null,null,null,null,null,null,null,null,null,null,null,null,null,null,null,null,null,null,null,null,null,null,null,null,null,null,null,null,null,null,null,null,null,null,null,null,null,null,null,null,null,null,null,null,null,null,null,null,null,null,null,null,null,null,null,null,null,null,null,null,null,null,null,null,null,null,null,null,null,null,null,null,null,null,null,null,null,null,null,null,null,null,null,null,null,null,null,null,null,null,null,null,null,null,null,null,null,null,null,null,null,null,null,null,null,null,null,null,null,null,null,null,null,null,null,null,null,null,null,null,null,null,null,null,null,null,null,null,null,null,null,null,null,null,null,null,null,null,null,null,null,null,null,null,null,null,null,null,null,null,null,null,null,null,null,null,null,null,null,null,null,null,null,null,null,null,null,null,null,null,null,null,null,null,null,null,null,null,null,null,null,null,null,null,null,null,null,null,null,null,null,null,null,null,null,null,null,null,null,null,null,null,null,null,null,null,null,null,null,null,null,null,null,null,null,null,null,null,null,null,null,null,null,null,null,null,null,null,null,null,null,null,null,null,null,null,null,null,null,null,null,null,null,null,null,null,null,null,null,null,null,null,null,null,null,null,null,null,null,null,null,null,null,null,null,null,null,null,null,null,null,null,null,null,null,null,null,null,null,null,null,null,null,null,null,null,null,null,null,null,null,null,null,null,null,null,null,null,null,null,null,null,null,null,null,null,null,null,null,null,null,null,null,null,null,null,null,null,null,null,null,null,null,null,null,null,null,null,null,null,null,null,null,null,null,null,null,null,null,null,null,null,null,null,null,null,null,null,null,null,null,null,null,null,null,null,null,null,null,null,null,null,null,null,null,null,null,null,null,null,null,null,null,null,null,null,null,null,null,null,null,null,null,null,null,null,null,null,null,null,null,null,null,null,null,null,null,null,null,null,null,null,null,null,null,null,null,null,null,null,null,null,null,null,null,null,null,null,null,null,null,null,null,null,null,null,null,null,null,null,null,null,null,null,null,null,null,null,null,null,null,null,null,null,null,null,null,null,null,null,null,null,null,null,null,null,null,null,null,null,null,null,null,null,null,null,null,null,null,null,null,null,null,null,null,null,null,null,null,null,null,null,null,null,null,null,null,null,null,null,null,null,null,null,null,null,null,null,null,null,null,null,null,null,null,null,null,null,null,null,null,null,null,null,null,null,null,null,null,null,null,null,null,null,null,null,null,null,null,null,null,null,null,null,null,null,null,null,null,null,null,null,null,null,null,null,null,null,null,null,null,null,null,null,null,null,null,null,null,null,null,null,null,null,null,null,null,null,null,null,null,null,null,null,null,null,null,null,null,null,null,null,null,null,null,null,null,null,null,null,null,null,null,null,null,null,null,null,null,null,null,null,null,null,null,null,null,null,null,null,null,null,null,null,null,null,null,null,null,null,null,null,null,null,null,null,null,null,null,null,null,null,null,null,null,null,null,null,null,null,null,null,null,null,null,null,null,null,null,null,null,null,null,null,null,null,null,null,null,null,null,null,null,null,null,null,null,null,null,null,null,null,null,null,null,null,null,null,null,null,null,null,null,null,null,null,null,null,null,null,null,null,null,null,null,null,null,null,null,null,null,null,null,null,null,null,null,null,null,null,null,null,null,null,null,null,null,null,null,null,null,null,null,null,null,null,null,null,null,null,null,null,null,null,null,null,null,null,null,null,null,null,null,null,null,null,null,null,null,null,null,null,null,null,null,null,null,null,null,null,null,null,null,null,null,null,null,null,null,null,null,null,null,null,null,null,null,null,null,null,null,null,null,null,null,null,null,null,null,null,null,null,null,null,null,null,null,null,null,null,null,null,null,null,null,null,null,null,null,null,null,null,null,null,null,null,null,null,null,null,null,null,null,null,null,null,null,null,null,null,null,null,null,null,null,null,null,null,null,null,null,null,null,null,null,null,null,null,null,null,null,null,null,null,null,null,null,null,null,null,null,null,null,null,null,null,null,null,null,null,null,null,null,null,null,null,null,null,null,null,null,null,null,null,null,null,null,null,null,null,null,null,null,null,null,null,null,null,null,null,null,null,null,null,null,null,null,null,null,null,null,null,null,null,null,null,null,null,null,null,null,null,null,null,null,null,null,null,null,null,null,null,null,null,null,null,null,null,null,null,null,null,null,null,null,null,null,null,null,null,null,null,null,null,null,null,null,null,null,null,null,null,null,null,null,null,null,null,null,null,null,null,null,null,null,null,null,null,null,null,null,null,null,null,null,null,null,null,null,null,null,null,null,null,null,null,null,null,null,null,null,null,null,null,null,null,null,null,null,null,null,null,null,null,null,null,null,null,null,null,null,null,null,null,null,null,null,null,null,null,null,null,null,null,null,null,null,null,null,null,null,null,null,null,null,null,null,null,null,null,null,null,null,null,null,null,null,null,null,null,null,null,null,null,null,null,null,null,null,null,null,null,null,null,null,null,null,null,null,null,null,null,null,null,null,null,null,null,null,null,null,null,null,null,null,null,null,null,null,null,null,null,null,null,null,null,null,null,null,null,null,null,null,null,null,null,null,null,null,null,null,null,null,null,null,null,null,null,null,null,null,null,null,null,null,null,null,null,null,null,null,null,null,null,null,null,null,null,null,null,null,null,null,null,null,null,null,null,null,null,null,null,null,null,null,null,null,null,null,null,null,null,null,null,null,null,null,null,null,null,null,null,null,null,null,null,null,null,null,null,null,null,null,null,null,null,null,null,null,null,null,null,null,null,null,null,null,null,null,null,null,null,null,null,null,null,null,null,null,null,null,null,null,null,null,null,null,null,null,null,null,null,null,null,null,null,null,null,null,null,null,null,null,null,null,null,null,null,null,null,null,null,null,null,null,null,null,null,null,null,null,null,null,null,null,null,null,null,null,null,null,null,null,null,null,null,null,null,null,null,null,null,null,null,null,null,null,null,null,null,null,null,null,null,null,null,null,null,null,null,null,null,null,null,null,null,null,null,null,null,null,null,null,null,null,null,null,null,null,null,null,null,null,null,null,null,null,null,null,null,null,null,null,null,null,null,null,null,null,null,null,null,null,null,null,null,null,null,null,null,null,null,null,null,null,null,null,null,null,null,null,null,null,null,null,null,null,null,null,null,null,null,null,null,null,null,null,null,null,null,null,null,null,null,null,null,null,null,null,null,null,null,null,null,null,null,null,null,null,null,null,null,null,null,null,null,null,null,null,null,null,null,null,null,null,null,null,null,null,null,null,null,null,null,null,null,null,null,null,null,null,null,null,null,null,null,null,null,null,null,null,null,null,null,null,null,null,null,null,null,null,null,null,null,null,null,null,null,null,null,null,null,null,null,null,null,null,null,null,null,null,null,null,null,null,null,null,null,null,null,null,null,null,null,null,null,null,null,null,null,null,null,null,null,null,null,null,null,null,null,null,null,null,null,null,null,null,null,null,null,null,null,null,null,null,null,null,null,null,null,null,null,null,null,null,null,null,null,null,null,null,null,null,null,null,null,null,null,null,null,null,null,null,null,null,null,null,null,null,null,null,null,null,null,null,null,null,null,null,null,null,null,null,null,null,null,null,null,null,null,null,null,null,null,null,null,null,null,null,null,null,null,null,null,null,null,null,null,null,null,null,null,null,null,null,null,null,null,null,null,null,null,null,null,null,null,null,null,null,null,null,null,null,null,null,null,null,null,null,null,null,null,null,null,null,null,null,null,null,null,null,null,null,null,null,null,null,null,null,null,null,null,null,null,null,null,null,null,null,null,null,null,null,null,null,null,null,null,null,null,null,null,null,null,null,null,null,null,null,null,null,null,null,null,null,null,null,null,null,null,null,null,null,null,null,null,null,null,null,null,null,null,null,null,null,null,null,null,null,null,null,null,null,null,null,null,null,null,null,null,null,null,null,null,null,null,null,null,null,null,null,null,null,null,null,null,null,null,null,null,null,null,null,null,null,null,null,null,null,null,null,null,null,null,null,null,null,null,null,null,null,null,null,null,null,null,null,null,null,null,null,null,null,null,null,null,null,null,null,null,null,null,null,null,null,null,null,null,null,null,null,null,null,null,null,null,null,null,null,null,null,null,null,null,null,null,null,null,null,null,null,null,null,null,null,null,null,null,null,null,null,null,null,null,null,null,null,null,null,null,null,null,null,null,null,null,null,null,null,null,null,null,null,null,null,null,null,null,null,null,null,null,null,null,null,null,null,null,null,null,null,null,null,null,null,null,null,null,null,null,null,null,null,null,null,null,null,null,null,null,null,null,null,null,null,null,null,null,null,null,null,null,null,null,null,null,null,null,null,null,null,null,null,null,null,null,null,null,null,null,null,null,null,null,null,null,null,null,null,null,null,null,null,null,null,null,null,null,null,null,null,null,null,null,null,null,null,null,null,null,null,null,null,null,null,null,null,null,null,null,null,null,null,null,null,null,null,null,null,null,null,null,null,null,null,null,null,null,null,null,null,null,null,null,null,null,null,null,null,null,null,null,null,null,null,null,null,null,null,null,null,null,null,null,null,null,null,null,null,null,null,null,null,null,null,null,null,null,null,null,null,null,null,null,null,null,null,null,null,null,null,null,null,null,null,null,null,null,null,null,null,null,null,null,null,null,null,null,null,null,null,null,null,null,null,null,null,null,null,null,null,null,null,null,null,null,null,null,null,null,null,null,null,null,null,null,null,null,null,null,null,null,null,null,null,null,null,null,null,null,null,null,null,null,null,null,null,null,null,null,null,null,null,null,null,null,null,null,null,null,null,null,null,null,null,null,null,null,null,null,null,null,null,null,null,null,null,null,null,null,null,null,null,null,null,null,null,null,null,null,null,null,null,null,null,null,null,null,null,null,null,null,null,null,null,null,null,null,null,null,null,null,null,null,null,null,null,null,null,null,null,null,null,null,null,null,null,null,null,null,null,null,null,null,null,null,null,null,null,null,null,null,null,null,null,null,null,null,null,null,null,null,null,null,null,null,null,null,null,null,null,null,null,null,null,null,null,null,null,null,null,null,null,null,null,null,null,null,null,null,null,null,null,null,null,null,null,null,null,null,null,null,null,null,null,null,null,null,null,null,null,null,null,null,null,null,null,null,null,null,null,null,null,null,null,null,null,null,null,null,null,null,null,null,null,null,null,null,null,null,null,null,null,null,null,null,null,null,null,null,null,null,null,null,null,null,null,null,null,null,null,null,null,null,null,null,null,null,null,null,null,null,null,null,null,null,null,null,null,null,null,null,null,null,null,null,null,null,null,null,null,null,null,null,null,null,null,null,null,null,null,null,null,null,null,null,null,null,null,null,null,null,null,null,null,null,null,null,null,null,null,null,null,null,null,null,null,null,null,null,null,null,null,null,null,null,null,null,null,null,null,null,null,null,null,null,null,null,null,null,null,null,null,null,null,null,null,null,null,null,null,null,null,null,null,null,null,null,null,null,null,null,null,null,null,null,null,null,null,null,null,null,null,null,null,null,null,null,null,null,null,null,null,null,null,null,null,null,null,null,null,null,null,null,null,null,null,null,null,null,null,null,null,null,null,null,null,null,null,null,null,null,null,null,null,null,null,null,null,null,null,null,null,null,null,null,null,null,null,null,null,null,null,null,null,null,null,null,null,null,null,null,null,null,null,null,null,null,null,null,null,null,null,null,null,null,null,null,null,null,null,null,null,null,null,null,null,null,null,null,null,null,null,null,null,null,null,null,null,null,null,null,null,null,null,null,null,null,null,null,null,null,null,null,null,null,null,null,null,null,null,null,null,null,null,null,null,null,null,null,null,null,null,null,null,null,null,null,null,null,null,null,null,null,null,null,null,null,null,null,null,null,null,null,null,null,null,null,null,null,null,null,null,null,null,null,null,null,null,null,null,null,null,null,null,null,null,null,null,null,null,null,null,null,null,null,null,null,null,null,null,null,null,null,null,null,null,null,null,null,null,null,null,null,null,null,null,null,null,null,null,null,null,null,null,null,null,null,null,null,null,null,null,null,null,null,null,null,null,null,null,null,null,null,null,null,null,null,null,null,null,null,null,null,null,null,null,null,null,null,null,null,null,null,null,null,null,null,null,null,null,null,null,null,null,null,null,null,null,null,null,null,null,null,null,null,null,null,null,null,null,null,null,null,null,null,null,null,null,null,null,null,null,null,null,null,null,null,null,null,null,null,null,null,null,null,null,null,null,null,null,null,null,null,null,null,null,null,null,null,null,null,null,null,null,null,null,null,null,null,null,null,null,null,null,null,null,null,null,null,null,null,null,null,null,null,null,null,null,null,null,null,null,null,null,null,null,null,null,null,null,null,null,null,null,null,null,null,null,null,null,null,null,null,null,null,null,null,null,null,null,null,null,null,null,null,null,null,null,null,null,null,null,null,null,null,null,null,null,null,null,null,null,null,null,null,null,null,null,null,null,null,null,null,null,null,null,null,null,null,null,null,null,null,null,null,null,null,null,null,null,null,null,null,null,null,null,null,null,null,null,null,null,null,null,null,null,null,null,null,null,null,null,null,null,null,null,null,null,null,null,null,null,null,null,null,null,null,null,null,null,null,null,null,null,null,null,null,null,null,null,null,null,null,null,null,null,null,null,null,null,null,null,null,null,null,null,null,null,null,null,null,null,null,null,null,null,null,null,null,null,null,null,null,null,null,null,null,null,null,null,null,null,null,null,null,null,null,null,null,null,null,null,null,null,null,null,null,null,null,null,null,null,null,null,null,null,null,null,null,null,null,null,null,null,null,null,null,null,null,null,null,null,null,null,null,null,null,null,null,null,null,null,null,null,null,null,null,null,null,null,null,null,null,null,null,null,null,null,null,null,null,null,null,null,null,null,null,null,null,null,null,null,null,null,null,null,null,null,null,null,null,null,null,null,null,null,null,null,null,null,null,null,null,null,null,null,null,null,null,null,null,null,null,null,null,null,null,null,null,null,null,null,null,null,null,null,null,null,null,null,null,null,null,null,null,null,null,null,null,null,null,null,null,null,null,null,null,null,null,null,null,null,null,null,null,null,null,null,null,null,null,null,null,null,null,null,null,null,null,null,null,null,null,null,null,null,null,null,null,null,null,null,null,null,null,null,null,null,null,null,null,null,null,null,null,null,null,null,null,null,null,null,null,null,null,null,null,null,null,null,null,null,null,null,null,null,null,null,null,null,null,null,null,null,null,null,null,null,null,null,null,null,null,null,null,null,null,null,null,null,null,null,null,null,null,null,null,null,null,null,null,null,null,null,null,null,null,null,null,null,null,null,null,null,null,null,null,null,null,null,null,null,null,null,null,null,null,null,null,null,null,null,null,null,null,null,null,null,null,null,null,null,null,null,null,null,null,null,null,null,null,null,null,null,null,null,null,null,null,null,null,null,null,null,null,null,null,null,null,null,null,null,null,null,null,null,null,null,null,null,null,null,null,null,null,null,null,null,null,null,null,null,null,null,null,null,null,null,null,null,null,null,null,null,null,null,null,null,null,null,null,null,null,null,null,null,null,null,null,null,null,null,null,null,null,null,null,null,null,null,null,null,null,null,null,null,null,null,null,null,null,null,null,null,null,null,null,null,null,null,null,null,null,null,null,null,null,null,null,null,null,null,null,null,null,null,null,null,null,null,null,null,null,null,null,null,null,null,null,null,null,null,null,null,null,null,null,null,null,null,null,null,null,null,null,null,null,null,null,null,null,null,null,null,null,null,null,null,null,null,null,null,null,null,null,null,null,null,null,null,null,null,null,null,null,null,null,null,null,null,null,null,null,null,null,null,null,null,null,null,null,null,null,null,null,null,null,null,null,null,null,null,null,null,null,null,null,null,null,null,null,null,null,null,null,null,null,null,null,null,null,null,null,null,null,null,null,null,null,null,null,null,null,null,null,null,null,null,null,null,null,null,null,null,null,null,null,null,null,null,null,null,null,null,null,null,null,null,null,null,null,null,null,null,null,null,null,null,null,null,null,null,null,null,null,null,null,null,null,null,null,null,null,null,null,null,null,null,null,null,null,null,null,null,null,null,null,null,null,null,null,null,null,null,null,null,null,null,null,null,null,null,null,null,null,null,null,null,null,null,null,null,null,null,null,null,null,null,null,null,null,null,null,null,null,null,null,null,null,null,null,null,null,null,null,null,null,null,null,null,null,null,null,null,null,null,null,null,null,null,null,null,null,null,null,null,null,null,null,null,null,null,null,null,null,null,null,null,null,null,null,null,null,null,null,null,null,null,null,null,null,null,null,null,null,null,null,null,null,null,null,null,null,null,null,null,null,null,null,null,null,null,null,null,null,null,null,null,null,null,null,null,null,null,null,null,null,null,null,null,null,null,null,null,null,null,null,null,null,null,null,null,null,null,null,null,null,null,null,null,null,null,null,null,null,null,null,null,null,null,null,null,null,null,null,null,null,null,null,null,null,null,null,null,null,null,null,null,null,null,null,null,null,null,null,null,null,null,null,null,null,null,null,null,null,null,null,null,null,null,null,null,null,null,null,null,null,null,null,null,null,null,null,null,null,null,null,null,null,null,null,null,null,null,null,null,null,null,null,null,null,null,null,null,null,null,null,null,null,null,null,null,null,null,null,null,null,null,null,null,null,null,null,null,null,null,null,null,null,null,null,null,null,null,null,null,null,null,null,null,null,null,null,null,null,null,null,null,null,null,null,null,null,null,null,null,null,null,null,null,null,null,null,null,null,null,null,null,null,null,null,null,null,null,null,null,null,null,null,null,null,null,null,null,null,null,null,null,null,null,null,null,null,null,null,null,null,null,null,null,null,null,null,null,null,null,null,null,null,null,null,null,null,null,null,null,null,null,null,null,null,null,null,null,null,null,null,null,null,null,null,null,null,null,null,null,null,null,null,null,null,null,null,null,null,null,null,null,null,null,null,null,null,null,null,null,null,null,null,null,null,null,null,null,null,null,null,null,null,null,null,null,null,null,null,null,null,null,null,null,null,null,null,null,null,null,null,null,null,null,null,null,null,null,null,null,null,null,null,null,null,null,null,null,null,null,null,null,null,null,null,null,null,null,null,null,null,null,null,null,null,null,null,null,null,null,null,null,null,null,null,null,null,null,null,null,null,null,null,null,null,null,null,null,null,null,null,null,null,null,null,null,null,null,null,null,null,null,null,null,null,null,null,null,null,null,null,null,null,null,null,null,null,null,null,null,null,null,null,null,null,null,null,null,null,null,null,null,null,null,null,null,null,null,null,null,null,null,null,null,null,null,null,null,null,null,null,null,null,null,null,null,null,null,null,null,null,null,null,null,null,null,null,null,null,null,null,null,null,null,null,null,null,null,null,null,null,null,null,null,null,null,null,null,null,null,null,null,null,null,null,null,null,null,null,null,null,null,null,null,null,null,null,null,null,null,null,null,null,null,null,null,null,null,null,null,null,null,null,null,null,null,null,null,null,null,null,null,null,null,null,null,null,null,null,null,null,null,null,null,null,null,null,null,null,null,null,null,null,null,null,null,null,null,null,null,null,null,null,null,null,null,null,null,null,null,null,null,null,null,null,null,null,null,null,null,null,null,null,null,null,null,null,null,null,null,null,null,null,null,null,null,null,null,null,null,null,null,null,null,null,null,null,null,null,null,null,null,null,null,null,null,null,null,null,null,null,null,null,null,null,null,null,null,null,null,null,null,null,null,null,null,null,null,null,null,null,null,null,null,null,null,null,null,null,null,null,null,null,null,null,null,null,null,null,null,null,null,null,null,null,null,null,null,null,null,null,null,null,null,null,null,null,null,null,null,null,null,null,null,null,null,null,null,null,null,null,null,null,null,null,null,null,null,null,null,null,null,null,null,null,null,null,null,null,null,null,null,null,null,null,null,null,null,null,null,null,null,null,null,null,null,null,null,null,null,null,null,null,null,null,null,null,null,null,null,null,null,null,null,null,null,null,null,null,null,null,null,null,null,null,null,null,null,null,null,null,null,null,null,null,null,null,null,null,null,null,null,null,null,null,null,null,null,null,null,null,null,null,null,null,null,null,null,null,null,null,null,null,null,null,null,null,null,null,null,null,null,null,null,null,null,null,null,null,null,null,null,null,null,null,null,null,null,null,null,null,null,null,null,null,null,null,null,null,null,null,null,null,null,null,null,null,null,null,null,null,null,null,null,null,null,null,null,null,null,null,null,null,null,null,null,null,null,null,null,null,null,null,null,null,null,null,null,null,null,null,null,null,null,null,null,null,null,null,null,null,null,null,null,null,null,null,null,null,null,null,null,null,null,null,null,null,null,null,null,null,null,null,null,null,null,null,null,null,null,null,null,null,null,null,null,null,null,null,null,null,null,null,null,null,null,null,null,null,null,null,null,null,null,null,null,null,null,null,null,null,null,null,null,null,null,null,null,null,null,null,null,null,null,null,null,null,null,null,null,null,null,null,null,null,null,null,null,null,null,null,null,null,null,null,null,null,null,null,null,null,null,null,null,null,null,null,null,null,null,null,null,null,null,null,null,null,null,null,null,null,null,null,null,null,null,null,null,null,null,null,null,null,null,null,null,null,null,null,null,null,null,null,null,null,null,null,null,null,null,null,null,null,null,null,null,null,null,null,null,null,null,null,null,null,null,null,null,null,null,null,null,null,null,null,null,null,null,null,null,null,null,null,null,null,null,null,null,null,null,null,null,null,null,null,null,null,null,null,null,null,null,null,null,null,null,null,null,null,null,null,null,null,null,null,null,null,null,null,null,null,null,null,null,null,null,null,null,null,null,null,null,null,null,null,null,null,null,null,null,null,null,null,null,null,null,null,null,null,null,null,null,null,null,null,null,null,null,null,null,null,null,null,null,null,null,null,null,null,null,null,null,null,null,null,null,null,null,null,null,null,null,null,null,null,null,null,null,null,null,null,null,null,null,null,null,null,null,null,null,null,null,null,null,null,null,null,null,null,null,null,null,null,null,null,null,null,null,null,null,null,null,null,null,null,null,null,null,null,null,null,null,null,null,null,null,null,null,null,null,null,null,null,null,null,null,null,null,null,null,null,null,null,null,null,null,null,null,null,null,null,null,null,null,null,null,null,null,null,null,null,null,null,null,null,null,null,null,null,null,null,null,null,null,null,null,null,null,null,null,null,null,null,null,null,null,null,null,null,null,null,null,null,null,null,null,null,null,null,null,null,null,null,null,null,null,null,null,null,null,null,null,null,null,null,null,null,null,null,null,null,null,null,null,null,null,null,null,null,null,null,null,null,null,null,null,null,null,null,null,null,null,null,null,null,null,null,null,null,null,null,null,null,null,null,null,null,null,null,null,null,null,null,null,null,null,null,null,null,null,null,null,null,null,null,null,null,null,null,null,null,null,null,null,null,null,null,null,null,null,null,null,null,null,null,null,null,null,null,null,null,null,null,null,null,null,null,null,null,null,null,null,null,null,null,null,null,null,null,null,null,null,null,null,null,null,null,null,null,null,null,null,null,null,null,null,null,null,null,null,null,null,null,null,null,null,null,null,null,null,null,null,null,null,null,null,null,null,null,null,null,null,null,null,null,null,null,null,null,null,null,null,null,null,null,null,null,null,null,null,null,null,null,null,null,null,null,null,null,null,null,null,null,null,null,null,null,null,null,null,null,null,null,null,null,null,null,null,null,null,null,null,null,null,null,null,null,null,null,null,null,null,null,null,null,null,null,null,null,null,null,null,null,null,null,null,null,null,null,null,null,null,null,null,null,null,null,null,null,null,null,null,null,null,null,null,null,null,null,null,null,null,null,null,null,null,null,null,null,null,null,null,null,null,null,null,null,null,null,null,null,null,null,null,null,null,null,null,null,null,null,null,null,null,null,null,null,null,null,null,null,null,null,null,null,null,null,null,null,null,null,null,null,null,null,null,null,null,null,null,null,null,null,null,null,null,null,null,null,null,null,null,null,null,null,null,null,null,null,null,null,null,null,null,null,null,null,null,null,null,null,null,null,null,null,null,null,null,null,null,null,null,null,null,null,null,null,null,null,null,null,null,null,null,null,null,null,null,null,null,null,null,null,null,null,null,null,null,null,null,null,null,null,null,null,null,null,null,null,null,null,null,null,null,null,null,null,null,null,null,null,null,null,null,null,null,null,null,null,null,null,null,null,null,null,null,null,null,null,null,null,null,null,null,null,null,null,null,null,null,null,null,null,null,null,null,null,null,null,null,null,null,null,null,null,null,null,null,null,null,null,null,null,null,null,null,null,null,null,null,null,null,null,null,null,null,null,null,null,null,null,null,null,null,null,null,null,null,null,null,null,null,null,null,null,null,null,null,null,null,null,null,null,null,null,null,null,null,null,null,null,null,null,null,null,null,null,null,null,null,null,null,null,null,null,null,null,null,null,null,null,null,null,null,null,null,null,null,null,null,null,null,null,null,null,null,null,null,null,null,null,null,null,null,null,null,null,null,null,null,null,null,null,null,null,null,null,null,null,null,null,null,null,null,null,null,null,null,null,null,null,null,null,null,null,null,null,null,null,null,null,null,null,null,null,null,null,null,null,null,null,null,null,null,null,null,null,null,null,null,null,null,null,null,null,null,null,null,null,null,null,null,null,null,null,null,null,null,null,null,null,null,null,null,null,null,null,null,null,null,null,null,null,null,null,null,null,null,null,null,null,null,null,null,null,null,null,null,null,null,null,null,null,null,null,null,null,null,null,null,null,null,null,null,null,null,null,null,null,null,null,null,null,null,null,null,null,null,null,null,null,null,null,null,null,null,null,null,null,null,null,null,null,null,null,null,null,null,null,null,null,null,null,null,null,null,null,null,null,null,null,null,null,null,null,null,null,null,null,null,null,null,null,null,null,null,null,null,null,null,null,null,null,null,null,null,null,null,null,null,null,null,null,null,null,null,null,null,null,null,null,null,null,null,null,null,null,null,null,null,null,null,null,null,null,null,null,null,null,null,null,null,null,null,null,null,null,null,null,null,null,null,null,null,null,null,null,null,null,null,null,null,null,null,null,null,null,null,null,null,null,null,null,null,null,null,null,null,null,null,null,null,null,null,null,null,null,null,null,null,null,null,null,null,null,null,null,null,null,null,null,null,null,null,null,null,null,null,null,null,null,null,null,null,null,null,null,null,null,null,null,null,null,null,null,null,null,null,null,null,null,null,null,null,null,null,null,null,null,null,null,null,null,null,null,null,null,null,null,null,null,null,null,null,null,null,null,null,null,null,null,null,null,null,null,null,null,null,null,null,null,null,null,null,null,null,null,null,null,null,null,null,null,null,null,null,null,null,null,null,null,null,null,null,null,null,null,null,null,null,null,null,null,null,null,null,null,null,null,null,null,null,null,null,null,null,null,null,null,null,null,null,null,null,null,null,null,null,null,null,null,null,null,null,null,null,null,null,null,null,null,null,null,null,null,null,null,null,null,null,null,null,null,null,null,null,null,null,null,null,null,null,null,null,null,null,null,null,null,null,null,null,null,null,null,null,null,null,null,null,null,null,null,null,null,null,null,null,null,null,null,null,null,null,null,null,null,null,null,null,null,null,null,null,null,null,null,null,null,null,null,null,null,null,null,null,null,null,null,null,null,null,null,null,null,null,null,null,null,null,null,null,null,null,null,null,null,null,null,null,null,null,null,null,null,null,null,null,null,null,null,null,null,null,null,null,null,null,null,null,null,null,null,null,null,null,null,null,null,null,null,null,null,null,null,null,null,null,null,null,null,null,null,null,null,null,null,null,null,null,null,null,null,null,null,null,null,null,null,null,null,null,null,null,null,null,null,null,null,null,null,null,null,null,null,null,null,null,null,null,null,null,null,null,null,null,null,null,null,null,null,null,null,null,null,null,null,null,null,null,null,null,null,null,null,null,null,null,null,null,null,null,null,null,null,null,null,null,null,null,null,null,null,null,null,null,null,null,null,null,null,null,null,null,null,null,null,null,null,null,null,null,null,null,null,null,null,null,null,null,null,null,null,null,null,null,null,null,null,null,null,null,null,null,null,null,null,null,null,null,null,null,null,null,null,null,null,null,null,null,null,null,null,null,null,null,null,null,null,null,null,null,null,null,null,null,null,null,null,null,null,null,null,null,null,null,null,null,null,null,null,null,null,null,null,null,null,null,null,null,null,null,null,null,null,null,null,null,null,null,null,null,null,null,null,null,null,null,null,null,null,null,null,null,null,null,null,null,null,null,null,null,null,null,null,null,null,null,null,null,null,null,null,null,null,null,null,null,null,null,null,null,null,null,null,null,null,null,null,null,null,null,null,null,null,null,null,null,null,null,null,null,null,null,null,null,null,null,null,null,null,null,null,null,null,null,null,null,null,null,null,null,null,null,null,null,null,null,null,null,null,null,null,null,null,null,null,null,null,null,null,null,null,null,null,null,null,null,null,null,null,null,null,null,null,null,null,null,null,null,null,null,null,null,null,null,null,null,null,null,null,null,null,null,null,null,null,null,null,null,null,null,null,null,null,null,null,null,null,null,null,null,null,null,null,null,null,null,null,null,null,null,null,null,null,null,null,null,null,null,null,null,null,null,null,null,null,null,null,null,null,null,null,null,null,null,null,null,null,null,null,null,null,null,null,null,null,null,null,null,null,null,null,null,null,null,null,null,null,null,null,null,null,null,null,null,null,null,null,null,null,null,null,null,null,null,null,null,null,null,null,null,null,null,null,null,null,null,null,null,null,null,null,null,null,null,null,null,null,null,null,null,null,null,null,null,null,null,null,null,null,null,null,null,null,null,null,null,null,null,null,null,null,null,null,null,null,null,null,null,null,null,null,null,null,null,null,null,null,null,null,null,null,null,null,null,null,null,null,null,null,null,null,null,null,null,null,null,null,null,null,null,null,null,null,null,null,null,null,null,null,null,null,null,null,null,null,null,null,null,null,null,null,null,null,null,null,null,null,null,null,null,null,null,null,null,null,null,null,null,null,null,null,null,null,null,null,null,null,null,null,null,null,null,null,null,null,null,null,null,null,null,null,null,null,null,null,null,null,null,null,null,null,null,null,null,null,null,null,null,null,null,null,null,null,null,null,null,null,null,null,null,null,null,null,null,null,null,null,null,null,null,null,null,null,null,null,null,null,null,null,null,null,null,null,null,null,null,null,null,null,null,null,null,null,null,null,null,null,null,null,null,null,null,null,null,null,null,null,null,null,null,null,null,null,null,null,null,null,null,null,null,null,null,null,null,null,null,null,null,null,null,null,null,null,null,null,null,null,null,null,null,null,null,null,null,null,null,null,null,null,null,null,null,null,null,null,null,null,null,null,null,null,null,null,null,null,null,null,null,null,null,null,null,null,null,null,null,null,null,null,null,null,null,null,null,null,null,null,null,null,null,null,null,null,null,null,null,null,null,null,null,null,null,null,null,null,null,null,null,null,null,null,null,null,null,null,null,null,null,null,null,null,null,null,null,null,null,null,null,null,null,null,null,null,null,null,null,null,null,null,null,null,null,null,null,null,null,null,null,null,null,null,null,null,null,null,null,null,null,null,null,null,null,null,null,null,null,null,null,null,null,null,null,null,null,null,null,null,null,null,null,null,null,null,null,null,null,null,null,null,null,null,null,null,null,null,null,null,null,null,null,null,null,null,null,null,null,null,null,null,null,null,null,null,null,null,null,null,null,null,null,null,null,null,null,null,null,null,null,null,null,null,null,null,null,null,null,null,null,null,null,null,null,null,null,null,null,null,null,null,null,null,null,null,null,null,null,null,null,null,null,null,null,null,null,null,null,null,null,null,null,null,null,null,null,null,null,null,null,null,null,null,null,null,null,null,null,null,null,null,null,null,null,null,null,null,null,null,null,null,null,null,null,null,null,null,null,null,null,null,null,null,null,null,null,null,null,null,null,null,null,null,null,null,null,null,null,null,null,null,null,null,null,null,null,null,null,null,null,null,null,null,null,null,null,null,null,null,null,null,null,null,null,null,null,null,null,null,null,null,null,null,null,null,null,null,null,null,null,null,null,null,null,null,null,null,null,null,null,null,null,null,null,null,null,null,null,null,null,null,null,null,null,null,null,null,null,null,null,null,null,null,null,null,null,null,null,null,null,null,null,null,null,null,null,null,null,null,null,null,null,null,null,null,null,null,null,null,null,null,null,null,null,null,null,null,null,null,null,null,null,null,null,null,null,null,null,null,null,null,null,null,null,null,null,null,null,null,null,null,null,null,null,null,null,null,null,null,null,null,null,null,null,null,null,null,null,null,null,null,null,null,null,null,null,null,null,null,null,null,null,null,null,null,null,null,null,null,null,null,null,null,null,null,null,null,null,null,null,null,null,null,null,null,null,null,null,null,null,null,null,null,null,null,null,null,null,null,null,null,null,null,null,null,null,null,null,null,null,null,null,null,null,null,null,null,null,null,null,null,null,null,null,null,null,null,null,null,null,null,null,null,null,null,null,null,null,null,null,null,null,null,null,null,null,null,null,null,null,null,null,null,null,null,null,null,null,null,null,null,null,null,null,null,null,null,null,null,null,null,null,null,null,null,null,null,null,null,null,null,null,null,null,null,null,null,null,null,null,null,null,null,null,null,null,null,null,null,null,null,null,null,null,null,null,null,null,null,null,null,null,null,null,null,null,null,null,null,null,null,null,null,null,null,null,null,null,null,null,null,null,null,null,null,null,null,null,null,null,null,null,null,null,null,null,null,null,null,null,null,null,null,null,null,null,null,null,null,null,null,null,null,null,null,null,null,null,null,null,null,null,null,null,null,null,null,null,null,null,null,null,null,null,null,null,null,null,null,null,null,null,null,null,null,null,null,null,null,null,null,null,null,null,null,null,null,null,null,null,null,null,null,null,null,null,null,null,null,null,null,null,null,null,null,null,null,null,null,null,null,null,null,null,null,null,null,null,null,null,null,null,null,null,null,null,null,null,null,null,null,null,null,null,null,null,null,null,null,null,null,null,null,null,null,null,null,null,null,null,null,null,null,null,null,null,null,null,null,null,null,null,null,null,null,null,null,null,null,null,null,null,null,null,null,null,null,null,null,null,null,null,null,null,null,null,null,null,null,null,null,null,null,null,null,null,null,null,null,null,null,null,null,null,null,null,null,null,null,null,null,null,null,null,null,null,null,null,null,null,null,null,null,null,null,null,null,null,null,null,null,null,null,null,null,null,null,null,null,null,null,null,null,null,null,null,null,null,null,null,null,null,null,null,null,null,null,null,null,null,null,null,null,null,null,null,null,null,null,null,null,null,null,null,null,null,null,null,null,null,null,null,null,null,null,null,null,null,null,null,null,null,null,null,null,null,null,null,null,null,null,null,null,null,null,null,null,null,null,null,null,null,null,null,null,null,null,null,null,null,null,null,null,null,null,null,null,null,null,null,null,null,null,null,null,null,null,null,null,null,null,null,null,null,null,null,null,null,null,null,null,null,null,null,null,null,null,null,null,null,null,null,null,null,null,null,null,null,null,null,null,null,null,null,null,null,null,null,null,null,null,null,null,null,null,null,null,null,null,null,null,null,null,null,null,null,null,null,null,null,null,null,null,null,null,null,null,null,null,null,null,null,null,null,null,null,null,null,null,null,null,null,null,null,null,null,null,null,null,null,null,null,null,null,null,null,null,null,null,null,null,null,null,null,null,null,null,null,null,null,null,null,null,null,null,null,null,null,null,null,null,null,null,null,null,null,null,null,null,null,null,null,null,null,null,null,null,null,null,null,null,null,null,null,null,null,null,null,null,null,null,null,null,null,null,null,null,null,null,null,null,null,null,null,null,null,null,null,null,null,null,null,null,null,null,null,null,null,null,null,null,null,null,null,null,null,null,null,null,null,null,null,null,null,null,null,null,null,null,null,null,null,null,null,null,null,null,null,null,null,null,null,null,null,null,null,null,null,null,null,null,null,null,null,null,null,null,null,null,null,null,null,null,null,null,null,null,null,null,null,null,null,null,null,null,null,null,null,null,null,null,null,null,null,null,null,null,null,null,null,null,null,null,null,null,null,null,null,null,null,null,null,null,null,null,null,null,null,null,null,null,null,null,null,null,null,null,null,null,null,null,null,null,null,null,null,null,null,null,null,null,null,null,null,null,null,null,null,null,null,null,null,null,null,null,null,null,null,null,null,null,null,null,null,null,null,null,null,null,null,null,null,null,null,null,null,null,null,null,null,null,null,null,null,null,null,null,null,null,null,null,null,null,null,null,null,null,null,null,null,null,null,null,null,null,null,null,null,null,null,null,null,null,null,null,null,null,null,null,null,null,null,null,null,null,null,null,null,null,null,null,null,null,null,null,null,null,null,null,null,null,null,null,null,null,null,null,null,null,null,null,null,null,null,null,null,null,null,null,null,null,null,null,null,null,null,null,null,null,null,null,null,null,null,null,null,null,null,null,null,null,null,null,null,null,null,null,null,null,null,null,null,null,null,null,null,null,null,null,null,null,null,null,null,null,null,null,null,null,null,null,null,null,null,null,null,null,null,null,null,null,null,null,null,null,null,null,null,null,null,null,null,null,null,null,null,null,null,null,null,null,null,null,null,null,null,null,null,null,null,null,null,null,null,null,null,null,null,null,null,null,null,null,null,null,null,null,null,null,null,null,null,null,null,null,null,null,null,null,null,null,null,null,null,null,null,null,null,null,null,null,null,null,null,null,null,null,null,null,null,null,null,null,null,null,null,null,null,null,null,null,null,null,null,null,null,null,null,null,null,null,null,null,null,null,null,null,null,null,null,null,null,null,null,null,null,null,null,null,null,null,null,null,null,null,null,null,null,null,null,null,null,null,null,null,null,null,null,null,null,null,null,null,null,null,null,null,null,null,null,null,null,null,null,null,null,null,null,null,null,null,null,null,null,null,null,null,null,null,null,null,null,null,null,null,null,null,null,null,null,null,null,null,null,null,null,null,null,null,null,null,null,null,null,null,null,null,null,null,null,null,null,null,null,null,null,null,null,null,null,null,null,null,null,null,null,null,null,null,null,null,null,null,null,null,null,null,null,null,null,null,null,null,null,null,null,null,null,null,null,null,null,null,null,null,null,null,null,null,null,null,null,null,null,null,null,null,null,null,null,null,null,null,null,null,null,null,null,null,null,null,null,null,null,null,null,null,null,null,null,null,null,null,null,null,null,null,null,null,null,null,null,null,null,null,null,null,null,null,null,null,null,null,null,null,null,null,null,null,null,null,null,null,null,null,null,null,null,null,null,null,null,null,null,null,null,null,null,null,null,null,null,null,null,null,null,null,null,null,null,null,null,null,null,null,null,null,null,null,null,null,null,null,null,null,null,null,null,null,null,null,null,null,null,null,null,null,null,null,null,null,null,null,null,null,null,null,null,null,null,null,null,null,null,null,null,null,null,null,null,null,null,null,null,null,null,null,null,null,null,null,null,null,null,null,null,null,null,null,null,null,null,null,null,null,null,null,null,null,null,null,null,null,null,null,null,null,null,null,null,null,null,null,null,null,null,null,null,null,null,null,null,null,null,null,null,null,null,null,null,null,null,null,null,null,null,null,null,null,null,null,null,null,null,null,null,null,null,null,null,null,null,null,null,null,null,null,null,null,null,null,null,null,null,null,null,null,null,null,null,null,null,null,null,null,null,null,null,null,null,null,null,null,null,null,null,null,null,null,null,null,null,null,null,null,null,null,null,null,null,null,null,null,null,null,null,null,null,null,null,null,null,null,null,null,null,null,null,null,null,null,null,null,null,null,null,null,null,null,null,null,null,null,null,null,null,null,null,null,null,null,null,null,null,null,null,null,null,null,null,null,null,null,null,null,null,null,null,null,null,null,null,null,null,null,null,null,null,null,null,null,null,null,null,null,null,null,null,null,null,null,null,null,null,null,null,null,null,null,null,null,null,null,null,null,null,null,null,null,null,null,null,null,null,null,null,null,null,null,null,null,null,null,null,null,null,null,null,null,null,null,null,null,null,null,null,null,null,null,null,null,null,null,null,null,null,null,null,null,null,null,null,null,null,null,null,null,null,null,null,null,null,null,null,null,null,null,null,null,null,null,null,null,null,null,null,null,null,null,null,null,null,null,null,null,null,null,null,null,null,null,null,null,null,null,null,null,null,null,null,null,null,null,null,null,null,null,null,null,null,null,null,null,null,null,null,null,null,null,null,null,null,null,null,null,null,null,null,null,null,null,null,null,null,null,null,null,null,null,null,null,null,null,null,null,null,null,null,null,null,null,null,null,null,null,null,null,null,null,null,null,null,null,null,null,null,null,null,null,null,null,null,null,null,null,null,null,null,null,null,null,null,null,null,null,null,null,null,null,null,null,null,null,null,null,null,null,null,null,null,null,null,null,null,null,null,null,null,null,null,null,null,null,null,null,null,null,null,null,null,null,null,null,null,null,null,null,null,null,null,null,null,null,null,null,null,null,null,null,null,null,null,null,null,null,null,null,null,null,null,null,null,null,null,null,null,null,null,null,null,null,null,null,null,null,null,null,null,null,null,null,null,null,null,null,null,null,null,null,null,null,null,null,null,null,null,null,null,null,null,null,null,null,null,null,null,null,null,null,null,null,null,null,null,null,null,null,null,null,null,null,null,null,null,null,null,null,null,null,null,null,null,null,null,null,null,null,null,null,null,null,null,null,null,null,null,null,null,null,null,null,null,null,null,null,null,null,null,null,null,null,null,null,null,null,null,null,null,null,null,null,null,null,null,null,null,null,null,null,null,null,null,null,null,null,null,null,null,null,null,null,null,null,null,null,null,null,null,null,null,null,null,null,null,null,null,null,null,null,null,null,null,null,null,null,null,null,null,null,null,null,null,null,null,null,null,null,null,null,null,null,null,null,null,null,null,null,null,null,null,null,null,null,null,null,null,null,null,null,null,null,null,null,null,null,null,null,null,null,null,null,null,null,null,null,null,null,null,null,null,null,null,null,null,null,null,null,null,null,null,null,null,null,null,null,null,null,null,null,null,null,null,null,null,null,null,null,null,null,null,null,null,null,null,null,null,null,null,null,null,null,null,null,null,null,null,null,null,null,null,null,null,null,null,null,null,null,null,null,null,null,null,null,null,null,null,null,null,null,null,null,null,null,null,null,null,null,null,null,null,null,null,null,null,null,null,null,null,null,null,null,null,null,null,null,null,null,null,null,null,null,null,null,null,null,null,null,null,null,null,null,null,null,null,null,null,null,null,null,null,null,null,null,null,null,null,null,null,null,null,null,null,null,null,null,null,null,null,null,null,null,null,null,null,null,null,null,null,null,null,null,null,null,null,null,null,null,null,null,null,null,null,null,null,null,null,null,null,null,null,null,null,null,null,null,null,null,null,null,null,null,null,null,null,null,null,null,null,null,null,null,null,null,null,null,null,null,null,null,null,null,null,null,null,null,null,null,null,null,null,null,null,null,null,null,null,null,null,null,null,null,null,null,null,null,null,null,null,null,null,null,null,null,null,null,null,null,null,null,null,null,null,null,null,null,null,null,null,null,null,null,null,null,null,null,null,null,null,null,null,null,null,null,null,null,null,null,null,null,null,null,null,null,null,null,null,null,null,null,null,null,null,null,null,null,null,null,null,null,null,null,null,null,null,null,null,null,null,null,null,null,null,null,null,null,null,null,null,null,null,null,null,null,null,null,null,null,null,null,null,null,null,null,null,null,null,null,null,null,null,null,null,null,null,null,null,null,null,null,null,null,null,null,null,null,null,null,null,null,null,null,null,null,null,null,null,null,null,null,null,null,null,null,null,null,null,null,null,null,null,null,null,null,null,null,null,null,null,null,null,null,null,null,null,null,null,null,null,null,null,null,null,null,null,null,null,null,null,null,null,null,null,null,null,null,null,null,null,null,null,null,null,null,null,null,null,null,null,null,null,null,null,null,null,null,null,null,null,null,null,null,null,null,null,null,null,null,null,null,null,null,null,null,null,null,null,null,null,null,null,null,null,null,null,null,null,null,null,null,null,null,null,null,null,null,null,null,null,null,null,null,null,null,null,null,null,null,null,null,null,null,null,null,null,null,null,null,null,null,null,null,null,null,null,null,null,null,null,null,null,null,null,null,null,null,null,null,null,null,null,null,null,null,null,null,null,null,null,null,null,null,null,null,null,null,null,null,null,null,null,null,null,null,null,null,null,null,null,null,null,null,null,null,null,null,null,null,null,null,null,null,null,null,null,null,null,null,null,null,null,null,null,null,null,null,null,null,null,null,null,null,null,null,null,null,null,null,null,null,null,null,null,null,null,null,null,null,null,null,null,null,null,null,null,null,null,null,null,null,null,null,null,null,null,null,null,null,null,null,null,null,null,null,null,null,null,null,null,null,null,null,null,null,null,null,null,null,null,null,null,null,null,null,null,null,null,null,null,null,null,null,null,null,null,null,null,null,null,null,null,null,null,null,null,null,null,null,null,null,null,null,null,null,null,null,null,null,null,null,null,null,null,null,null,null,null,null,null,null,null,null,null,null,null,null,null,null,null,null,null,null,null,null,null,null,null,null,null,null,null,null,null,null,null,null,null,null,null,null,null,null,null,null,null,null,null,null,null,null,null,null,null,null,null,null,null,null,null,null,null,null,null,null,null,null,null,null,null,null,null,null,null,null,null,null,null,null,null,null,null,null,null,null,null,null,null,null,null,null,null,null,null,null,null,null,null,null,null,null,null,null,null,null,null,null,null,null,null,null,null,null,null,null,null,null,null,null,null,null,null,null,null,null,null,null,null,null,null,null,null,null,null,null,null,null,null,null,null,null,null,null,null,null,null,null,null,null,null,null,null,null,null,null,null,null,null,null,null,null,null,null,null,null,null,null,null,null,null,null,null,null,null,null,null,null,null,null,null,null,null,null,null,null,null,null,null,null,null,null,null,null,null,null,null,null,null,null,null,null,null,null,null,null,null,null,null,null,null,null,null,null,null,null,null,null,null,null,null,null,null,null,null,null,null,null,null,null,null,null,null,null,null,null,null,null,null,null,null,null,null,null,null,null,null,null,null,null,null,null,null,null,null,null,null,null,null,null,null,null,null,null,null,null,null,null,null,null,null,null,null,null,null,null,null,null,null,null,null,null,null,null,null,null,null,null,null,null,null,null,null,null,null,null,null,null,null,null,null,null,null,null,null,null,null,null,null,null,null,null,null,null,null,null,null,null,null,null,null,null,null,null,null,null,null,null,null,null,null,null,null,null,null,null,null,null,null,null,null,null,null,null,null,null,null,null,null,null,null,null,null,null,null,null,null,null,null,null,null,null,null,null,null,null,null,null,null,null,null,null,null,null,null,null,null,null,null,null,null,null,null,null,null,null,null,null,null,null,null,null,null,null,null,null,null,null,null,null,null,null,null,null,null,null,null,null,null,null,null,null,null,null,null,null,null,null,null,null,null,null,null,null,null,null,null,null,null,null,null,null,null,null,null,null,null,null,null,null,null,null,null,null,null,null,null,null,null,null,null,null,null,null,null,null,null,null,null,null,null,null,null,null,null,null,null,null,null,null,null,null,null,null,null,null,null,null,null,null,null,null,null,null,null,null,null,null,null,null,null,null,null,null,null,null,null,null,null,null,null,null,null,null,null,null,null,null,null,null,null,null,null,null,null,null,null,null,null,null,null,null,null,null,null,null,null,null,null,null,null,null,null,null,null,null,null,null,null,null,null,null,null,null,null,null,null,null,null,null,null,null,null,null,null,null,null,null,null,null,null,null,null,null,null,null,null,null,null,null,null,null,null,null,null,null,null,null,null,null,null,null,null,null,null,null,null,null,null,null,null,null,null,null,null,null,null,null,null,null,null,null,null,null,null,null,null,null,null,null,null,null,null,null,null,null,null,null,null,null,null,null,null,null,null,null,null,null,null,null,null,null,null,null,null,null,null,null,null,null,null,null,null,null,null,null,null,null,null,null,null,null,null,null,null,null,null,null,null,null,null,null,null,null,null,null,null,null,null,null,null,null,null,null,null,null,null,null,null,null,null,null,null,null,null,null,null,null,null,null,null,null,null,null,null,null,null,null,null,null,null,null,null,null,null,null,null,null,null,null,null,null,null,null,null,null,null,null,null,null,null,null,null,null,null,null,null,null,null,null,null,null,null,null,null,null,null,null,null,null,null,null,null,null,null,null,null,null,null,null,null,null,null,null,null,null,null,null,null,null,null,null,null,null,null,null,null,null,null,null,null,null,null,null,null,null,null,null,null,null,null,null,null,null,null,null,null,null,null,null,null,null,null,null,null,null,null,null,null,null,null,null,null,null,null,null,null,null,null,null,null,null,null,null,null,null,null,null,null,null,null,null,null,null,null,null,null,null,null,null,null,null,null,null,null,null,null,null,null,null,null,null,null,null,null,null,null,null,null,null,null,null,null,null,null,null,null,null,null,null,null,null,null,null,null,null,null,null,null,null,null,null,null,null,null,null,null,null,null,null,null,null,null,null,null,null,null,null,null,null,null,null,null,null,null,null,null,null,null,null,null,null,null,null,null,null,null,null,null,null,null,null,null,null,null,null,null,null,null,null,null,null,null,null,null,null,null,null,null,null,null,null,null,null,null,null,null,null,null,null,null,null,null,null,null,null,null,null,null,null,null,null,null,null,null,null,null,null,null,null,null,null,null,null,null,null,null,null,null,null,null,null,null,null,null,null,null,null,null,null,null,null,null,null,null,null,null,null,null,null,null,null,null,null,null,null,null,null,null,null,null,null,null,null,null,null,null,null,null,null,null,null,null,null,null,null,null,null,null,null,null,null,null,null,null,null,null,null,null,null,null,null,null,null,null,null,null,null,null,null,null,null,null,null,null,null,null,null,null,null,null,null,null,null,null,null,null,null,null,null,null,null,null,null,null,null,null,null,null,null,null,null,null,null,null,null,null,null,null,null,null,null,null,null,null,null,null,null,null,null,null,null,null,null,null,null,null,null,null,null,null,null,null,null,null,null,null,null,null,null,null,null,null,null,null,null,null,null,null,null,null,null,null,null,null,null,null,null,null,null,null,null,null,null,null,null,null,null,null,null,null,null,null,null,null,null,null,null,null,null,null,null,null,null,null,null,null,null,null,null,null,null,null,null,null,null,null,null,null,null,null,null,null,null,null,null,null,null,null,null,null,null,null,null,null,null,null,null,null,null,null,null,null,null,null,null,null,null,null,null,null,null,null,null,null,null,null,null,null,null,null,null,null,null,null,null,null,null,null,null,null,null,null,null,null,null,null,null,null,null,null,null,null,null,null,null,null,null,null,null,null,null,null,null,null,null,null,null,null,null,null,null,null,null,null,null,null,null,null,null,null,null,null,null,null,null,null,null,null,null,null,null,null,null,null,null,null,null,null,null,null,null,null,null,null,null,null,null,null,null,null,null,null,null,null,null,null,null,null,null,null,null,null,null,null,null,null,null,null,null,null,null,null,null,null,null,null,null,null,null,null,null,null,null,null,null,null,null,null,null,null,null,null,null,null,null,null,null,null,null,null,null,null,null,null,null,null,null,null,null,null,null,null,null,null,null,null,null,null,null,null,null,null,null,null,null,null,null,null,null,null,null,null,null,null,null,null,null,null,null,null,null,null,null,null,null,null,null,null,null,null,null,null,null,null,null,null,null,null,null,null,null,null,null,null,null,null,null,null,null,null,null,null,null,null,null,null,null,null,null,null,null,null,null,null,null,null,null,null,null,null,null,null,null,null,null,null,null,null,null,null,null,null,null,null,null,null,null,null,null,null,null,null,null,null,null,null,null,null,null,null,null,null,null,null,null,null,null,null,null,null,null,null,null,null,null,null,null,null,null,null,null,null,null,null,null,null,null,null,null,null,null,null,null,null,null,null,null,null,null,null,null,null,null,null,null,null,null,null,null,null,null,null,null,null,null,null,null,null,null,null,null,null,null,null,null,null,null,null,null,null,null,null,null,null,null,null,null,null,null,null,null,null,null,null,null,null,null,null,null,null,null,null,null,null,null,null,null,null,null,null,null,null,null,null,null,null,null,null,null,null,null,null,null,null,null,null,null,null,null,null,null,null,null,null,null,null,null,null,null,null,null,null,null,null,null,null,null,null,null,null,null,null,null,null,null,null,null,null,null,null,null,null,null,null,null,null,null,null,null,null,null,null,null,null,null,null,null,null,null,null,null,null,null,null,null,null,null,null,null,null,null,null,null,null,null,null,null,null,null,null,null,null,null,null,null,null,null,null,null,null,null,null,null,null,null,null,null,null,null,null,null,null,null,null,null,null,null,null,null,null,null,null,null,null,null,null,null,null,null,null,null,null,null,null,null,null,null,null,null,null,null,null,null,null,null,null,null,null,null,null,null,null,null,null,null,null,null,null,null,null,null,null,null,null,null,null,null,null,null,null,null,null,null,null,null,null,null,null,null,null,null,null,null,null,null,null,null,null,null,null,null,null,null,null,null,null,null,null,null,null,null,null,null,null,null,null,null,null,null,null,null,null,null,null,null,null,null,null,null,null,null,null,null,null,null,null,null,null,null,null,null,null,null,null,null,null,null,null,null,null,null,null,null,null,null,null,null,null,null,null,null,null,null,null,null,null,null,null,null,null,null,null,null,null,null,null,null,null,null,null,null,null,null,null,null,null,null,null,null,null,null,null,null,null,null,null,null,null,null,null,null,null,null,null,null,null,null,null,null,null,null,null,null,null,null,null,null,null,null,null,null,null,null,null,null,null,null,null,null,null,null,null,null,null,null,null,null,null,null,null,null,null,null,null,null,null,null,null,null,null,null,null,null,null,null,null,null,null,null,null,null,null,null,null,null,null,null,null,null,null,null,null,null,null,null,null,null,null,null,null,null,null,null,null,null,null,null,null,null,null,null,null,null,null,null,null,null,null,null,null,null,null,null,null,null,null,null,null,null,null,null,null,null,null,null,null,null,null,null,null,null,null,null,null,null,null,null,null,null,null,null,null,null,null,null,null,null,null,null,null,null,null,null,null,null,null,null,null,null,null,null,null,null,null,null,null,null,null,null,null,null,null,null,null,null,null,null,null,null,null,null,null,null,null,null,null,null,null,null,null,null,null,null,null,null,null,null,null,null,null,null,null,null,null,null,null,null,null,null,null,null,null,null,null,null,null,null,null,null,null,null,null,null,null,null,null,null,null,null,null,null,null,null,null,null,null,null,null,null,null,null,null,null,null,null,null,null,null,null,null,null,null,null,null,null,null,null,null,null,null,null,null,null,null,null,null,null,null,null,null,null,null,null,null,null,null,null,null,null,null,null,null,null,null,null,null,null,null,null,null,null,null,null,null,null,null,null,null,null,null,null,null,null,null,null,null,null,null,null,null,null,null,null,null,null,null,null,null,null,null,null,null,null,null,null,null,null,null,null,null,null,null,null,null,null,null,null,null,null,null,null,null,null,null,null,null,null,null,null,null,null,null,null,null,null,null,null,null,null,null,null,null,null,null,null,null,null,null,null,null,null,null,null,null,null,null,null,null,null,null,null,null,null,null,null,null,null,null,null,null,null,null,null,null,null,null,null,null,null,null,null,null,null,null,null,null,null,null,null,null,null,null,null,null,null,null,null,null,null,null,null,null,null,null,null,null,null,null,null,null,null,null,null,null,null,null,null,null,null,null,null,null,null,null,null,null,null,null,null,null,null,null,null,null,null,null,null,null,null,null,null,null,null,null,null,null,null,null,null,null,null,null,null,null,null,null,null,null,null,null,null,null,null,null,null,null,null,null,null,null,null,null,null,null,null,null,null,null,null,null,null,null,null,null,null,null,null,null,null,null,null,null,null,null,null,null,null,null,null,null,null,null,null,null,null,null,null,null,null,null,null,null,null,null,null,null,null,null,null,null,null,null,null,null,null,null,null,null,null,null,null,null,null,null,null,null,null,null,null,null,null,null,null,null,null,null,null,null,null,null,null,null,null,null,null,null,null,null,null,null,null,null,null,null,null,null,null,null,null,null,null,null,null,null,null,null,null,null,null,null,null,null,null,null,null,null,null,null,null,null,null,null,null,null,null,null,null,null,null,null,null,null,null,null,null,null,null,null,null,null,null,null,null,null,null,null,null,null,null,null,null,null,null,null,null,null,null,null,null,null,null,null,null,null,null,null,null,null,null,null,null,null,null,null,null,null,null,null,null,null,null,null,null,null,null,null,null,null,null,null,null,null,null,null,null,null,null,null,null,null,null,null,null,null,null,null,null,null,null,null,null,null,null,null,null,null,null,null,null,null,null,null,null,null,null,null,null,null,null,null,null,null,null,null,null,null,null,null,null,null,null,null,null,null,null,null,null,null,null,null,null,null,null,null,null,null,null,null,null,null,null,null,null,null,null,null,null,null,null,null,null,null,null,null,null,null,null,null,null,null,null,null,null,null,null,null,null,null,null,null,null,null,null,null,null,null,null,null,null,null,null,null,null,null,null,null,null,null,null,null,null,null,null,null,null,null,null,null,null,null,null,null,null,null,null,null,null,null,null,null,null,null,null,null,null,null,null,null,null,null,null,null,null,null,null,null,null,null,null,null,null,null,null,null,null,null,null,null,null,null,null,null,null,null,null,null,null,null,null,null,null,null,null,null,null,null,null,null,null,null,null,null,null,null,null,null,null,null,null,null,null,null,null,null,null,null,null,null,null,null,null,null,null,null,null,null,null,null,null,null,null,null,null,null,null,null,null,null,null,null,null,null,null,null,null,null,null,null,null,null,null,null,null,null,null,null,null,null,null,null,null,null,null,null,null,null,null,null,null,null,null,null,null,null,null,null,null,null,null,null,null,null,null,null,null,null,null,null,null,null,null,null,null,null,null,null,null,null,null,null,null,null,null,null,null,null,null,null,null,null,null,null,null,null,null,null,null,null,null,null,null,null,null,null,null,null,null,null,null,null,null,null,null,null,null,null,null,null,null,null,null,null,null,null,null,null,null,null,null,null,null,null,null,null,null,null,null,null,null,null,null,null,null,null,null,null,null,null,null,null,null,null,null,null,null,null,null,null,null,null,null,null,null,null,null,null,null,null,null,null,null,null,null,null,null,null,null,null,null,null,null,null,null,null,null,null,null,null,null,null,null,null,null,null,null,null,null,null,null,null,null,null,null,null,null,null,null,null,null,null,null,null,null,null,null,null,null,null,null,null,null,null,null,null,null,null,null,null,null,null,null,null,null,null,null,null,null,null,null,null,null,null,null,null,null,null,null,null,null,null,null,null,null,null,null,null,null,null,null,null,null,null,null,null,null,null,null,null,null,null,null,null,null,null,null,null,null,null,null,null,null,null,null,null,null,null,null,null,null,null,null,null,null,null,null,null,null,null,null,null,null,null,null,null,null,null,null,null,null,null,null,null,null,null,null,null,null,null,null,null,null,null,null,null,null,null,null,null,null,null,null,null,null,null,null,null,null,null,null,null,null,null,null,null,null,null,null,null,null,null,null,null,null,null,null,null,null,null,null,null,null,null,null,null,null,null,null,null,null,null,null,null,null,null,null,null,null,null,null,null,null,null,null,null,null,null,null,null,null,null,null,null,null,null,null,null,null,null,null,null,null,null,null,null,null,null,null,null,null,null,null,null,null,null,null,null,null,null,null,null,null,null,null,null,null,null,null,null,null,null,null,null,null,null,null,null,null,null,null,null,null,null,null,null,null,null,null,null,null,null,null,null,null,null,null,null,null,null,null,null,null,null,null,null,null,null,null,null,null,null,null,null,null,null,null,null,null,null,null,null,null,null,null,null,null,null,null,null,null,null,null,null,null,null,null,null,null,null,null,null,null,null,null,null,null,null,null,null,null,null,null,null,null,null,null,null,null,null,null,null,null,null,null,null,null,null,null,null,null,null,null,null,null,null,null,null,null,null,null,null,null,null,null,null,null,null,null,null,null,null,null,null,null,null,null,null,null,null,null,null,null,null,null,null,null,null,null,null,null,null,null,null,null,null,null,null,null,null,null,null,null,null,null,null,null,null,null,null,null,null,null,null,null,null,null,null,null,null,null,null,null,null,null,null,null,null,null,null,null,null,null,null,null,null,null,null,null,null,null,null,null,null,null,null,null,null,null,null,null,null,null,null,null,null,null,null,null,null,null,null,null,null,null,null,null,null,null,null,null,null,null,null,null,null,null,null,null,null,null,null,null,null,null,null,null,null,null,null,null,null,null,null,null,null,null,null,null,null,null,null,null,null,null,null,null,null,null,null,null,null,null,null,null,null,null,null,null,null,null,null,null,null,null,null,null,null,null,null,null,null,null,null,null,null,null,null,null,null,null,null,null,null,null,null,null,null,null,null,null,null,null,null,null,null,null,null,null,null,null,null,null,null,null,null,null,null,null,null,null,null,null,null,null,null,null,null,null,null,null,null,null,null,null,null,null,null,null,null,null,null,null,null,null,null,null,null,null,null,null,null,null,null,null,null,null,null,null,null,null,null,null,null,null,null,null,null,null,null,null,null,null,null,null,null,null,null,null,null,null,null,null,null,null,null,null,null,null,null,null,null,null,null,null,null,null,null,null,null,null,null,null,null,null,null,null,null,null,null,null,null,null,null,null,null,null,null,null,null,null,null,null,null,null,null,null,null,null,null,null,null,null,null,null,null,null,null,null,null,null,null,null,null,null,null,null,null,null,null,null,null,null,null,null,null,null,null,null,null,null,null,null,null,null,null,null,null,null,null,null,null,null,null,null,null,null,null,null,null,null,null,null,null,null,null,null,null,null,null,null,null,null,null,null,null,null,null,null,null,null,null,null,null,null,null,null,null,null,null,null,null,null,null,null,null,null,null,null,null,null,null,null,null,null,null,null,null,null,null,null,null,null,null,null,null,null,null,null,null,null,null,null,null,null,null,null,null,null,null,null,null,null,null,null,null,null,null,null,null,null,null,null,null,null,null,null,null,null,null,null,null,null,null,null,null,null,null,null,null,null,null,null,null,null,null,null,null,null,null,null,null,null,null,null,null,null,null,null,null,null,null,null,null,null,null,null,null,null,null,null,null,null,null,null,null,null,null,null,null,null,null,null,null,null,null,null,null,null,null,null,null,null,null,null,null,null,null,null,null,null,null,null,null,null,null,null,null,null,null,null,null,null,null,null,null,null,null,null,null,null,null,null,null,null,null,null,null,null,null,null,null,null,null,null,null,null,null,null,null,null,null,null,null,null,null,null,null,null,null,null,null,null,null,null,null,null,null,null,null,null,null,null,null,null,null,null,null,null,null,null,null,null,null,null,null,null,null,null,null,null,null,null,null,null,null,null,null,null,null,null,null,null,null,null,null,null,null,null,null,null,null,null,null,null,null,null,null,null,null,null,null,null,null,null,null,null,null,null,null,null,null,null,null,null,null,null,null,null,null,null,null,null,null,null,null,null,null,null,null,null,null,null,null,null,null,null,null,null,null,null,null,null,null,null,null,null,null,null,null,null,null,null,null,null,null,null,null,null,null,null,null,null,null,null,null,null,null,null,null,null,null,null,null,null,null,null,null,null,null,null,null,null,null,null,null,null,null,null,null,null,null,null,null,null,null,null,null,null,null,null,null,null,null,null,null,null,null,null,null,null,null,null,null,null,null,null,null,null,null,null,null,null,null,null,null,null,null,null,null,null,null,null,null,null,null,null,null,null,null,null,null,null,null,null,null,null,null,null,null,null,null,null,null,null,null,null,null,null,null,null,null,null,null,null,null,null,null,null,null,null,null,null,null,null,null,null,null,null,null,null,null,null,null,null,null,null,null,null,null,null,null,null,null,null,null,null,null,null,null,null,null,null,null,null,null,null,null,null,null,null,null,null,null,null,null,null,null,null,null,null,null,null,null,null,null,null,null,null,null,null,null,null,null,null,null,null,null,null,null,null,null,null,null,null,null,null,null,null,null,null,null,null,null,null,null,null,null,null,null,null,null,null,null,null,null,null,null,null,null,null,null,null,null,null,null,null,null,null,null,null,null,null,null,null,null,null,null,null,null,null,null,null,null,null,null,null,null,null,null,null,null,null,null,null,null,null,null,null,null,null,null,null,null,null,null,null,null,null,null,null,null,null,null,null,null,null,null,null,null,null,null,null,null,null,null,null,null,null,null,null,null,null,null,null,null,null,null,null,null,null,null,null,null,null,null,null,null,null,null,null,null,null,null,null,null,null,null,null,null,null,null,null,null,null,null,null,null,null,null,null,null,null,null,null,null,null,null,null,null,null,null,null,null,null,null,null,null,null,null,null,null,null,null,null,null,null,null,null,null,null,null,null,null,null,null,null,null,null,null,null,null,null,null,null,null,null,null,null,null,null,null,null,null,null,null,null,null,null,null,null,null,null,null,null,null,null,null,null,null,null,null,null,null,null,null,null,null,null,null,null,null,null,null,null,null,null,null,null,null,null,null,null,null,null,null,null,null,null,null,null,null,null,null,null,null,null,null,null,null,null,null,null,null,null,null,null,null,null,null,null,null,null,null,null,null,null,null,null,null,null,null,null,null,null,null,null,null,null,null,null,null,null,null,null,null,null,null,null,null,null,null,null,null,null,null,null,null,null,null,null,null,null,null,null,null,null,null,null,null,null,null,null,null,null,null,null,null,null,null,null,null,null,null,null,null,null,null,null,null,null,null,null,null,null,null,null,null,null,null,null,null,null,null,null,null,null,null,null,null,null,null,null,null,null,null,null,null,null,null,null,null,null,null,null,null,null,null,null,null,null,null,null,null,null,null,null,null,null,null,null,null,null,null,null,null,null,null,null,null,null,null,null,null,null,null,null,null,null,null,null,null,null,null,null,null,null,null,null,null,null,null,null,null,null,null,null,null,null,null,null,null,null,null,null,null,null,null,null,null,null,null,null,null,null,null,null,null,null,null,null,null,null,null,null,null,null,null,null,null,null,null,null,null,null,null,null,null,null,null,null,null,null,null,null,null,null,null,null,null,null,null,null,null,null,null,null,null,null,null,null,null,null,null,null,null,null,null,null,null,null,null,null,null,null,null,null,null,null,null,null,null,null,null,null,null,null,null,null,null,null,null,null,null,null,null,null,null,null,null,null,null,null,null,null,null,null,null,null,null,null,null,null,null,null,null,null,null,null,null,null,null,null,null,null,null,null,null,null,null,null,null,null,null,null,null,null,null,null,null,null,null,null,null,null,null,null,null,null,null,null,null,null,null,null,null,null,null,null,null,null,null,null,null,null,null,null,null,null,null,null,null,null,null,null,null,null,null,null,null,null,null,null,null,null,null,null,null,null,null,null,null,null,null,null,null,null,null,null,null,null,null,null,null,null,null,null,null,null,null,null,null,null,null,null,null,null,null,null,null,null,null,null,null,null,null,null,null,null,null,null,null,null,null,null,null,null,null,null,null,null,null,null,null,null,null,null,null,null,null,null,null,null,null,null,null,null,null,null,null,null,null,null,null,null,null,null,null,null,null,null,null,null,null,null,null,null,null,null,null,null,null,null,null,null,null,null,null,null,null,null,null,null,null,null,null,null,null,null,null,null,null,null,null,null,null,null,null,null,null,null,null,null,null,null,null,null,null,null,null,null,null,null,null,null,null,null,null,null,null,null,null,null,null,null,null,null,null,null,null,null,null,null,null,null,null,null,null,null,null,null,null,null,null,null,null,null,null,null,null,null,null,null,null,null,null,null,null,null,null,null,null,null,null,null,null,null,null,null,null,null,null,null,null,null,null,null,null,null,null,null,null,null,null,null,null,null,null,null,null,null,null,null,null,null,null,null,null,null,null,null,null,null,null,null,null,null,null,null,null,null,null,null,null,null,null,null,null,null,null,null,null,null,null,null,null,null,null,null,null,null,null,null,null,null,null,null,null,null,null,null,null,null,null,null,null,null,null,null,null,null,null,null,null,null,null,null,null,null,null,null,null,null,null,null,null,null,null,null,null,null,null,null,null,null,null,null,null,null,null,null,null,null,null,null,null,null,null,null,null,null,null,null,null,null,null,null,null,null,null,null,null,null,null,null,null,null,null,null,null,null,null,null,null,null,null,null,null,null,null,null,null,null,null,null,null,null,null,null,null,null,null,null,null,null,null,null,null,null,null,null,null,null,null,null,null,null,null,null,null,null,null,null,null,null,null,null,null,null,null,null,null,null,null,null,null,null,null,null,null,null,null,null,null,null,null,null,null,null,null,null,null,null,null,null,null,null,null,null,null,null,null,null,null,null,null,null,null,null,null,null,null,null,null,null,null,null,null,null,null,null,null,null,null,null,null,null,null,null,null,null,null,null,null,null,null,null,null,null,null,null,null,null,null,null,null,null,null,null,null,null,null,null,null,null,null,null,null,null,null,null,null,null,null,null,null,null,null,null,null,null,null,null,null,null,null,null,null,null,null,null,null,null,null,null,null,null,null,null,null,null,null,null,null,null,null,null,null,null,null,null,null,null,null,null,null,null,null,null,null,null,null,null,null,null,null,null,null,null,null,null,null,null,null,null,null,null,null,null,null,null,null,null,null,null,null,null,null,null,null,null,null,null,null,null,null,null,null,null,null,null,null,null,null,null,null,null,null,null,null,null,null,null,null,null,null,null,null,null,null,null,null,null,null,null,null,null,null,null,null,null,null,null,null,null,null,null,null,null,null,null,null,null,null,null,null,null,null,null,null,null,null,null,null,null,null,null,null,null,null,null,null,null,null,null,null,null,null,null,null,null,null,null,null,null,null,null,null,null,null,null,null,null,null,null,null,null,null,null,null,null,null,null,null,null,null,null,null,null,null,null,null,null,null,null,null,null,null,null,null,null,null,null,null,null,null,null,null,null,null,null,null,null,null,null,null,null,null,null,null,null,null,null,null,null,null,null,null,null,null,null,null,null,null,null,null,null,null,null,null,null,null,null,null,null,null,null,null,null,null,null,null,null,null,null,null,null,null,null,null,null,null,null,null,null,null,null,null,null,null,null,null,null,null,null,null,null,null,null,null,null,null,null,null,null,null,null,null,null,null,null,null,null,null,null,null,null,null,null,null,null,null,null,null,null,null,null,null,null,null,null,null,null,null,null,null,null,null,null,null,null,null,null,null,null,null,null,null,null,null,null,null,null,null,null,null,null,null,null,null,null,null,null,null,null,null,null,null,null,null,null,null,null,null,null,null,null,null,null,null,null,null,null,null,null,null,null,null,null,null,null,null,null,null,null,null,null,null,null,null,null,null,null,null,null,null,null,null,null,null,null,null,null,null,null,null,null,null,null,null,null,null,null,null,null,null,null,null,null,null,null,null,null,null,null,null,null,null,null,null,null,null,null,null,null,null,null,null,null,null,null,null,null,null,null,null,null,null,null,null,null,null,null,null,null,null,null,null,null,null,null,null,null,null,null,null,null,null,null,null,null,null,null,null,null,null,null,null,null,null,null,null,null,null,null,null,null,null,null,null,null,null,null,null,null,null,null,null,null,null,null,null,null,null,null,null,null,null,null,null,null,null,null,null,null,null,null,null,null,null,null,null,null,null,null,null,null,null,null,null,null,null,null,null,"Asesoría integral y focalizada"]
[null,"Política en Función Pública",4,null,null,"Acción Integral en la Administración Pública Nacional y Territorial","Registros de información SIGEP, SUIT, FURAG","Instrumentos tecnológicos",null,null,null,null,null,null,null,null,null,null,null,null,null,null,null,null,null,null,null,null,null,null,null,null,null,null,null,null,null,null,null,null,null,null,null,null,null,null,null,null,null,null,null,null,null,null,null,null,null,null,null,null,null,null,null,null,null,null,null,null,null,null,null,null,null,null,null,null,null,null,null,null,null,null,null,null,null,null,null,null,null,null,null,null,null,null,null,null,null,null,null,null,null,null,null,null,null,null,null,null,null,null,null,null,null,null,null,null,null,null,null,null,null,null,null,null,null,null,null,null,null,null,null,null,null,null,null,null,null,null,null,null,null,null,null,null,null,null,null,null,null,null,null,null,null,null,null,null,null,null,null,null,null,null,null,null,null,null,null,null,null,null,null,null,null,null,null,null,null,null,null,null,null,null,null,null,null,null,null,null,null,null,null,null,null,null,null,null,null,null,null,null,null,null,null,null,null,null,null,null,null,null,null,null,null,null,null,null,null,null,null,null,null,null,null,null,null,null,null,null,null,null,null,null,null,null,null,null,null,null,null,null,null,null,null,null,null,null,null,null,null,null,null,null,null,null,null,null,null,null,null,null,null,null,null,null,null,null,null,null,null,null,null,null,null,null,null,null,null,null,null,null,null,null,null,null,null,null,null,null,null,null,null,null,null,null,null,null,null,null,null,null,null,null,null,null,null,null,null,null,null,null,null,null,null,null,null,null,null,null,null,null,null,null,null,null,null,null,null,null,null,null,null,null,null,null,null,null,null,null,null,null,null,null,null,null,null,null,null,null,null,null,null,null,null,null,null,null,null,null,null,null,null,null,null,null,null,null,null,null,null,null,null,null,null,null,null,null,null,null,null,null,null,null,null,null,null,null,null,null,null,null,null,null,null,null,null,null,null,null,null,null,null,null,null,null,null,null,null,null,null,null,null,null,null,null,null,null,null,null,null,null,null,null,null,null,null,null,null,null,null,null,null,null,null,null,null,null,null,null,null,null,null,null,null,null,null,null,null,null,null,null,null,null,null,null,null,null,null,null,null,null,null,null,null,null,null,null,null,null,null,null,null,null,null,null,null,null,null,null,null,null,null,null,null,null,null,null,null,null,null,null,null,null,null,null,null,null,null,null,null,null,null,null,null,null,null,null,null,null,null,null,null,null,null,null,null,null,null,null,null,null,null,null,null,null,null,null,null,null,null,null,null,null,null,null,null,null,null,null,null,null,null,null,null,null,null,null,null,null,null,null,null,null,null,null,null,null,null,null,null,null,null,null,null,null,null,null,null,null,null,null,null,null,null,null,null,null,null,null,null,null,null,null,null,null,null,null,null,null,null,null,null,null,null,null,null,null,null,null,null,null,null,null,null,null,null,null,null,null,null,null,null,null,null,null,null,null,null,null,null,null,null,null,null,null,null,null,null,null,null,null,null,null,null,null,null,null,null,null,null,null,null,null,null,null,null,null,null,null,null,null,null,null,null,null,null,null,null,null,null,null,null,null,null,null,null,null,null,null,null,null,null,null,null,null,null,null,null,null,null,null,null,null,null,null,null,null,null,null,null,null,null,null,null,null,null,null,null,null,null,null,null,null,null,null,null,null,null,null,null,null,null,null,null,null,null,null,null,null,null,null,null,null,null,null,null,null,null,null,null,null,null,null,null,null,null,null,null,null,null,null,null,null,null,null,null,null,null,null,null,null,null,null,null,null,null,null,null,null,null,null,null,null,null,null,null,null,null,null,null,null,null,null,null,null,null,null,null,null,null,null,null,null,null,null,null,null,null,null,null,null,null,null,null,null,null,null,null,null,null,null,null,null,null,null,null,null,null,null,null,null,null,null,null,null,null,null,null,null,null,null,null,null,null,null,null,null,null,null,null,null,null,null,null,null,null,null,null,null,null,null,null,null,null,null,null,null,null,null,null,null,null,null,null,null,null,null,null,null,null,null,null,null,null,null,null,null,null,null,null,null,null,null,null,null,null,null,null,null,null,null,null,null,null,null,null,null,null,null,null,null,null,null,null,null,null,null,null,null,null,null,null,null,null,null,null,null,null,null,null,null,null,null,null,null,null,null,null,null,null,null,null,null,null,null,null,null,null,null,null,null,null,null,null,null,null,null,null,null,null,null,null,null,null,null,null,null,null,null,null,null,null,null,null,null,null,null,null,null,null,null,null,null,null,null,null,null,null,null,null,null,null,null,null,null,null,null,null,null,null,null,null,null,null,null,null,null,null,null,null,null,null,null,null,null,null,null,null,null,null,null,null,null,null,null,null,null,null,null,null,null,null,null,null,null,null,null,null,null,null,null,null,null,null,null,null,null,null,null,null,null,null,null,null,null,null,null,null,null,null,null,null,null,null,null,null,null,null,null,null,null,null,null,null,null,null,null,null,null,null,null,null,null,null,null,null,null,null,null,null,null,null,null,null,null,null,null,null,null,null,null,null,null,null,null,null,null,null,null,null,null,null,null,null,null,null,null,null,null,null,null,null,null,null,null,null,null,null,null,null,null,null,null,null,null,null,null,null,null,null,null,null,null,null,null,null,null,null,null,null,null,null,null,null,null,null,null,null,null,null,null,null,null,null,null,null,null,null,null,null,null,null,null,null,null,null,null,null,null,null,null,null,null,null,null,null,null,null,null,null,null,null,null,null,null,null,null,null,null,null,null,null,null,null,null,null,null,null,null,null,null,null,null,null,null,null,null,null,null,null,null,null,null,null,null,null,null,null,null,null,null,null,null,null,null,null,null,null,null,null,null,null,null,null,null,null,null,null,null,null,null,null,null,null,null,null,null,null,null,null,null,null,null,null,null,null,null,null,null,null,null,null,null,null,null,null,null,null,null,null,null,null,null,null,null,null,null,null,null,null,null,null,null,null,null,null,null,null,null,null,null,null,null,null,null,null,null,null,null,null,null,null,null,null,null,null,null,null,null,null,null,null,null,null,null,null,null,null,null,null,null,null,null,null,null,null,null,null,null,null,null,null,null,null,null,null,null,null,null,null,null,null,null,null,null,null,null,null,null,null,null,null,null,null,null,null,null,null,null,null,null,null,null,null,null,null,null,null,null,null,null,null,null,null,null,null,null,null,null,null,null,null,null,null,null,null,null,null,null,null,null,null,null,null,null,null,null,null,null,null,null,null,null,null,null,null,null,null,null,null,null,null,null,null,null,null,null,null,null,null,null,null,null,null,null,null,null,null,null,null,null,null,null,null,null,null,null,null,null,null,null,null,null,null,null,null,null,null,null,null,null,null,null,null,null,null,null,null,null,null,null,null,null,null,null,null,null,null,null,null,null,null,null,null,null,null,null,null,null,null,null,null,null,null,null,null,null,null,null,null,null,null,null,null,null,null,null,null,null,null,null,null,null,null,null,null,null,null,null,null,null,null,null,null,null,null,null,null,null,null,null,null,null,null,null,null,null,null,null,null,null,null,null,null,null,null,null,null,null,null,null,null,null,null,null,null,null,null,null,null,null,null,null,null,null,null,null,null,null,null,null,null,null,null,null,null,null,null,null,null,null,null,null,null,null,null,null,null,null,null,null,null,null,null,null,null,null,null,null,null,null,null,null,null,null,null,null,null,null,null,null,null,null,null,null,null,null,null,null,null,null,null,null,null,null,null,null,null,null,null,null,null,null,null,null,null,null,null,null,null,null,null,null,null,null,null,null,null,null,null,null,null,null,null,null,null,null,null,null,null,null,null,null,null,null,null,null,null,null,null,null,null,null,null,null,null,null,null,null,null,null,null,null,null,null,null,null,null,null,null,null,null,null,null,null,null,null,null,null,null,null,null,null,null,null,null,null,null,null,null,null,null,null,null,null,null,null,null,null,null,null,null,null,null,null,null,null,null,null,null,null,null,null,null,null,null,null,null,null,null,null,null,null,null,null,null,null,null,null,null,null,null,null,null,null,null,null,null,null,null,null,null,null,null,null,null,null,null,null,null,null,null,null,null,null,null,null,null,null,null,null,null,null,null,null,null,null,null,null,null,null,null,null,null,null,null,null,null,null,null,null,null,null,null,null,null,null,null,null,null,null,null,null,null,null,null,null,null,null,null,null,null,null,null,null,null,null,null,null,null,null,null,null,null,null,null,null,null,null,null,null,null,null,null,null,null,null,null,null,null,null,null,null,null,null,null,null,null,null,null,null,null,null,null,null,null,null,null,null,null,null,null,null,null,null,null,null,null,null,null,null,null,null,null,null,null,null,null,null,null,null,null,null,null,null,null,null,null,null,null,null,null,null,null,null,null,null,null,null,null,null,null,null,null,null,null,null,null,null,null,null,null,null,null,null,null,null,null,null,null,null,null,null,null,null,null,null,null,null,null,null,null,null,null,null,null,null,null,null,null,null,null,null,null,null,null,null,null,null,null,null,null,null,null,null,null,null,null,null,null,null,null,null,null,null,null,null,null,null,null,null,null,null,null,null,null,null,null,null,null,null,null,null,null,null,null,null,null,null,null,null,null,null,null,null,null,null,null,null,null,null,null,null,null,null,null,null,null,null,null,null,null,null,null,null,null,null,null,null,null,null,null,null,null,null,null,null,null,null,null,null,null,null,null,null,null,null,null,null,null,null,null,null,null,null,null,null,null,null,null,null,null,null,null,null,null,null,null,null,null,null,null,null,null,null,null,null,null,null,null,null,null,null,null,null,null,null,null,null,null,null,null,null,null,null,null,null,null,null,null,null,null,null,null,null,null,null,null,null,null,null,null,null,null,null,null,null,null,null,null,null,null,null,null,null,null,null,null,null,null,null,null,null,null,null,null,null,null,null,null,null,null,null,null,null,null,null,null,null,null,null,null,null,null,null,null,null,null,null,null,null,null,null,null,null,null,null,null,null,null,null,null,null,null,null,null,null,null,null,null,null,null,null,null,null,null,null,null,null,null,null,null,null,null,null,null,null,null,null,null,null,null,null,null,null,null,null,null,null,null,null,null,null,null,null,null,null,null,null,null,null,null,null,null,null,null,null,null,null,null,null,null,null,null,null,null,null,null,null,null,null,null,null,null,null,null,null,null,null,null,null,null,null,null,null,null,null,null,null,null,null,null,null,null,null,null,null,null,null,null,null,null,null,null,null,null,null,null,null,null,null,null,null,null,null,null,null,null,null,null,null,null,null,null,null,null,null,null,null,null,null,null,null,null,null,null,null,null,null,null,null,null,null,null,null,null,null,null,null,null,null,null,null,null,null,null,null,null,null,null,null,null,null,null,null,null,null,null,null,null,null,null,null,null,null,null,null,null,null,null,null,null,null,null,null,null,null,null,null,null,null,null,null,null,null,null,null,null,null,null,null,null,null,null,null,null,null,null,null,null,null,null,null,null,null,null,null,null,null,null,null,null,null,null,null,null,null,null,null,null,null,null,null,null,null,null,null,null,null,null,null,null,null,null,null,null,null,null,null,null,null,null,null,null,null,null,null,null,null,null,null,null,null,null,null,null,null,null,null,null,null,null,null,null,null,null,null,null,null,null,null,null,null,null,null,null,null,null,null,null,null,null,null,null,null,null,null,null,null,null,null,null,null,null,null,null,null,null,null,null,null,null,null,null,null,null,null,null,null,null,null,null,null,null,null,null,null,null,null,null,null,null,null,null,null,null,null,null,null,null,null,null,null,null,null,null,null,null,null,null,null,null,null,null,null,null,null,null,null,null,null,null,null,null,null,null,null,null,null,null,null,null,null,null,null,null,null,null,null,null,null,null,null,null,null,null,null,null,null,null,null,null,null,null,null,null,null,null,null,null,null,null,null,null,null,null,null,null,null,null,null,null,null,null,null,null,null,null,null,null,null,null,null,null,null,null,null,null,null,null,null,null,null,null,null,null,null,null,null,null,null,null,null,null,null,null,null,null,null,null,null,null,null,null,null,null,null,null,null,null,null,null,null,null,null,null,null,null,null,null,null,null,null,null,null,null,null,null,null,null,null,null,null,null,null,null,null,null,null,null,null,null,null,null,null,null,null,null,null,null,null,null,null,null,null,null,null,null,null,null,null,null,null,null,null,null,null,null,null,null,null,null,null,null,null,null,null,null,null,null,null,null,null,null,null,null,null,null,null,null,null,null,null,null,null,null,null,null,null,null,null,null,null,null,null,null,null,null,null,null,null,null,null,null,null,null,null,null,null,null,null,null,null,null,null,null,null,null,null,null,null,null,null,null,null,null,null,null,null,null,null,null,null,null,null,null,null,null,null,null,null,null,null,null,null,null,null,null,null,null,null,null,null,null,null,null,null,null,null,null,null,null,null,null,null,null,null,null,null,null,null,null,null,null,null,null,null,null,null,null,null,null,null,null,null,null,null,null,null,null,null,null,null,null,null,null,null,null,null,null,null,null,null,null,null,null,null,null,null,null,null,null,null,null,null,null,null,null,null,null,null,null,null,null,null,null,null,null,null,null,null,null,null,null,null,null,null,null,null,null,null,null,null,null,null,null,null,null,null,null,null,null,null,null,null,null,null,null,null,null,null,null,null,null,null,null,null,null,null,null,null,null,null,null,null,null,null,null,null,null,null,null,null,null,null,null,null,null,null,null,null,null,null,null,null,null,null,null,null,null,null,null,null,null,null,null,null,null,null,null,null,null,null,null,null,null,null,null,null,null,null,null,null,null,null,null,null,null,null,null,null,null,null,null,null,null,null,null,null,null,null,null,null,null,null,null,null,null,null,null,null,null,null,null,null,null,null,null,null,null,null,null,null,null,null,null,null,null,null,null,null,null,null,null,null,null,null,null,null,null,null,null,null,null,null,null,null,null,null,null,null,null,null,null,null,null,null,null,null,null,null,null,null,null,null,null,null,null,null,null,null,null,null,null,null,null,null,null,null,null,null,null,null,null,null,null,null,null,null,null,null,null,null,null,null,null,null,null,null,null,null,null,null,null,null,null,null,null,null,null,null,null,null,null,null,null,null,null,null,null,null,null,null,null,null,null,null,null,null,null,null,null,null,null,null,null,null,null,null,null,null,null,null,null,null,null,null,null,null,null,null,null,null,null,null,null,null,null,null,null,null,null,null,null,null,null,null,null,null,null,null,null,null,null,null,null,null,null,null,null,null,null,null,null,null,null,null,null,null,null,null,null,null,null,null,null,null,null,null,null,null,null,null,null,null,null,null,null,null,null,null,null,null,null,null,null,null,null,null,null,null,null,null,null,null,null,null,null,null,null,null,null,null,null,null,null,null,null,null,null,null,null,null,null,null,null,null,null,null,null,null,null,null,null,null,null,null,null,null,null,null,null,null,null,null,null,null,null,null,null,null,null,null,null,null,null,null,null,null,null,null,null,null,null,null,null,null,null,null,null,null,null,null,null,null,null,null,null,null,null,null,null,null,null,null,null,null,null,null,null,null,null,null,null,null,null,null,null,null,null,null,null,null,null,null,null,null,null,null,null,null,null,null,null,null,null,null,null,null,null,null,null,null,null,null,null,null,null,null,null,null,null,null,null,null,null,null,null,null,null,null,null,null,null,null,null,null,null,null,null,null,null,null,null,null,null,null,null,null,null,null,null,null,null,null,null,null,null,null,null,null,null,null,null,null,null,null,null,null,null,null,null,null,null,null,null,null,null,null,null,null,null,null,null,null,null,null,null,null,null,null,null,null,null,null,null,null,null,null,null,null,null,null,null,null,null,null,null,null,null,null,null,null,null,null,null,null,null,null,null,null,null,null,null,null,null,null,null,null,null,null,null,null,null,null,null,null,null,null,null,null,null,null,null,null,null,null,null,null,null,null,null,null,null,null,null,null,null,null,null,null,null,null,null,null,null,null,null,null,null,null,null,null,null,null,null,null,null,null,null,null,null,null,null,null,null,null,null,null,null,null,null,null,null,null,null,null,null,null,null,null,null,null,null,null,null,null,null,null,null,null,null,null,null,null,null,null,null,null,null,null,null,null,null,null,null,null,null,null,null,null,null,null,null,null,null,null,null,null,null,null,null,null,null,null,null,null,null,null,null,null,null,null,null,null,null,null,null,null,null,null,null,null,null,null,null,null,null,null,null,null,null,null,null,null,null,null,null,null,null,null,null,null,null,null,null,null,null,null,null,null,null,null,null,null,null,null,null,null,null,null,null,null,null,null,null,null,null,null,null,null,null,null,null,null,null,null,null,null,null,null,null,null,null,null,null,null,null,null,null,null,null,null,null,null,null,null,null,null,null,null,null,null,null,null,null,null,null,null,null,null,null,null,null,null,null,null,null,null,null,null,null,null,null,null,null,null,null,null,null,null,null,null,null,null,null,null,null,null,null,null,null,null,null,null,null,null,null,null,null,null,null,null,null,null,null,null,null,null,null,null,null,null,null,null,null,null,null,null,null,null,null,null,null,null,null,null,null,null,null,null,null,null,null,null,null,null,null,null,null,null,null,null,null,null,null,null,null,null,null,null,null,null,null,null,null,null,null,null,null,null,null,null,null,null,null,null,null,null,null,null,null,null,null,null,null,null,null,null,null,null,null,null,null,null,null,null,null,null,null,null,null,null,null,null,null,null,null,null,null,null,null,null,null,null,null,null,null,null,null,null,null,null,null,null,null,null,null,null,null,null,null,null,null,null,null,null,null,null,null,null,null,null,null,null,null,null,null,null,null,null,null,null,null,null,null,null,null,null,null,null,null,null,null,null,null,null,null,null,null,null,null,null,null,null,null,null,null,null,null,null,null,null,null,null,null,null,null,null,null,null,null,null,null,null,null,null,null,null,null,null,null,null,null,null,null,null,null,null,null,null,null,null,null,null,null,null,null,null,null,null,null,null,null,null,null,null,null,null,null,null,null,null,null,null,null,null,null,null,null,null,null,null,null,null,null,null,null,null,null,null,null,null,null,null,null,null,null,null,null,null,null,null,null,null,null,null,null,null,null,null,null,null,null,null,null,null,null,null,null,null,null,null,null,null,null,null,null,null,null,null,null,null,null,null,null,null,null,null,null,null,null,null,null,null,null,null,null,null,null,null,null,null,null,null,null,null,null,null,null,null,null,null,null,null,null,null,null,null,null,null,null,null,null,null,null,null,null,null,null,null,null,null,null,null,null,null,null,null,null,null,null,null,null,null,null,null,null,null,null,null,null,null,null,null,null,null,null,null,null,null,null,null,null,null,null,null,null,null,null,null,null,null,null,null,null,null,null,null,null,null,null,null,null,null,null,null,null,null,null,null,null,null,null,null,null,null,null,null,null,null,null,null,null,null,null,null,null,null,null,null,null,null,null,null,null,null,null,null,null,null,null,null,null,null,null,null,null,null,null,null,null,null,null,null,null,null,null,null,null,null,null,null,null,null,null,null,null,null,null,null,null,null,null,null,null,null,null,null,null,null,null,null,null,null,null,null,null,null,null,null,null,null,null,null,null,null,null,null,null,null,null,null,null,null,null,null,null,null,null,null,null,null,null,null,null,null,null,null,null,null,null,null,null,null,null,null,null,null,null,null,null,null,null,null,null,null,null,null,null,null,null,null,null,null,null,null,null,null,null,null,null,null,null,null,null,null,null,null,null,null,null,null,null,null,null,null,null,null,null,null,null,null,null,null,null,null,null,null,null,null,null,null,null,null,null,null,null,null,null,null,null,null,null,null,null,null,null,null,null,null,null,null,null,null,null,null,null,null,null,null,null,null,null,null,null,null,null,null,null,null,null,null,null,null,null,null,null,null,null,null,null,null,null,null,null,null,null,null,null,null,null,null,null,null,null,null,null,null,null,null,null,null,null,null,null,null,null,null,null,null,null,null,null,null,null,null,null,null,null,null,null,null,null,null,null,null,null,null,null,null,null,null,null,null,null,null,null,null,null,null,null,null,null,null,null,null,null,null,null,null,null,null,null,null,null,null,null,null,null,null,null,null,null,null,null,null,null,null,null,null,null,null,null,null,null,null,null,null,null,null,null,null,null,null,null,null,null,null,null,null,null,null,null,null,null,null,null,null,null,null,null,null,null,null,null,null,null,null,null,null,null,null,null,null,null,null,null,null,null,null,null,null,null,null,null,null,null,null,null,null,null,null,null,null,null,null,null,null,null,null,null,null,null,null,null,null,null,null,null,null,null,null,null,null,null,null,null,null,null,null,null,null,null,null,null,null,null,null,null,null,null,null,null,null,null,null,null,null,null,null,null,null,null,null,null,null,null,null,null,null,null,null,null,null,null,null,null,null,null,null,null,null,null,null,null,null,null,null,null,null,null,null,null,null,null,null,null,null,null,null,null,null,null,null,null,null,null,null,null,null,null,null,null,null,null,null,null,null,null,null,null,null,null,null,null,null,null,null,null,null,null,null,null,null,null,null,null,null,null,null,null,null,null,null,null,null,null,null,null,null,null,null,null,null,null,null,null,null,null,null,null,null,null,null,null,null,null,null,null,null,null,null,null,null,null,null,null,null,null,null,null,null,null,null,null,null,null,null,null,null,null,null,null,null,null,null,null,null,null,null,null,null,null,null,null,null,null,null,null,null,null,null,null,null,null,null,null,null,null,null,null,null,null,null,null,null,null,null,null,null,null,null,null,null,null,null,null,null,null,null,null,null,null,null,null,null,null,null,null,null,null,null,null,null,null,null,null,null,null,null,null,null,null,null,null,null,null,null,null,null,null,null,null,null,null,null,null,null,null,null,null,null,null,null,null,null,null,null,null,null,null,null,null,null,null,null,null,null,null,null,null,null,null,null,null,null,null,null,null,null,null,null,null,null,null,null,null,null,null,null,null,null,null,null,null,null,null,null,null,null,null,null,null,null,null,null,null,null,null,null,null,null,null,null,null,null,null,null,null,null,null,null,null,null,null,null,null,null,null,null,null,null,null,null,null,null,null,null,null,null,null,null,null,null,null,null,null,null,null,null,null,null,null,null,null,null,null,null,null,null,null,null,null,null,null,null,null,null,null,null,null,null,null,null,null,null,null,null,null,null,null,null,null,null,null,null,null,null,null,null,null,null,null,null,null,null,null,null,null,null,null,null,null,null,null,null,null,null,null,null,null,null,null,null,null,null,null,null,null,null,null,null,null,null,null,null,null,null,null,null,null,null,null,null,null,null,null,null,null,null,null,null,null,null,null,null,null,null,null,null,null,null,null,null,null,null,null,null,null,null,null,null,null,null,null,null,null,null,null,null,null,null,null,null,null,null,null,null,null,null,null,null,null,null,null,null,null,null,null,null,null,null,null,null,null,null,null,null,null,null,null,null,null,null,null,null,null,null,null,null,null,null,null,null,null,null,null,null,null,null,null,null,null,null,null,null,null,null,null,null,null,null,null,null,null,null,null,null,null,null,null,null,null,null,null,null,null,null,null,null,null,null,null,null,null,null,null,null,null,null,null,null,null,null,null,null,null,null,null,null,null,null,null,null,null,null,null,null,null,null,null,null,null,null,null,null,null,null,null,null,null,null,null,null,null,null,null,null,null,null,null,null,null,null,null,null,null,null,null,null,null,null,null,null,null,null,null,null,null,null,null,null,null,null,null,null,null,null,null,null,null,null,null,null,null,null,null,null,null,null,null,null,null,null,null,null,null,null,null,null,null,null,null,null,null,null,null,null,null,null,null,null,null,null,null,null,null,null,null,null,null,null,null,null,null,null,null,null,null,null,null,null,null,null,null,null,null,null,null,null,null,null,null,null,null,null,null,null,null,null,null,null,null,null,null,null,null,null,null,null,null,null,null,null,null,null,null,null,null,null,null,null,null,null,null,null,null,null,null,null,null,null,null,null,null,null,null,null,null,null,null,null,null,null,null,null,null,null,null,null,null,null,null,null,null,null,null,null,null,null,null,null,null,null,null,null,null,null,null,null,null,null,null,null,null,null,null,null,null,null,null,null,null,null,null,null,null,null,null,null,null,null,null,null,null,null,null,null,null,null,null,null,null,null,null,null,null,null,null,null,null,null,null,null,null,null,null,null,null,null,null,null,null,null,null,null,null,null,null,null,null,null,null,null,null,null,null,null,null,null,null,null,null,null,null,null,null,null,null,null,null,null,null,null,null,null,null,null,null,null,null,null,null,null,null,null,null,null,null,null,null,null,null,null,null,null,null,null,null,null,null,null,null,null,null,null,null,null,null,null,null,null,null,null,null,null,null,null,null,null,null,null,null,null,null,null,null,null,null,null,null,null,null,null,null,null,null,null,null,null,null,null,null,null,null,null,null,null,null,null,null,null,null,null,null,null,null,null,null,null,null,null,null,null,null,null,null,null,null,null,null,null,null,null,null,null,null,null,null,null,null,null,null,null,null,null,null,null,null,null,null,null,null,null,null,null,null,null,null,null,null,null,null,null,null,null,null,null,null,null,null,null,null,null,null,null,null,null,null,null,null,null,null,null,null,null,null,null,null,null,null,null,null,null,null,null,null,null,null,null,null,null,null,null,null,null,null,null,null,null,null,null,null,null,null,null,null,null,null,null,null,null,null,null,null,null,null,null,null,null,null,null,null,null,null,null,null,null,null,null,null,null,null,null,null,null,null,null,null,null,null,null,null,null,null,null,null,null,null,null,null,null,null,null,null,null,null,null,null,null,null,null,null,null,null,null,null,null,null,null,null,null,null,null,null,null,null,null,null,null,null,null,null,null,null,null,null,null,null,null,null,null,null,null,null,null,null,null,null,null,null,null,null,null,null,null,null,null,null,null,null,null,null,null,null,null,null,null,null,null,null,null,null,null,null,null,null,null,null,null,null,null,null,null,null,null,null,null,null,null,null,null,null,null,null,null,null,null,null,null,null,null,null,null,null,null,null,null,null,null,null,null,null,null,null,null,null,null,null,null,null,null,null,null,null,null,null,null,null,null,null,null,null,null,null,null,null,null,null,null,null,null,null,null,null,null,null,null,null,null,null,null,null,null,null,null,null,null,null,null,null,null,null,null,null,null,null,null,null,null,null,null,null,null,null,null,null,null,null,null,null,null,null,null,null,null,null,null,null,null,null,null,null,null,null,null,null,null,null,null,null,null,null,null,null,null,null,null,null,null,null,null,null,null,null,null,null,null,null,null,null,null,null,null,null,null,null,null,null,null,null,null,null,null,null,null,null,null,null,null,null,null,null,null,null,null,null,null,null,null,null,null,null,null,null,null,null,null,null,null,null,null,null,null,null,null,null,null,null,null,null,null,null,null,null,null,null,null,null,null,null,null,null,null,null,null,null,null,null,null,null,null,null,null,null,null,null,null,null,null,null,null,null,null,null,null,null,null,null,null,null,null,null,null,null,null,null,null,null,null,null,null,null,null,null,null,null,null,null,null,null,null,null,null,null,null,null,null,null,null,null,null,null,null,null,null,null,null,null,null,null,null,null,null,null,null,null,null,null,null,null,null,null,null,null,null,null,null,null,null,null,null,null,null,null,null,null,null,null,null,null,null,null,null,null,null,null,null,null,null,null,null,null,null,null,null,null,null,null,null,null,null,null,null,null,null,null,null,null,null,null,null,null,null,null,null,null,null,null,null,null,null,null,null,null,null,null,null,null,null,null,null,null,null,null,null,null,null,null,null,null,null,null,null,null,null,null,null,null,null,null,null,null,null,null,null,null,null,null,null,null,null,null,null,null,null,null,null,null,null,null,null,null,null,null,null,null,null,null,null,null,null,null,null,null,null,null,null,null,null,null,null,null,null,null,null,null,null,null,null,null,null,null,null,null,null,null,null,null,null,null,null,null,null,null,null,null,null,null,null,null,null,null,null,null,null,null,null,null,null,null,null,null,null,null,null,null,null,null,null,null,null,null,null,null,null,null,null,null,null,null,null,null,null,null,null,null,null,null,null,null,null,null,null,null,null,null,null,null,null,null,null,null,null,null,null,null,null,null,null,null,null,null,null,null,null,null,null,null,null,null,null,null,null,null,null,null,null,null,null,null,null,null,null,null,null,null,null,null,null,null,null,null,null,null,null,null,null,null,null,null,null,null,null,null,null,null,null,null,null,null,null,null,null,null,null,null,null,null,null,null,null,null,null,null,null,null,null,null,null,null,null,null,null,null,null,null,null,null,null,null,null,null,null,null,null,null,null,null,null,null,null,null,null,null,null,null,null,null,null,null,null,null,null,null,null,null,null,null,null,null,null,null,null,null,null,null,null,null,null,null,null,null,null,null,null,null,null,null,null,null,null,null,null,null,null,null,null,null,null,null,null,null,null,null,null,null,null,null,null,null,null,null,null,null,null,null,null,null,null,null,null,null,null,null,null,null,null,null,null,null,null,null,null,null,null,null,null,null,null,null,null,null,null,null,null,null,null,null,null,null,null,null,null,null,null,null,null,null,null,null,null,null,null,null,null,null,null,null,null,null,null,null,null,null,null,null,null,null,null,null,null,null,null,null,null,null,null,null,null,null,null,null,null,null,null,null,null,null,null,null,null,null,null,null,null,null,null,null,null,null,null,null,null,null,null,null,null,null,null,null,null,null,null,null,null,null,null,null,null,null,null,null,null,null,null,null,null,null,null,null,null,null,null,null,null,null,null,null,null,null,null,null,null,null,null,null,null,null,null,null,null,null,null,null,null,null,null,null,null,null,null,null,null,null,null,null,null,null,null,null,null,null,null,null,null,null,null,null,null,null,null,null,null,null,null,null,null,null,null,null,null,null,null,null,null,null,null,null,null,null,null,null,null,null,null,null,null,null,null,null,null,null,null,null,null,null,null,null,null,null,null,null,null,null,null,null,null,null,null,null,null,null,null,null,null,null,null,null,null,null,null,null,null,null,null,null,null,null,null,null,null,null,null,null,null,null,null,null,null,null,null,null,null,null,null,null,null,null,null,null,null,null,null,null,null,null,null,null,null,null,null,null,null,null,null,null,null,null,null,null,null,null,null,null,null,null,null,null,null,null,null,null,null,null,null,null,null,null,null,null,null,null,null,null,null,null,null,null,null,null,null,null,null,null,null,null,null,null,null,null,null,null,null,null,null,null,null,null,null,null,null,null,null,null,null,null,null,null,null,null,null,null,null,null,null,null,null,null,null,null,null,null,null,null,null,null,null,null,null,null,null,null,null,null,null,null,null,null,null,null,null,null,null,null,null,null,null,null,null,null,null,null,null,null,null,null,null,null,null,null,null,null,null,null,null,null,null,null,null,null,null,null,null,null,null,null,null,null,null,null,null,null,null,null,null,null,null,null,null,null,null,null,null,null,null,null,null,null,null,null,null,null,null,null,null,null,null,null,null,null,null,null,null,null,null,null,null,null,null,null,null,null,null,null,null,null,null,null,null,null,null,null,null,null,null,null,null,null,null,null,null,null,null,null,null,null,null,null,null,null,null,null,null,null,null,null,null,null,null,null,null,null,null,null,null,null,null,null,null,null,null,null,null,null,null,null,null,null,null,null,null,null,null,null,null,null,null,null,null,null,null,null,null,null,null,null,null,null,null,null,null,null,null,null,null,null,null,null,null,null,null,null,null,null,null,null,null,null,null,null,null,null,null,null,null,null,null,null,null,null,null,null,null,null,null,null,null,null,null,null,null,null,null,null,null,null,null,null,null,null,null,null,null,null,null,null,null,null,null,null,null,null,null,null,null,null,null,null,null,null,null,null,null,null,null,null,null,null,null,null,null,null,null,null,null,null,null,null,null,null,null,null,null,null,null,null,null,null,null,null,null,null,null,null,null,null,null,null,null,null,null,null,null,null,null,null,null,null,null,null,null,null,null,null,null,null,null,null,null,null,null,null,null,null,null,null,null,null,null,null,null,null,null,null,null,null,null,null,null,null,null,null,null,null,null,null,null,null,null,null,null,null,null,null,null,null,null,null,null,null,null,null,null,null,null,null,null,null,null,null,null,null,null,null,null,null,null,null,null,null,null,null,null,null,null,null,null,null,null,null,null,null,null,null,null,null,null,null,null,null,null,null,null,null,null,null,null,null,null,null,null,null,null,null,null,null,null,null,null,null,null,null,null,null,null,null,null,null,null,null,null,null,null,null,null,null,null,null,null,null,null,null,null,null,null,null,null,null,null,null,null,null,null,null,null,null,null,null,null,null,null,null,null,null,null,null,null,null,null,null,null,null,null,null,null,null,null,null,null,null,null,null,null,null,null,null,null,null,null,null,null,null,null,null,null,null,null,null,null,null,null,null,null,null,null,null,null,null,null,null,null,null,null,null,null,null,null,null,null,null,null,null,null,null,null,null,null,null,null,null,null,null,null,null,null,null,null,null,null,null,null,null,null,null,null,null,null,null,null,null,null,null,null,null,null,null,null,null,null,null,null,null,null,null,null,null,null,null,null,null,null,null,null,null,null,null,null,null,null,null,null,null,null,null,null,null,null,null,null,null,null,null,null,null,null,null,null,null,null,null,null,null,null,null,null,null,null,null,null,null,null,null,null,null,null,null,null,null,null,null,null,null,null,null,null,null,null,null,null,null,null,null,null,null,null,null,null,null,null,null,null,null,null,null,null,null,null,null,null,null,null,null,null,null,null,null,null,null,null,null,null,null,null,null,null,null,null,null,null,null,null,null,null,null,null,null,null,null,null,null,null,null,null,null,null,null,null,null,null,null,null,null,null,null,null,null,null,null,null,null,null,null,null,null,null,null,null,null,null,null,null,null,null,null,null,null,null,null,null,null,null,null,null,null,null,null,null,null,null,null,null,null,null,null,null,null,null,null,null,null,null,null,null,null,null,null,null,null,null,null,null,null,null,null,null,null,null,null,null,null,null,null,null,null,null,null,null,null,null,null,null,null,null,null,null,null,null,null,null,null,null,null,null,null,null,null,null,null,null,null,null,null,null,null,null,null,null,null,null,null,null,null,null,null,null,null,null,null,null,null,null,null,null,null,null,null,null,null,null,null,null,null,null,null,null,null,null,null,null,null,null,null,null,null,null,null,null,null,null,null,null,null,null,null,null,null,null,null,null,null,null,null,null,null,null,null,null,null,null,null,null,null,null,null,null,null,null,null,null,null,null,null,null,null,null,null,null,null,null,null,null,null,null,null,null,null,null,null,null,null,null,null,null,null,null,null,null,null,null,null,null,null,null,null,null,null,null,null,null,null,null,null,null,null,null,null,null,null,null,null,null,null,null,null,null,null,null,null,null,null,null,null,null,null,null,null,null,null,null,null,null,null,null,null,null,null,null,null,null,null,null,null,null,null,null,null,null,null,null,null,null,null,null,null,null,null,null,null,null,null,null,null,null,null,null,null,null,null,null,null,null,null,null,null,null,null,null,null,null,null,null,null,null,null,null,null,null,null,null,null,null,null,null,null,null,null,null,null,null,null,null,null,null,null,null,null,null,null,null,null,null,null,null,null,null,null,null,null,null,null,null,null,null,null,null,null,null,null,null,null,null,null,null,null,null,null,null,null,null,null,null,null,null,null,null,null,null,null,null,null,null,null,null,null,null,null,null,null,null,null,null,null,null,null,null,null,null,null,null,null,null,null,null,null,null,null,null,null,null,null,null,null,null,null,null,null,null,null,null,null,null,null,null,null,null,null,null,null,null,null,null,null,null,null,null,null,null,null,null,null,null,null,null,null,null,null,null,null,null,null,null,null,null,null,null,null,null,null,null,null,null,null,null,null,null,null,null,null,null,null,null,null,null,null,null,null,null,null,null,null,null,null,null,null,null,null,null,null,null,null,null,null,null,null,null,null,null,null,null,null,null,null,null,null,null,null,null,null,null,null,null,null,null,null,null,null,null,null,null,null,null,null,null,null,null,null,null,null,null,null,null,null,null,null,null,null,null,null,null,null,null,null,null,null,null,null,null,null,null,null,null,null,null,null,null,null,null,null,null,null,null,null,null,null,null,null,null,null,null,null,null,null,null,null,null,null,null,null,null,null,null,null,null,null,null,null,null,null,null,null,null,null,null,null,null,null,null,null,null,null,null,null,null,null,null,null,null,null,null,null,null,null,null,null,null,null,null,null,null,null,null,null,null,null,null,null,null,null,null,null,null,null,null,null,null,null,null,null,null,null,null,null,null,null,null,null,null,null,null,null,null,null,null,null,null,null,null,null,null,null,null,null,null,null,null,null,null,null,null,null,null,null,null,null,null,null,null,null,null,null,null,null,null,null,null,null,null,null,null,null,null,null,null,null,null,null,null,null,null,null,null,null,null,null,null,null,null,null,null,null,null,null,null,null,null,null,null,null,null,null,null,null,null,null,null,null,null,null,null,null,null,null,null,null,null,null,null,null,null,null,null,null,null,null,null,null,null,null,null,null,null,null,null,null,null,null,null,null,null,null,null,null,null,null,null,null,null,null,null,null,null,null,null,null,null,null,null,null,null,null,null,null,null,null,null,null,null,null,null,null,null,null,null,null,null,null,null,null,null,null,null,null,null,null,null,null,null,null,null,null,null,null,null,null,null,null,null,null,null,null,null,null,null,null,null,null,null,null,null,null,null,null,null,null,null,null,null,null,null,null,null,null,null,null,null,null,null,null,null,null,null,null,null,null,null,null,null,null,null,null,null,null,null,null,null,null,null,null,null,null,null,null,null,null,null,null,null,null,null,null,null,null,null,null,null,null,null,null,null,null,null,null,null,null,null,null,null,null,null,null,null,null,null,null,null,null,null,null,null,null,null,null,null,null,null,null,null,null,null,null,null,null,null,null,null,null,null,null,null,null,null,null,null,null,null,null,null,null,null,null,null,null,null,null,null,null,null,null,null,null,null,null,null,null,null,null,null,null,null,null,null,null,null,null,null,null,null,null,null,null,null,null,null,null,null,null,null,null,null,null,null,null,null,null,null,null,null,null,null,null,null,null,null,null,null,null,null,null,null,null,null,null,null,null,null,null,null,null,null,null,null,null,null,null,null,null,null,null,null,null,null,null,null,null,null,null,null,null,null,null,null,null,null,null,null,null,null,null,null,null,null,null,null,null,null,null,null,null,null,null,null,null,null,null,null,null,null,null,null,null,null,null,null,null,null,null,null,null,null,null,null,null,null,null,null,null,null,null,null,null,null,null,null,null,null,null,null,null,null,null,null,null,null,null,null,null,null,null,null,null,null,null,null,null,null,null,null,null,null,null,null,null,null,null,null,null,null,null,null,null,null,null,null,null,null,null,null,null,null,null,null,null,null,null,null,null,null,null,null,null,null,null,null,null,null,null,null,null,null,null,null,null,null,null,null,null,null,null,null,null,null,null,null,null,null,null,null,null,null,null,null,null,null,null,null,null,null,null,null,null,null,null,null,null,null,null,null,null,null,null,null,null,null,null,null,null,null,null,null,null,null,null,null,null,null,null,null,null,null,null,null,null,null,null,null,null,null,null,null,null,null,null,null,null,null,null,null,null,null,null,null,null,null,null,null,null,null,null,null,null,null,null,null,null,null,null,null,null,null,null,null,null,null,null,null,null,null,null,null,null,null,null,null,null,null,null,null,null,null,null,null,null,null,null,null,null,null,null,null,null,null,null,null,null,null,null,null,null,null,null,null,null,null,null,null,null,null,null,null,null,null,null,null,null,null,null,null,null,null,null,null,null,null,null,null,null,null,null,null,null,null,null,null,null,null,null,null,null,null,null,null,null,null,null,null,null,null,null,null,null,null,null,null,null,null,null,null,null,null,null,null,null,null,null,null,null,null,null,null,null,null,null,null,null,null,null,null,null,null,null,null,null,null,null,null,null,null,null,null,null,null,null,null,null,null,null,null,null,null,null,null,null,null,null,null,null,null,null,null,null,null,null,null,null,null,null,null,null,null,null,null,null,null,null,null,null,null,null,null,null,null,null,null,null,null,null,null,null,null,null,null,null,null,null,null,null,null,null,null,null,null,null,null,null,null,null,null,null,null,null,null,null,null,null,null,null,null,null,null,null,null,null,null,null,null,null,null,null,null,null,null,null,null,null,null,null,null,null,null,null,null,null,null,null,null,null,null,null,null,null,null,null,null,null,null,null,null,null,null,null,null,null,null,null,null,null,null,null,null,null,null,null,null,null,null,null,null,null,null,null,null,null,null,null,null,null,null,null,null,null,null,null,null,null,null,null,null,null,null,null,null,null,null,null,null,null,null,null,null,null,null,null,null,null,null,null,null,null,null,null,null,null,null,null,null,null,null,null,null,null,null,null,null,null,null,null,null,null,null,null,null,null,null,null,null,null,null,null,null,null,null,null,null,null,null,null,null,null,null,null,null,null,null,null,null,null,null,null,null,null,null,null,null,null,null,null,null,null,null,null,null,null,null,null,null,null,null,null,null,null,null,null,null,null,null,null,null,null,null,null,null,null,null,null,null,null,null,null,null,null,null,null,null,null,null,null,null,null,null,null,null,null,null,null,null,null,null,null,null,null,null,null,null,null,null,null,null,null,null,null,null,null,null,null,null,null,null,null,null,null,null,null,null,null,null,null,null,null,null,null,null,null,null,null,null,null,null,null,null,null,null,null,null,null,null,null,null,null,null,null,null,null,null,null,null,null,null,null,null,null,null,null,null,null,null,null,null,null,null,null,null,null,null,null,null,null,null,null,null,null,null,null,null,null,null,null,null,null,null,null,null,null,null,null,null,null,null,null,null,null,null,null,null,null,null,null,null,null,null,null,null,null,null,null,null,null,null,null,null,null,null,null,null,null,null,null,null,null,null,null,null,null,null,null,null,null,null,null,null,null,null,null,null,null,null,null,null,null,null,null,null,null,null,null,null,null,null,null,null,null,null,null,null,null,null,null,null,null,null,null,null,null,null,null,null,null,null,null,null,null,null,null,null,null,null,null,null,null,null,null,null,null,null,null,null,null,null,null,null,null,null,null,null,null,null,null,null,null,null,null,null,null,null,null,null,null,null,null,null,null,null,null,null,null,null,null,null,null,null,null,null,null,null,null,null,null,null,null,null,null,null,null,null,null,null,null,null,null,null,null,null,null,null,null,null,null,null,null,null,null,null,null,null,null,null,null,null,null,null,null,null,null,null,null,null,null,null,null,null,null,null,null,null,null,null,null,null,null,null,null,null,null,null,null,null,null,null,null,null,null,null,null,null,null,null,null,null,null,null,null,null,null,null,null,null,null,null,null,null,null,null,null,null,null,null,null,null,null,null,null,null,null,null,null,null,null,null,null,null,null,null,null,null,null,null,null,null,null,null,null,null,null,null,null,null,null,null,null,null,null,null,null,null,null,null,null,null,null,null,null,null,null,null,null,null,null,null,null,null,null,null,null,null,null,null,null,null,null,null,null,null,null,null,null,null,null,null,null,null,null,null,null,null,null,null,null,null,null,null,null,null,null,null,null,null,null,null,null,null,null,null,null,null,null,null,null,null,null,null,null,null,null,null,null,null,null,null,null,null,null,null,null,null,null,null,null,null,null,null,null,null,null,null,null,null,null,null,null,null,null,null,null,null,null,null,null,null,null,null,null,null,null,null,null,null,null,null,null,null,null,null,null,null,null,null,null,null,null,null,null,null,null,null,null,null,null,null,null,null,null,null,null,null,null,null,null,null,null,null,null,null,null,null,null,null,null,null,null,null,null,null,null,null,null,null,null,null,null,null,null,null,null,null,null,null,null,null,null,null,null,null,null,null,null,null,null,null,null,null,null,null,null,null,null,null,null,null,null,null,null,null,null,null,null,null,null,null,null,null,null,null,null,null,null,null,null,null,null,null,null,null,null,null,null,null,null,null,null,null,null,null,null,null,null,null,null,null,null,null,null,null,null,null,null,null,null,null,null,null,null,null,null,null,null,null,null,null,null,null,null,null,null,null,null,null,null,null,null,null,null,null,null,null,null,null,null,null,null,null,null,null,null,null,null,null,null,null,null,null,null,null,null,null,null,null,null,null,null,null,null,null,null,null,null,null,null,null,null,null,null,null,null,null,null,null,null,null,null,null,null,null,null,null,null,null,null,null,null,null,null,null,null,null,null,null,null,null,null,null,null,null,null,null,null,null,null,null,null,null,null,null,null,null,null,null,null,null,null,null,null,null,null,null,null,null,null,null,null,null,null,null,null,null,null,null,null,null,null,null,null,null,null,null,null,null,null,null,null,null,null,null,null,null,null,null,null,null,null,null,null,null,null,null,null,null,null,null,null,null,null,null,null,null,null,null,null,null,null,null,null,null,null,null,null,null,null,null,null,null,null,null,null,null,null,null,null,null,null,null,null,null,null,null,null,null,null,null,null,null,null,null,null,null,null,null,null,null,null,null,null,null,null,null,null,null,null,null,null,null,null,null,null,null,null,null,null,null,null,null,null,null,null,null,null,null,null,null,null,null,null,null,null,null,null,null,null,null,null,null,null,null,null,null,null,null,null,null,null,null,null,null,null,null,null,null,null,null,null,null,null,null,null,null,null,null,null,null,null,null,null,null,null,null,null,null,null,null,null,null,null,null,null,null,null,null,null,null,null,null,null,null,null,null,null,null,null,null,null,null,null,null,null,null,null,null,null,null,null,null,null,null,null,null,null,null,null,null,null,null,null,null,null,null,null,null,null,null,null,null,null,null,null,null,null,null,null,null,null,null,null,null,null,null,null,null,null,null,null,null,null,null,null,null,null,null,null,null,null,null,null,null,null,null,null,null,null,null,null,null,null,null,null,null,null,null,null,null,null,null,null,null,null,null,null,null,null,null,null,null,null,null,null,null,null,null,null,null,null,null,null,null,null,null,null,null,null,null,null,null,null,null,null,null,null,null,null,null,null,null,null,null,null,null,null,null,null,null,null,null,null,null,null,null,null,null,null,null,null,null,null,null,null,null,null,null,null,null,null,null,null,null,null,null,null,null,null,null,null,null,null,null,null,null,null,null,null,null,null,null,null,null,null,null,null,null,null,null,null,null,null,null,null,null,null,null,null,null,null,null,null,null,null,null,null,null,null,null,null,null,null,null,null,null,null,null,null,null,null,null,null,null,null,null,null,null,null,null,null,null,null,null,null,null,null,null,null,null,null,null,null,null,null,null,null,null,null,null,null,null,null,null,null,null,null,null,null,null,null,null,null,null,null,null,null,null,null,null,null,null,null,null,null,null,null,null,null,null,null,null,null,null,null,null,null,null,null,null,null,null,null,null,null,null,null,null,null,null,null,null,null,null,null,null,null,null,null,null,null,null,null,null,null,null,null,null,null,null,null,null,null,null,null,null,null,null,null,null,null,null,null,null,null,null,null,null,null,null,null,null,null,null,null,null,null,null,null,null,null,null,null,null,null,null,null,null,null,null,null,null,null,null,null,null,null,null,null,null,null,null,null,null,null,null,null,null,null,null,null,null,null,null,null,null,null,null,null,null,null,null,null,null,null,null,null,null,null,null,null,null,null,null,null,null,null,null,null,null,null,null,null,null,null,null,null,null,null,null,null,null,null,null,null,null,null,null,null,null,null,null,null,null,null,null,null,null,null,null,null,null,null,null,null,null,null,null,null,null,null,null,null,null,null,null,null,null,null,null,null,null,null,null,null,null,null,null,null,null,null,null,null,null,null,null,null,null,null,null,null,null,null,null,null,null,null,null,null,null,null,null,null,null,null,null,null,null,null,null,null,null,null,null,null,null,null,null,null,null,null,null,null,null,null,null,null,null,null,null,null,null,null,null,null,null,null,null,null,null,null,null,null,null,null,null,null,null,null,null,null,null,null,null,null,null,null,null,null,null,null,null,null,null,null,null,null,null,null,null,null,null,null,null,null,null,null,null,null,null,null,null,null,null,null,null,null,null,null,null,null,null,null,null,null,null,null,null,null,null,null,null,null,null,null,null,null,null,null,null,null,null,null,null,null,null,null,null,null,null,null,null,null,null,null,null,null,null,null,null,null,null,null,null,null,null,null,null,null,null,null,null,null,null,null,null,null,null,null,null,null,null,null,null,null,null,null,null,null,null,null,null,null,null,null,null,null,null,null,null,null,null,null,null,null,null,null,null,null,null,null,null,null,null,null,null,null,null,null,null,null,null,null,null,null,null,null,null,null,null,null,null,null,null,null,null,null,null,null,null,null,null,null,null,null,null,null,null,null,null,null,null,null,null,null,null,null,null,null,null,null,null,null,null,null,null,null,null,null,null,null,null,null,null,null,null,null,null,null,null,null,null,null,null,null,null,null,null,null,null,null,null,null,null,null,null,null,null,null,null,null,null,null,null,null,null,null,null,null,null,null,null,null,null,null,null,null,null,null,null,null,null,null,null,null,null,null,null,null,null,null,null,null,null,null,null,null,null,null,null,null,null,null,null,null,null,null,null,null,null,null,null,null,null,null,null,null,null,null,null,null,null,null,null,null,null,null,null,null,null,null,null,null,null,null,null,null,null,null,null,null,null,null,null,null,null,null,null,null,null,null,null,null,null,null,null,null,null,null,null,null,null,null,null,null,null,null,null,null,null,null,null,null,null,null,null,null,null,null,null,null,null,null,null,null,null,null,null,null,null,null,null,null,null,null,null,null,null,null,null,null,null,null,null,null,null,null,null,null,null,null,null,null,null,null,null,null,null,null,null,null,null,null,null,null,null,null,null,null,null,null,null,null,null,null,null,null,null,null,null,null,null,null,null,null,null,null,null,null,null,null,null,null,null,null,null,null,null,null,null,null,null,null,null,null,null,null,null,null,null,null,null,null,null,null,null,null,null,null,null,null,null,null,null,null,null,null,null,null,null,null,null,null,null,null,null,null,null,null,null,null,null,null,null,null,null,null,null,null,null,null,null,null,null,null,null,null,null,null,null,null,null,null,null,null,null,null,null,null,null,null,null,null,null,null,null,null,null,null,null,null,null,null,null,null,null,null,null,null,null,null,null,null,null,null,null,null,null,null,null,null,null,null,null,null,null,null,null,null,null,null,null,null,null,null,null,null,null,null,null,null,null,null,null,null,null,null,null,null,null,null,null,null,null,null,null,null,null,null,null,null,null,null,null,null,null,null,null,null,null,null,null,null,null,null,null,null,null,null,null,null,null,null,null,null,null,null,null,null,null,null,null,null,null,null,null,null,null,null,null,null,null,null,null,null,null,null,null,null,null,null,null,null,null,null,null,null,null,null,null,null,null,null,null,null,null,null,null,null,null,null,null,null,null,null,null,null,null,null,null,null,null,null,null,null,null,null,null,null,null,null,null,null,null,null,null,null,null,null,null,null,null,null,null,null,null,null,null,null,null,null,null,null,null,null,null,null,null,null,null,null,null,null,null,null,null,null,null,null,null,null,null,null,null,null,null,null,null,null,null,null,null,null,null,null,null,null,null,null,null,null,null,null,null,null,null,null,null,null,null,null,null,null,null,null,null,null,null,null,null,null,null,null,null,null,null,null,null,null,null,null,null,null,null,null,null,null,null,null,null,null,null,null,null,null,null,null,null,null,null,null,null,null,null,null,null,null,null,null,null,null,null,null,null,null,null,null,null,null,null,null,null,null,null,null,null,null,null,null,null,null,null,null,null,null,null,null,null,null,null,null,null,null,null,null,null,null,null,null,null,null,null,null,null,null,null,null,null,null,null,null,null,null,null,null,null,null,null,null,null,null,null,null,null,null,null,null,null,null,null,null,null,null,null,null,null,null,null,null,null,null,null,null,null,null,null,null,null,null,null,null,null,null,null,null,null,null,null,null,null,null,null,null,null,null,null,null,null,null,null,null,null,null,null,null,null,null,null,null,null,null,null,null,null,null,null,null,null,null,null,null,null,null,null,null,null,null,null,null,null,null,null,null,null,null,null,null,null,null,null,null,null,null,null,null,null,null,null,null,null,null,null,null,null,null,null,null,null,null,null,null,null,null,null,null,null,null,null,null,null,null,null,null,null,null,null,null,null,null,null,null,null,null,null,null,null,null,null,null,null,null,null,null,null,null,null,null,null,null,null,null,null,null,null,null,null,null,null,null,null,null,null,null,null,null,null,null,null,null,null,null,null,null,null,null,null,null,null,null,null,null,null,null,null,null,null,null,null,null,null,null,null,null,null,null,null,null,null,null,null,null,null,null,null,null,null,null,null,null,null,null,null,null,null,null,null,null,null,null,null,null,null,null,null,null,null,null,null,null,null,null,null,null,null,null,null,null,null,null,null,null,null,null,null,null,null,null,null,null,null,null,null,null,null,null,null,null,null,null,null,null,null,null,null,null,null,null,null,null,null,null,null,null,null,null,null,null,null,null,null,null,null,null,null,null,null,null,null,null,null,null,null,null,null,null,null,null,null,null,null,null,null,null,null,null,null,null,null,null,null,null,null,null,null,null,null,null,null,null,null,null,null,null,null,null,null,null,null,null,null,null,null,null,null,null,null,null,null,null,null,null,null,null,null,null,null,null,null,null,null,null,null,null,null,null,null,null,null,null,null,null,null,null,null,null,null,null,null,null,null,null,null,null,null,null,null,null,null,null,null,null,null,null,null,null,null,null,null,null,null,null,null,null,null,null,null,null,null,null,null,null,null,null,null,null,null,null,null,null,null,null,null,null,null,null,null,null,null,null,null,null,null,null,null,null,null,null,null,null,null,null,null,null,null,null,null,null,null,null,null,null,null,null,null,null,null,null,null,null,null,null,null,null,null,null,null,null,null,null,null,null,null,null,null,null,null,null,null,null,null,null,null,null,null,null,null,null,null,null,null,null,null,null,null,null,null,null,null,null,null,null,null,null,null,null,null,null,null,null,null,null,null,null,null,null,null,null,null,null,null,null,null,null,null,null,null,null,null,null,null,null,null,null,null,null,null,null,null,null,null,null,null,null,null,null,null,null,null,null,null,null,null,null,null,null,null,null,null,null,null,null,null,null,null,null,null,null,null,null,null,null,null,null,null,null,null,null,null,null,null,null,null,null,null,null,null,null,null,null,null,null,null,null,null,null,null,null,null,null,null,null,null,null,null,null,null,null,null,null,null,null,null,null,null,null,null,null,null,null,null,null,null,null,null,null,null,null,null,null,null,null,null,null,null,null,null,null,null,null,null,null,null,null,null,null,null,null,null,null,null,null,null,null,null,null,null,null,null,null,null,null,null,null,null,null,null,null,null,null,null,null,null,null,null,null,null,null,null,null,null,null,null,null,null,null,null,null,null,null,null,null,null,null,null,null,null,null,null,null,null,null,null,null,null,null,null,null,null,null,null,null,null,null,null,null,null,null,null,null,null,null,null,null,null,null,null,null,null,null,null,null,null,null,null,null,null,null,null,null,null,null,null,null,null,null,null,null,null,null,null,null,null,null,null,null,null,null,null,null,null,null,null,null,null,null,null,null,null,null,null,null,null,null,null,null,null,null,null,null,null,null,null,null,null,null,null,null,null,null,null,null,null,null,null,null,null,null,null,null,null,null,null,null,null,null,null,null,null,null,null,null,null,null,null,null,null,null,null,null,null,null,null,null,null,null,null,null,null,null,null,null,null,null,null,null,null,null,null,null,null,null,null,null,null,null,null,null,null,null,null,null,null,null,null,null,null,null,null,null,null,null,null,null,null,null,null,null,null,null,null,null,null,null,null,null,null,null,null,null,null,null,null,null,null,null,null,null,null,null,null,null,null,null,null,null,null,null,null,null,null,null,null,null,null,null,null,null,null,null,null,null,null,null,null,null,null,null,null,null,null,null,null,null,null,null,null,null,null,null,null,null,null,null,null,null,null,null,null,null,null,null,null,null,null,null,null,null,null,null,null,null,null,null,null,null,null,null,null,null,null,null,null,null,null,null,null,null,null,null,null,null,null,null,null,null,null,null,null,null,null,null,null,null,null,null,null,null,null,null,null,null,null,null,null,null,null,null,null,null,null,null,null,null,null,null,null,null,null,null,null,null,null,null,null,null,null,null,null,null,null,null,null,null,null,null,null,null,null,null,null,null,null,null,null,null,null,null,null,null,null,null,null,null,null,null,null,null,null,null,null,null,null,null,null,null,null,null,null,null,null,null,null,null,null,null,null,null,null,null,null,null,null,null,null,null,null,null,null,null,null,null,null,null,null,null,null,null,null,null,null,null,null,null,null,null,null,null,null,null,null,null,null,null,null,null,null,null,null,null,null,null,null,null,null,null,null,null,null,null,null,null,null,null,null,null,null,null,null,null,null,null,null,null,null,null,null,null,null,null,null,null,null,null,null,null,null,null,null,null,null,null,null,null,null,null,null,null,null,null,null,null,null,null,null,null,null,null,null,null,null,null,null,null,null,null,null,null,null,null,null,null,null,null,null,null,null,null,null,null,null,null,null,null,null,null,null,null,null,null,null,null,null,null,null,null,null,null,null,null,null,null,null,null,null,null,null,null,null,null,null,null,null,null,null,null,null,null,null,null,null,null,null,null,null,null,null,null,null,null,null,null,null,null,null,null,null,null,null,null,null,null,null,null,null,null,null,null,null,null,null,null,null,null,null,null,null,null,null,null,null,null,null,null,null,null,null,null,null,null,null,null,null,null,null,null,null,null,null,null,null,null,null,null,null,null,null,null,null,null,null,null,null,null,null,null,null,null,null,null,null,null,null,null,null,null,null,null,null,null,null,null,null,null,null,null,null,null,null,null,null,null,null,null,null,null,null,null,null,null,null,null,null,null,null,null,null,null,null,null,null,null,null,null,null,null,null,null,null,null,null,null,null,null,null,null,null,null,null,null,null,null,null,null,null,null,null,null,null,null,null,null,null,null,null,null,null,null,null,null,null,null,null,null,null,null,null,null,null,null,null,null,null,null,null,null,null,null,null,null,null,null,null,null,null,null,null,null,null,null,null,null,null,null,null,null,null,null,null,null,null,null,null,null,null,null,null,null,null,null,null,null,null,null,null,null,null,null,null,null,null,null,null,null,null,null,null,null,null,null,null,null,null,null,null,null,null,null,null,null,null,null,null,null,null,null,null,null,null,null,null,null,null,null,null,null,null,null,null,null,null,null,null,null,null,null,null,null,null,null,null,null,null,null,null,null,null,null,null,null,null,null,null,null,null,null,null,null,null,null,null,null,null,null,null,null,null,null,null,null,null,null,null,null,null,null,null,null,null,null,null,null,null,null,null,null,null,null,null,null,null,null,null,null,null,null,null,null,null,null,null,null,null,null,null,null,null,null,null,null,null,null,null,null,null,null,null,null,null,null,null,null,null,null,null,null,null,null,null,null,null,null,null,null,null,null,null,null,null,null,null,null,null,null,null,null,null,null,null,null,null,null,null,null,null,null,null,null,null,null,null,null,null,null,null,null,null,null,null,null,null,null,null,null,null,null,null,null,null,null,null,null,null,null,null,null,null,null,null,null,null,null,null,null,null,null,null,null,null,null,null,null,null,null,null,null,null,null,null,null,null,null,null,null,null,null,null,null,null,null,null,null,null,null,null,null,null,null,null,null,null,null,null,null,null,null,null,null,null,null,null,null,null,null,null,null,null,null,null,null,null,null,null,null,null,null,null,null,null,null,null,null,null,null,null,null,null,null,null,null,null,null,null,null,null,null,null,null,null,null,null,null,null,null,null,null,null,null,null,null,null,null,null,null,null,null,null,null,null,null,null,null,null,null,null,null,null,null,null,null,null,null,null,null,null,null,null,null,null,null,null,null,null,null,null,null,null,null,null,null,null,null,null,null,null,null,null,null,null,null,null,null,null,null,null,null,null,null,null,null,null,null,null,null,null,null,null,null,null,null,null,null,null,null,null,null,null,null,null,null,null,null,null,null,null,null,null,null,null,null,null,null,null,null,null,null,null,null,null,null,null,null,null,null,null,null,null,null,null,null,null,null,null,null,null,null,null,null,null,null,null,null,null,null,null,null,null,null,null,null,null,null,null,null,null,null,null,null,null,null,null,null,null,null,null,null,null,null,null,null,null,null,null,null,null,null,null,null,null,null,null,null,null,null,null,null,null,null,null,null,null,null,null,null,null,null,null,null,null,null,null,null,null,null,null,null,null,null,null,null,null,null,null,null,null,null,null,null,null,null,null,null,null,null,null,null,null,null,null,null,null,null,null,null,null,null,null,null,null,null,null,null,null,null,null,null,null,null,null,null,null,null,null,null,null,null,null,null,null,null,null,null,null,null,null,null,null,null,null,null,null,null,null,null,null,null,null,null,null,null,null,null,null,null,null,null,null,null,null,null,null,null,null,null,null,null,null,null,null,null,null,null,null,null,null,null,null,null,null,null,null,null,null,null,null,null,null,null,null,null,null,null,null,null,null,null,null,null,null,null,null,null,null,null,null,null,null,null,null,null,null,null,null,null,null,null,null,null,null,null,null,null,null,null,null,null,null,null,null,null,null,null,null,null,null,null,null,null,null,null,null,null,null,null,null,null,null,null,null,null,null,null,null,null,null,null,null,null,null,null,null,null,null,null,null,null,null,null,null,null,null,null,null,null,null,null,null,null,null,null,null,null,null,null,null,null,null,null,null,null,null,null,null,null,null,null,null,null,null,null,null,null,null,null,null,null,null,null,null,null,null,null,null,null,null,null,null,null,null,null,null,null,null,null,null,null,null,null,null,null,null,null,null,null,null,null,null,null,null,null,null,null,null,null,null,null,null,null,null,null,null,null,null,null,null,null,null,null,null,null,null,null,null,null,null,null,null,null,null,null,null,null,null,null,null,null,null,null,null,null,null,null,null,null,null,null,null,null,null,null,null,null,null,null,null,null,null,null,null,null,null,null,null,null,null,null,null,null,null,null,null,null,null,null,null,null,null,null,null,null,null,null,null,null,null,null,null,null,null,null,null,null,null,null,null,null,null,null,null,null,null,null,null,null,null,null,null,null,null,null,null,null,null,null,null,null,null,null,null,null,null,null,null,null,null,null,null,null,null,null,null,null,null,null,null,null,null,null,null,null,null,null,null,null,null,null,null,null,null,null,null,null,null,null,null,null,null,null,null,null,null,null,null,null,null,null,null,null,null,null,null,null,null,null,null,null,null,null,null,null,null,null,null,null,null,null,null,null,null,null,null,null,null,null,null,null,null,null,null,null,null,null,null,null,null,null,null,null,null,null,null,null,null,null,null,null,null,null,null,null,null,null,null,null,null,null,null,null,null,null,null,null,null,null,null,null,null,null,null,null,null,null,null,null,null,null,null,null,null,null,null,null,null,null,null,null,null,null,null,null,null,null,null,null,null,null,null,null,null,null,null,null,null,null,null,null,null,null,null,null,null,null,null,null,null,null,null,null,null,null,null,null,null,null,null,null,null,null,null,null,null,null,null,null,null,null,null,null,null,null,null,null,null,null,null,null,null,null,null,null,null,null,null,null,null,null,null,null,null,null,null,null,null,null,null,null,null,null,null,null,null,null,null,null,null,null,null,null,null,null,null,null,null,null,null,null,null,null,null,null,null,null,null,null,null,null,null,null,null,null,null,null,null,null,null,null,null,null,null,null,null,null,null,null,null,null,null,null,null,null,null,null,null,null,null,null,null,null,null,null,null,null,null,null,null,null,null,null,null,null,null,null,null,null,null,null,null,null,null,null,null,null,null,null,null,null,null,null,null,null,null,null,null,null,null,null,null,null,null,null,null,null,null,null,null,null,null,null,null,null,null,null,null,null,null,null,null,null,null,null,null,null,null,null,null,null,null,null,null,null,null,null,null,null,null,null,null,null,null,null,null,null,null,null,null,null,null,null,null,null,null,null,null,null,null,null,null,null,null,null,null,null,null,null,null,null,null,null,null,null,null,null,null,null,null,null,null,null,null,null,null,null,null,null,null,null,null,null,null,null,null,null,null,null,null,null,null,null,null,null,null,null,null,null,null,null,null,null,null,null,null,null,null,null,null,null,null,null,null,null,null,null,null,null,null,null,null,null,null,null,null,null,null,null,null,null,null,null,null,null,null,null,null,null,null,null,null,null,null,null,null,null,null,null,null,null,null,null,null,null,null,null,null,null,null,null,null,null,null,null,null,null,null,null,null,null,null,null,null,null,null,null,null,null,null,null,null,null,null,null,null,null,null,null,null,null,null,null,null,null,null,null,null,null,null,null,null,null,null,null,null,null,null,null,null,null,null,null,null,null,null,null,null,null,null,null,null,null,null,null,null,null,null,null,null,null,null,null,null,null,null,null,null,null,null,null,null,null,null,null,null,null,null,null,null,null,null,null,null,null,null,null,null,null,null,null,null,null,null,null,null,null,null,null,null,null,null,null,null,null,null,null,null,null,null,null,null,null,null,null,null,null,null,null,null,null,null,null,null,null,null,null,null,null,null,null,null,null,null,null,null,null,null,null,null,null,null,null,null,null,null,null,null,null,null,null,null,null,null,null,null,null,null,null,null,null,null,null,null,null,null,null,null,null,null,null,null,null,null,null,null,null,null,null,null,null,null,null,null,null,null,null,null,null,null,null,null,null,null,null,null,null,null,null,null,null,null,null,null,null,null,null,null,null,null,null,null,null,null,null,null,null,null,null,null,null,null,null,null,null,null,null,null,null,null,null,null,null,null,null,null,null,null,null,null,null,null,null,null,null,null,null,null,null,null,null,null,null,null,null,null,null,null,null,null,null,null,null,null,null,null,null,null,null,null,null,null,null,null,null,null,null,null,null,null,null,null,null,null,null,null,null,null,null,null,null,null,null,null,null,null,null,null,null,null,null,null,null,null,null,null,null,null,null,null,null,null,null,null,null,null,null,null,null,null,null,null,null,null,null,null,null,null,null,null,null,null,null,null,null,null,null,null,null,null,null,null,null,null,null,null,null,null,null,null,null,null,null,null,null,null,null,null,null,null,null,null,null,null,null,null,null,null,null,null,null,null,null,null,null,null,null,null,null,null,null,null,null,null,null,null,null,null,null,null,null,null,null,null,null,null,null,null,null,null,null,null,null,null,null,null,null,null,null,null,null,null,null,null,null,null,null,null,null,null,null,null,null,null,null,null,null,null,null,null,null,null,null,null,null,null,null,null,null,null,null,null,null,null,null,null,null,null,null,null,null,null,null,null,null,null,null,null,null,null,null,null,null,null,null,null,null,null,null,null,null,null,null,null,null,null,null,null,null,null,null,null,null,null,null,null,null,null,null,null,null,null,null,null,null,null,null,null,null,null,null,null,null,null,null,null,null,null,null,null,null,null,null,null,null,null,null,null,null,null,null,null,null,null,null,null,null,null,null,null,null,null,null,null,null,null,null,null,null,null,null,null,null,null,null,null,null,null,null,null,null,null,null,null,null,null,null,null,null,null,null,null,null,null,null,null,null,null,null,null,null,null,null,null,null,null,null,null,null,null,null,null,null,null,null,null,null,null,null,null,null,null,null,null,null,null,null,null,null,null,null,null,null,null,null,null,null,null,null,null,null,null,null,null,null,null,null,null,null,null,null,null,null,null,null,null,null,null,null,null,null,null,null,null,null,null,null,null,null,null,null,null,null,null,null,null,null,null,null,null,null,null,null,null,null,null,null,null,null,null,null,null,null,null,null,null,null,null,null,null,null,null,null,null,null,null,null,null,null,null,null,null,null,null,null,null,null,null,null,null,null,null,null,null,null,null,null,null,null,null,null,null,null,null,null,null,null,null,null,null,null,null,null,null,null,null,null,null,null,null,null,null,null,null,null,null,null,null,null,null,null,null,null,null,null,null,null,null,null,null,null,null,null,null,null,null,null,null,null,null,null,null,null,null,null,null,null,null,null,null,null,null,null,null,null,null,null,null,null,null,null,null,null,null,null,null,null,null,null,null,null,null,null,null,null,null,null,null,null,null,null,null,null,null,null,null,null,null,null,null,null,null,null,null,null,null,null,null,null,null,null,null,null,null,null,null,null,null,null,null,null,null,null,null,null,null,null,null,null,null,null,null,null,null,null,null,null,null,null,null,null,null,null,null,null,null,null,null,null,null,null,null,null,null,null,null,null,null,null,null,null,null,null,null,null,null,null,null,null,null,null,null,null,null,null,null,null,null,null,null,null,null,null,null,null,null,null,null,null,null,null,null,null,null,null,null,null,null,null,null,null,null,null,null,null,null,null,null,null,null,null,null,null,null,null,null,null,null,null,null,null,null,null,null,null,null,null,null,null,null,null,null,null,null,null,null,null,null,null,null,null,null,null,null,null,null,null,null,null,null,null,null,null,null,null,null,null,null,null,null,null,null,null,null,null,null,null,null,null,null,null,null,null,null,null,null,null,null,null,null,null,null,null,null,null,null,null,null,null,null,null,null,null,null,null,null,null,null,null,null,null,null,null,null,null,null,null,null,null,null,null,null,null,null,null,null,null,null,null,null,null,null,null,null,null,null,null,null,null,null,null,null,null,null,null,null,null,null,null,null,null,null,null,null,null,null,null,null,null,null,null,null,null,null,null,null,null,null,null,null,null,null,null,null,null,null,null,null,null,null,null,null,null,null,null,null,null,null,null,null,null,null,null,null,null,null,null,null,null,null,null,null,null,null,null,null,null,null,null,null,null,null,null,null,null,null,null,null,null,null,null,null,null,null,null,null,null,null,null,null,null,null,null,null,null,null,null,null,null,null,null,null,null,null,null,null,null,null,null,null,null,null,null,null,null,null,null,null,null,null,null,null,null,null,null,null,null,null,null,null,null,null,null,null,null,null,null,null,null,null,null,null,null,null,null,null,null,null,null,null,null,null,null,null,null,null,null,null,null,null,null,null,null,null,null,null,null,null,null,null,null,null,null,null,null,null,null,null,null,null,null,null,null,null,null,null,null,null,null,null,null,null,null,null,null,null,null,null,null,null,null,null,null,null,null,null,null,null,null,null,null,null,null,null,null,null,null,null,null,null,null,null,null,null,null,null,null,null,null,null,null,null,null,null,null,null,null,null,null,null,null,null,null,null,null,null,null,null,null,null,null,null,null,null,null,null,null,null,null,null,null,null,null,null,null,null,null,null,null,null,null,null,null,null,null,null,null,null,null,null,null,null,null,null,null,null,null,null,null,null,null,null,null,null,null,null,null,null,null,null,null,null,null,null,null,null,null,null,null,null,null,null,null,null,null,null,null,null,null,null,null,null,null,null,null,null,null,null,null,null,null,null,null,null,null,null,null,null,null,null,null,null,null,null,null,null,null,null,null,null,null,null,null,null,null,null,null,null,null,null,null,null,null,null,null,null,null,null,null,null,null,null,null,null,null,null,null,null,null,null,null,null,null,null,null,null,null,null,null,null,null,null,null,null,null,null,null,null,null,null,null,null,null,null,null,null,null,null,null,null,null,null,null,null,null,null,null,null,null,null,null,null,null,null,null,null,null,null,null,null,null,null,null,null,null,null,null,null,null,null,null,null,null,null,null,null,null,null,null,null,null,null,null,null,null,null,null,null,null,null,null,null,null,null,null,null,null,null,null,null,null,null,null,null,null,null,null,null,null,null,null,null,null,null,null,null,null,null,null,null,null,null,null,null,null,null,null,null,null,null,null,null,null,null,null,null,null,null,null,null,null,null,null,null,null,null,null,null,null,null,null,null,null,null,null,null,null,null,null,null,null,null,null,null,null,null,null,null,null,null,null,null,null,null,null,null,null,null,null,null,null,null,null,null,null,null,null,null,null,null,null,null,null,null,null,null,null,null,null,null,null,null,null,null,null,null,null,null,null,null,null,null,null,null,null,null,null,null,null,null,null,null,null,null,null,null,null,null,null,null,null,null,null,null,null,null,null,null,null,null,null,null,null,null,null,null,null,null,null,null,null,null,null,null,null,null,null,null,null,null,null,null,null,null,null,null,null,null,null,null,null,null,null,null,null,null,null,null,null,null,null,null,null,null,null,null,null,null,null,null,null,null,null,null,null,null,null,null,null,null,null,null,null,null,null,null,null,null,null,null,null,null,null,null,null,null,null,null,null,null,null,null,null,null,null,null,null,null,null,null,null,null,null,null,null,null,null,null,null,null,null,null,null,null,null,null,null,null,null,null,null,null,null,null,null,null,null,null,null,null,null,null,null,null,null,null,null,null,null,null,null,null,null,null,null,null,null,null,null,null,null,null,null,null,null,null,null,null,null,null,null,null,null,null,null,null,null,null,null,null,null,null,null,null,null,null,null,null,null,null,null,null,null,null,null,null,null,null,null,null,null,null,null,null,null,null,null,null,null,null,null,null,null,null,null,null,null,null,null,null,null,null,null,null,null,null,null,null,null,null,null,null,null,null,null,null,null,null,null,null,null,null,null,null,null,null,null,null,null,null,null,null,null,null,null,null,null,null,null,null,null,null,null,null,null,null,null,null,null,null,null,null,null,null,null,null,null,null,null,null,null,null,null,null,null,null,null,null,null,null,null,null,null,null,null,null,null,null,null,null,null,null,null,null,null,null,null,null,null,null,null,null,null,null,null,null,null,null,null,null,null,null,null,null,null,null,null,null,null,null,null,null,null,null,null,null,null,null,null,null,null,null,null,null,null,null,null,null,null,null,null,null,null,null,null,null,null,null,null,null,null,null,null,null,null,null,null,null,null,null,null,null,null,null,null,null,null,null,null,null,null,null,null,null,null,null,null,null,null,null,null,null,null,null,null,null,null,null,null,null,null,null,null,null,null,null,null,null,null,null,null,null,null,null,null,null,null,null,null,null,null,null,null,null,null,null,null,null,null,null,null,null,null,null,null,null,null,null,null,null,null,null,null,null,null,null,null,null,null,null,null,null,null,null,null,null,null,null,null,null,null,null,null,null,null,null,null,null,null,null,null,null,null,null,null,null,null,null,null,null,null,null,null,null,null,null,null,null,null,null,null,null,null,null,null,null,null,null,null,null,null,null,null,null,null,null,null,null,null,null,null,null,null,null,null,null,null,null,null,null,null,null,null,null,null,null,null,null,null,null,null,null,null,null,null,null,null,null,null,null,null,null,null,null,null,null,null,null,null,null,null,null,null,null,null,null,null,null,null,null,null,null,null,null,null,null,null,null,null,null,null,null,null,null,null,null,null,null,null,null,null,null,null,null,null,null,null,null,null,null,null,null,null,null,null,null,null,null,null,null,null,null,null,null,null,null,null,null,null,null,null,null,null,null,null,null,null,null,null,null,null,null,null,null,null,null,null,null,null,null,null,null,null,null,null,null,null,null,null,null,null,null,null,null,null,null,null,null,null,null,null,null,null,null,null,null,null,null,null,null,null,null,null,null,null,null,null,null,null,null,null,null,null,null,null,null,null,null,null,null,null,null,null,null,null,null,null,null,null,null,null,null,null,null,null,null,null,null,null,null,null,null,null,null,null,null,null,null,null,null,null,null,null,null,null,"Selección meritocratica"]
[null,null,null,null,null,"Gestión de Recursos","Plan Anual de Adquisiciones","Documentos de política"]
[null,null,null,null,null,"Tecnologías de la Información","Servicios de información en funcionamiento","Orientación multicanal"]
[null,null,null,null,null,"Tecnologías de la Información","Lecciones aprendidas y acciones de mejoramiento","Documentos técnicos"]

{"sheet":"Hoja2","index":1,"n_rows":58,"n_cols":12,"rows_kept":58,"cut":false,"hidden":true,"merged":[]}
[]
[null,null,{"$f":"Hoja1!H1","v":"Tipo de PreProducto"},"Requisito","Descripción","Control","Responsable del control","Frecuencia (und)","Registro","Producto No Conforme\n(PNC)","Mitigación PNC","Responsable de la liberación producto"]
[null,null,"Documentos de política","CLARIDAD (Variable/\natributo/\ncaracterística de requisito determinado por el cliente)"]
[null,null,"Documentos de política","CONFIABILIDAD\n(Variable/\natributo/\ncaracterística de requisito determinado para el producto/ servicio/ resultado)"]
[null,null,"Documentos de política","CUMPLIMIENTO\n(Variable/\natributo/\ncaracterística de requisito determinado por la legislación vigente)"]
[null,null,"Documentos de política","OPORTUNIDAD\n(Variable/\natributo/\ncaracterística de requisito determinado por FP)"]
[null,null,"Instrumentos tecnológicos","CLARIDAD (Variable/\natributo/\ncaracterística de requisito determinado por el cliente)","Valio verga","Control de verga","responsable de su verga","frecuencia de la verga","registro verga","PNC de la verga","Mitiga la verga","Verga de responsables"]
[null,null,"Instrumentos tecnológicos","CONFIABILIDAD\n(Variable/\natributo/\ncaracterística de requisito determinado para el producto/ servicio/ resultado)","Valio verga","Control de verga","responsable de su verga","frecuencia de la verga","registro verga","PNC de la verga","Mitiga la verga","Verga de responsables"]
[null,null,"Instrumentos tecnológicos","CUMPLIMIENTO\n(Variable/\natributo/\ncaracterística de requisito determinado por la legislación vigente)","Valio verga","Control de verga","responsable de su verga","frecuencia de la verga","registro verga","PNC de la verga","Mitiga la verga","Verga de responsables"]
[null,null,"Instrumentos tecnológicos","OPORTUNIDAD\n(Variable/\natributo/\ncaracterística de requisito determinado por FP)","Valio verga mas joppo de verga","Control de verga","responsable de su verga","frecuencia de la verga","registro verga","PNC de la verga","Mitiga la verga","Verga de responsables"]
[null,null,"Herramientas para la evaluación de política","CLARIDAD (Variable/\natributo/\ncaracterística de requisito determinado por el cliente)"]
[null,null,"Herramientas para la evaluación de política","CONFIABILIDAD\n(Variable/\natributo/\ncaracterística de requisito determinado para el producto/ servicio/ resultado)"]
[null,null,"Herramientas para la evaluación de política","CUMPLIMIENTO\n(Variable/\natributo/\ncaracterística de requisito determinado por la legislación vigente)"]
[null,null,"Herramientas para la evaluación de política","OPORTUNIDAD\n(Variable/\natributo/\ncaracterística de requisito determinado por FP)"]
[null,null,"Documentos técnicos","CLARIDAD (Variable/\natributo/\ncaracterística de requisito determinado por el cliente)","de fácil comprensión, que permita  al usuario hacer uso de manera sencilla.","Revisión y aprobación por parte del comité directivo.","Profesional de la Dirección de Gestión del Conocimiento\n\nEnlaces administrativos de las direcciones técnicas y areas involucradas","1 vez durante su elaboración","Actas de reuniones, comunicaciones y archivos electrónicos","No refleja las necesidades de acción integral de la Función Pública","Verificación de las necesidades por parte de los grupos de valor así como acciones de mejora propuestas por las direcciones.","Profesional de la Dirección de Gestión del Conocimiento\n\nEnlaces administrativos de las direcciones técnicas y áreas involucradas"]
[null,null,"Documentos técnicos","CONFIABILIDAD\n(Variable/\natributo/\ncaracterística de requisito determinado para el producto/ servicio/ resultado)","que los datos entregados estén validados, sean coherentes con el propósito y permitan credibilidad para su uso por parte del usuario."," Validación por parte del director tecnico o cordinador del area involucrada.","Profesional de la Dirección de Gestión del Conocimiento\n\nEnlaces administrativos de las direcciones técnicas y areas involucradas","1 vez durante su elaboración","Actas de reuniones, comunicaciones y archivos electrónicos","No refleja las necesidades de acción integral de la Función Pública","Verificación de las necesidades por parte de los grupos de valor asi como acciones de mejora propuestas por las direcciones.","Profesional de la Dirección de Gestión del Conocimiento\n\nEnlaces administrativos de las direcciones técnicas y áreas involucradas"]
[null,null,"Documentos técnicos","CUMPLIMIENTO\n(Variable/\natributo/\ncaracterística de requisito determinado por la legislación vigente)","que se ajuste a los lineamientos aplicables según las disposiciones legales. ","Verificación de las metas y/o compromisos de la Entidad.","Profesional de la Dirección de Gestión del Conocimiento\n\nEnlaces administrativos de las direcciones técnicas y areas involucradas","1 vez durante su elaboración","Actas de reuniones, comunicaciones y archivos electrónicos","No refleja las necesidades de acción integral de la Función Pública","Verificación de las necesidades por parte de los grupos de valor asi como acciones de mejora propuestas por las direcciones.","Profesional de la Dirección de Gestión del Conocimiento\n\nEnlaces administrativos de las direcciones técnicas y áreas involucradas"]
[null,null,"Documentos técnicos","OPORTUNIDAD\n(Variable/\natributo/\ncaracterística de requisito determinado por FP)","Que su desarrollo se cumpla en los tiempos planificados y su entrega sea la acordada con las partes interesadas. ","SGI.","Profesional de la Dirección de Gestión del Conocimiento\n\nEnlaces administrativos de las direcciones técnicas y areas involucradas","1 vez durante su elaboración","Actas de reuniones, comunicaciones y archivos electrónicos","No refleja las necesidades de acción integral de la Función Pública","Verificación de las necesidades por parte de los grupos de valor asi como acciones de mejora propuestas por las direcciones.","Profesional de la Dirección de Gestión del Conocimiento\n\nEnlaces administrativos de las direcciones técnicas y áreas involucradas"]
[null,null,"Asesoría integral y focalizada","CLARIDAD (Variable/\natributo/\ncaracterística de requisito determinado por el cliente)"]
[null,null,"Asesoría integral y focalizada","CONFIABILIDAD\n(Variable/\natributo/\ncaracterística de requisito determinado para el producto/ servicio/ resultado)"]
[null,null,"Asesoría integral y focalizada","CUMPLIMIENTO\n(Variable/\natributo/\ncaracterística de requisito determinado por la legislación vigente)"]
[null,null,"Asesoría integral y focalizada","OPORTUNIDAD\n(Variable/\natributo/\ncaracterística de requisito determinado por FP)"]
[null,null,"Orientación multicanal","CLARIDAD (Variable/\natributo/\ncaracterística de requisito determinado por el cliente)"]
[null,null,"Orientación multicanal","CONFIABILIDAD\n(Variable/\natributo/\ncaracterística de requisito determinado para el producto/ servicio/ resultado)"]
[null,null,"Orientación multicanal","CUMPLIMIENTO\n(Variable/\natributo/\ncaracterística de requisito determinado por la legislación vigente)"]
[null,null,"Orientación multicanal","OPORTUNIDAD\n(Variable/\natributo/\ncaracterística de requisito determinado por FP)"]
[null,null,"Formación y capacitación","CLARIDAD (Variable/\natributo/\ncaracterística de requisito determinado por el cliente)"]
[null,null,"Formación y capacitación","CONFIABILIDAD\n(Variable/\natributo/\ncaracterística de requisito determinado para el producto/ servicio/ resultado)"]
[null,null,"Formación y capacitación","CUMPLIMIENTO\n(Variable/\natributo/\ncaracterística de requisito determinado por la legislación vigente)"]
[null,null,"Formación y capacitación","OPORTUNIDAD\n(Variable/\natributo/\ncaracterística de requisito determinado por FP)"]
[null,null,"Promoción y difusión","CLARIDAD (Variable/\natributo/\ncaracterística de requisito determinado por el cliente)"]
[null,null,"Promoción y difusión","CONFIABILIDAD\n(Variable/\natributo/\ncaracterística de requisito determinado para el producto/ servicio/ resultado)"]
[null,null,"Promoción y difusión","CUMPLIMIENTO\n(Variable/\natributo/\ncaracterística de requisito determinado por la legislación vigente)"]
[null,null,"Promoción y difusión","OPORTUNIDAD\n(Variable/\natributo/\ncaracterística de requisito determinado por FP)"]
[null,null,"Selección meritocratica","CLARIDAD (Variable/\natributo/\ncaracterística de requisito determinado por el cliente)"]
[null,null,"Selección meritocratica","CONFIABILIDAD\n(Variable/\natributo/\ncaracterística de requisito determinado para el producto/ servicio/ resultado)"]
[null,null,"Selección meritocratica","CUMPLIMIENTO\n(Variable/\natributo/\ncaracterística de requisito determinado por la legislación vigente)"]
[null,null,"Selección meritocratica","OPORTUNIDAD\n(Variable/\natributo/\ncaracterística de requisito determinado por FP)"]
[null,null,"Aprobación de procedimiento","CLARIDAD (Variable/\natributo/\ncaracterística de requisito determinado por el cliente)"]
[null,null,"Aprobación de procedimiento","CONFIABILIDAD\n(Variable/\natributo/\ncaracterística de requisito determinado para el producto/ servicio/ resultado)"]
[null,null,"Aprobación de procedimiento","CUMPLIMIENTO\n(Variable/\natributo/\ncaracterística de requisito determinado por la legislación vigente)"]
[null,null,"Aprobación de procedimiento","OPORTUNIDAD\n(Variable/\natributo/\ncaracterística de requisito determinado por FP)"]
[null,null,"Evaluación de competencias y conductas","CLARIDAD (Variable/\natributo/\ncaracterística de requisito determinado por el cliente)"]
[null,null,"Evaluación de competencias y conductas","CONFIABILIDAD\n(Variable/\natributo/\ncaracterística de requisito determinado para el producto/ servicio/ resultado)"]
[null,null,"Evaluación de competencias y conductas","CUMPLIMIENTO\n(Variable/\natributo/\ncaracterística de requisito determinado por la legislación vigente)"]
[null,null,"Evaluación de competencias y conductas","OPORTUNIDAD\n(Variable/\natributo/\ncaracterística de requisito determinado por FP)"]
[null,null,"Sello NTCGP1000:2009","CLARIDAD (Variable/\natributo/\ncaracterística de requisito determinado por el cliente)"]
[null,null,"Sello NTCGP1000:2010","CONFIABILIDAD\n(Variable/\natributo/\ncaracterística de requisito determinado para el producto/ servicio/ resultado)"]
[null,null,"Sello NTCGP1000:2011","CUMPLIMIENTO\n(Variable/\natributo/\ncaracterística de requisito determinado por la legislación vigente)"]
[null,null,"Sello NTCGP1000:2012","OPORTUNIDAD\n(Variable/\natributo/\ncaracterística de requisito determinado por FP)"]
[null,null,"Incentivos a la Gestión Pública (OPA)","CLARIDAD (Variable/\natributo/\ncaracterística de requisito determinado por el cliente)"]
[null,null,"Incentivos a la Gestión Pública (OPA)","CONFIABILIDAD\n(Variable/\natributo/\ncaracterística de requisito determinado para el producto/ servicio/ resultado)"]
[null,null,"Incentivos a la Gestión Pública (OPA)","CUMPLIMIENTO\n(Variable/\natributo/\ncaracterística de requisito determinado por la legislación vigente)"]
[null,null,"Incentivos a la Gestión Pública (OPA)","OPORTUNIDAD\n(Variable/\natributo/\ncaracterística de requisito determinado por FP)"]
[null,null,"Servicios Internos","CLARIDAD (Variable/\natributo/\ncaracterística de requisito determinado por el cliente)"]
[null,null,"Servicios Internos","CONFIABILIDAD\n(Variable/\natributo/\ncaracterística de requisito determinado para el producto/ servicio/ resultado)"]
[null,null,"Servicios Internos","CUMPLIMIENTO\n(Variable/\natributo/\ncaracterística de requisito determinado por la legislación vigente)"]
[null,null,"Servicios Internos","OPORTUNIDAD\n(Variable/\natributo/\ncaracterística de requisito determinado por FP)"]

{"sheet":"Formato","index":2,"n_rows":177,"n_cols":13,"rows_kept":177,"cut":false,"hidden":false,"merged":[[171,0,171,3],[171,4,171,12],[172,10,172,11],[173,9,176,9],[173,10,176,11],[163,10,163,11],[164,9,167,9],[164,10,167,11],[169,0,169,3],[169,4,169,12],[170,0,170,3],[170,4,170,12],[160,0,160,3],[160,4,160,12],[161,0,161,3],[161,4,161,12],[162,0,162,3],[162,4,162,12],[152,0,152,3],[152,4,152,12],[153,0,153,3],[153,4,153,12],[154,10,154,11],[155,9,158,9],[155,10,158,11],[144,0,144,3],[144,4,144,12],[145,10,145,11],[146,9,149,9],[146,10,149,11],[151,0,151,3],[151,4,151,12],[136,10,136,11],[137,9,140,9],[137,10,140,11],[142,0,142,3],[142,4,142,12],[143,0,143,3],[143,4,143,12],[133,0,133,3],[133,4,133,12],[134,0,134,3],[134,4,134,12],[135,0,135,3],[135,4,135,12],[125,0,125,3],[125,4,125,12],[126,0,126,3],[126,4,126,12],[127,10,127,11],[128,9,131,9],[128,10,131,11],[117,0,117,3],[117,4,117,12],[118,10,118,11],[119,9,122,9],[119,10,122,11],[124,0,124,3],[124,4,124,12],[109,10,109,11],[110,9,113,9],[110,10,113,11],[115,0,115,3],[115,4,115,12],[116,0,116,3],[116,4,116,12],[106,0,106,3],[106,4,106,12],[107,0,107,3],[107,4,107,12],[108,0,108,3],[108,4,108,12],[98,0,98,3],[98,4,98,12],[99,0,99,3],[99,4,99,12],[100,10,100,11],[101,9,104,9],[101,10,104,11],[90,0,90,3],[90,4,90,12],[91,10,91,11],[92,9,95,9],[92,10,95,11],[97,0,97,3],[97,4,97,12],[82,10,82,11],[83,9,86,9],[83,10,86,11],[88,0,88,3],[88,4,88,12],[89,0,89,3],[89,4,89,12],[79,0,79,3],[79,4,79,12],[80,0,80,3],[80,4,80,12],[81,0,81,3],[81,4,81,12],[71,0,71,3],[71,4,71,12],[72,0,72,3],[72,4,72,12],[73,10,73,11],[74,9,77,9],[74,10,77,11],[63,0,63,3],[63,4,63,12],[64,10,64,11],[65,9,68,9],[65,10,68,11],[70,0,70,3],[70,4,70,12],[55,10,55,11],[56,9,59,9],[56,10,59,11],[61,0,61,3],[61,4,61,12],[62,0,62,3],[62,4,62,12],[52,0,52,3],[52,4,52,12],[53,0,53,3],[53,4,53,12],[54,0,54,3],[54,4,54,12],[44,0,44,3],[44,4,44,12],[45,0,45,3],[45,4,45,12],[46,10,46,11],[47,9,50,9],[47,10,50,11],[38,9,41,9],[38,10,41,11],[43,0,43,3],[43,4,43,12],[29,9,32,9],[29,10,32,11],[34,0,34,3],[34,4,34,12],[35,0,35,3],[35,4,35,12],[29,7,31,7],[29,8,32,8],[38,6,41,6],[38,7,41,7],[38,8,41,8],[40,5,41,5],[20,2,20,5],[24,0,24,12],[36,0,36,3],[36,4,36,12],[37,10,37,11],[28,10,28,11],[25,4,25,12],[26,4,26,12],[27,4,27,12],[25,0,25,3],[26,0,26,3],[27,0,27,3],[5,2,5,5],[6,2,6,5],[15,2,15,5],[16,2,16,5],[18,2,18,5],[19,2,19,5],[17,2,17,5],[0,0,0,12],[1,0,1,12],[3,2,3,5],[4,2,4,5],[2,7,3,12],[2,2,2,3],[7,2,7,5],[8,2,8,5],[9,2,9,5],[10,2,10,5],[11,2,11,5],[12,2,12,5],[13,2,13,5],[14,2,14,5]]}
["Ficha Técnica de identificación y control de producto"]
["1. Generalidades"]
[null,null,"Seleccione el proceso",null,"Defensa Jurídica"]
[null,{"$f":"VLOOKUP(E3,Hoja1!B1:C16,2,FALSE)","v":8},"Nombre Salida/Entregable : ",null,null,null,"Acuerdo Nivel de servicio (ANS en días)"]
[null,-1,"Informes solicitados por diferentes instancias",null,null,null,"No se establece por la especificidad de cada informe"]
[null,0,"Memoriales de intervención procesal o administrativa",null,null,null,"No se establece en cuanto está sujeto a los términos establecidos por la autoridad Judicial o Administrativa."]
[null,1,"Análisis del caso y construcción de estrategia",null,null,null,"No requiere"]
[null,2,"Actas de comité de conciliación",null,null,null,"No requiere"]
[null,3]
[null,4]
[null,5]
[null,6]
[null,7]
[null,8]
[null,9]
[null,10,{"$f":"+OFFSET(Hoja1!$F$1,MATCH($E$3,Hoja1!$F$1:$F$150,0)+B16,1)","v":"Plan de acción anual"}]
[null,11,{"$f":"+OFFSET(Hoja1!$F$1,MATCH($E$3,Hoja1!$F$1:$F$150,0)+B17,1)","v":"Plan anticorrupción"}]
[null,12,{"$f":"+OFFSET(Hoja1!$F$1,MATCH($E$3,Hoja1!$F$1:$F$150,0)+B18,1)","v":"Plan de Mejoramiento Institucional"}]
[null,13,{"$f":"+OFFSET(Hoja1!$F$1,MATCH($E$3,Hoja1!$F$1:$F$150,0)+B19,1)","v":"Documento(s) de lineamientos y políticas institucionales"}]
[null,14,{"$f":"+OFFSET(Hoja1!$F$1,MATCH($E$3,Hoja1!$F$1:$F$150,0)+B20,1)","v":"Marco de Gasto de mediano plazo"}]
[null,15,{"$f":"+OFFSET(Hoja1!$F$1,MATCH($E$3,Hoja1!$F$1:$F$150,0)+B21,1)","v":"Anteproyecto de presupuesto"}]
[]
[]
[]
["2. Características Generales "]
["Nombre del Producto",null,null,null,"Informes solicitados por diferentes instancias."]
["Descripción del Producto/Servicio",null,null,null,"Corresponde a informes solicitados por entes externos o al interior de la Función Pública, para cumplir con requerimientos legales."]
["Responsable del Producto /Servicio",null,null,null,"Director (a) Jurídica"]
[null,null,"Requisito ","¿Aplica?","Descripción requisito","Control","Responsable del Control","Frecuencia Seguimiento ","Registro el seguimiento","Cuando es No Conforme","Acción a seguir al detectar PNC",null,"Responsable de la liberación producto"]
[-1,null,"CLARIDAD \n(Variable/atributo/característica de requisito determinado por el cliente)","Aplica","De fácil comprensión, que permita  al usuario hacer uso de manera sencilla.","Revisión y aprobación por parte del Profesional asignado del Grupo de Defensa Judicial.","Profesional asignado del Grupo de Defensa Judicial.","Cada vez que se elabora el informe.","En las herramienta que se establezcan para el efecto.","No aplica.\n\nJustificación: Porque se actan todos los lineamientos establecidos.\n","No aplica",null,"Director (a) Jurídica.\n\nSecretaria Técnica del Comité de Conciliación."]
[0,null,"CONFIABILIDAD\n(Variable/atributo/característica de requisito determinado para el producto/ servicio/ resultado)\n","Aplica","Que los datos entregados estén validados, sean coherentes con el propósito y permitan credibilidad para su uso por parte del usuario.","Validación por parte del Coordinador del Grupo de Defensa Judicial, y los profesionales asignados.","Coordinador del Grupo de Defensa Judicial, y los Profesionales asignados.",null,null,null,null,null,"Director (a) Jurídica.\n\nSecretaria Técnica del Comité de Conciliación."]
[1,null,"CUMPLIMIENTO \n(Variable/atributo/característica de requisito determinado por la legislación vigente)\n","Aplica","Que se ajuste a los lineamientos aplicables según las disposiciones legales. ","Verificación de las disposiciones y normativa vigente.","Profesional asignado del Grupo de Defensa Judicial.",null,null,null,null,null,"Director (a) Jurídica.\n\nSecretaria Técnica del Comité de Conciliación."]
[2,null,"OPORTUNIDAD\n(Variable/atributo/característica de requisito determinado por FP)","Aplica","Que su desarrollo se cumpla en los tiempos planificados y su entrega sea la acordada con las partes interesadas. ","Disposiciones y/o lineamientos acordes con la normativa vigente.","Profesional asignado del Grupo de Defensa Judicial.","De acuerdo a los lineamientos entregados.",null,null,null,null,"Director (a) Jurídica.\n\nSecretaria Técnica del Comité de Conciliación."]
[]
["Nombre del Producto",null,null,null,"Memoriales de intervención procesal o administrativa"]
["Descripción del Producto/Servicio",null,null,null,"Corresponden a los documentos que se producen dentro de los expedientes atendiendo a una actuación procesal."]
["Responsable del Producto /Servicio",null,null,null,"Director (a) Juridico (a)"]
[null,null,"Requisito ","¿Aplica?","Descripción requisito","Control","Responsable del Control","Frecuencia Seguimiento ","Registro el seguimiento","Cuando es No Conforme","Acción a seguir al detectar PNC",null,"Responsable de la liberación producto"]
[-1,null,"CLARIDAD \n(Variable/atributo/característica de requisito determinado por el cliente)","Aplica","De fácil comprensión, que permita  al usuario hacer uso de manera sencilla.","Revisión del contenido. ","Profesinal asignado del Grupo de Defensa Judicial.","Cada vez se requiera.","En los respectivos expedientes.","Cuando el Memorial no se encuentre archivado en el expediente respectivo.","Corrección inmediata: \n\nReubicar el Memorial en el expediente que corresponda.",null,"Director (a) Jurídica."]
[0,null,"CONFIABILIDAD\n(Variable/atributo/característica de requisito determinado para el producto/ servicio/ resultado)\n","Aplica","Que los datos entregados estén validados, sean coherentes con el propósito y permitan credibilidad para su uso por parte del usuario.","Validación de la información requerida por la autoridad Judicial o Administrativa.",null,null,null,null,null,null,"Director (a) Jurídica."]
[1,null,"CUMPLIMIENTO \n(Variable/atributo/característica de requisito determinado por la legislación vigente)\n","Aplica","Que se ajuste a los lineamientos aplicables según las disposiciones legales. ","Verificación de las disposiciones y normativa vigente, y/o términos establecidos por la autoridad Judicial o Administrativa.",null,null,null,null,null,null,"Director (a) Jurídica."]
[2,null,"OPORTUNIDAD\n(Variable/atributo/característica de requisito determinado por FP)","Aplica","Que su desarrollo se cumpla en los tiempos planificados y su entrega sea la acordada con las partes interesadas. ",null,null,null,null,null,null,null,"Director (a) Jurídica."]
[]
["Nombre del Producto"]
["Descripción del Producto/Servicio",null,null,null,{"$f":"VLOOKUP($E$44,Hoja1!$G$1:$K$150,4,FALSE)","v":{"$error":"#N/A"}}]
["Responsable del Producto /Servicio",null,null,null,{"$f":"VLOOKUP($E$44,Hoja1!$G$1:$K$150,5,FALSE)","v":{"$error":"#N/A"}}]
[null,null,"Requisito ","¿Aplica?","Descripción requisito","Control","Responsable del Control","Frecuencia Seguimiento ","Registro el seguimiento","Cuando es No Conforme","Acción a seguir al detectar PNC",null,"Responsable de la liberación producto"]
[-1,null,"CLARIDAD \n(Variable/atributo/característica de requisito determinado por el cliente)",null,{"$f":"+IF($D48=\"Aplica\",OFFSET(Hoja2!$C$2,MATCH(VLOOKUP($E$44,Hoja1!$G$1:$I$150,2,FALSE),Hoja2!$C$2:$C$58,0)+$A48,2),$D48)","v":0},{"$f":"+IF($D48=\"Aplica\",OFFSET(Hoja2!$C$2,MATCH(VLOOKUP($E$44,Hoja1!$G$1:$I$150,2,FALSE),Hoja2!$C$2:$C$58,0)+$A48,3),$D48)","v":0},{"$f":"+IF($D48=\"Aplica\",OFFSET(Hoja2!$C$2,MATCH(VLOOKUP($E$44,Hoja1!$G$1:$I$150,2,FALSE),Hoja2!$C$2:$C$58,0)+$A48,4),$D48)","v":0},{"$f":"+IF($D48=\"Aplica\",OFFSET(Hoja2!$C$2,MATCH(VLOOKUP($E$44,Hoja1!$G$1:$I$150,2,FALSE),Hoja2!$C$2:$C$58,0)+$A48,5),$D48)","v":0},{"$f":"+IF($D48=\"Aplica\",OFFSET(Hoja2!$C$2,MATCH(VLOOKUP($E$44,Hoja1!$G$1:$I$150,2,FALSE),Hoja2!$C$2:$C$58,0)+$A48,6),$D48)","v":0},{"$f":"+OFFSET(Hoja2!$C$2,MATCH(VLOOKUP($E$44,Hoja1!$G$1:$I$150,2,FALSE),Hoja2!$C$2:$C$58,0)+$A48,7)","v":{"$error":"#N/A"}},{"$f":"+OFFSET(Hoja2!$C$2,MATCH(VLOOKUP($E$44,Hoja1!$G$1:$I$150,2,FALSE),Hoja2!$C$2:$C$58,0)+$A48,8)","v":{"$error":"#N/A"}},null,{"$f":"+IF($D48=\"Aplica\",OFFSET(Hoja2!$C$2,MATCH(VLOOKUP($E$44,Hoja1!$G$1:$I$150,2,FALSE),Hoja2!$C$2:$C$58,0)+$A48,9),$D48)","v":0}]
[0,null,"CONFIABILIDAD\n(Variable/atributo/característica de requisito determinado para el producto/ servicio/ resultado)\n",null,{"$f":"+IF($D49=\"Aplica\",OFFSET(Hoja2!$C$2,MATCH(VLOOKUP($E$44,Hoja1!$G$1:$I$150,2,FALSE),Hoja2!$C$2:$C$58,0)+$A49,2),$D49)","v":0},{"$f":"+IF($D49=\"Aplica\",OFFSET(Hoja2!$C$2,MATCH(VLOOKUP($E$44,Hoja1!$G$1:$I$150,2,FALSE),Hoja2!$C$2:$C$58,0)+$A49,3),$D49)","v":0},{"$f":"+IF($D49=\"Aplica\",OFFSET(Hoja2!$C$2,MATCH(VLOOKUP($E$44,Hoja1!$G$1:$I$150,2,FALSE),Hoja2!$C$2:$C$58,0)+$A49,4),$D49)","v":0},{"$f":"+IF($D49=\"Aplica\",OFFSET(Hoja2!$C$2,MATCH(VLOOKUP($E$44,Hoja1!$G$1:$I$150,2,FALSE),Hoja2!$C$2:$C$58,0)+$A49,5),$D49)","v":0},{"$f":"+IF($D49=\"Aplica\",OFFSET(Hoja2!$C$2,MATCH(VLOOKUP($E$44,Hoja1!$G$1:$I$150,2,FALSE),Hoja2!$C$2:$C$58,0)+$A49,6),$D49)","v":0},null,null,null,{"$f":"+IF($D49=\"Aplica\",OFFSET(Hoja2!$C$2,MATCH(VLOOKUP($E$44,Hoja1!$G$1:$I$150,2,FALSE),Hoja2!$C$2:$C$58,0)+$A49,9),$D49)","v":0}]
[1,null,"CUMPLIMIENTO \n(Variable/atributo/característica de requisito determinado por la legislación vigente)\n",null,{"$f":"+IF($D50=\"Aplica\",OFFSET(Hoja2!$C$2,MATCH(VLOOKUP($E$44,Hoja1!$G$1:$I$150,2,FALSE),Hoja2!$C$2:$C$58,0)+$A50,2),$D50)","v":0},{"$f":"+IF($D50=\"Aplica\",OFFSET(Hoja2!$C$2,MATCH(VLOOKUP($E$44,Hoja1!$G$1:$I$150,2,FALSE),Hoja2!$C$2:$C$58,0)+$A50,3),$D50)","v":0},{"$f":"+IF($D50=\"Aplica\",OFFSET(Hoja2!$C$2,MATCH(VLOOKUP($E$44,Hoja1!$G$1:$I$150,2,FALSE),Hoja2!$C$2:$C$58,0)+$A50,4),$D50)","v":0},{"$f":"+IF($D50=\"Aplica\",OFFSET(Hoja2!$C$2,MATCH(VLOOKUP($E$44,Hoja1!$G$1:$I$150,2,FALSE),Hoja2!$C$2:$C$58,0)+$A50,5),$D50)","v":0},{"$f":"+IF($D50=\"Aplica\",OFFSET(Hoja2!$C$2,MATCH(VLOOKUP($E$44,Hoja1!$G$1:$I$150,2,FALSE),Hoja2!$C$2:$C$58,0)+$A50,6),$D50)","v":0},null,null,null,{"$f":"+IF($D50=\"Aplica\",OFFSET(Hoja2!$C$2,MATCH(VLOOKUP($E$44,Hoja1!$G$1:$I$150,2,FALSE),Hoja2!$C$2:$C$58,0)+$A50,9),$D50)","v":0}]
[2,null,"OPORTUNIDAD\n(Variable/atributo/característica de requisito determinado por FP)",null,{"$f":"+IF($D51=\"Aplica\",OFFSET(Hoja2!$C$2,MATCH(VLOOKUP($E$44,Hoja1!$G$1:$I$150,2,FALSE),Hoja2!$C$2:$C$58,0)+$A51,2),$D51)","v":0},{"$f":"+IF($D51=\"Aplica\",OFFSET(Hoja2!$C$2,MATCH(VLOOKUP($E$44,Hoja1!$G$1:$I$150,2,FALSE),Hoja2!$C$2:$C$58,0)+$A51,3),$D51)","v":0},{"$f":"+IF($D51=\"Aplica\",OFFSET(Hoja2!$C$2,MATCH(VLOOKUP($E$44,Hoja1!$G$1:$I$150,2,FALSE),Hoja2!$C$2:$C$58,0)+$A51,4),$D51)","v":0},{"$f":"+IF($D51=\"Aplica\",OFFSET(Hoja2!$C$2,MATCH(VLOOKUP($E$44,Hoja1!$G$1:$I$150,2,FALSE),Hoja2!$C$2:$C$58,0)+$A51,5),$D51)","v":0},{"$f":"+IF($D51=\"Aplica\",OFFSET(Hoja2!$C$2,MATCH(VLOOKUP($E$44,Hoja1!$G$1:$I$150,2,FALSE),Hoja2!$C$2:$C$58,0)+$A51,6),$D51)","v":0},null,null,null,{"$f":"+IF($D51=\"Aplica\",OFFSET(Hoja2!$C$2,MATCH(VLOOKUP($E$44,Hoja1!$G$1:$I$150,2,FALSE),Hoja2!$C$2:$C$58,0)+$A51,9),$D51)","v":0}]
[]
["Nombre del Producto"]
["Descripción del Producto/Servicio",null,null,null,{"$f":"VLOOKUP($E$53,Hoja1!$G$1:$K$150,4,FALSE)","v":{"$error":"#N/A"}}]
["Responsable del Producto /Servicio",null,null,null,{"$f":"VLOOKUP($E$53,Hoja1!$G$1:$K$150,5,FALSE)","v":{"$error":"#N/A"}}]
[null,null,"Requisito ","¿Aplica?","Descripción requisito","Control","Responsable del Control","Frecuencia Seguimiento ","Registro el seguimiento","Cuando es No Conforme","Acción a seguir al detectar PNC",null,"Responsable de la liberación producto"]
[-1,null,"CLARIDAD \n(Variable/atributo/característica de requisito determinado por el cliente)",null,{"$f":"+IF($D57=\"Aplica\",OFFSET(Hoja2!$C$2,MATCH(VLOOKUP($E$53,Hoja1!$G$1:$I$150,2,FALSE),Hoja2!$C$2:$C$58,0)+$A57,2),$D57)","v":0},{"$f":"+IF($D57=\"Aplica\",OFFSET(Hoja2!$C$2,MATCH(VLOOKUP($E$53,Hoja1!$G$1:$I$150,2,FALSE),Hoja2!$C$2:$C$58,0)+$A57,3),$D57)","v":0},{"$f":"+IF($D57=\"Aplica\",OFFSET(Hoja2!$C$2,MATCH(VLOOKUP($E$53,Hoja1!$G$1:$I$150,2,FALSE),Hoja2!$C$2:$C$58,0)+$A57,4),$D57)","v":0},{"$f":"+IF($D57=\"Aplica\",OFFSET(Hoja2!$C$2,MATCH(VLOOKUP($E$53,Hoja1!$G$1:$I$150,2,FALSE),Hoja2!$C$2:$C$58,0)+$A57,5),$D57)","v":0},{"$f":"+IF($D57=\"Aplica\",OFFSET(Hoja2!$C$2,MATCH(VLOOKUP($E$53,Hoja1!$G$1:$I$150,2,FALSE),Hoja2!$C$2:$C$58,0)+$A57,6),$D57)","v":0},{"$f":"+OFFSET(Hoja2!$C$2,MATCH(VLOOKUP($E$53,Hoja1!$G$1:$I$150,2,FALSE),Hoja2!$C$2:$C$58,0)+$A57,7)","v":{"$error":"#N/A"}},{"$f":"+OFFSET(Hoja2!$C$2,MATCH(VLOOKUP($E$53,Hoja1!$G$1:$I$150,2,FALSE),Hoja2!$C$2:$C$58,0)+$A57,8)","v":{"$error":"#N/A"}},null,{"$f":"+IF($D57=\"Aplica\",OFFSET(Hoja2!$C$2,MATCH(VLOOKUP($E$53,Hoja1!$G$1:$I$150,2,FALSE),Hoja2!$C$2:$C$58,0)+$A57,9),$D57)","v":0}]
[0,null,"CONFIABILIDAD\n(Variable/atributo/característica de requisito determinado para el producto/ servicio/ resultado)\n",null,{"$f":"+IF($D58=\"Aplica\",OFFSET(Hoja2!$C$2,MATCH(VLOOKUP($E$53,Hoja1!$G$1:$I$150,2,FALSE),Hoja2!$C$2:$C$58,0)+$A58,2),$D58)","v":0},{"$f":"+IF($D58=\"Aplica\",OFFSET(Hoja2!$C$2,MATCH(VLOOKUP($E$53,Hoja1!$G$1:$I$150,2,FALSE),Hoja2!$C$2:$C$58,0)+$A58,3),$D58)","v":0},{"$f":"+IF($D58=\"Aplica\",OFFSET(Hoja2!$C$2,MATCH(VLOOKUP($E$53,Hoja1!$G$1:$I$150,2,FALSE),Hoja2!$C$2:$C$58,0)+$A58,4),$D58)","v":0},{"$f":"+IF($D58=\"Aplica\",OFFSET(Hoja2!$C$2,MATCH(VLOOKUP($E$53,Hoja1!$G$1:$I$150,2,FALSE),Hoja2!$C$2:$C$58,0)+$A58,5),$D58)","v":0},{"$f":"+IF($D58=\"Aplica\",OFFSET(Hoja2!$C$2,MATCH(VLOOKUP($E$53,Hoja1!$G$1:$I$150,2,FALSE),Hoja2!$C$2:$C$58,0)+$A58,6),$D58)","v":0},null,null,null,{"$f":"+IF($D58=\"Aplica\",OFFSET(Hoja2!$C$2,MATCH(VLOOKUP($E$53,Hoja1!$G$1:$I$150,2,FALSE),Hoja2!$C$2:$C$58,0)+$A58,9),$D58)","v":0}]
[1,null,"CUMPLIMIENTO \n(Variable/atributo/característica de requisito determinado por la legislación vigente)\n",null,{"$f":"+IF($D59=\"Aplica\",OFFSET(Hoja2!$C$2,MATCH(VLOOKUP($E$53,Hoja1!$G$1:$I$150,2,FALSE),Hoja2!$C$2:$C$58,0)+$A59,2),$D59)","v":0},{"$f":"+IF($D59=\"Aplica\",OFFSET(Hoja2!$C$2,MATCH(VLOOKUP($E$53,Hoja1!$G$1:$I$150,2,FALSE),Hoja2!$C$2:$C$58,0)+$A59,3),$D59)","v":0},{"$f":"+IF($D59=\"Aplica\",OFFSET(Hoja2!$C$2,MATCH(VLOOKUP($E$53,Hoja1!$G$1:$I$150,2,FALSE),Hoja2!$C$2:$C$58,0)+$A59,4),$D59)","v":0},{"$f":"+IF($D59=\"Aplica\",OFFSET(Hoja2!$C$2,MATCH(VLOOKUP($E$53,Hoja1!$G$1:$I$150,2,FALSE),Hoja2!$C$2:$C$58,0)+$A59,5),$D59)","v":0},{"$f":"+IF($D59=\"Aplica\",OFFSET(Hoja2!$C$2,MATCH(VLOOKUP($E$53,Hoja1!$G$1:$I$150,2,FALSE),Hoja2!$C$2:$C$58,0)+$A59,6),$D59)","v":0},null,null,null,{"$f":"+IF($D59=\"Aplica\",OFFSET(Hoja2!$C$2,MATCH(VLOOKUP($E$53,Hoja1!$G$1:$I$150,2,FALSE),Hoja2!$C$2:$C$58,0)+$A59,9),$D59)","v":0}]
[2,null,"OPORTUNIDAD\n(Variable/atributo/característica de requisito determinado por FP)",null,{"$f":"+IF($D60=\"Aplica\",OFFSET(Hoja2!$C$2,MATCH(VLOOKUP($E$53,Hoja1!$G$1:$I$150,2,FALSE),Hoja2!$C$2:$C$58,0)+$A60,2),$D60)","v":0},{"$f":"+IF($D60=\"Aplica\",OFFSET(Hoja2!$C$2,MATCH(VLOOKUP($E$53,Hoja1!$G$1:$I$150,2,FALSE),Hoja2!$C$2:$C$58,0)+$A60,3),$D60)","v":0},{"$f":"+IF($D60=\"Aplica\",OFFSET(Hoja2!$C$2,MATCH(VLOOKUP($E$53,Hoja1!$G$1:$I$150,2,FALSE),Hoja2!$C$2:$C$58,0)+$A60,4),$D60)","v":0},{"$f":"+IF($D60=\"Aplica\",OFFSET(Hoja2!$C$2,MATCH(VLOOKUP($E$53,Hoja1!$G$1:$I$150,2,FALSE),Hoja2!$C$2:$C$58,0)+$A60,5),$D60)","v":0},{"$f":"+IF($D60=\"Aplica\",OFFSET(Hoja2!$C$2,MATCH(VLOOKUP($E$53,Hoja1!$G$1:$I$150,2,FALSE),Hoja2!$C$2:$C$58,0)+$A60,6),$D60)","v":0},null,null,null,{"$f":"+IF($D60=\"Aplica\",OFFSET(Hoja2!$C$2,MATCH(VLOOKUP($E$53,Hoja1!$G$1:$I$150,2,FALSE),Hoja2!$C$2:$C$58,0)+$A60,9),$D60)","v":0}]
[]
["Nombre del Producto"]
["Descripción del Producto/Servicio",null,null,null,{"$f":"VLOOKUP($E$62,Hoja1!$G$1:$K$150,4,FALSE)","v":{"$error":"#N/A"}}]
["Responsable del Producto /Servicio",null,null,null,{"$f":"VLOOKUP($E$62,Hoja1!$G$1:$K$150,5,FALSE)","v":{"$error":"#N/A"}}]
[null,null,"Requisito ","¿Aplica?","Descripción requisito","Control","Responsable del Control","Frecuencia Seguimiento ","Registro el seguimiento","Cuando es No Conforme","Acción a seguir al detectar PNC",null,"Responsable de la liberación producto"]
[-1,null,"CLARIDAD \n(Variable/atributo/característica de requisito determinado por el cliente)",null,{"$f":"+IF($D66=\"Aplica\",OFFSET(Hoja2!$C$2,MATCH(VLOOKUP($E$62,Hoja1!$G$1:$I$150,2,FALSE),Hoja2!$C$2:$C$58,0)+$A66,2),$D66)","v":0},{"$f":"+IF($D66=\"Aplica\",OFFSET(Hoja2!$C$2,MATCH(VLOOKUP($E$62,Hoja1!$G$1:$I$150,2,FALSE),Hoja2!$C$2:$C$58,0)+$A66,3),$D66)","v":0},{"$f":"+IF($D66=\"Aplica\",OFFSET(Hoja2!$C$2,MATCH(VLOOKUP($E$62,Hoja1!$G$1:$I$150,2,FALSE),Hoja2!$C$2:$C$58,0)+$A66,4),$D66)","v":0},{"$f":"+IF($D66=\"Aplica\",OFFSET(Hoja2!$C$2,MATCH(VLOOKUP($E$62,Hoja1!$G$1:$I$150,2,FALSE),Hoja2!$C$2:$C$58,0)+$A66,5),$D66)","v":0},{"$f":"+IF($D66=\"Aplica\",OFFSET(Hoja2!$C$2,MATCH(VLOOKUP($E$62,Hoja1!$G$1:$I$150,2,FALSE),Hoja2!$C$2:$C$58,0)+$A66,6),$D66)","v":0},{"$f":"+OFFSET(Hoja2!$C$2,MATCH(VLOOKUP($E$62,Hoja1!$G$1:$I$150,2,FALSE),Hoja2!$C$2:$C$58,0)+$A66,7)","v":{"$error":"#N/A"}},{"$f":"+OFFSET(Hoja2!$C$2,MATCH(VLOOKUP($E$62,Hoja1!$G$1:$I$150,2,FALSE),Hoja2!$C$2:$C$58,0)+$A66,8)","v":{"$error":"#N/A"}},null,{"$f":"+IF($D66=\"Aplica\",OFFSET(Hoja2!$C$2,MATCH(VLOOKUP($E$62,Hoja1!$G$1:$I$150,2,FALSE),Hoja2!$C$2:$C$58,0)+$A66,9),$D66)","v":0}]
[0,null,"CONFIABILIDAD\n(Variable/atributo/característica de requisito determinado para el producto/ servicio/ resultado)\n",null,{"$f":"+IF($D67=\"Aplica\",OFFSET(Hoja2!$C$2,MATCH(VLOOKUP($E$62,Hoja1!$G$1:$I$150,2,FALSE),Hoja2!$C$2:$C$58,0)+$A67,2),$D67)","v":0},{"$f":"+IF($D67=\"Aplica\",OFFSET(Hoja2!$C$2,MATCH(VLOOKUP($E$62,Hoja1!$G$1:$I$150,2,FALSE),Hoja2!$C$2:$C$58,0)+$A67,3),$D67)","v":0},{"$f":"+IF($D67=\"Aplica\",OFFSET(Hoja2!$C$2,MATCH(VLOOKUP($E$62,Hoja1!$G$1:$I$150,2,FALSE),Hoja2!$C$2:$C$58,0)+$A67,4),$D67)","v":0},{"$f":"+IF($D67=\"Aplica\",OFFSET(Hoja2!$C$2,MATCH(VLOOKUP($E$62,Hoja1!$G$1:$I$150,2,FALSE),Hoja2!$C$2:$C$58,0)+$A67,5),$D67)","v":0},{"$f":"+IF($D67=\"Aplica\",OFFSET(Hoja2!$C$2,MATCH(VLOOKUP($E$62,Hoja1!$G$1:$I$150,2,FALSE),Hoja2!$C$2:$C$58,0)+$A67,6),$D67)","v":0},null,null,null,{"$f":"+IF($D67=\"Aplica\",OFFSET(Hoja2!$C$2,MATCH(VLOOKUP($E$62,Hoja1!$G$1:$I$150,2,FALSE),Hoja2!$C$2:$C$58,0)+$A67,9),$D67)","v":0}]
[1,null,"CUMPLIMIENTO \n(Variable/atributo/característica de requisito determinado por la legislación vigente)\n",null,{"$f":"+IF($D68=\"Aplica\",OFFSET(Hoja2!$C$2,MATCH(VLOOKUP($E$62,Hoja1!$G$1:$I$150,2,FALSE),Hoja2!$C$2:$C$58,0)+$A68,2),$D68)","v":0},{"$f":"+IF($D68=\"Aplica\",OFFSET(Hoja2!$C$2,MATCH(VLOOKUP($E$62,Hoja1!$G$1:$I$150,2,FALSE),Hoja2!$C$2:$C$58,0)+$A68,3),$D68)","v":0},{"$f":"+IF($D68=\"Aplica\",OFFSET(Hoja2!$C$2,MATCH(VLOOKUP($E$62,Hoja1!$G$1:$I$150,2,FALSE),Hoja2!$C$2:$C$58,0)+$A68,4),$D68)","v":0},{"$f":"+IF($D68=\"Aplica\",OFFSET(Hoja2!$C$2,MATCH(VLOOKUP($E$62,Hoja1!$G$1:$I$150,2,FALSE),Hoja2!$C$2:$C$58,0)+$A68,5),$D68)","v":0},{"$f":"+IF($D68=\"Aplica\",OFFSET(Hoja2!$C$2,MATCH(VLOOKUP($E$62,Hoja1!$G$1:$I$150,2,FALSE),Hoja2!$C$2:$C$58,0)+$A68,6),$D68)","v":0},null,null,null,{"$f":"+IF($D68=\"Aplica\",OFFSET(Hoja2!$C$2,MATCH(VLOOKUP($E$62,Hoja1!$G$1:$I$150,2,FALSE),Hoja2!$C$2:$C$58,0)+$A68,9),$D68)","v":0}]
[2,null,"OPORTUNIDAD\n(Variable/atributo/característica de requisito determinado por FP)",null,{"$f":"+IF($D69=\"Aplica\",OFFSET(Hoja2!$C$2,MATCH(VLOOKUP($E$62,Hoja1!$G$1:$I$150,2,FALSE),Hoja2!$C$2:$C$58,0)+$A69,2),$D69)","v":0},{"$f":"+IF($D69=\"Aplica\",OFFSET(Hoja2!$C$2,MATCH(VLOOKUP($E$62,Hoja1!$G$1:$I$150,2,FALSE),Hoja2!$C$2:$C$58,0)+$A69,3),$D69)","v":0},{"$f":"+IF($D69=\"Aplica\",OFFSET(Hoja2!$C$2,MATCH(VLOOKUP($E$62,Hoja1!$G$1:$I$150,2,FALSE),Hoja2!$C$2:$C$58,0)+$A69,4),$D69)","v":0},{"$f":"+IF($D69=\"Aplica\",OFFSET(Hoja2!$C$2,MATCH(VLOOKUP($E$62,Hoja1!$G$1:$I$150,2,FALSE),Hoja2!$C$2:$C$58,0)+$A69,5),$D69)","v":0},{"$f":"+IF($D69=\"Aplica\",OFFSET(Hoja2!$C$2,MATCH(VLOOKUP($E$62,Hoja1!$G$1:$I$150,2,FALSE),Hoja2!$C$2:$C$58,0)+$A69,6),$D69)","v":0},null,null,null,{"$f":"+IF($D69=\"Aplica\",OFFSET(Hoja2!$C$2,MATCH(VLOOKUP($E$62,Hoja1!$G$1:$I$150,2,FALSE),Hoja2!$C$2:$C$58,0)+$A69,9),$D69)","v":0}]
[]
["Nombre del Producto"]
["Descripción del Producto/Servicio",null,null,null,{"$f":"VLOOKUP($E$71,Hoja1!$G$1:$K$150,4,FALSE)","v":{"$error":"#N/A"}}]
["Responsable del Producto /Servicio",null,null,null,{"$f":"VLOOKUP($E$71,Hoja1!$G$1:$K$150,5,FALSE)","v":{"$error":"#N/A"}}]
[null,null,"Requisito ","¿Aplica?","Descripción requisito","Control","Responsable del Control","Frecuencia Seguimiento ","Registro el seguimiento","Cuando es No Conforme","Acción a seguir al detectar PNC",null,"Responsable de la liberación producto"]
[-1,null,"CLARIDAD \n(Variable/atributo/característica de requisito determinado por el cliente)",null,{"$f":"+IF($D75=\"Aplica\",OFFSET(Hoja2!$C$2,MATCH(VLOOKUP($E$71,Hoja1!$G$1:$I$150,2,FALSE),Hoja2!$C$2:$C$58,0)+$A75,2),$D75)","v":0},{"$f":"+IF($D75=\"Aplica\",OFFSET(Hoja2!$C$2,MATCH(VLOOKUP($E$71,Hoja1!$G$1:$I$150,2,FALSE),Hoja2!$C$2:$C$58,0)+$A75,3),$D75)","v":0},{"$f":"+IF($D75=\"Aplica\",OFFSET(Hoja2!$C$2,MATCH(VLOOKUP($E$71,Hoja1!$G$1:$I$150,2,FALSE),Hoja2!$C$2:$C$58,0)+$A75,4),$D75)","v":0},{"$f":"+IF($D75=\"Aplica\",OFFSET(Hoja2!$C$2,MATCH(VLOOKUP($E$71,Hoja1!$G$1:$I$150,2,FALSE),Hoja2!$C$2:$C$58,0)+$A75,5),$D75)","v":0},{"$f":"+IF($D75=\"Aplica\",OFFSET(Hoja2!$C$2,MATCH(VLOOKUP($E$71,Hoja1!$G$1:$I$150,2,FALSE),Hoja2!$C$2:$C$58,0)+$A75,6),$D75)","v":0},{"$f":"+OFFSET(Hoja2!$C$2,MATCH(VLOOKUP($E$71,Hoja1!$G$1:$I$150,2,FALSE),Hoja2!$C$2:$C$58,0)+$A75,7)","v":{"$error":"#N/A"}},{"$f":"+OFFSET(Hoja2!$C$2,MATCH(VLOOKUP($E$71,Hoja1!$G$1:$I$150,2,FALSE),Hoja2!$C$2:$C$58,0)+$A75,8)","v":{"$error":"#N/A"}},null,{"$f":"+IF($D75=\"Aplica\",OFFSET(Hoja2!$C$2,MATCH(VLOOKUP($E$71,Hoja1!$G$1:$I$150,2,FALSE),Hoja2!$C$2:$C$58,0)+$A75,9),$D75)","v":0}]
[0,null,"CONFIABILIDAD\n(Variable/atributo/característica de requisito determinado para el producto/ servicio/ resultado)\n",null,{"$f":"+IF($D76=\"Aplica\",OFFSET(Hoja2!$C$2,MATCH(VLOOKUP($E$71,Hoja1!$G$1:$I$150,2,FALSE),Hoja2!$C$2:$C$58,0)+$A76,2),$D76)","v":0},{"$f":"+IF($D76=\"Aplica\",OFFSET(Hoja2!$C$2,MATCH(VLOOKUP($E$71,Hoja1!$G$1:$I$150,2,FALSE),Hoja2!$C$2:$C$58,0)+$A76,3),$D76)","v":0},{"$f":"+IF($D76=\"Aplica\",OFFSET(Hoja2!$C$2,MATCH(VLOOKUP($E$71,Hoja1!$G$1:$I$150,2,FALSE),Hoja2!$C$2:$C$58,0)+$A76,4),$D76)","v":0},{"$f":"+IF($D76=\"Aplica\",OFFSET(Hoja2!$C$2,MATCH(VLOOKUP($E$71,Hoja1!$G$1:$I$150,2,FALSE),Hoja2!$C$2:$C$58,0)+$A76,5),$D76)","v":0},{"$f":"+IF($D76=\"Aplica\",OFFSET(Hoja2!$C$2,MATCH(VLOOKUP($E$71,Hoja1!$G$1:$I$150,2,FALSE),Hoja2!$C$2:$C$58,0)+$A76,6),$D76)","v":0},null,null,null,{"$f":"+IF($D76=\"Aplica\",OFFSET(Hoja2!$C$2,MATCH(VLOOKUP($E$71,Hoja1!$G$1:$I$150,2,FALSE),Hoja2!$C$2:$C$58,0)+$A76,9),$D76)","v":0}]
[1,null,"CUMPLIMIENTO \n(Variable/atributo/característica de requisito determinado por la legislación vigente)\n",null,{"$f":"+IF($D77=\"Aplica\",OFFSET(Hoja2!$C$2,MATCH(VLOOKUP($E$71,Hoja1!$G$1:$I$150,2,FALSE),Hoja2!$C$2:$C$58,0)+$A77,2),$D77)","v":0},{"$f":"+IF($D77=\"Aplica\",OFFSET(Hoja2!$C$2,MATCH(VLOOKUP($E$71,Hoja1!$G$1:$I$150,2,FALSE),Hoja2!$C$2:$C$58,0)+$A77,3),$D77)","v":0},{"$f":"+IF($D77=\"Aplica\",OFFSET(Hoja2!$C$2,MATCH(VLOOKUP($E$71,Hoja1!$G$1:$I$150,2,FALSE),Hoja2!$C$2:$C$58,0)+$A77,4),$D77)","v":0},{"$f":"+IF($D77=\"Aplica\",OFFSET(Hoja2!$C$2,MATCH(VLOOKUP($E$71,Hoja1!$G$1:$I$150,2,FALSE),Hoja2!$C$2:$C$58,0)+$A77,5),$D77)","v":0},{"$f":"+IF($D77=\"Aplica\",OFFSET(Hoja2!$C$2,MATCH(VLOOKUP($E$71,Hoja1!$G$1:$I$150,2,FALSE),Hoja2!$C$2:$C$58,0)+$A77,6),$D77)","v":0},null,null,null,{"$f":"+IF($D77=\"Aplica\",OFFSET(Hoja2!$C$2,MATCH(VLOOKUP($E$71,Hoja1!$G$1:$I$150,2,FALSE),Hoja2!$C$2:$C$58,0)+$A77,9),$D77)","v":0}]
[2,null,"OPORTUNIDAD\n(Variable/atributo/característica de requisito determinado por FP)",null,{"$f":"+IF($D78=\"Aplica\",OFFSET(Hoja2!$C$2,MATCH(VLOOKUP($E$71,Hoja1!$G$1:$I$150,2,FALSE),Hoja2!$C$2:$C$58,0)+$A78,2),$D78)","v":0},{"$f":"+IF($D78=\"Aplica\",OFFSET(Hoja2!$C$2,MATCH(VLOOKUP($E$71,Hoja1!$G$1:$I$150,2,FALSE),Hoja2!$C$2:$C$58,0)+$A78,3),$D78)","v":0},{"$f":"+IF($D78=\"Aplica\",OFFSET(Hoja2!$C$2,MATCH(VLOOKUP($E$71,Hoja1!$G$1:$I$150,2,FALSE),Hoja2!$C$2:$C$58,0)+$A78,4),$D78)","v":0},{"$f":"+IF($D78=\"Aplica\",OFFSET(Hoja2!$C$2,MATCH(VLOOKUP($E$71,Hoja1!$G$1:$I$150,2,FALSE),Hoja2!$C$2:$C$58,0)+$A78,5),$D78)","v":0},{"$f":"+IF($D78=\"Aplica\",OFFSET(Hoja2!$C$2,MATCH(VLOOKUP($E$71,Hoja1!$G$1:$I$150,2,FALSE),Hoja2!$C$2:$C$58,0)+$A78,6),$D78)","v":0},null,null,null,{"$f":"+IF($D78=\"Aplica\",OFFSET(Hoja2!$C$2,MATCH(VLOOKUP($E$71,Hoja1!$G$1:$I$150,2,FALSE),Hoja2!$C$2:$C$58,0)+$A78,9),$D78)","v":0}]
[]
["Nombre del Producto"]
["Descripción del Producto/Servicio",null,null,null,{"$f":"VLOOKUP($E$80,Hoja1!$G$1:$K$150,4,FALSE)","v":{"$error":"#N/A"}}]
["Responsable del Producto /Servicio",null,null,null,{"$f":"VLOOKUP($E$80,Hoja1!$G$1:$K$150,5,FALSE)","v":{"$error":"#N/A"}}]
[null,null,"Requisito ","¿Aplica?","Descripción requisito","Control","Responsable del Control","Frecuencia Seguimiento ","Registro el seguimiento","Cuando es No Conforme","Acción a seguir al detectar PNC",null,"Responsable de la liberación producto"]
[-1,null,"CLARIDAD \n(Variable/atributo/característica de requisito determinado por el cliente)",null,{"$f":"+IF($D84=\"Aplica\",OFFSET(Hoja2!$C$2,MATCH(VLOOKUP($E$80,Hoja1!$G$1:$I$150,2,FALSE),Hoja2!$C$2:$C$58,0)+$A84,2),$D84)","v":0},{"$f":"+IF($D84=\"Aplica\",OFFSET(Hoja2!$C$2,MATCH(VLOOKUP($E$80,Hoja1!$G$1:$I$150,2,FALSE),Hoja2!$C$2:$C$58,0)+$A84,3),$D84)","v":0},{"$f":"+IF($D84=\"Aplica\",OFFSET(Hoja2!$C$2,MATCH(VLOOKUP($E$80,Hoja1!$G$1:$I$150,2,FALSE),Hoja2!$C$2:$C$58,0)+$A84,4),$D84)","v":0},{"$f":"+IF($D84=\"Aplica\",OFFSET(Hoja2!$C$2,MATCH(VLOOKUP($E$80,Hoja1!$G$1:$I$150,2,FALSE),Hoja2!$C$2:$C$58,0)+$A84,5),$D84)","v":0},{"$f":"+IF($D84=\"Aplica\",OFFSET(Hoja2!$C$2,MATCH(VLOOKUP($E$80,Hoja1!$G$1:$I$150,2,FALSE),Hoja2!$C$2:$C$58,0)+$A84,6),$D84)","v":0},{"$f":"+OFFSET(Hoja2!$C$2,MATCH(VLOOKUP($E$80,Hoja1!$G$1:$I$150,2,FALSE),Hoja2!$C$2:$C$58,0)+$A84,7)","v":{"$error":"#N/A"}},{"$f":"+OFFSET(Hoja2!$C$2,MATCH(VLOOKUP($E$80,Hoja1!$G$1:$I$150,2,FALSE),Hoja2!$C$2:$C$58,0)+$A84,8)","v":{"$error":"#N/A"}},null,{"$f":"+IF($D84=\"Aplica\",OFFSET(Hoja2!$C$2,MATCH(VLOOKUP($E$80,Hoja1!$G$1:$I$150,2,FALSE),Hoja2!$C$2:$C$58,0)+$A84,9),$D84)","v":0}]
[0,null,"CONFIABILIDAD\n(Variable/atributo/característica de requisito determinado para el producto/ servicio/ resultado)\n",null,{"$f":"+IF($D85=\"Aplica\",OFFSET(Hoja2!$C$2,MATCH(VLOOKUP($E$80,Hoja1!$G$1:$I$150,2,FALSE),Hoja2!$C$2:$C$58,0)+$A85,2),$D85)","v":0},{"$f":"+IF($D85=\"Aplica\",OFFSET(Hoja2!$C$2,MATCH(VLOOKUP($E$80,Hoja1!$G$1:$I$150,2,FALSE),Hoja2!$C$2:$C$58,0)+$A85,3),$D85)","v":0},{"$f":"+IF($D85=\"Aplica\",OFFSET(Hoja2!$C$2,MATCH(VLOOKUP($E$80,Hoja1!$G$1:$I$150,2,FALSE),Hoja2!$C$2:$C$58,0)+$A85,4),$D85)","v":0},{"$f":"+IF($D85=\"Aplica\",OFFSET(Hoja2!$C$2,MATCH(VLOOKUP($E$80,Hoja1!$G$1:$I$150,2,FALSE),Hoja2!$C$2:$C$58,0)+$A85,5),$D85)","v":0},{"$f":"+IF($D85=\"Aplica\",OFFSET(Hoja2!$C$2,MATCH(VLOOKUP($E$80,Hoja1!$G$1:$I$150,2,FALSE),Hoja2!$C$2:$C$58,0)+$A85,6),$D85)","v":0},null,null,null,{"$f":"+IF($D85=\"Aplica\",OFFSET(Hoja2!$C$2,MATCH(VLOOKUP($E$80,Hoja1!$G$1:$I$150,2,FALSE),Hoja2!$C$2:$C$58,0)+$A85,9),$D85)","v":0}]
[1,null,"CUMPLIMIENTO \n(Variable/atributo/característica de requisito determinado por la legislación vigente)\n",null,{"$f":"+IF($D86=\"Aplica\",OFFSET(Hoja2!$C$2,MATCH(VLOOKUP($E$80,Hoja1!$G$1:$I$150,2,FALSE),Hoja2!$C$2:$C$58,0)+$A86,2),$D86)","v":0},{"$f":"+IF($D86=\"Aplica\",OFFSET(Hoja2!$C$2,MATCH(VLOOKUP($E$80,Hoja1!$G$1:$I$150,2,FALSE),Hoja2!$C$2:$C$58,0)+$A86,3),$D86)","v":0},{"$f":"+IF($D86=\"Aplica\",OFFSET(Hoja2!$C$2,MATCH(VLOOKUP($E$80,Hoja1!$G$1:$I$150,2,FALSE),Hoja2!$C$2:$C$58,0)+$A86,4),$D86)","v":0},{"$f":"+IF($D86=\"Aplica\",OFFSET(Hoja2!$C$2,MATCH(VLOOKUP($E$80,Hoja1!$G$1:$I$150,2,FALSE),Hoja2!$C$2:$C$58,0)+$A86,5),$D86)","v":0},{"$f":"+IF($D86=\"Aplica\",OFFSET(Hoja2!$C$2,MATCH(VLOOKUP($E$80,Hoja1!$G$1:$I$150,2,FALSE),Hoja2!$C$2:$C$58,0)+$A86,6),$D86)","v":0},null,null,null,{"$f":"+IF($D86=\"Aplica\",OFFSET(Hoja2!$C$2,MATCH(VLOOKUP($E$80,Hoja1!$G$1:$I$150,2,FALSE),Hoja2!$C$2:$C$58,0)+$A86,9),$D86)","v":0}]
[2,null,"OPORTUNIDAD\n(Variable/atributo/característica de requisito determinado por FP)",null,{"$f":"+IF($D87=\"Aplica\",OFFSET(Hoja2!$C$2,MATCH(VLOOKUP($E$80,Hoja1!$G$1:$I$150,2,FALSE),Hoja2!$C$2:$C$58,0)+$A87,2),$D87)","v":0},{"$f":"+IF($D87=\"Aplica\",OFFSET(Hoja2!$C$2,MATCH(VLOOKUP($E$80,Hoja1!$G$1:$I$150,2,FALSE),Hoja2!$C$2:$C$58,0)+$A87,3),$D87)","v":0},{"$f":"+IF($D87=\"Aplica\",OFFSET(Hoja2!$C$2,MATCH(VLOOKUP($E$80,Hoja1!$G$1:$I$150,2,FALSE),Hoja2!$C$2:$C$58,0)+$A87,4),$D87)","v":0},{"$f":"+IF($D87=\"Aplica\",OFFSET(Hoja2!$C$2,MATCH(VLOOKUP($E$80,Hoja1!$G$1:$I$150,2,FALSE),Hoja2!$C$2:$C$58,0)+$A87,5),$D87)","v":0},{"$f":"+IF($D87=\"Aplica\",OFFSET(Hoja2!$C$2,MATCH(VLOOKUP($E$80,Hoja1!$G$1:$I$150,2,FALSE),Hoja2!$C$2:$C$58,0)+$A87,6),$D87)","v":0},null,null,null,{"$f":"+IF($D87=\"Aplica\",OFFSET(Hoja2!$C$2,MATCH(VLOOKUP($E$80,Hoja1!$G$1:$I$150,2,FALSE),Hoja2!$C$2:$C$58,0)+$A87,9),$D87)","v":0}]
[]
["Nombre del Producto"]
["Descripción del Producto/Servicio",null,null,null,{"$f":"VLOOKUP($E$89,Hoja1!$G$1:$K$150,4,FALSE)","v":{"$error":"#N/A"}}]
["Responsable del Producto /Servicio",null,null,null,{"$f":"VLOOKUP($E$89,Hoja1!$G$1:$K$150,5,FALSE)","v":{"$error":"#N/A"}}]
[null,null,"Requisito ","¿Aplica?","Descripción requisito","Control","Responsable del Control","Frecuencia Seguimiento ","Registro el seguimiento","Cuando es No Conforme","Acción a seguir al detectar PNC",null,"Responsable de la liberación producto"]
[-1,null,"CLARIDAD \n(Variable/atributo/característica de requisito determinado por el cliente)",null,{"$f":"+IF($D93=\"Aplica\",OFFSET(Hoja2!$C$2,MATCH(VLOOKUP($E$89,Hoja1!$G$1:$I$150,2,FALSE),Hoja2!$C$2:$C$58,0)+$A93,2),$D93)","v":0},{"$f":"+IF($D93=\"Aplica\",OFFSET(Hoja2!$C$2,MATCH(VLOOKUP($E$89,Hoja1!$G$1:$I$150,2,FALSE),Hoja2!$C$2:$C$58,0)+$A93,3),$D93)","v":0},{"$f":"+IF($D93=\"Aplica\",OFFSET(Hoja2!$C$2,MATCH(VLOOKUP($E$89,Hoja1!$G$1:$I$150,2,FALSE),Hoja2!$C$2:$C$58,0)+$A93,4),$D93)","v":0},{"$f":"+IF($D93=\"Aplica\",OFFSET(Hoja2!$C$2,MATCH(VLOOKUP($E$89,Hoja1!$G$1:$I$150,2,FALSE),Hoja2!$C$2:$C$58,0)+$A93,5),$D93)","v":0},{"$f":"+IF($D93=\"Aplica\",OFFSET(Hoja2!$C$2,MATCH(VLOOKUP($E$89,Hoja1!$G$1:$I$150,2,FALSE),Hoja2!$C$2:$C$58,0)+$A93,6),$D93)","v":0},{"$f":"+OFFSET(Hoja2!$C$2,MATCH(VLOOKUP($E$89,Hoja1!$G$1:$I$150,2,FALSE),Hoja2!$C$2:$C$58,0)+$A93,7)","v":{"$error":"#N/A"}},{"$f":"+OFFSET(Hoja2!$C$2,MATCH(VLOOKUP($E$89,Hoja1!$G$1:$I$150,2,FALSE),Hoja2!$C$2:$C$58,0)+$A93,8)","v":{"$error":"#N/A"}},null,{"$f":"+IF($D93=\"Aplica\",OFFSET(Hoja2!$C$2,MATCH(VLOOKUP($E$89,Hoja1!$G$1:$I$150,2,FALSE),Hoja2!$C$2:$C$58,0)+$A93,9),$D93)","v":0}]
[0,null,"CONFIABILIDAD\n(Variable/atributo/característica de requisito determinado para el producto/ servicio/ resultado)\n",null,{"$f":"+IF($D94=\"Aplica\",OFFSET(Hoja2!$C$2,MATCH(VLOOKUP($E$89,Hoja1!$G$1:$I$150,2,FALSE),Hoja2!$C$2:$C$58,0)+$A94,2),$D94)","v":0},{"$f":"+IF($D94=\"Aplica\",OFFSET(Hoja2!$C$2,MATCH(VLOOKUP($E$89,Hoja1!$G$1:$I$150,2,FALSE),Hoja2!$C$2:$C$58,0)+$A94,3),$D94)","v":0},{"$f":"+IF($D94=\"Aplica\",OFFSET(Hoja2!$C$2,MATCH(VLOOKUP($E$89,Hoja1!$G$1:$I$150,2,FALSE),Hoja2!$C$2:$C$58,0)+$A94,4),$D94)","v":0},{"$f":"+IF($D94=\"Aplica\",OFFSET(Hoja2!$C$2,MATCH(VLOOKUP($E$89,Hoja1!$G$1:$I$150,2,FALSE),Hoja2!$C$2:$C$58,0)+$A94,5),$D94)","v":0},{"$f":"+IF($D94=\"Aplica\",OFFSET(Hoja2!$C$2,MATCH(VLOOKUP($E$89,Hoja1!$G$1:$I$150,2,FALSE),Hoja2!$C$2:$C$58,0)+$A94,6),$D94)","v":0},null,null,null,{"$f":"+IF($D94=\"Aplica\",OFFSET(Hoja2!$C$2,MATCH(VLOOKUP($E$89,Hoja1!$G$1:$I$150,2,FALSE),Hoja2!$C$2:$C$58,0)+$A94,9),$D94)","v":0}]
[1,null,"CUMPLIMIENTO \n(Variable/atributo/característica de requisito determinado por la legislación vigente)\n",null,{"$f":"+IF($D95=\"Aplica\",OFFSET(Hoja2!$C$2,MATCH(VLOOKUP($E$89,Hoja1!$G$1:$I$150,2,FALSE),Hoja2!$C$2:$C$58,0)+$A95,2),$D95)","v":0},{"$f":"+IF($D95=\"Aplica\",OFFSET(Hoja2!$C$2,MATCH(VLOOKUP($E$89,Hoja1!$G$1:$I$150,2,FALSE),Hoja2!$C$2:$C$58,0)+$A95,3),$D95)","v":0},{"$f":"+IF($D95=\"Aplica\",OFFSET(Hoja2!$C$2,MATCH(VLOOKUP($E$89,Hoja1!$G$1:$I$150,2,FALSE),Hoja2!$C$2:$C$58,0)+$A95,4),$D95)","v":0},{"$f":"+IF($D95=\"Aplica\",OFFSET(Hoja2!$C$2,MATCH(VLOOKUP($E$89,Hoja1!$G$1:$I$150,2,FALSE),Hoja2!$C$2:$C$58,0)+$A95,5),$D95)","v":0},{"$f":"+IF($D95=\"Aplica\",OFFSET(Hoja2!$C$2,MATCH(VLOOKUP($E$89,Hoja1!$G$1:$I$150,2,FALSE),Hoja2!$C$2:$C$58,0)+$A95,6),$D95)","v":0},null,null,null,{"$f":"+IF($D95=\"Aplica\",OFFSET(Hoja2!$C$2,MATCH(VLOOKUP($E$89,Hoja1!$G$1:$I$150,2,FALSE),Hoja2!$C$2:$C$58,0)+$A95,9),$D95)","v":0}]
[2,null,"OPORTUNIDAD\n(Variable/atributo/característica de requisito determinado por FP)",null,{"$f":"+IF($D96=\"Aplica\",OFFSET(Hoja2!$C$2,MATCH(VLOOKUP($E$89,Hoja1!$G$1:$I$150,2,FALSE),Hoja2!$C$2:$C$58,0)+$A96,2),$D96)","v":0},{"$f":"+IF($D96=\"Aplica\",OFFSET(Hoja2!$C$2,MATCH(VLOOKUP($E$89,Hoja1!$G$1:$I$150,2,FALSE),Hoja2!$C$2:$C$58,0)+$A96,3),$D96)","v":0},{"$f":"+IF($D96=\"Aplica\",OFFSET(Hoja2!$C$2,MATCH(VLOOKUP($E$89,Hoja1!$G$1:$I$150,2,FALSE),Hoja2!$C$2:$C$58,0)+$A96,4),$D96)","v":0},{"$f":"+IF($D96=\"Aplica\",OFFSET(Hoja2!$C$2,MATCH(VLOOKUP($E$89,Hoja1!$G$1:$I$150,2,FALSE),Hoja2!$C$2:$C$58,0)+$A96,5),$D96)","v":0},{"$f":"+IF($D96=\"Aplica\",OFFSET(Hoja2!$C$2,MATCH(VLOOKUP($E$89,Hoja1!$G$1:$I$150,2,FALSE),Hoja2!$C$2:$C$58,0)+$A96,6),$D96)","v":0},null,null,null,{"$f":"+IF($D96=\"Aplica\",OFFSET(Hoja2!$C$2,MATCH(VLOOKUP($E$89,Hoja1!$G$1:$I$150,2,FALSE),Hoja2!$C$2:$C$58,0)+$A96,9),$D96)","v":0}]
[]
["Nombre del Producto"]
["Descripción del Producto/Servicio",null,null,null,{"$f":"VLOOKUP($E$98,Hoja1!$G$1:$K$150,4,FALSE)","v":{"$error":"#N/A"}}]
["Responsable del Producto /Servicio",null,null,null,{"$f":"VLOOKUP($E$98,Hoja1!$G$1:$K$150,5,FALSE)","v":{"$error":"#N/A"}}]
[null,null,"Requisito ","¿Aplica?","Descripción requisito","Control","Responsable del Control","Frecuencia Seguimiento ","Registro el seguimiento","Cuando es No Conforme","Acción a seguir al detectar PNC",null,"Responsable de la liberación producto"]
[-1,null,"CLARIDAD \n(Variable/atributo/característica de requisito determinado por el cliente)",null,{"$f":"+IF($D102=\"Aplica\",OFFSET(Hoja2!$C$2,MATCH(VLOOKUP($E$98,Hoja1!$G$1:$I$150,2,FALSE),Hoja2!$C$2:$C$58,0)+$A102,2),$D102)","v":0},{"$f":"+IF($D102=\"Aplica\",OFFSET(Hoja2!$C$2,MATCH(VLOOKUP($E$98,Hoja1!$G$1:$I$150,2,FALSE),Hoja2!$C$2:$C$58,0)+$A102,3),$D102)","v":0},{"$f":"+IF($D102=\"Aplica\",OFFSET(Hoja2!$C$2,MATCH(VLOOKUP($E$98,Hoja1!$G$1:$I$150,2,FALSE),Hoja2!$C$2:$C$58,0)+$A102,4),$D102)","v":0},{"$f":"+IF($D102=\"Aplica\",OFFSET(Hoja2!$C$2,MATCH(VLOOKUP($E$98,Hoja1!$G$1:$I$150,2,FALSE),Hoja2!$C$2:$C$58,0)+$A102,5),$D102)","v":0},{"$f":"+IF($D102=\"Aplica\",OFFSET(Hoja2!$C$2,MATCH(VLOOKUP($E$98,Hoja1!$G$1:$I$150,2,FALSE),Hoja2!$C$2:$C$58,0)+$A102,6),$D102)","v":0},{"$f":"+OFFSET(Hoja2!$C$2,MATCH(VLOOKUP($E$98,Hoja1!$G$1:$I$150,2,FALSE),Hoja2!$C$2:$C$58,0)+$A102,7)","v":{"$error":"#N/A"}},{"$f":"+OFFSET(Hoja2!$C$2,MATCH(VLOOKUP($E$98,Hoja1!$G$1:$I$150,2,FALSE),Hoja2!$C$2:$C$58,0)+$A102,8)","v":{"$error":"#N/A"}},null,{"$f":"+IF($D102=\"Aplica\",OFFSET(Hoja2!$C$2,MATCH(VLOOKUP($E$98,Hoja1!$G$1:$I$150,2,FALSE),Hoja2!$C$2:$C$58,0)+$A102,9),$D102)","v":0}]
[0,null,"CONFIABILIDAD\n(Variable/atributo/característica de requisito determinado para el producto/ servicio/ resultado)\n",null,{"$f":"+IF($D103=\"Aplica\",OFFSET(Hoja2!$C$2,MATCH(VLOOKUP($E$98,Hoja1!$G$1:$I$150,2,FALSE),Hoja2!$C$2:$C$58,0)+$A103,2),$D103)","v":0},{"$f":"+IF($D103=\"Aplica\",OFFSET(Hoja2!$C$2,MATCH(VLOOKUP($E$98,Hoja1!$G$1:$I$150,2,FALSE),Hoja2!$C$2:$C$58,0)+$A103,3),$D103)","v":0},{"$f":"+IF($D103=\"Aplica\",OFFSET(Hoja2!$C$2,MATCH(VLOOKUP($E$98,Hoja1!$G$1:$I$150,2,FALSE),Hoja2!$C$2:$C$58,0)+$A103,4),$D103)","v":0},{"$f":"+IF($D103=\"Aplica\",OFFSET(Hoja2!$C$2,MATCH(VLOOKUP($E$98,Hoja1!$G$1:$I$150,2,FALSE),Hoja2!$C$2:$C$58,0)+$A103,5),$D103)","v":0},{"$f":"+IF($D103=\"Aplica\",OFFSET(Hoja2!$C$2,MATCH(VLOOKUP($E$98,Hoja1!$G$1:$I$150,2,FALSE),Hoja2!$C$2:$C$58,0)+$A103,6),$D103)","v":0},null,null,null,{"$f":"+IF($D103=\"Aplica\",OFFSET(Hoja2!$C$2,MATCH(VLOOKUP($E$98,Hoja1!$G$1:$I$150,2,FALSE),Hoja2!$C$2:$C$58,0)+$A103,9),$D103)","v":0}]
[1,null,"CUMPLIMIENTO \n(Variable/atributo/característica de requisito determinado por la legislación vigente)\n",null,{"$f":"+IF($D104=\"Aplica\",OFFSET(Hoja2!$C$2,MATCH(VLOOKUP($E$98,Hoja1!$G$1:$I$150,2,FALSE),Hoja2!$C$2:$C$58,0)+$A104,2),$D104)","v":0},{"$f":"+IF($D104=\"Aplica\",OFFSET(Hoja2!$C$2,MATCH(VLOOKUP($E$98,Hoja1!$G$1:$I$150,2,FALSE),Hoja2!$C$2:$C$58,0)+$A104,3),$D104)","v":0},{"$f":"+IF($D104=\"Aplica\",OFFSET(Hoja2!$C$2,MATCH(VLOOKUP($E$98,Hoja1!$G$1:$I$150,2,FALSE),Hoja2!$C$2:$C$58,0)+$A104,4),$D104)","v":0},{"$f":"+IF($D104=\"Aplica\",OFFSET(Hoja2!$C$2,MATCH(VLOOKUP($E$98,Hoja1!$G$1:$I$150,2,FALSE),Hoja2!$C$2:$C$58,0)+$A104,5),$D104)","v":0},{"$f":"+IF($D104=\"Aplica\",OFFSET(Hoja2!$C$2,MATCH(VLOOKUP($E$98,Hoja1!$G$1:$I$150,2,FALSE),Hoja2!$C$2:$C$58,0)+$A104,6),$D104)","v":0},null,null,null,{"$f":"+IF($D104=\"Aplica\",OFFSET(Hoja2!$C$2,MATCH(VLOOKUP($E$98,Hoja1!$G$1:$I$150,2,FALSE),Hoja2!$C$2:$C$58,0)+$A104,9),$D104)","v":0}]
[2,null,"OPORTUNIDAD\n(Variable/atributo/característica de requisito determinado por FP)",null,{"$f":"+IF($D105=\"Aplica\",OFFSET(Hoja2!$C$2,MATCH(VLOOKUP($E$98,Hoja1!$G$1:$I$150,2,FALSE),Hoja2!$C$2:$C$58,0)+$A105,2),$D105)","v":0},{"$f":"+IF($D105=\"Aplica\",OFFSET(Hoja2!$C$2,MATCH(VLOOKUP($E$98,Hoja1!$G$1:$I$150,2,FALSE),Hoja2!$C$2:$C$58,0)+$A105,3),$D105)","v":0},{"$f":"+IF($D105=\"Aplica\",OFFSET(Hoja2!$C$2,MATCH(VLOOKUP($E$98,Hoja1!$G$1:$I$150,2,FALSE),Hoja2!$C$2:$C$58,0)+$A105,4),$D105)","v":0},{"$f":"+IF($D105=\"Aplica\",OFFSET(Hoja2!$C$2,MATCH(VLOOKUP($E$98,Hoja1!$G$1:$I$150,2,FALSE),Hoja2!$C$2:$C$58,0)+$A105,5),$D105)","v":0},{"$f":"+IF($D105=\"Aplica\",OFFSET(Hoja2!$C$2,MATCH(VLOOKUP($E$98,Hoja1!$G$1:$I$150,2,FALSE),Hoja2!$C$2:$C$58,0)+$A105,6),$D105)","v":0},null,null,null,{"$f":"+IF($D105=\"Aplica\",OFFSET(Hoja2!$C$2,MATCH(VLOOKUP($E$98,Hoja1!$G$1:$I$150,2,FALSE),Hoja2!$C$2:$C$58,0)+$A105,9),$D105)","v":0}]
[]
["Nombre del Producto"]
["Descripción del Producto/Servicio",null,null,null,{"$f":"VLOOKUP($E$107,Hoja1!$G$1:$K$150,4,FALSE)","v":{"$error":"#N/A"}}]
["Responsable del Producto /Servicio",null,null,null,{"$f":"VLOOKUP($E$107,Hoja1!$G$1:$K$150,5,FALSE)","v":{"$error":"#N/A"}}]
[null,null,"Requisito ","¿Aplica?","Descripción requisito","Control","Responsable del Control","Frecuencia Seguimiento ","Registro el seguimiento","Cuando es No Conforme","Acción a seguir al detectar PNC",null,"Responsable de la liberación producto"]
[-1,null,"CLARIDAD \n(Variable/atributo/característica de requisito determinado por el cliente)",null,{"$f":"+IF($D111=\"Aplica\",OFFSET(Hoja2!$C$2,MATCH(VLOOKUP($E$107,Hoja1!$G$1:$I$150,2,FALSE),Hoja2!$C$2:$C$58,0)+$A111,2),$D111)","v":0},{"$f":"+IF($D111=\"Aplica\",OFFSET(Hoja2!$C$2,MATCH(VLOOKUP($E$107,Hoja1!$G$1:$I$150,2,FALSE),Hoja2!$C$2:$C$58,0)+$A111,3),$D111)","v":0},{"$f":"+IF($D111=\"Aplica\",OFFSET(Hoja2!$C$2,MATCH(VLOOKUP($E$107,Hoja1!$G$1:$I$150,2,FALSE),Hoja2!$C$2:$C$58,0)+$A111,4),$D111)","v":0},{"$f":"+IF($D111=\"Aplica\",OFFSET(Hoja2!$C$2,MATCH(VLOOKUP($E$107,Hoja1!$G$1:$I$150,2,FALSE),Hoja2!$C$2:$C$58,0)+$A111,5),$D111)","v":0},{"$f":"+IF($D111=\"Aplica\",OFFSET(Hoja2!$C$2,MATCH(VLOOKUP($E$107,Hoja1!$G$1:$I$150,2,FALSE),Hoja2!$C$2:$C$58,0)+$A111,6),$D111)","v":0},{"$f":"+OFFSET(Hoja2!$C$2,MATCH(VLOOKUP($E$107,Hoja1!$G$1:$I$150,2,FALSE),Hoja2!$C$2:$C$58,0)+$A111,7)","v":{"$error":"#N/A"}},{"$f":"+OFFSET(Hoja2!$C$2,MATCH(VLOOKUP($E$107,Hoja1!$G$1:$I$150,2,FALSE),Hoja2!$C$2:$C$58,0)+$A111,8)","v":{"$error":"#N/A"}},null,{"$f":"+IF($D111=\"Aplica\",OFFSET(Hoja2!$C$2,MATCH(VLOOKUP($E$107,Hoja1!$G$1:$I$150,2,FALSE),Hoja2!$C$2:$C$58,0)+$A111,9),$D111)","v":0}]
[0,null,"CONFIABILIDAD\n(Variable/atributo/característica de requisito determinado para el producto/ servicio/ resultado)\n",null,{"$f":"+IF($D112=\"Aplica\",OFFSET(Hoja2!$C$2,MATCH(VLOOKUP($E$107,Hoja1!$G$1:$I$150,2,FALSE),Hoja2!$C$2:$C$58,0)+$A112,2),$D112)","v":0},{"$f":"+IF($D112=\"Aplica\",OFFSET(Hoja2!$C$2,MATCH(VLOOKUP($E$107,Hoja1!$G$1:$I$150,2,FALSE),Hoja2!$C$2:$C$58,0)+$A112,3),$D112)","v":0},{"$f":"+IF($D112=\"Aplica\",OFFSET(Hoja2!$C$2,MATCH(VLOOKUP($E$107,Hoja1!$G$1:$I$150,2,FALSE),Hoja2!$C$2:$C$58,0)+$A112,4),$D112)","v":0},{"$f":"+IF($D112=\"Aplica\",OFFSET(Hoja2!$C$2,MATCH(VLOOKUP($E$107,Hoja1!$G$1:$I$150,2,FALSE),Hoja2!$C$2:$C$58,0)+$A112,5),$D112)","v":0},{"$f":"+IF($D112=\"Aplica\",OFFSET(Hoja2!$C$2,MATCH(VLOOKUP($E$107,Hoja1!$G$1:$I$150,2,FALSE),Hoja2!$C$2:$C$58,0)+$A112,6),$D112)","v":0},null,null,null,{"$f":"+IF($D112=\"Aplica\",OFFSET(Hoja2!$C$2,MATCH(VLOOKUP($E$107,Hoja1!$G$1:$I$150,2,FALSE),Hoja2!$C$2:$C$58,0)+$A112,9),$D112)","v":0}]
[1,null,"CUMPLIMIENTO \n(Variable/atributo/característica de requisito determinado por la legislación vigente)\n",null,{"$f":"+IF($D113=\"Aplica\",OFFSET(Hoja2!$C$2,MATCH(VLOOKUP($E$107,Hoja1!$G$1:$I$150,2,FALSE),Hoja2!$C$2:$C$58,0)+$A113,2),$D113)","v":0},{"$f":"+IF($D113=\"Aplica\",OFFSET(Hoja2!$C$2,MATCH(VLOOKUP($E$107,Hoja1!$G$1:$I$150,2,FALSE),Hoja2!$C$2:$C$58,0)+$A113,3),$D113)","v":0},{"$f":"+IF($D113=\"Aplica\",OFFSET(Hoja2!$C$2,MATCH(VLOOKUP($E$107,Hoja1!$G$1:$I$150,2,FALSE),Hoja2!$C$2:$C$58,0)+$A113,4),$D113)","v":0},{"$f":"+IF($D113=\"Aplica\",OFFSET(Hoja2!$C$2,MATCH(VLOOKUP($E$107,Hoja1!$G$1:$I$150,2,FALSE),Hoja2!$C$2:$C$58,0)+$A113,5),$D113)","v":0},{"$f":"+IF($D113=\"Aplica\",OFFSET(Hoja2!$C$2,MATCH(VLOOKUP($E$107,Hoja1!$G$1:$I$150,2,FALSE),Hoja2!$C$2:$C$58,0)+$A113,6),$D113)","v":0},null,null,null,{"$f":"+IF($D113=\"Aplica\",OFFSET(Hoja2!$C$2,MATCH(VLOOKUP($E$107,Hoja1!$G$1:$I$150,2,FALSE),Hoja2!$C$2:$C$58,0)+$A113,9),$D113)","v":0}]
[2,null,"OPORTUNIDAD\n(Variable/atributo/característica de requisito determinado por FP)",null,{"$f":"+IF($D114=\"Aplica\",OFFSET(Hoja2!$C$2,MATCH(VLOOKUP($E$107,Hoja1!$G$1:$I$150,2,FALSE),Hoja2!$C$2:$C$58,0)+$A114,2),$D114)","v":0},{"$f":"+IF($D114=\"Aplica\",OFFSET(Hoja2!$C$2,MATCH(VLOOKUP($E$107,Hoja1!$G$1:$I$150,2,FALSE),Hoja2!$C$2:$C$58,0)+$A114,3),$D114)","v":0},{"$f":"+IF($D114=\"Aplica\",OFFSET(Hoja2!$C$2,MATCH(VLOOKUP($E$107,Hoja1!$G$1:$I$150,2,FALSE),Hoja2!$C$2:$C$58,0)+$A114,4),$D114)","v":0},{"$f":"+IF($D114=\"Aplica\",OFFSET(Hoja2!$C$2,MATCH(VLOOKUP($E$107,Hoja1!$G$1:$I$150,2,FALSE),Hoja2!$C$2:$C$58,0)+$A114,5),$D114)","v":0},{"$f":"+IF($D114=\"Aplica\",OFFSET(Hoja2!$C$2,MATCH(VLOOKUP($E$107,Hoja1!$G$1:$I$150,2,FALSE),Hoja2!$C$2:$C$58,0)+$A114,6),$D114)","v":0},null,null,null,{"$f":"+IF($D114=\"Aplica\",OFFSET(Hoja2!$C$2,MATCH(VLOOKUP($E$107,Hoja1!$G$1:$I$150,2,FALSE),Hoja2!$C$2:$C$58,0)+$A114,9),$D114)","v":0}]
[]
["Nombre del Producto"]
["Descripción del Producto/Servicio",null,null,null,{"$f":"VLOOKUP($E$116,Hoja1!$G$1:$K$150,4,FALSE)","v":{"$error":"#N/A"}}]
["Responsable del Producto /Servicio",null,null,null,{"$f":"VLOOKUP($E$116,Hoja1!$G$1:$K$150,5,FALSE)","v":{"$error":"#N/A"}}]
[null,null,"Requisito ","¿Aplica?","Descripción requisito","Control","Responsable del Control","Frecuencia Seguimiento ","Registro el seguimiento","Cuando es No Conforme","Acción a seguir al detectar PNC",null,"Responsable de la liberación producto"]
[-1,null,"CLARIDAD \n(Variable/atributo/característica de requisito determinado por el cliente)",null,{"$f":"+IF($D120=\"Aplica\",OFFSET(Hoja2!$C$2,MATCH(VLOOKUP($E$116,Hoja1!$G$1:$I$150,2,FALSE),Hoja2!$C$2:$C$58,0)+$A120,2),$D120)","v":0},{"$f":"+IF($D120=\"Aplica\",OFFSET(Hoja2!$C$2,MATCH(VLOOKUP($E$116,Hoja1!$G$1:$I$150,2,FALSE),Hoja2!$C$2:$C$58,0)+$A120,3),$D120)","v":0},{"$f":"+IF($D120=\"Aplica\",OFFSET(Hoja2!$C$2,MATCH(VLOOKUP($E$116,Hoja1!$G$1:$I$150,2,FALSE),Hoja2!$C$2:$C$58,0)+$A120,4),$D120)","v":0},{"$f":"+IF($D120=\"Aplica\",OFFSET(Hoja2!$C$2,MATCH(VLOOKUP($E$116,Hoja1!$G$1:$I$150,2,FALSE),Hoja2!$C$2:$C$58,0)+$A120,5),$D120)","v":0},{"$f":"+IF($D120=\"Aplica\",OFFSET(Hoja2!$C$2,MATCH(VLOOKUP($E$116,Hoja1!$G$1:$I$150,2,FALSE),Hoja2!$C$2:$C$58,0)+$A120,6),$D120)","v":0},{"$f":"+OFFSET(Hoja2!$C$2,MATCH(VLOOKUP($E$116,Hoja1!$G$1:$I$150,2,FALSE),Hoja2!$C$2:$C$58,0)+$A120,7)","v":{"$error":"#N/A"}},{"$f":"+OFFSET(Hoja2!$C$2,MATCH(VLOOKUP($E$116,Hoja1!$G$1:$I$150,2,FALSE),Hoja2!$C$2:$C$58,0)+$A120,8)","v":{"$error":"#N/A"}},null,{"$f":"+IF($D120=\"Aplica\",OFFSET(Hoja2!$C$2,MATCH(VLOOKUP($E$116,Hoja1!$G$1:$I$150,2,FALSE),Hoja2!$C$2:$C$58,0)+$A120,9),$D120)","v":0}]
[0,null,"CONFIABILIDAD\n(Variable/atributo/característica de requisito determinado para el producto/ servicio/ resultado)\n",null,{"$f":"+IF($D121=\"Aplica\",OFFSET(Hoja2!$C$2,MATCH(VLOOKUP($E$116,Hoja1!$G$1:$I$150,2,FALSE),Hoja2!$C$2:$C$58,0)+$A121,2),$D121)","v":0},{"$f":"+IF($D121=\"Aplica\",OFFSET(Hoja2!$C$2,MATCH(VLOOKUP($E$116,Hoja1!$G$1:$I$150,2,FALSE),Hoja2!$C$2:$C$58,0)+$A121,3),$D121)","v":0},{"$f":"+IF($D121=\"Aplica\",OFFSET(Hoja2!$C$2,MATCH(VLOOKUP($E$116,Hoja1!$G$1:$I$150,2,FALSE),Hoja2!$C$2:$C$58,0)+$A121,4),$D121)","v":0},{"$f":"+IF($D121=\"Aplica\",OFFSET(Hoja2!$C$2,MATCH(VLOOKUP($E$116,Hoja1!$G$1:$I$150,2,FALSE),Hoja2!$C$2:$C$58,0)+$A121,5),$D121)","v":0},{"$f":"+IF($D121=\"Aplica\",OFFSET(Hoja2!$C$2,MATCH(VLOOKUP($E$116,Hoja1!$G$1:$I$150,2,FALSE),Hoja2!$C$2:$C$58,0)+$A121,6),$D121)","v":0},null,null,null,{"$f":"+IF($D121=\"Aplica\",OFFSET(Hoja2!$C$2,MATCH(VLOOKUP($E$116,Hoja1!$G$1:$I$150,2,FALSE),Hoja2!$C$2:$C$58,0)+$A121,9),$D121)","v":0}]
[1,null,"CUMPLIMIENTO \n(Variable/atributo/característica de requisito determinado por la legislación vigente)\n",null,{"$f":"+IF($D122=\"Aplica\",OFFSET(Hoja2!$C$2,MATCH(VLOOKUP($E$116,Hoja1!$G$1:$I$150,2,FALSE),Hoja2!$C$2:$C$58,0)+$A122,2),$D122)","v":0},{"$f":"+IF($D122=\"Aplica\",OFFSET(Hoja2!$C$2,MATCH(VLOOKUP($E$116,Hoja1!$G$1:$I$150,2,FALSE),Hoja2!$C$2:$C$58,0)+$A122,3),$D122)","v":0},{"$f":"+IF($D122=\"Aplica\",OFFSET(Hoja2!$C$2,MATCH(VLOOKUP($E$116,Hoja1!$G$1:$I$150,2,FALSE),Hoja2!$C$2:$C$58,0)+$A122,4),$D122)","v":0},{"$f":"+IF($D122=\"Aplica\",OFFSET(Hoja2!$C$2,MATCH(VLOOKUP($E$116,Hoja1!$G$1:$I$150,2,FALSE),Hoja2!$C$2:$C$58,0)+$A122,5),$D122)","v":0},{"$f":"+IF($D122=\"Aplica\",OFFSET(Hoja2!$C$2,MATCH(VLOOKUP($E$116,Hoja1!$G$1:$I$150,2,FALSE),Hoja2!$C$2:$C$58,0)+$A122,6),$D122)","v":0},null,null,null,{"$f":"+IF($D122=\"Aplica\",OFFSET(Hoja2!$C$2,MATCH(VLOOKUP($E$116,Hoja1!$G$1:$I$150,2,FALSE),Hoja2!$C$2:$C$58,0)+$A122,9),$D122)","v":0}]
[2,null,"OPORTUNIDAD\n(Variable/atributo/característica de requisito determinado por FP)",null,{"$f":"+IF($D123=\"Aplica\",OFFSET(Hoja2!$C$2,MATCH(VLOOKUP($E$116,Hoja1!$G$1:$I$150,2,FALSE),Hoja2!$C$2:$C$58,0)+$A123,2),$D123)","v":0},{"$f":"+IF($D123=\"Aplica\",OFFSET(Hoja2!$C$2,MATCH(VLOOKUP($E$116,Hoja1!$G$1:$I$150,2,FALSE),Hoja2!$C$2:$C$58,0)+$A123,3),$D123)","v":0},{"$f":"+IF($D123=\"Aplica\",OFFSET(Hoja2!$C$2,MATCH(VLOOKUP($E$116,Hoja1!$G$1:$I$150,2,FALSE),Hoja2!$C$2:$C$58,0)+$A123,4),$D123)","v":0},{"$f":"+IF($D123=\"Aplica\",OFFSET(Hoja2!$C$2,MATCH(VLOOKUP($E$116,Hoja1!$G$1:$I$150,2,FALSE),Hoja2!$C$2:$C$58,0)+$A123,5),$D123)","v":0},{"$f":"+IF($D123=\"Aplica\",OFFSET(Hoja2!$C$2,MATCH(VLOOKUP($E$116,Hoja1!$G$1:$I$150,2,FALSE),Hoja2!$C$2:$C$58,0)+$A123,6),$D123)","v":0},null,null,null,{"$f":"+IF($D123=\"Aplica\",OFFSET(Hoja2!$C$2,MATCH(VLOOKUP($E$116,Hoja1!$G$1:$I$150,2,FALSE),Hoja2!$C$2:$C$58,0)+$A123,9),$D123)","v":0}]
[]
["Nombre del Producto"]
["Descripción del Producto/Servicio",null,null,null,{"$f":"VLOOKUP($E$125,Hoja1!$G$1:$K$150,4,FALSE)","v":{"$error":"#N/A"}}]
["Responsable del Producto /Servicio",null,null,null,{"$f":"VLOOKUP($E$125,Hoja1!$G$1:$K$150,5,FALSE)","v":{"$error":"#N/A"}}]
[null,null,"Requisito ","¿Aplica?","Descripción requisito","Control","Responsable del Control","Frecuencia Seguimiento ","Registro el seguimiento","Cuando es No Conforme","Acción a seguir al detectar PNC",null,"Responsable de la liberación producto"]
[-1,null,"CLARIDAD \n(Variable/atributo/característica de requisito determinado por el cliente)",null,{"$f":"+IF($D129=\"Aplica\",OFFSET(Hoja2!$C$2,MATCH(VLOOKUP($E$125,Hoja1!$G$1:$I$150,2,FALSE),Hoja2!$C$2:$C$58,0)+$A129,2),$D129)","v":0},{"$f":"+IF($D129=\"Aplica\",OFFSET(Hoja2!$C$2,MATCH(VLOOKUP($E$125,Hoja1!$G$1:$I$150,2,FALSE),Hoja2!$C$2:$C$58,0)+$A129,3),$D129)","v":0},{"$f":"+IF($D129=\"Aplica\",OFFSET(Hoja2!$C$2,MATCH(VLOOKUP($E$125,Hoja1!$G$1:$I$150,2,FALSE),Hoja2!$C$2:$C$58,0)+$A129,4),$D129)","v":0},{"$f":"+IF($D129=\"Aplica\",OFFSET(Hoja2!$C$2,MATCH(VLOOKUP($E$125,Hoja1!$G$1:$I$150,2,FALSE),Hoja2!$C$2:$C$58,0)+$A129,5),$D129)","v":0},{"$f":"+IF($D129=\"Aplica\",OFFSET(Hoja2!$C$2,MATCH(VLOOKUP($E$125,Hoja1!$G$1:$I$150,2,FALSE),Hoja2!$C$2:$C$58,0)+$A129,6),$D129)","v":0},{"$f":"+OFFSET(Hoja2!$C$2,MATCH(VLOOKUP($E$125,Hoja1!$G$1:$I$150,2,FALSE),Hoja2!$C$2:$C$58,0)+$A129,7)","v":{"$error":"#N/A"}},{"$f":"+OFFSET(Hoja2!$C$2,MATCH(VLOOKUP($E$125,Hoja1!$G$1:$I$150,2,FALSE),Hoja2!$C$2:$C$58,0)+$A129,8)","v":{"$error":"#N/A"}},null,{"$f":"+IF($D129=\"Aplica\",OFFSET(Hoja2!$C$2,MATCH(VLOOKUP($E$125,Hoja1!$G$1:$I$150,2,FALSE),Hoja2!$C$2:$C$58,0)+$A129,9),$D129)","v":0}]
[0,null,"CONFIABILIDAD\n(Variable/atributo/característica de requisito determinado para el producto/ servicio/ resultado)\n",null,{"$f":"+IF($D130=\"Aplica\",OFFSET(Hoja2!$C$2,MATCH(VLOOKUP($E$125,Hoja1!$G$1:$I$150,2,FALSE),Hoja2!$C$2:$C$58,0)+$A130,2),$D130)","v":0},{"$f":"+IF($D130=\"Aplica\",OFFSET(Hoja2!$C$2,MATCH(VLOOKUP($E$125,Hoja1!$G$1:$I$150,2,FALSE),Hoja2!$C$2:$C$58,0)+$A130,3),$D130)","v":0},{"$f":"+IF($D130=\"Aplica\",OFFSET(Hoja2!$C$2,MATCH(VLOOKUP($E$125,Hoja1!$G$1:$I$150,2,FALSE),Hoja2!$C$2:$C$58,0)+$A130,4),$D130)","v":0},{"$f":"+IF($D130=\"Aplica\",OFFSET(Hoja2!$C$2,MATCH(VLOOKUP($E$125,Hoja1!$G$1:$I$150,2,FALSE),Hoja2!$C$2:$C$58,0)+$A130,5),$D130)","v":0},{"$f":"+IF($D130=\"Aplica\",OFFSET(Hoja2!$C$2,MATCH(VLOOKUP($E$125,Hoja1!$G$1:$I$150,2,FALSE),Hoja2!$C$2:$C$58,0)+$A130,6),$D130)","v":0},null,null,null,{"$f":"+IF($D130=\"Aplica\",OFFSET(Hoja2!$C$2,MATCH(VLOOKUP($E$125,Hoja1!$G$1:$I$150,2,FALSE),Hoja2!$C$2:$C$58,0)+$A130,9),$D130)","v":0}]
[1,null,"CUMPLIMIENTO \n(Variable/atributo/característica de requisito determinado por la legislación vigente)\n",null,{"$f":"+IF($D131=\"Aplica\",OFFSET(Hoja2!$C$2,MATCH(VLOOKUP($E$125,Hoja1!$G$1:$I$150,2,FALSE),Hoja2!$C$2:$C$58,0)+$A131,2),$D131)","v":0},{"$f":"+IF($D131=\"Aplica\",OFFSET(Hoja2!$C$2,MATCH(VLOOKUP($E$125,Hoja1!$G$1:$I$150,2,FALSE),Hoja2!$C$2:$C$58,0)+$A131,3),$D131)","v":0},{"$f":"+IF($D131=\"Aplica\",OFFSET(Hoja2!$C$2,MATCH(VLOOKUP($E$125,Hoja1!$G$1:$I$150,2,FALSE),Hoja2!$C$2:$C$58,0)+$A131,4),$D131)","v":0},{"$f":"+IF($D131=\"Aplica\",OFFSET(Hoja2!$C$2,MATCH(VLOOKUP($E$125,Hoja1!$G$1:$I$150,2,FALSE),Hoja2!$C$2:$C$58,0)+$A131,5),$D131)","v":0},{"$f":"+IF($D131=\"Aplica\",OFFSET(Hoja2!$C$2,MATCH(VLOOKUP($E$125,Hoja1!$G$1:$I$150,2,FALSE),Hoja2!$C$2:$C$58,0)+$A131,6),$D131)","v":0},null,null,null,{"$f":"+IF($D131=\"Aplica\",OFFSET(Hoja2!$C$2,MATCH(VLOOKUP($E$125,Hoja1!$G$1:$I$150,2,FALSE),Hoja2!$C$2:$C$58,0)+$A131,9),$D131)","v":0}]
[2,null,"OPORTUNIDAD\n(Variable/atributo/característica de requisito determinado por FP)",null,{"$f":"+IF($D132=\"Aplica\",OFFSET(Hoja2!$C$2,MATCH(VLOOKUP($E$125,Hoja1!$G$1:$I$150,2,FALSE),Hoja2!$C$2:$C$58,0)+$A132,2),$D132)","v":0},{"$f":"+IF($D132=\"Aplica\",OFFSET(Hoja2!$C$2,MATCH(VLOOKUP($E$125,Hoja1!$G$1:$I$150,2,FALSE),Hoja2!$C$2:$C$58,0)+$A132,3),$D132)","v":0},{"$f":"+IF($D132=\"Aplica\",OFFSET(Hoja2!$C$2,MATCH(VLOOKUP($E$125,Hoja1!$G$1:$I$150,2,FALSE),Hoja2!$C$2:$C$58,0)+$A132,4),$D132)","v":0},{"$f":"+IF($D132=\"Aplica\",OFFSET(Hoja2!$C$2,MATCH(VLOOKUP($E$125,Hoja1!$G$1:$I$150,2,FALSE),Hoja2!$C$2:$C$58,0)+$A132,5),$D132)","v":0},{"$f":"+IF($D132=\"Aplica\",OFFSET(Hoja2!$C$2,MATCH(VLOOKUP($E$125,Hoja1!$G$1:$I$150,2,FALSE),Hoja2!$C$2:$C$58,0)+$A132,6),$D132)","v":0},null,null,null,{"$f":"+IF($D132=\"Aplica\",OFFSET(Hoja2!$C$2,MATCH(VLOOKUP($E$125,Hoja1!$G$1:$I$150,2,FALSE),Hoja2!$C$2:$C$58,0)+$A132,9),$D132)","v":0}]
[]
["Nombre del Producto"]
["Descripción del Producto/Servicio",null,null,null,{"$f":"VLOOKUP($E$134,Hoja1!$G$1:$K$150,4,FALSE)","v":{"$error":"#N/A"}}]
["Responsable del Producto /Servicio",null,null,null,{"$f":"VLOOKUP($E$134,Hoja1!$G$1:$K$150,5,FALSE)","v":{"$error":"#N/A"}}]
[null,null,"Requisito ","¿Aplica?","Descripción requisito","Control","Responsable del Control","Frecuencia Seguimiento ","Registro el seguimiento","Cuando es No Conforme","Acción a seguir al detectar PNC",null,"Responsable de la liberación producto"]
[-1,null,"CLARIDAD \n(Variable/atributo/característica de requisito determinado por el cliente)",null,{"$f":"+IF($D138=\"Aplica\",OFFSET(Hoja2!$C$2,MATCH(VLOOKUP($E$134,Hoja1!$G$1:$I$150,2,FALSE),Hoja2!$C$2:$C$58,0)+$A138,2),$D138)","v":0},{"$f":"+IF($D138=\"Aplica\",OFFSET(Hoja2!$C$2,MATCH(VLOOKUP($E$134,Hoja1!$G$1:$I$150,2,FALSE),Hoja2!$C$2:$C$58,0)+$A138,3),$D138)","v":0},{"$f":"+IF($D138=\"Aplica\",OFFSET(Hoja2!$C$2,MATCH(VLOOKUP($E$134,Hoja1!$G$1:$I$150,2,FALSE),Hoja2!$C$2:$C$58,0)+$A138,4),$D138)","v":0},{"$f":"+IF($D138=\"Aplica\",OFFSET(Hoja2!$C$2,MATCH(VLOOKUP($E$134,Hoja1!$G$1:$I$150,2,FALSE),Hoja2!$C$2:$C$58,0)+$A138,5),$D138)","v":0},{"$f":"+IF($D138=\"Aplica\",OFFSET(Hoja2!$C$2,MATCH(VLOOKUP($E$134,Hoja1!$G$1:$I$150,2,FALSE),Hoja2!$C$2:$C$58,0)+$A138,6),$D138)","v":0},{"$f":"+OFFSET(Hoja2!$C$2,MATCH(VLOOKUP($E$134,Hoja1!$G$1:$I$150,2,FALSE),Hoja2!$C$2:$C$58,0)+$A138,7)","v":{"$error":"#N/A"}},{"$f":"+OFFSET(Hoja2!$C$2,MATCH(VLOOKUP($E$134,Hoja1!$G$1:$I$150,2,FALSE),Hoja2!$C$2:$C$58,0)+$A138,8)","v":{"$error":"#N/A"}},null,{"$f":"+IF($D138=\"Aplica\",OFFSET(Hoja2!$C$2,MATCH(VLOOKUP($E$134,Hoja1!$G$1:$I$150,2,FALSE),Hoja2!$C$2:$C$58,0)+$A138,9),$D138)","v":0}]
[0,null,"CONFIABILIDAD\n(Variable/atributo/característica de requisito determinado para el producto/ servicio/ resultado)\n",null,{"$f":"+IF($D139=\"Aplica\",OFFSET(Hoja2!$C$2,MATCH(VLOOKUP($E$134,Hoja1!$G$1:$I$150,2,FALSE),Hoja2!$C$2:$C$58,0)+$A139,2),$D139)","v":0},{"$f":"+IF($D139=\"Aplica\",OFFSET(Hoja2!$C$2,MATCH(VLOOKUP($E$134,Hoja1!$G$1:$I$150,2,FALSE),Hoja2!$C$2:$C$58,0)+$A139,3),$D139)","v":0},{"$f":"+IF($D139=\"Aplica\",OFFSET(Hoja2!$C$2,MATCH(VLOOKUP($E$134,Hoja1!$G$1:$I$150,2,FALSE),Hoja2!$C$2:$C$58,0)+$A139,4),$D139)","v":0},{"$f":"+IF($D139=\"Aplica\",OFFSET(Hoja2!$C$2,MATCH(VLOOKUP($E$134,Hoja1!$G$1:$I$150,2,FALSE),Hoja2!$C$2:$C$58,0)+$A139,5),$D139)","v":0},{"$f":"+IF($D139=\"Aplica\",OFFSET(Hoja2!$C$2,MATCH(VLOOKUP($E$134,Hoja1!$G$1:$I$150,2,FALSE),Hoja2!$C$2:$C$58,0)+$A139,6),$D139)","v":0},null,null,null,{"$f":"+IF($D139=\"Aplica\",OFFSET(Hoja2!$C$2,MATCH(VLOOKUP($E$134,Hoja1!$G$1:$I$150,2,FALSE),Hoja2!$C$2:$C$58,0)+$A139,9),$D139)","v":0}]
[1,null,"CUMPLIMIENTO \n(Variable/atributo/característica de requisito determinado por la legislación vigente)\n",null,{"$f":"+IF($D140=\"Aplica\",OFFSET(Hoja2!$C$2,MATCH(VLOOKUP($E$134,Hoja1!$G$1:$I$150,2,FALSE),Hoja2!$C$2:$C$58,0)+$A140,2),$D140)","v":0},{"$f":"+IF($D140=\"Aplica\",OFFSET(Hoja2!$C$2,MATCH(VLOOKUP($E$134,Hoja1!$G$1:$I$150,2,FALSE),Hoja2!$C$2:$C$58,0)+$A140,3),$D140)","v":0},{"$f":"+IF($D140=\"Aplica\",OFFSET(Hoja2!$C$2,MATCH(VLOOKUP($E$134,Hoja1!$G$1:$I$150,2,FALSE),Hoja2!$C$2:$C$58,0)+$A140,4),$D140)","v":0},{"$f":"+IF($D140=\"Aplica\",OFFSET(Hoja2!$C$2,MATCH(VLOOKUP($E$134,Hoja1!$G$1:$I$150,2,FALSE),Hoja2!$C$2:$C$58,0)+$A140,5),$D140)","v":0},{"$f":"+IF($D140=\"Aplica\",OFFSET(Hoja2!$C$2,MATCH(VLOOKUP($E$134,Hoja1!$G$1:$I$150,2,FALSE),Hoja2!$C$2:$C$58,0)+$A140,6),$D140)","v":0},null,null,null,{"$f":"+IF($D140=\"Aplica\",OFFSET(Hoja2!$C$2,MATCH(VLOOKUP($E$134,Hoja1!$G$1:$I$150,2,FALSE),Hoja2!$C$2:$C$58,0)+$A140,9),$D140)","v":0}]
[2,null,"OPORTUNIDAD\n(Variable/atributo/característica de requisito determinado por FP)",null,{"$f":"+IF($D141=\"Aplica\",OFFSET(Hoja2!$C$2,MATCH(VLOOKUP($E$134,Hoja1!$G$1:$I$150,2,FALSE),Hoja2!$C$2:$C$58,0)+$A141,2),$D141)","v":0},{"$f":"+IF($D141=\"Aplica\",OFFSET(Hoja2!$C$2,MATCH(VLOOKUP($E$134,Hoja1!$G$1:$I$150,2,FALSE),Hoja2!$C$2:$C$58,0)+$A141,3),$D141)","v":0},{"$f":"+IF($D141=\"Aplica\",OFFSET(Hoja2!$C$2,MATCH(VLOOKUP($E$134,Hoja1!$G$1:$I$150,2,FALSE),Hoja2!$C$2:$C$58,0)+$A141,4),$D141)","v":0},{"$f":"+IF($D141=\"Aplica\",OFFSET(Hoja2!$C$2,MATCH(VLOOKUP($E$134,Hoja1!$G$1:$I$150,2,FALSE),Hoja2!$C$2:$C$58,0)+$A141,5),$D141)","v":0},{"$f":"+IF($D141=\"Aplica\",OFFSET(Hoja2!$C$2,MATCH(VLOOKUP($E$134,Hoja1!$G$1:$I$150,2,FALSE),Hoja2!$C$2:$C$58,0)+$A141,6),$D141)","v":0},null,null,null,{"$f":"+IF($D141=\"Aplica\",OFFSET(Hoja2!$C$2,MATCH(VLOOKUP($E$134,Hoja1!$G$1:$I$150,2,FALSE),Hoja2!$C$2:$C$58,0)+$A141,9),$D141)","v":0}]
[]
["Nombre del Producto"]
["Descripción del Producto/Servicio",null,null,null,{"$f":"VLOOKUP($E$143,Hoja1!$G$1:$K$150,4,FALSE)","v":{"$error":"#N/A"}}]
["Responsable del Producto /Servicio",null,null,null,{"$f":"VLOOKUP($E$143,Hoja1!$G$1:$K$150,5,FALSE)","v":{"$error":"#N/A"}}]
[null,null,"Requisito ","¿Aplica?","Descripción requisito","Control","Responsable del Control","Frecuencia Seguimiento ","Registro el seguimiento","Cuando es No Conforme","Acción a seguir al detectar PNC",null,"Responsable de la liberación producto"]
[-1,null,"CLARIDAD \n(Variable/atributo/característica de requisito determinado por el cliente)",null,{"$f":"+IF($D147=\"Aplica\",OFFSET(Hoja2!$C$2,MATCH(VLOOKUP($E$143,Hoja1!$G$1:$I$150,2,FALSE),Hoja2!$C$2:$C$58,0)+$A147,2),$D147)","v":0},{"$f":"+IF($D147=\"Aplica\",OFFSET(Hoja2!$C$2,MATCH(VLOOKUP($E$143,Hoja1!$G$1:$I$150,2,FALSE),Hoja2!$C$2:$C$58,0)+$A147,3),$D147)","v":0},{"$f":"+IF($D147=\"Aplica\",OFFSET(Hoja2!$C$2,MATCH(VLOOKUP($E$143,Hoja1!$G$1:$I$150,2,FALSE),Hoja2!$C$2:$C$58,0)+$A147,4),$D147)","v":0},{"$f":"+IF($D147=\"Aplica\",OFFSET(Hoja2!$C$2,MATCH(VLOOKUP($E$143,Hoja1!$G$1:$I$150,2,FALSE),Hoja2!$C$2:$C$58,0)+$A147,5),$D147)","v":0},{"$f":"+IF($D147=\"Aplica\",OFFSET(Hoja2!$C$2,MATCH(VLOOKUP($E$143,Hoja1!$G$1:$I$150,2,FALSE),Hoja2!$C$2:$C$58,0)+$A147,6),$D147)","v":0},{"$f":"+OFFSET(Hoja2!$C$2,MATCH(VLOOKUP($E$143,Hoja1!$G$1:$I$150,2,FALSE),Hoja2!$C$2:$C$58,0)+$A147,7)","v":{"$error":"#N/A"}},{"$f":"+OFFSET(Hoja2!$C$2,MATCH(VLOOKUP($E$143,Hoja1!$G$1:$I$150,2,FALSE),Hoja2!$C$2:$C$58,0)+$A147,8)","v":{"$error":"#N/A"}},null,{"$f":"+IF($D147=\"Aplica\",OFFSET(Hoja2!$C$2,MATCH(VLOOKUP($E$143,Hoja1!$G$1:$I$150,2,FALSE),Hoja2!$C$2:$C$58,0)+$A147,9),$D147)","v":0}]
[0,null,"CONFIABILIDAD\n(Variable/atributo/característica de requisito determinado para el producto/ servicio/ resultado)\n",null,{"$f":"+IF($D148=\"Aplica\",OFFSET(Hoja2!$C$2,MATCH(VLOOKUP($E$143,Hoja1!$G$1:$I$150,2,FALSE),Hoja2!$C$2:$C$58,0)+$A148,2),$D148)","v":0},{"$f":"+IF($D148=\"Aplica\",OFFSET(Hoja2!$C$2,MATCH(VLOOKUP($E$143,Hoja1!$G$1:$I$150,2,FALSE),Hoja2!$C$2:$C$58,0)+$A148,3),$D148)","v":0},{"$f":"+IF($D148=\"Aplica\",OFFSET(Hoja2!$C$2,MATCH(VLOOKUP($E$143,Hoja1!$G$1:$I$150,2,FALSE),Hoja2!$C$2:$C$58,0)+$A148,4),$D148)","v":0},{"$f":"+IF($D148=\"Aplica\",OFFSET(Hoja2!$C$2,MATCH(VLOOKUP($E$143,Hoja1!$G$1:$I$150,2,FALSE),Hoja2!$C$2:$C$58,0)+$A148,5),$D148)","v":0},{"$f":"+IF($D148=\"Aplica\",OFFSET(Hoja2!$C$2,MATCH(VLOOKUP($E$143,Hoja1!$G$1:$I$150,2,FALSE),Hoja2!$C$2:$C$58,0)+$A148,6),$D148)","v":0},null,null,null,{"$f":"+IF($D148=\"Aplica\",OFFSET(Hoja2!$C$2,MATCH(VLOOKUP($E$143,Hoja1!$G$1:$I$150,2,FALSE),Hoja2!$C$2:$C$58,0)+$A148,9),$D148)","v":0}]
[1,null,"CUMPLIMIENTO \n(Variable/atributo/característica de requisito determinado por la legislación vigente)\n",null,{"$f":"+IF($D149=\"Aplica\",OFFSET(Hoja2!$C$2,MATCH(VLOOKUP($E$143,Hoja1!$G$1:$I$150,2,FALSE),Hoja2!$C$2:$C$58,0)+$A149,2),$D149)","v":0},{"$f":"+IF($D149=\"Aplica\",OFFSET(Hoja2!$C$2,MATCH(VLOOKUP($E$143,Hoja1!$G$1:$I$150,2,FALSE),Hoja2!$C$2:$C$58,0)+$A149,3),$D149)","v":0},{"$f":"+IF($D149=\"Aplica\",OFFSET(Hoja2!$C$2,MATCH(VLOOKUP($E$143,Hoja1!$G$1:$I$150,2,FALSE),Hoja2!$C$2:$C$58,0)+$A149,4),$D149)","v":0},{"$f":"+IF($D149=\"Aplica\",OFFSET(Hoja2!$C$2,MATCH(VLOOKUP($E$143,Hoja1!$G$1:$I$150,2,FALSE),Hoja2!$C$2:$C$58,0)+$A149,5),$D149)","v":0},{"$f":"+IF($D149=\"Aplica\",OFFSET(Hoja2!$C$2,MATCH(VLOOKUP($E$143,Hoja1!$G$1:$I$150,2,FALSE),Hoja2!$C$2:$C$58,0)+$A149,6),$D149)","v":0},null,null,null,{"$f":"+IF($D149=\"Aplica\",OFFSET(Hoja2!$C$2,MATCH(VLOOKUP($E$143,Hoja1!$G$1:$I$150,2,FALSE),Hoja2!$C$2:$C$58,0)+$A149,9),$D149)","v":0}]
[2,null,"OPORTUNIDAD\n(Variable/atributo/característica de requisito determinado por FP)",null,{"$f":"+IF($D150=\"Aplica\",OFFSET(Hoja2!$C$2,MATCH(VLOOKUP($E$143,Hoja1!$G$1:$I$150,2,FALSE),Hoja2!$C$2:$C$58,0)+$A150,2),$D150)","v":0},{"$f":"+IF($D150=\"Aplica\",OFFSET(Hoja2!$C$2,MATCH(VLOOKUP($E$143,Hoja1!$G$1:$I$150,2,FALSE),Hoja2!$C$2:$C$58,0)+$A150,3),$D150)","v":0},{"$f":"+IF($D150=\"Aplica\",OFFSET(Hoja2!$C$2,MATCH(VLOOKUP($E$143,Hoja1!$G$1:$I$150,2,FALSE),Hoja2!$C$2:$C$58,0)+$A150,4),$D150)","v":0},{"$f":"+IF($D150=\"Aplica\",OFFSET(Hoja2!$C$2,MATCH(VLOOKUP($E$143,Hoja1!$G$1:$I$150,2,FALSE),Hoja2!$C$2:$C$58,0)+$A150,5),$D150)","v":0},{"$f":"+IF($D150=\"Aplica\",OFFSET(Hoja2!$C$2,MATCH(VLOOKUP($E$143,Hoja1!$G$1:$I$150,2,FALSE),Hoja2!$C$2:$C$58,0)+$A150,6),$D150)","v":0},null,null,null,{"$f":"+IF($D150=\"Aplica\",OFFSET(Hoja2!$C$2,MATCH(VLOOKUP($E$143,Hoja1!$G$1:$I$150,2,FALSE),Hoja2!$C$2:$C$58,0)+$A150,9),$D150)","v":0}]
[]
["Nombre del Producto"]
["Descripción del Producto/Servicio",null,null,null,{"$f":"VLOOKUP($E$152,Hoja1!$G$1:$K$150,4,FALSE)","v":{"$error":"#N/A"}}]
["Responsable del Producto /Servicio",null,null,null,{"$f":"VLOOKUP($E$152,Hoja1!$G$1:$K$150,5,FALSE)","v":{"$error":"#N/A"}}]
[null,null,"Requisito ","¿Aplica?","Descripción requisito","Control","Responsable del Control","Frecuencia Seguimiento ","Registro el seguimiento","Cuando es No Conforme","Acción a seguir al detectar PNC",null,"Responsable de la liberación producto"]
[-1,null,"CLARIDAD \n(Variable/atributo/característica de requisito determinado por el cliente)",null,{"$f":"+IF($D156=\"Aplica\",OFFSET(Hoja2!$C$2,MATCH(VLOOKUP($E$152,Hoja1!$G$1:$I$150,2,FALSE),Hoja2!$C$2:$C$58,0)+$A156,2),$D156)","v":0},{"$f":"+IF($D156=\"Aplica\",OFFSET(Hoja2!$C$2,MATCH(VLOOKUP($E$152,Hoja1!$G$1:$I$150,2,FALSE),Hoja2!$C$2:$C$58,0)+$A156,3),$D156)","v":0},{"$f":"+IF($D156=\"Aplica\",OFFSET(Hoja2!$C$2,MATCH(VLOOKUP($E$152,Hoja1!$G$1:$I$150,2,FALSE),Hoja2!$C$2:$C$58,0)+$A156,4),$D156)","v":0},{"$f":"+IF($D156=\"Aplica\",OFFSET(Hoja2!$C$2,MATCH(VLOOKUP($E$152,Hoja1!$G$1:$I$150,2,FALSE),Hoja2!$C$2:$C$58,0)+$A156,5),$D156)","v":0},{"$f":"+IF($D156=\"Aplica\",OFFSET(Hoja2!$C$2,MATCH(VLOOKUP($E$152,Hoja1!$G$1:$I$150,2,FALSE),Hoja2!$C$2:$C$58,0)+$A156,6),$D156)","v":0},{"$f":"+OFFSET(Hoja2!$C$2,MATCH(VLOOKUP($E$152,Hoja1!$G$1:$I$150,2,FALSE),Hoja2!$C$2:$C$58,0)+$A156,7)","v":{"$error":"#N/A"}},{"$f":"+OFFSET(Hoja2!$C$2,MATCH(VLOOKUP($E$152,Hoja1!$G$1:$I$150,2,FALSE),Hoja2!$C$2:$C$58,0)+$A156,8)","v":{"$error":"#N/A"}},null,{"$f":"+IF($D156=\"Aplica\",OFFSET(Hoja2!$C$2,MATCH(VLOOKUP($E$152,Hoja1!$G$1:$I$150,2,FALSE),Hoja2!$C$2:$C$58,0)+$A156,9),$D156)","v":0}]
[0,null,"CONFIABILIDAD\n(Variable/atributo/característica de requisito determinado para el producto/ servicio/ resultado)\n",null,{"$f":"+IF($D157=\"Aplica\",OFFSET(Hoja2!$C$2,MATCH(VLOOKUP($E$152,Hoja1!$G$1:$I$150,2,FALSE),Hoja2!$C$2:$C$58,0)+$A157,2),$D157)","v":0},{"$f":"+IF($D157=\"Aplica\",OFFSET(Hoja2!$C$2,MATCH(VLOOKUP($E$152,Hoja1!$G$1:$I$150,2,FALSE),Hoja2!$C$2:$C$58,0)+$A157,3),$D157)","v":0},{"$f":"+IF($D157=\"Aplica\",OFFSET(Hoja2!$C$2,MATCH(VLOOKUP($E$152,Hoja1!$G$1:$I$150,2,FALSE),Hoja2!$C$2:$C$58,0)+$A157,4),$D157)","v":0},{"$f":"+IF($D157=\"Aplica\",OFFSET(Hoja2!$C$2,MATCH(VLOOKUP($E$152,Hoja1!$G$1:$I$150,2,FALSE),Hoja2!$C$2:$C$58,0)+$A157,5),$D157)","v":0},{"$f":"+IF($D157=\"Aplica\",OFFSET(Hoja2!$C$2,MATCH(VLOOKUP($E$152,Hoja1!$G$1:$I$150,2,FALSE),Hoja2!$C$2:$C$58,0)+$A157,6),$D157)","v":0},null,null,null,{"$f":"+IF($D157=\"Aplica\",OFFSET(Hoja2!$C$2,MATCH(VLOOKUP($E$152,Hoja1!$G$1:$I$150,2,FALSE),Hoja2!$C$2:$C$58,0)+$A157,9),$D157)","v":0}]
[1,null,"CUMPLIMIENTO \n(Variable/atributo/característica de requisito determinado por la legislación vigente)\n",null,{"$f":"+IF($D158=\"Aplica\",OFFSET(Hoja2!$C$2,MATCH(VLOOKUP($E$152,Hoja1!$G$1:$I$150,2,FALSE),Hoja2!$C$2:$C$58,0)+$A158,2),$D158)","v":0},{"$f":"+IF($D158=\"Aplica\",OFFSET(Hoja2!$C$2,MATCH(VLOOKUP($E$152,Hoja1!$G$1:$I$150,2,FALSE),Hoja2!$C$2:$C$58,0)+$A158,3),$D158)","v":0},{"$f":"+IF($D158=\"Aplica\",OFFSET(Hoja2!$C$2,MATCH(VLOOKUP($E$152,Hoja1!$G$1:$I$150,2,FALSE),Hoja2!$C$2:$C$58,0)+$A158,4),$D158)","v":0},{"$f":"+IF($D158=\"Aplica\",OFFSET(Hoja2!$C$2,MATCH(VLOOKUP($E$152,Hoja1!$G$1:$I$150,2,FALSE),Hoja2!$C$2:$C$58,0)+$A158,5),$D158)","v":0},{"$f":"+IF($D158=\"Aplica\",OFFSET(Hoja2!$C$2,MATCH(VLOOKUP($E$152,Hoja1!$G$1:$I$150,2,FALSE),Hoja2!$C$2:$C$58,0)+$A158,6),$D158)","v":0},null,null,null,{"$f":"+IF($D158=\"Aplica\",OFFSET(Hoja2!$C$2,MATCH(VLOOKUP($E$152,Hoja1!$G$1:$I$150,2,FALSE),Hoja2!$C$2:$C$58,0)+$A158,9),$D158)","v":0}]
[2,null,"OPORTUNIDAD\n(Variable/atributo/característica de requisito determinado por FP)",null,{"$f":"+IF($D159=\"Aplica\",OFFSET(Hoja2!$C$2,MATCH(VLOOKUP($E$152,Hoja1!$G$1:$I$150,2,FALSE),Hoja2!$C$2:$C$58,0)+$A159,2),$D159)","v":0},{"$f":"+IF($D159=\"Aplica\",OFFSET(Hoja2!$C$2,MATCH(VLOOKUP($E$152,Hoja1!$G$1:$I$150,2,FALSE),Hoja2!$C$2:$C$58,0)+$A159,3),$D159)","v":0},{"$f":"+IF($D159=\"Aplica\",OFFSET(Hoja2!$C$2,MATCH(VLOOKUP($E$152,Hoja1!$G$1:$I$150,2,FALSE),Hoja2!$C$2:$C$58,0)+$A159,4),$D159)","v":0},{"$f":"+IF($D159=\"Aplica\",OFFSET(Hoja2!$C$2,MATCH(VLOOKUP($E$152,Hoja1!$G$1:$I$150,2,FALSE),Hoja2!$C$2:$C$58,0)+$A159,5),$D159)","v":0},{"$f":"+IF($D159=\"Aplica\",OFFSET(Hoja2!$C$2,MATCH(VLOOKUP($E$152,Hoja1!$G$1:$I$150,2,FALSE),Hoja2!$C$2:$C$58,0)+$A159,6),$D159)","v":0},null,null,null,{"$f":"+IF($D159=\"Aplica\",OFFSET(Hoja2!$C$2,MATCH(VLOOKUP($E$152,Hoja1!$G$1:$I$150,2,FALSE),Hoja2!$C$2:$C$58,0)+$A159,9),$D159)","v":0}]
[]
["Nombre del Producto"]
["Descripción del Producto/Servicio",null,null,null,{"$f":"VLOOKUP($E$161,Hoja1!$G$1:$K$150,4,FALSE)","v":{"$error":"#N/A"}}]
["Responsable del Producto /Servicio",null,null,null,{"$f":"VLOOKUP($E$161,Hoja1!$G$1:$K$150,5,FALSE)","v":{"$error":"#N/A"}}]
[null,null,"Requisito ","¿Aplica?","Descripción requisito","Control","Responsable del Control","Frecuencia Seguimiento ","Registro el seguimiento","Cuando es No Conforme","Acción a seguir al detectar PNC",null,"Responsable de la liberación producto"]
[-1,null,"CLARIDAD \n(Variable/atributo/característica de requisito determinado por el cliente)",null,{"$f":"+IF($D165=\"Aplica\",OFFSET(Hoja2!$C$2,MATCH(VLOOKUP($E$161,Hoja1!$G$1:$I$150,2,FALSE),Hoja2!$C$2:$C$58,0)+$A165,2),$D165)","v":0},{"$f":"+IF($D165=\"Aplica\",OFFSET(Hoja2!$C$2,MATCH(VLOOKUP($E$161,Hoja1!$G$1:$I$150,2,FALSE),Hoja2!$C$2:$C$58,0)+$A165,3),$D165)","v":0},{"$f":"+IF($D165=\"Aplica\",OFFSET(Hoja2!$C$2,MATCH(VLOOKUP($E$161,Hoja1!$G$1:$I$150,2,FALSE),Hoja2!$C$2:$C$58,0)+$A165,4),$D165)","v":0},{"$f":"+IF($D165=\"Aplica\",OFFSET(Hoja2!$C$2,MATCH(VLOOKUP($E$161,Hoja1!$G$1:$I$150,2,FALSE),Hoja2!$C$2:$C$58,0)+$A165,5),$D165)","v":0},{"$f":"+IF($D165=\"Aplica\",OFFSET(Hoja2!$C$2,MATCH(VLOOKUP($E$161,Hoja1!$G$1:$I$150,2,FALSE),Hoja2!$C$2:$C$58,0)+$A165,6),$D165)","v":0},{"$f":"+OFFSET(Hoja2!$C$2,MATCH(VLOOKUP($E$161,Hoja1!$G$1:$I$150,2,FALSE),Hoja2!$C$2:$C$58,0)+$A165,7)","v":{"$error":"#N/A"}},{"$f":"+OFFSET(Hoja2!$C$2,MATCH(VLOOKUP($E$161,Hoja1!$G$1:$I$150,2,FALSE),Hoja2!$C$2:$C$58,0)+$A165,8)","v":{"$error":"#N/A"}},null,{"$f":"+IF($D165=\"Aplica\",OFFSET(Hoja2!$C$2,MATCH(VLOOKUP($E$161,Hoja1!$G$1:$I$150,2,FALSE),Hoja2!$C$2:$C$58,0)+$A165,9),$D165)","v":0}]
[0,null,"CONFIABILIDAD\n(Variable/atributo/característica de requisito determinado para el producto/ servicio/ resultado)\n",null,{"$f":"+IF($D166=\"Aplica\",OFFSET(Hoja2!$C$2,MATCH(VLOOKUP($E$161,Hoja1!$G$1:$I$150,2,FALSE),Hoja2!$C$2:$C$58,0)+$A166,2),$D166)","v":0},{"$f":"+IF($D166=\"Aplica\",OFFSET(Hoja2!$C$2,MATCH(VLOOKUP($E$161,Hoja1!$G$1:$I$150,2,FALSE),Hoja2!$C$2:$C$58,0)+$A166,3),$D166)","v":0},{"$f":"+IF($D166=\"Aplica\",OFFSET(Hoja2!$C$2,MATCH(VLOOKUP($E$161,Hoja1!$G$1:$I$150,2,FALSE),Hoja2!$C$2:$C$58,0)+$A166,4),$D166)","v":0},{"$f":"+IF($D166=\"Aplica\",OFFSET(Hoja2!$C$2,MATCH(VLOOKUP($E$161,Hoja1!$G$1:$I$150,2,FALSE),Hoja2!$C$2:$C$58,0)+$A166,5),$D166)","v":0},{"$f":"+IF($D166=\"Aplica\",OFFSET(Hoja2!$C$2,MATCH(VLOOKUP($E$161,Hoja1!$G$1:$I$150,2,FALSE),Hoja2!$C$2:$C$58,0)+$A166,6),$D166)","v":0},null,null,null,{"$f":"+IF($D166=\"Aplica\",OFFSET(Hoja2!$C$2,MATCH(VLOOKUP($E$161,Hoja1!$G$1:$I$150,2,FALSE),Hoja2!$C$2:$C$58,0)+$A166,9),$D166)","v":0}]
[1,null,"CUMPLIMIENTO \n(Variable/atributo/característica de requisito determinado por la legislación vigente)\n",null,{"$f":"+IF($D167=\"Aplica\",OFFSET(Hoja2!$C$2,MATCH(VLOOKUP($E$161,Hoja1!$G$1:$I$150,2,FALSE),Hoja2!$C$2:$C$58,0)+$A167,2),$D167)","v":0},{"$f":"+IF($D167=\"Aplica\",OFFSET(Hoja2!$C$2,MATCH(VLOOKUP($E$161,Hoja1!$G$1:$I$150,2,FALSE),Hoja2!$C$2:$C$58,0)+$A167,3),$D167)","v":0},{"$f":"+IF($D167=\"Aplica\",OFFSET(Hoja2!$C$2,MATCH(VLOOKUP($E$161,Hoja1!$G$1:$I$150,2,FALSE),Hoja2!$C$2:$C$58,0)+$A167,4),$D167)","v":0},{"$f":"+IF($D167=\"Aplica\",OFFSET(Hoja2!$C$2,MATCH(VLOOKUP($E$161,Hoja1!$G$1:$I$150,2,FALSE),Hoja2!$C$2:$C$58,0)+$A167,5),$D167)","v":0},{"$f":"+IF($D167=\"Aplica\",OFFSET(Hoja2!$C$2,MATCH(VLOOKUP($E$161,Hoja1!$G$1:$I$150,2,FALSE),Hoja2!$C$2:$C$58,0)+$A167,6),$D167)","v":0},null,null,null,{"$f":"+IF($D167=\"Aplica\",OFFSET(Hoja2!$C$2,MATCH(VLOOKUP($E$161,Hoja1!$G$1:$I$150,2,FALSE),Hoja2!$C$2:$C$58,0)+$A167,9),$D167)","v":0}]
[2,null,"OPORTUNIDAD\n(Variable/atributo/característica de requisito determinado por FP)",null,{"$f":"+IF($D168=\"Aplica\",OFFSET(Hoja2!$C$2,MATCH(VLOOKUP($E$161,Hoja1!$G$1:$I$150,2,FALSE),Hoja2!$C$2:$C$58,0)+$A168,2),$D168)","v":0},{"$f":"+IF($D168=\"Aplica\",OFFSET(Hoja2!$C$2,MATCH(VLOOKUP($E$161,Hoja1!$G$1:$I$150,2,FALSE),Hoja2!$C$2:$C$58,0)+$A168,3),$D168)","v":0},{"$f":"+IF($D168=\"Aplica\",OFFSET(Hoja2!$C$2,MATCH(VLOOKUP($E$161,Hoja1!$G$1:$I$150,2,FALSE),Hoja2!$C$2:$C$58,0)+$A168,4),$D168)","v":0},{"$f":"+IF($D168=\"Aplica\",OFFSET(Hoja2!$C$2,MATCH(VLOOKUP($E$161,Hoja1!$G$1:$I$150,2,FALSE),Hoja2!$C$2:$C$58,0)+$A168,5),$D168)","v":0},{"$f":"+IF($D168=\"Aplica\",OFFSET(Hoja2!$C$2,MATCH(VLOOKUP($E$161,Hoja1!$G$1:$I$150,2,FALSE),Hoja2!$C$2:$C$58,0)+$A168,6),$D168)","v":0},null,null,null,{"$f":"+IF($D168=\"Aplica\",OFFSET(Hoja2!$C$2,MATCH(VLOOKUP($E$161,Hoja1!$G$1:$I$150,2,FALSE),Hoja2!$C$2:$C$58,0)+$A168,9),$D168)","v":0}]
[]
["Nombre del Producto"]
["Descripción del Producto/Servicio",null,null,null,{"$f":"VLOOKUP($E$170,Hoja1!$G$1:$K$150,4,FALSE)","v":{"$error":"#N/A"}}]
["Responsable del Producto /Servicio",null,null,null,{"$f":"VLOOKUP($E$170,Hoja1!$G$1:$K$150,5,FALSE)","v":{"$error":"#N/A"}}]
[null,null,"Requisito ","¿Aplica?","Descripción requisito","Control","Responsable del Control","Frecuencia Seguimiento ","Registro el seguimiento","Cuando es No Conforme","Acción a seguir al detectar PNC",null,"Responsable de la liberación producto"]
[-1,null,"CLARIDAD \n(Variable/atributo/característica de requisito determinado por el cliente)",null,{"$f":"+IF($D174=\"Aplica\",OFFSET(Hoja2!$C$2,MATCH(VLOOKUP($E$170,Hoja1!$G$1:$I$150,2,FALSE),Hoja2!$C$2:$C$58,0)+$A174,2),$D174)","v":0},{"$f":"+IF($D174=\"Aplica\",OFFSET(Hoja2!$C$2,MATCH(VLOOKUP($E$170,Hoja1!$G$1:$I$150,2,FALSE),Hoja2!$C$2:$C$58,0)+$A174,3),$D174)","v":0},{"$f":"+IF($D174=\"Aplica\",OFFSET(Hoja2!$C$2,MATCH(VLOOKUP($E$170,Hoja1!$G$1:$I$150,2,FALSE),Hoja2!$C$2:$C$58,0)+$A174,4),$D174)","v":0},{"$f":"+IF($D174=\"Aplica\",OFFSET(Hoja2!$C$2,MATCH(VLOOKUP($E$170,Hoja1!$G$1:$I$150,2,FALSE),Hoja2!$C$2:$C$58,0)+$A174,5),$D174)","v":0},{"$f":"+IF($D174=\"Aplica\",OFFSET(Hoja2!$C$2,MATCH(VLOOKUP($E$170,Hoja1!$G$1:$I$150,2,FALSE),Hoja2!$C$2:$C$58,0)+$A174,6),$D174)","v":0},{"$f":"+OFFSET(Hoja2!$C$2,MATCH(VLOOKUP($E$170,Hoja1!$G$1:$I$150,2,FALSE),Hoja2!$C$2:$C$58,0)+$A174,7)","v":{"$error":"#N/A"}},{"$f":"+OFFSET(Hoja2!$C$2,MATCH(VLOOKUP($E$170,Hoja1!$G$1:$I$150,2,FALSE),Hoja2!$C$2:$C$58,0)+$A174,8)","v":{"$error":"#N/A"}},null,{"$f":"+IF($D174=\"Aplica\",OFFSET(Hoja2!$C$2,MATCH(VLOOKUP($E$170,Hoja1!$G$1:$I$150,2,FALSE),Hoja2!$C$2:$C$58,0)+$A174,9),$D174)","v":0}]
[0,null,"CONFIABILIDAD\n(Variable/atributo/característica de requisito determinado para el producto/ servicio/ resultado)\n",null,{"$f":"+IF($D175=\"Aplica\",OFFSET(Hoja2!$C$2,MATCH(VLOOKUP($E$170,Hoja1!$G$1:$I$150,2,FALSE),Hoja2!$C$2:$C$58,0)+$A175,2),$D175)","v":0},{"$f":"+IF($D175=\"Aplica\",OFFSET(Hoja2!$C$2,MATCH(VLOOKUP($E$170,Hoja1!$G$1:$I$150,2,FALSE),Hoja2!$C$2:$C$58,0)+$A175,3),$D175)","v":0},{"$f":"+IF($D175=\"Aplica\",OFFSET(Hoja2!$C$2,MATCH(VLOOKUP($E$170,Hoja1!$G$1:$I$150,2,FALSE),Hoja2!$C$2:$C$58,0)+$A175,4),$D175)","v":0},{"$f":"+IF($D175=\"Aplica\",OFFSET(Hoja2!$C$2,MATCH(VLOOKUP($E$170,Hoja1!$G$1:$I$150,2,FALSE),Hoja2!$C$2:$C$58,0)+$A175,5),$D175)","v":0},{"$f":"+IF($D175=\"Aplica\",OFFSET(Hoja2!$C$2,MATCH(VLOOKUP($E$170,Hoja1!$G$1:$I$150,2,FALSE),Hoja2!$C$2:$C$58,0)+$A175,6),$D175)","v":0},null,null,null,{"$f":"+IF($D175=\"Aplica\",OFFSET(Hoja2!$C$2,MATCH(VLOOKUP($E$170,Hoja1!$G$1:$I$150,2,FALSE),Hoja2!$C$2:$C$58,0)+$A175,9),$D175)","v":0}]
[1,null,"CUMPLIMIENTO \n(Variable/atributo/característica de requisito determinado por la legislación vigente)\n",null,{"$f":"+IF($D176=\"Aplica\",OFFSET(Hoja2!$C$2,MATCH(VLOOKUP($E$170,Hoja1!$G$1:$I$150,2,FALSE),Hoja2!$C$2:$C$58,0)+$A176,2),$D176)","v":0},{"$f":"+IF($D176=\"Aplica\",OFFSET(Hoja2!$C$2,MATCH(VLOOKUP($E$170,Hoja1!$G$1:$I$150,2,FALSE),Hoja2!$C$2:$C$58,0)+$A176,3),$D176)","v":0},{"$f":"+IF($D176=\"Aplica\",OFFSET(Hoja2!$C$2,MATCH(VLOOKUP($E$170,Hoja1!$G$1:$I$150,2,FALSE),Hoja2!$C$2:$C$58,0)+$A176,4),$D176)","v":0},{"$f":"+IF($D176=\"Aplica\",OFFSET(Hoja2!$C$2,MATCH(VLOOKUP($E$170,Hoja1!$G$1:$I$150,2,FALSE),Hoja2!$C$2:$C$58,0)+$A176,5),$D176)","v":0},{"$f":"+IF($D176=\"Aplica\",OFFSET(Hoja2!$C$2,MATCH(VLOOKUP($E$170,Hoja1!$G$1:$I$150,2,FALSE),Hoja2!$C$2:$C$58,0)+$A176,6),$D176)","v":0},null,null,null,{"$f":"+IF($D176=\"Aplica\",OFFSET(Hoja2!$C$2,MATCH(VLOOKUP($E$170,Hoja1!$G$1:$I$150,2,FALSE),Hoja2!$C$2:$C$58,0)+$A176,9),$D176)","v":0}]
[2,null,"OPORTUNIDAD\n(Variable/atributo/característica de requisito determinado por FP)",null,{"$f":"+IF($D177=\"Aplica\",OFFSET(Hoja2!$C$2,MATCH(VLOOKUP($E$170,Hoja1!$G$1:$I$150,2,FALSE),Hoja2!$C$2:$C$58,0)+$A177,2),$D177)","v":0},{"$f":"+IF($D177=\"Aplica\",OFFSET(Hoja2!$C$2,MATCH(VLOOKUP($E$170,Hoja1!$G$1:$I$150,2,FALSE),Hoja2!$C$2:$C$58,0)+$A177,3),$D177)","v":0},{"$f":"+IF($D177=\"Aplica\",OFFSET(Hoja2!$C$2,MATCH(VLOOKUP($E$170,Hoja1!$G$1:$I$150,2,FALSE),Hoja2!$C$2:$C$58,0)+$A177,4),$D177)","v":0},{"$f":"+IF($D177=\"Aplica\",OFFSET(Hoja2!$C$2,MATCH(VLOOKUP($E$170,Hoja1!$G$1:$I$150,2,FALSE),Hoja2!$C$2:$C$58,0)+$A177,5),$D177)","v":0},{"$f":"+IF($D177=\"Aplica\",OFFSET(Hoja2!$C$2,MATCH(VLOOKUP($E$170,Hoja1!$G$1:$I$150,2,FALSE),Hoja2!$C$2:$C$58,0)+$A177,6),$D177)","v":0},null,null,null,{"$f":"+IF($D177=\"Aplica\",OFFSET(Hoja2!$C$2,MATCH(VLOOKUP($E$170,Hoja1!$G$1:$I$150,2,FALSE),Hoja2!$C$2:$C$58,0)+$A177,9),$D177)","v":0}]